Workbook

Sheet general info (hidden)
A1: General info | F1: =selection!F1 -> EN
A2: =IF($F$1="NL",talen!A2,IF($F$1="FR",talen!B2,IF($F$1="EN",talen!C2,talen!D2))) -> Project/Building: | B2: =selection!B2 -> 0
A3: =IF($F$1="NL",talen!A3,IF($F$1="FR",talen!B3,IF($F$1="EN",talen!C3,talen!D3))) -> Reference/ Room data:
A4: =IF($F$1="NL",talen!A4,IF($F$1="FR",talen!B4,IF($F$1="EN",talen!C4,talen!D4))) -> # per room: | B4: =selection!B4 -> 0
A6: Configuration
A7: =IF($F$1="NL",talen!A6,IF($F$1="FR",talen!B6,IF($F$1="EN",talen!C6,talen!D6))) -> Choose model specifications: | B7: =IF($F$1="NL",talen!A60,IF($F$1="FR",talen!B60,IF($F$1="EN",talen!C60,talen!D60))) -> Name | C7: =IF($F$1="NL",talen!A50,IF($F$1="FR",talen!B50,IF($F$1="EN",talen!C50,talen!D50))) -> Mounting type | D7: =IF($F$1="NL",talen!$A61,IF($F$1="FR",talen!$B61,IF($F$1="EN",talen!$C61,talen!$D61))) -> Model | E7: =IF($F$1="NL",talen!$A52,IF($F$1="FR",talen!$B52,IF($F$1="EN",talen!$C52,talen!$D52))) -> Connection | F7: Nozzle | G7: =IF($F$1="NL",talen!$A62,IF($F$1="FR",talen!$B62,IF($F$1="EN",talen!$C62,talen!$D62))) -> Battery type | H7: =IF($F$1="NL",talen!$A59,IF($F$1="FR",talen!$B59,IF($F$1="EN",talen!$C59,talen!$D59))) -> Options | I7: =IF($F$1="NL",talen!$A63,IF($F$1="FR",talen!$B63,IF($F$1="EN",talen!$C63,talen!$D63))) -> Beam length | J7: =IF($F$1="NL",talen!$A64,IF($F$1="FR",talen!$B64,IF($F$1="EN",talen!$C64,talen!$D64))) -> Battery length
B8: K | C8: =selection!C8 -> T: T-bar | D8: 6 | E8: =selection!E8 -> L: left connection | F8: =selection!F22 -> D | G8: =IF(capacity!$G$1="H",'instelwaarden & data'!I3,IF(selection!B20="yes",'instelwaarden & data'!I4,'instelwaarden & data'!I2)) -> H: cooling & heating coil | H8: =selection!H8 -> - : None | I8: =configuration!B1 -> 1800 | J8: =selection!F21 -> 1800
A15: =IF($F$1="NL",talen!A58,IF($F$1="FR",talen!B58,IF($F$1="EN",talen!C58,talen!D58))) -> Used abbreviation | B15: =IF($F$1="NL",talen!A56,IF($F$1="FR",talen!B56,IF($F$1="EN",talen!C56,talen!D56))) -> Unit | C15: =IF($F$1="NL",talen!A57,IF($F$1="FR",talen!B57,IF($F$1="EN",talen!C57,talen!D57))) -> Meaning
A16: Tr | B16: ºC | C16: =IF($F$1="NL",'instelwaarden & data'!T2,IF($F$1="FR",'instelwaarden & data'!U2,IF($F$1="EN",'instelwaarden & data'!V2,'instelwaarden & data'!W2))) -> Room Air Temperature (Tr):
A17: Qp | B17: m3/h | C17: =IF($F$1="NL",'instelwaarden & data'!T3,IF($F$1="FR",'instelwaarden & data'!U3,IF($F$1="EN",'instelwaarden & data'!V3,'instelwaarden & data'!W3))) -> Supply (Primary) Air Flow Rate:
A18: Tp | B18: ºC | C18: =IF($F$1="NL",'instelwaarden & data'!T4,IF($F$1="FR",'instelwaarden & data'!U4,IF($F$1="EN",'instelwaarden & data'!V4,'instelwaarden & data'!W4))) -> Supply (Primary) Air Temperature (Tp):
A19: Twin | B19: ºC | C19: =IF($F$1="NL",'instelwaarden & data'!T5,IF($F$1="FR",'instelwaarden & data'!U5,IF($F$1="EN",'instelwaarden & data'!V5,'instelwaarden & data'!W5))) -> Water Inlet Temperature (Twin):
A20: Qw | B20: l/h | C20: =IF($F$1="NL",'instelwaarden & data'!T6,IF($F$1="FR",'instelwaarden & data'!U6,IF($F$1="EN",'instelwaarden & data'!V6,'instelwaarden & data'!W6))) -> Water Flow Rate :
A21: type batt | B21: C/H/E | C21: =IF($F$1="NL",'instelwaarden & data'!T7,IF($F$1="FR",'instelwaarden & data'!U7,IF($F$1="EN",'instelwaarden & data'!V7,'instelwaarden & data'!W7))) -> Type of battery (cooling/cooling & heating):
A22: x | B22: m | C22: =IF($F$1="NL",'instelwaarden & data'!T8,IF($F$1="FR",'instelwaarden & data'!U8,IF($F$1="EN",'instelwaarden & data'!V8,'instelwaarden & data'!W8))) -> Distance to wall:
A23: y | B23: m | C23: =IF($F$1="NL",'instelwaarden & data'!T9,IF($F$1="FR",'instelwaarden & data'!U9,IF($F$1="EN",'instelwaarden & data'!V9,'instelwaarden & data'!W9))) -> Distance between chilled beams :
A24: Pt | B24: W | C24: =IF($F$1="NL",'instelwaarden & data'!T10,IF($F$1="FR",'instelwaarden & data'!U10,IF($F$1="EN",'instelwaarden & data'!V10,'instelwaarden & data'!W10))) -> Total Capacity:
A25: Ps | B25: Pa | C25: =IF($F$1="NL",'instelwaarden & data'!T11,IF($F$1="FR",'instelwaarden & data'!U11,IF($F$1="EN",'instelwaarden & data'!V11,'instelwaarden & data'!W11))) -> Plenum static pressure:
A26: LwA | B26: dB(A) | C26: =IF($F$1="NL",'instelwaarden & data'!T12,IF($F$1="FR",'instelwaarden & data'!U12,IF($F$1="EN",'instelwaarden & data'!V12,'instelwaarden & data'!W12))) -> Sound Power Pw:
A27: Pb | B27: kPa | C27: =IF($F$1="NL",'instelwaarden & data'!T13,IF($F$1="FR",'instelwaarden & data'!U13,IF($F$1="EN",'instelwaarden & data'!V13,'instelwaarden & data'!W13))) -> Water pressure drop:
A28: Pw | B28: W | C28: =IF($F$1="NL",'instelwaarden & data'!T14,IF($F$1="FR",'instelwaarden & data'!U14,IF($F$1="EN",'instelwaarden & data'!V14,'instelwaarden & data'!W14))) -> Water capacity:
A29: Pa | B29: W | C29: =IF($F$1="NL",'instelwaarden & data'!T15,IF($F$1="FR",'instelwaarden & data'!U15,IF($F$1="EN",'instelwaarden & data'!V15,'instelwaarden & data'!W15))) -> Air capacity:
A30: V1 | B30: m/s | C30: =IF($F$1="NL",'instelwaarden & data'!T16,IF($F$1="FR",'instelwaarden & data'!U16,IF($F$1="EN",'instelwaarden & data'!V16,'instelwaarden & data'!W16))) -> v1 (0,5m from wall @ 1,8m height):
A31: V2 | B31: m/s | C31: =IF($F$1="NL",'instelwaarden & data'!T17,IF($F$1="FR",'instelwaarden & data'!U17,IF($F$1="EN",'instelwaarden & data'!V17,'instelwaarden & data'!W17))) -> v2 (0,5m from wall @ 0,1 m height):
A32: V3 | B32: m/s | C32: =IF($F$1="NL",'instelwaarden & data'!T18,IF($F$1="FR",'instelwaarden & data'!U18,IF($F$1="EN",'instelwaarden & data'!V18,'instelwaarden & data'!W18))) -> v3 (between 2 chilled beams @ 1,8m height):
A33: ΔT c | B33: °C | C33: =IF($F$1="NL",'instelwaarden & data'!T19,IF($F$1="FR",'instelwaarden & data'!U19,IF($F$1="EN",'instelwaarden & data'!V19,'instelwaarden & data'!W19))) -> ΔT battery cooling:
A34: Δθ c | B34: °C | C34: =IF($F$1="NL",'instelwaarden & data'!T20,IF($F$1="FR",'instelwaarden & data'!U20,IF($F$1="EN",'instelwaarden & data'!V20,'instelwaarden & data'!W20))) -> Temp. diff. air-water mean Dq: cooling:
A35: ΔT h | B35: °C | C35: =IF($F$1="NL",'instelwaarden & data'!T21,IF($F$1="FR",'instelwaarden & data'!U21,IF($F$1="EN",'instelwaarden & data'!V21,'instelwaarden & data'!W21))) -> ΔT battery heating:
A36: Δθ h | B36: °C | C36: =IF($F$1="NL",'instelwaarden & data'!T22,IF($F$1="FR",'instelwaarden & data'!U22,IF($F$1="EN",'instelwaarden & data'!V22,'instelwaarden & data'!W22))) -> Temp. diff. air-water mean Dq: heating:

Sheet selection
A1: General info | F1: EN
A2: =IF($F$1="NL",talen!A2,IF($F$1="FR",talen!B2,IF($F$1="EN",talen!C2,talen!D2))) -> Project/Building:
A3: =IF($F$1="NL",talen!A3,IF($F$1="FR",talen!B3,IF($F$1="EN",talen!C3,talen!D3))) -> Reference/ Room data:
A4: =IF($F$1="NL",talen!A4,IF($F$1="FR",talen!B4,IF($F$1="EN",talen!C4,talen!D4))) -> # per room:
A6: Configuration
A7: =IF($F$1="NL",talen!A6,IF($F$1="FR",talen!B6,IF($F$1="EN",talen!C6,talen!D6))) -> Choose model specifications: | B7: =IF($F$1="NL",talen!A60,IF($F$1="FR",talen!B60,IF($F$1="EN",talen!C60,talen!D60))) -> Name | C7: =IF($F$1="NL",talen!A50,IF($F$1="FR",talen!B50,IF($F$1="EN",talen!C50,talen!D50))) -> Mounting type | D7: =IF($F$1="NL",talen!$A61,IF($F$1="FR",talen!$B61,IF($F$1="EN",talen!$C61,talen!$D61))) -> Model | E7: =IF($F$1="NL",talen!$A52,IF($F$1="FR",talen!$B52,IF($F$1="EN",talen!$C52,talen!$D52))) -> Connection | F7: Nozzle | G7: =IF($F$1="NL",talen!$A62,IF($F$1="FR",talen!$B62,IF($F$1="EN",talen!$C62,talen!$D62))) -> Battery type | H7: =IF($F$1="NL",talen!$A59,IF($F$1="FR",talen!$B59,IF($F$1="EN",talen!$C59,talen!$D59))) -> Options | I7: =IF($F$1="NL",talen!$A63,IF($F$1="FR",talen!$B63,IF($F$1="EN",talen!$C63,talen!$D63))) -> Beam length | J7: =IF($F$1="NL",talen!$A64,IF($F$1="FR",talen!$B64,IF($F$1="EN",talen!$C64,talen!$D64))) -> Battery length
B8: K | C8: T: T-bar | D8: 6 | E8: L: left connection | F8: =selection!F22 -> D | G8: =IF(capacity!$G$1="H",'instelwaarden & data'!I3,IF(selection!B20="yes",'instelwaarden & data'!I4,'instelwaarden & data'!I2)) -> H: cooling & heating coil | H8: - : None | I8: =configuration!B1 -> 1800 | J8: =selection!F21 -> 1800
A10: K-6 nozzle | C10: =A3 -> Reference/ Room data: | F10: =IF(B3="","",B3) ->  | G10: =MAX(H20:BI20) -> 0
A11: =IF('general info'!$F$1="NL",talen!$A65,IF('general info'!$F$1="FR",talen!$B65,IF('general info'!$F$1="EN",talen!$C65,talen!$D65))) -> Input data | B11: =IF('general info'!$F$1="NL",talen!$A53,IF('general info'!$F$1="FR",talen!$B53,IF('general info'!$F$1="EN",talen!$C53,talen!$D53))) -> Cooling | C11: =IF('general info'!$F$1="NL",talen!$A54,IF('general info'!$F$1="FR",talen!$B54,IF('general info'!$F$1="EN",talen!$C54,talen!$D54))) -> Heating | E11: =IF('general info'!$F$1="NL",talen!$A66,IF('general info'!$F$1="FR",talen!$B66,IF('general info'!$F$1="EN",talen!$C66,talen!$D66))) -> Required
A12: Tr [°C] | B12: 25 | C12: 20 | E12: MIN | G12: ΔT h | H12: =IF(ISBLANK($F$12),0,IF(AND(H49=0,ROUND(H45,2)>=$F$12),1,0)) -> 0 | I12: =IF(ISBLANK($F$12),0,IF(AND(I49=0,ROUND(I45,2)>=$F$12),1,0)) -> 0 | J12: 0 | K12: 0 | L12: 0 | M12: 0 | N12: 0 | O12: 0 | P12: 0 | Q12: 0 | R12: 0 | S12: 0 | T12: 0 | U12: 0 | V12: 0 | W12: 0 | X12: 0 | Y12: 0 | Z12: 0 | AA12: 0 | AB12: 0 | AC12: 0 | AD12: 0 | AE12: 0 | AF12: 0 | AG12: 0 | AH12: 0 | AI12: 0 | AJ12: 0 | AK12: 0 | AL12: 0 | AM12: 0 | AN12: 0 | AO12: 0 | AP12: 0 | AQ12: 0 | AR12: 0 | AS12: 0 | AT12: 0 | AU12: 0 | AV12: 0 | AW12: 0 | AX12: 0 | AY12: 0 | AZ12: 0 | BA12: 0 | BB12: 0 | BC12: 0 | BD12: 0 | BE12: 0 | BF12: 0 | BG12: 0 | BH12: 0 | BI12: 0
A13: Qp [m³/h] | B13: 86.4 | C13: =B13 -> 86.4 | E13: MIN | G13: Pt heating | H13: =IF(ISBLANK($F$13),0,IF(AND(H49=0,$F$13<=ROUND(H30,0)),1,0)) -> 0 | I13: =IF(ISBLANK($F$13),0,IF(AND(I49=0,$F$13<=ROUND(I30,0)),1,0)) -> 0 | J13: 0 | K13: 0 | L13: 0 | M13: 0 | N13: 0 | O13: 0 | P13: 0 | Q13: 0 | R13: 0 | S13: 0 | T13: 0 | U13: 0 | V13: 0 | W13: 0 | X13: 0 | Y13: 0 | Z13: 0 | AA13: 0 | AB13: 0 | AC13: 0 | AD13: 0 | AE13: 0 | AF13: 0 | AG13: 0 | AH13: 0 | AI13: 0 | AJ13: 0 | AK13: 0 | AL13: 0 | AM13: 0 | AN13: 0 | AO13: 0 | AP13: 0 | AQ13: 0 | AR13: 0 | AS13: 0 | AT13: 0 | AU13: 0 | AV13: 0 | AW13: 0 | AX13: 0 | AY13: 0 | AZ13: 0 | BA13: 0 | BB13: 0 | BC13: 0 | BD13: 0 | BE13: 0 | BF13: 0 | BG13: 0 | BH13: 0 | BI13: 0
A14: Tp [°C] | B14: 20 | C14: 20 | E14: MAX | G14: length | H14: =IF(ISBLANK($F$14),0,IF(AND(H22<=$F$14,H49=0),1,0)) -> 0 | I14: =IF(ISBLANK($F$14),0,IF(AND(I22<=$F$14,I49=0),1,0)) -> 0 | J14: 0 | K14: 0 | L14: 0 | M14: 0 | N14: 0 | O14: 0 | P14: 0 | Q14: 0 | R14: 0 | S14: 0 | T14: 0 | U14: 0 | V14: 0 | W14: 0 | X14: 0 | Y14: 0 | Z14: 0 | AA14: 0 | AB14: 0 | AC14: 0 | AD14: 0 | AE14: 0 | AF14: 0 | AG14: 0 | AH14: 0 | AI14: 0 | AJ14: 0 | AK14: 0 | AL14: 0 | AM14: 0 | AN14: 0 | AO14: 0 | AP14: 0 | AQ14: 0 | AR14: 0 | AS14: 0 | AT14: 0 | AU14: 0 | AV14: 0 | AW14: 0 | AX14: 0 | AY14: 0 | AZ14: 0 | BA14: 0 | BB14: 0 | BC14: 0 | BD14: 0 | BE14: 0 | BF14: 0 | BG14: 0 | BH14: 0 | BI14: 0
A15: Twin [°C] | B15: 14 | C15: 45 | E15: MAX | G15: v3 | H15: =IF(ISNUMBER(H40),IF(ISBLANK($F$15),0,IF(AND(H49=0,ROUND(H40,2)<=$F$15),1,0)),0) -> 0 | I15: =IF(ISNUMBER(I40),IF(ISBLANK($F$15),0,IF(AND(I49=0,ROUND(I40,2)<=$F$15),1,0)),0) -> 0 | J15: 0 | K15: 0 | L15: 0 | M15: 0 | N15: 0 | O15: 0 | P15: 0 | Q15: 0 | R15: 0 | S15: 0 | T15: 0 | U15: 0 | V15: 0 | W15: 0 | X15: 0 | Y15: 0 | Z15: 0 | AA15: 0 | AB15: 0 | AC15: 0 | AD15: 0 | AE15: 0 | AF15: 0 | AG15: 0 | AH15: 0 | AI15: 0 | AJ15: 0 | AK15: 0 | AL15: 0 | AM15: 0 | AN15: 0 | AO15: 0 | AP15: 0 | AQ15: 0 | AR15: 0 | AS15: 0 | AT15: 0 | AU15: 0 | AV15: 0 | AW15: 0 | AX15: 0 | AY15: 0 | AZ15: 0 | BA15: 0 | BB15: 0 | BC15: 0 | BD15: 0 | BE15: 0 | BF15: 0 | BG15: 0 | BH15: 0 | BI15: 0
A16: Qw [l/h] | B16: 100 | C16: 100 | E16: MAX | G16: Lwa dB(A) | H16: =IF(ISBLANK($F$16),0,IF(AND(H49=0,ROUND(H25,1)<$F$16+0.99),1,0)) -> 0 | I16: =IF(ISBLANK($F$16),0,IF(AND(I49=0,ROUND(I25,1)<$F$16+0.99),1,0)) -> 0 | J16: 0 | K16: 0 | L16: 0 | M16: 0 | N16: 0 | O16: 0 | P16: 0 | Q16: 0 | R16: 0 | S16: 0 | T16: 0 | U16: 0 | V16: 0 | W16: 0 | X16: 0 | Y16: 0 | Z16: 0 | AA16: 0 | AB16: 0 | AC16: 0 | AD16: 0 | AE16: 0 | AF16: 0 | AG16: 0 | AH16: 0 | AI16: 0 | AJ16: 0 | AK16: 0 | AL16: 0 | AM16: 0 | AN16: 0 | AO16: 0 | AP16: 0 | AQ16: 0 | AR16: 0 | AS16: 0 | AT16: 0 | AU16: 0 | AV16: 0 | AW16: 0 | AX16: 0 | AY16: 0 | AZ16: 0 | BA16: 0 | BB16: 0 | BC16: 0 | BD16: 0 | BE16: 0 | BF16: 0 | BG16: 0 | BH16: 0 | BI16: 0
A17: Type of system | B17: Four pipe | E17: MIN | G17: ΔT c | H17: =IF(ISBLANK($F$17),0,IF(AND(H49=0,ROUND(H43,2)>=$F$17),1,0)) -> 0 | I17: =IF(ISBLANK($F$17),0,IF(AND(I49=0,ROUND(I43,2)>=$F$17),1,0)) -> 0 | J17: 0 | K17: 0 | L17: 0 | M17: 0 | N17: 0 | O17: 0 | P17: 0 | Q17: 0 | R17: 0 | S17: 0 | T17: 0 | U17: 0 | V17: 0 | W17: 0 | X17: 0 | Y17: 0 | Z17: 0 | AA17: 0 | AB17: 0 | AC17: 0 | AD17: 0 | AE17: 0 | AF17: 0 | AG17: 0 | AH17: 0 | AI17: 0 | AJ17: 0 | AK17: 0 | AL17: 0 | AM17: 0 | AN17: 0 | AO17: 0 | AP17: 0 | AQ17: 0 | AR17: 0 | AS17: 0 | AT17: 0 | AU17: 0 | AV17: 0 | AW17: 0 | AX17: 0 | AY17: 0 | AZ17: 0 | BA17: 0 | BB17: 0 | BC17: 0 | BD17: 0 | BE17: 0 | BF17: 0 | BG17: 0 | BH17: 0 | BI17: 0
A18: X [m] | B18: 4 | C18: =B18 -> 4 | E18: MAX | G18: Ps | H18: =IF(AND(H49=0,ROUND(H24,0)<=$F$18),1,0) -> 0 | I18: =IF(AND(I49=0,ROUND(I24,0)<=$F$18),1,0) -> 0 | J18: 0 | K18: 0 | L18: 0 | M18: 0 | N18: 0 | O18: 0 | P18: 0 | Q18: 0 | R18: 0 | S18: 0 | T18: 0 | U18: 0 | V18: 0 | W18: 0 | X18: 0 | Y18: 0 | Z18: 0 | AA18: 0 | AB18: 0 | AC18: 0 | AD18: 0 | AE18: 0 | AF18: 0 | AG18: 0 | AH18: 0 | AI18: 0 | AJ18: 0 | AK18: 0 | AL18: 0 | AM18: 0 | AN18: 0 | AO18: 0 | AP18: 0 | AQ18: 0 | AR18: 0 | AS18: 0 | AT18: 0 | AU18: 0 | AV18: 0 | AW18: 0 | AX18: 0 | AY18: 0 | AZ18: 0 | BA18: 0 | BB18: 0 | BC18: 0 | BD18: 0 | BE18: 0 | BF18: 0 | BG18: 0 | BH18: 0 | BI18: 0
A19: Y [m] | B19: 4 | C19: =B19 -> 4 | E19: MIN | G19: Pt cooling | H19: =IF(ISBLANK($F$19),0,IF(AND(H49=0,ROUND(H23,0)>=$F$19),1,0)) -> 0 | I19: =IF(ISBLANK($F$19),0,IF(AND(I49=0,ROUND(I23,0)>=$F$19),1,0)) -> 0 | J19: 0 | K19: 0 | L19: 0 | M19: 0 | N19: 0 | O19: 0 | P19: 0 | Q19: 0 | R19: 0 | S19: 0 | T19: 0 | U19: 0 | V19: 0 | W19: 0 | X19: 0 | Y19: 0 | Z19: 0 | AA19: 0 | AB19: 0 | AC19: 0 | AD19: 0 | AE19: 0 | AF19: 0 | AG19: 0 | AH19: 0 | AI19: 0 | AJ19: 0 | AK19: 0 | AL19: 0 | AM19: 0 | AN19: 0 | AO19: 0 | AP19: 0 | AQ19: 0 | AR19: 0 | AS19: 0 | AT19: 0 | AU19: 0 | AV19: 0 | AW19: 0 | AX19: 0 | AY19: 0 | AZ19: 0 | BA19: 0 | BB19: 0 | BC19: 0 | BD19: 0 | BE19: 0 | BF19: 0 | BG19: 0 | BH19: 0 | BI19: 0
A20: Electrical heating | B20: No | E20: =IF('general info'!F1="NL",talen!A76,IF('general info'!F1="FR",talen!B76,IF('general info'!F1="EN",talen!C76,talen!D76))) -> choose | F20: =IF('general info'!F1="NL",talen!A9,IF('general info'!F1="FR",talen!B9,IF('general info'!F1="EN",talen!C9,talen!D9))) -> battery length: | G20: =IF('general info'!F1="NL",talen!A77,IF('general info'!F1="FR",talen!B77,IF('general info'!F1="EN",talen!C77,talen!D77))) -> beam length: | H20: =SUM(H12:H15,H17:H19) -> 0 | I20: =SUM(I12:I15,I17:I19) -> 0 | J20: 0 | K20: 0 | L20: 0 | M20: 0 | N20: 0 | O20: 0 | P20: 0 | Q20: 0 | R20: 0 | S20: 0 | T20: 0 | U20: 0 | V20: 0 | W20: 0 | X20: 0 | Y20: 0 | Z20: 0 | AA20: 0 | AB20: 0 | AC20: 0 | AD20: 0 | AE20: 0 | AF20: 0 | AG20: 0 | AH20: 0 | AI20: 0 | AJ20: 0 | AK20: 0 | AL20: 0 | AM20: 0 | AN20: 0 | AO20: 0 | AP20: 0 | AQ20: 0 | AR20: 0 | AS20: 0 | AT20: 0 | AU20: 0 | AV20: 0 | AW20: 0 | AX20: 0 | AY20: 0 | AZ20: 0 | BA20: 0 | BB20: 0 | BC20: 0 | BD20: 0 | BE20: 0 | BF20: 0 | BG20: 0 | BH20: 0 | BI20: 0
A21: cooling only | B21: No | C21: =IF(AND(B21="yes",B22="yes"),"error",0) -> 0 | E21: =IF('general info'!F1="NL",talen!A70,IF('general info'!F1="FR",talen!B70,IF('general info'!F1="EN",talen!C70,talen!D70))) -> Length [mm]: | F21: 1800 | G21: 1800 | H21: A | I21: B | J21: C | K21: D | M21: A | N21: B | O21: C | P21: D | R21: A | S21: B | T21: C | U21: D | W21: A | X21: B | Y21: C | Z21: D | AB21: A | AC21: B | AD21: C | AE21: D | AG21: A | AH21: B | AI21: C | AJ21: D | AL21: A | AM21: B | AN21: C | AO21: D | AQ21: A | AR21: B | AS21: C | AT21: D | AV21: A | AW21: B | AX21: C | AY21: D | BA21: A | BB21: B | BC21: C | BD21: D | BF21: A | BG21: B | BH21: C | BI21: D
A22: heating only | B22: No | C22: =IF(AND(B22="yes",B21="yes"),"error",0) -> 0 | E22: =IF('general info'!F1="NL",talen!A18,IF('general info'!F1="FR",talen!B18,IF('general info'!F1="EN",talen!C18,talen!D18))) -> Nozzle type: | F22: D | G22: =IF(G21<F21,"! Error length !",0) -> 0 | H22: 600 | I22: 600 | J22: 600 | K22: 600 | M22: 900 | N22: 900 | O22: 900 | P22: 900 | R22: 1000 | S22: 1000 | T22: 1000 | U22: 1000 | W22: 1100 | X22: 1100 | Y22: 1100 | Z22: 1100 | AB22: 1200 | AC22: 1200 | AD22: 1200 | AE22: 1200 | AG22: 1500 | AH22: 1500 | AI22: 1500 | AJ22: 1500 | AL22: 1800 | AM22: 1800 | AN22: 1800 | AO22: 1800 | AQ22: 2100 | AR22: 2100 | AS22: 2100 | AT22: 2100 | AV22: 2400 | AW22: 2400 | AX22: 2400 | AY22: 2400 | BA22: 2700 | BB22: 2700 | BC22: 2700 | BD22: 2700 | BF22: 2950 | BG22: 2950 | BH22: 2950 | BI22: 2950
A23: =IF('general info'!$F$1="NL",talen!$A67,IF('general info'!$F$1="FR",talen!$B67,IF('general info'!$F$1="EN",talen!$C67,talen!$D67))) -> Calculated data | F23: =IF('general info'!F1="NL",talen!A53,IF('general info'!F1="FR",talen!B53,IF('general info'!F1="EN",talen!C53,talen!D53))) -> Cooling | G23: Pt [W] | H23: =capacity!J48 -> 1007.958783 | I23: =capacity!K48 -> 749.2976392 | J23: =capacity!L48 -> 477.2222942 | K23: =capacity!M48 -> 488.5647697 | M23: =capacity!N48 -> 1090.390595 | N23: =capacity!O48 -> 829.5976434 | O23: =capacity!P48 -> 555.2799344 | P23: =capacity!Q48 -> 545.7341872 | R23: =capacity!R48 -> 1109.269621 | S23: =capacity!S48 -> 848.0297197 | T23: =capacity!T48 -> 573.2418824 | U23: =capacity!U48 -> 558.5644273 | W23: =capacity!V48 -> 1125.798141 | X23: =capacity!W48 -> 864.0493429 | Y23: =capacity!X48 -> 588.7262179 | Z23: =capacity!Y48 -> 569.5811969 | AB23: =capacity!Z48 -> 1219.187857 | AC23: =capacity!AA48 -> 956.6633797 | AD23: =capacity!AB48 -> 680.5243484 | AE23: =capacity!AC48 -> 627.6120388 | AG23: =capacity!AD48 -> 1257.109182 | AH23: =capacity!AE48 -> 982.4179943 | AI23: =capacity!AF48 -> 693.4812852 | AJ23: =capacity!AG48 -> 640.4173985 | AL23: =capacity!AH48 -> 1292.526115 | AM23: =capacity!AI48 -> 1005.076493 | AN23: =capacity!AJ48 -> 702.7196951 | AO23: =capacity!AK48 -> 650.94063 | AQ23: =capacity!AL48 -> 1326.54998 | AR23: =capacity!AM48 -> 1026.054852 | AS23: =capacity!AN48 -> 709.9760061 | AT23: =capacity!AO48 -> 660.2196237 | AV23: =capacity!AP48 -> 1359.085949 | AW23: =capacity!AQ48 -> 1045.655699 | AX23: =capacity!AR48 -> 715.9709143 | AY23: =capacity!AS48 -> 668.5733436 | BA23: =capacity!AT48 -> 1389.659896 | BB23: =capacity!AU48 -> 1063.806003 | BC23: =capacity!AV48 -> 721.0532834 | BD23: =capacity!AW48 -> 676.0767471 | BF23: =capacity!AX48 -> 1413.206567 | BG23: =capacity!AY48 -> 1077.665913 | BH23: =capacity!AZ48 -> 724.7240755 | BI23: =capacity!BA48 -> 681.6652972
G24: Ps [Pa] | H24: =capacity!J16 -> 5025.620003 | I24: =capacity!K16 -> 3010.506988 | J24: =capacity!L16 -> 1280.509225 | K24: =capacity!M16 -> 628.0436732 | M24: =capacity!N16 -> 1862.044462 | N24: =capacity!O16 -> 1115.424139 | O24: =capacity!P16 -> 474.4419813 | P24: =capacity!Q16 -> 232.6967107 | R24: =capacity!R16 -> 1457.132427 | S24: =capacity!S16 -> 872.8688899 | T24: =capacity!T16 -> 371.2719055 | U24: =capacity!U16 -> 182.0955029 | W24: =capacity!V16 -> 1171.250322 | X24: =capacity!W16 -> 701.6163729 | Y24: =capacity!X16 -> 298.4302118 | Z24: =capacity!Y16 -> 146.3692746 | AB24: =capacity!Z16 -> 961.9350787 | AC24: =capacity!AA16 -> 576.2298531 | AD24: =capacity!AB16 -> 245.0974689 | AE24: =capacity!AC16 -> 120.2114843 | AG24: =capacity!AD16 -> 585.9735399 | AH24: =capacity!AE16 -> 351.0168766 | AI24: =capacity!AF16 -> 149.3038716 | AJ24: =capacity!AG16 -> 73.22817367 | AL24: =capacity!AH16 -> 394.0086082 | AM24: =capacity!AI16 -> 236.0237478 | AN24: =capacity!AJ16 -> 100.3919232 | AO24: =capacity!AK16 -> 49.23862398 | AQ24: =capacity!AL16 -> 282.9708476 | AR24: =capacity!AM16 -> 169.5085807 | AS24: =capacity!AN16 -> 72.09991615 | AT24: =capacity!AO16 -> 35.36241308 | AV24: =capacity!AP16 -> 213.0236853 | AW24: =capacity!AQ16 -> 127.6079951 | AX24: =capacity!AR16 -> 54.27764016 | AY24: =capacity!AS16 -> 26.62122836 | BA24: =capacity!AT16 -> 166.1361985 | BB24: =capacity!AU16 -> 99.52089215 | BC24: =capacity!AV16 -> 42.33088347 | BD24: =capacity!AW16 -> 20.76177432 | BF24: =capacity!AX16 -> 139.6005556 | BG24: =capacity!AY16 -> 83.6251941 | BH24: =capacity!AZ16 -> 35.5697007 | BI24: =capacity!BA16 -> 17.44565759
G25: Lwa [dB(A)] | H25: =noise!C9 ->  | I25: =noise!D9 ->  | J25: =noise!E9 -> 1999.002109 | K25: =noise!F9 -> 61.79806144 | M25: =noise!G9 ->  | N25: =noise!H9 -> 499.8697343 | O25: =noise!I9 -> 70.97742841 | P25: =noise!J9 -> 36.90159641 | R25: =noise!K9 -> 1681.348251 | S25: =noise!L9 -> 213.9613941 | T25: =noise!M9 -> 45.65426266 | U25: =noise!N9 -> 33.73222751 | W25: =noise!O9 -> 669.5024207 | X25: =noise!P9 -> 114.1525038 | Y25: =noise!Q9 -> 34.70838082 | Z25: =noise!R9 -> 31.52022574 | AB25: =noise!S9 -> 322.4568407 | AC25: =noise!T9 -> 72.16295845 | AD25: =noise!U9 -> 29.32397673 | AE25: =noise!V9 -> 29.92780291 | AG25: =noise!W9 -> 79.62502543 | AH25: =noise!X9 -> 34.97766465 | AI25: =noise!Y9 -> 23.79563874 | AJ25: =noise!Z9 -> 27.20089005 | AL25: =noise!AA9 -> 41.50425373 | AM25: =noise!AB9 -> 27.21647281 | AN25: =noise!AC9 -> 22.64686887 | AO25: =noise!AD9 -> 25.97321991 | AQ25: =noise!AE9 -> 31.20005179 | AR25: =noise!AF9 -> 24.89778721 | AS25: =noise!AG9 -> 22.50607296 | AT25: =noise!AH9 -> 25.39836062 | AV25: =noise!AI9 -> 27.51438866 | AW25: =noise!AJ9 -> 24.13189664 | AX25: =noise!AK9 -> 22.67440034 | AY25: =noise!AL9 -> 25.14654348 | BA25: =noise!AM9 -> 25.99686559 | BB25: =noise!AN9 -> 23.93083391 | BC25: =noise!AO9 -> 22.94844795 | BD25: =noise!AP9 -> 25.06848459 | BF25: =noise!AQ9 -> 25.44723345 | BG25: =noise!AR9 -> 23.94657471 | BH25: =noise!AS9 -> 23.18677244 | BI25: =noise!AT9 -> 25.07848457
G26: Pb [kpa] | H26: =capacity!J47 -> 1.786652016 | I26: =capacity!K47 -> 1.786652016 | J26: =capacity!L47 -> 1.786652016 | K26: =capacity!M47 -> 1.786652016 | M26: =capacity!N47 -> 2.492523495 | N26: =capacity!O47 -> 2.492523495 | O26: =capacity!P47 -> 2.492523495 | P26: =capacity!Q47 -> 2.492523495 | R26: =capacity!R47 -> 2.923345452 | S26: =capacity!S47 -> 2.923345452 | T26: =capacity!T47 -> 2.923345452 | U26: =capacity!U47 -> 2.923345452 | W26: =capacity!V47 -> 3.181478783 | X26: =capacity!W47 -> 3.181478783 | Y26: =capacity!X47 -> 3.181478783 | Z26: =capacity!Y47 -> 3.181478783 | AB26: =capacity!Z47 -> 0.3802871297 | AC26: =capacity!AA47 -> 0.3802871297 | AD26: =capacity!AB47 -> 0.3802871297 | AE26: =capacity!AC47 -> 0.3802871297 | AG26: =capacity!AD47 -> 0.4771620646 | AH26: =capacity!AE47 -> 0.4771620646 | AI26: =capacity!AF47 -> 0.4771620646 | AJ26: =capacity!AG47 -> 0.4771620646 | AL26: =capacity!AH47 -> 0.5792003212 | AM26: =capacity!AI47 -> 0.5792003212 | AN26: =capacity!AJ47 -> 0.5792003212 | AO26: =capacity!AK47 -> 0.5792003212 | AQ26: =capacity!AL47 -> 0.692046621 | AR26: =capacity!AM47 -> 0.692046621 | AS26: =capacity!AN47 -> 0.692046621 | AT26: =capacity!AO47 -> 0.692046621 | AV26: =capacity!AP47 -> 0.7858532921 | AW26: =capacity!AQ47 -> 0.7858532921 | AX26: =capacity!AR47 -> 0.7858532921 | AY26: =capacity!AS47 -> 0.7858532921 | BA26: =capacity!AT47 -> 0.9570653231 | BB26: =capacity!AU47 -> 0.9570653231 | BC26: =capacity!AV47 -> 0.9570653231 | BD26: =capacity!AW47 -> 0.9570653231 | BF26: =capacity!AX47 -> 1.059772536 | BG26: =capacity!AY47 -> 1.059772536 | BH26: =capacity!AZ47 -> 1.059772536 | BI26: =capacity!BA47 -> 1.059772536
G27: Pw [W] | H27: =capacity!J43 -> 865.9565608 | I27: =capacity!K43 -> 607.2954169 | J27: =capacity!L43 -> 335.2200719 | K27: =capacity!M43 -> 346.5625474 | M27: =capacity!N43 -> 948.3883731 | N27: =capacity!O43 -> 687.5954211 | O27: =capacity!P43 -> 413.2777121 | P27: =capacity!Q43 -> 403.7319649 | R27: =capacity!R43 -> 967.2673988 | S27: =capacity!S43 -> 706.0274974 | T27: =capacity!T43 -> 431.23966 | U27: =capacity!U43 -> 416.5622049 | W27: =capacity!V43 -> 983.7959183 | X27: =capacity!W43 -> 722.0471206 | Y27: =capacity!X43 -> 446.7239956 | Z27: =capacity!Y43 -> 427.5789745 | AB27: =capacity!Z43 -> 1077.185635 | AC27: =capacity!AA43 -> 814.6611574 | AD27: =capacity!AB43 -> 538.522126 | AE27: =capacity!AC43 -> 485.6098165 | AG27: =capacity!AD43 -> 1115.10696 | AH27: =capacity!AE43 -> 840.415772 | AI27: =capacity!AF43 -> 551.4790628 | AJ27: =capacity!AG43 -> 498.4151762 | AL27: =capacity!AH43 -> 1150.523893 | AM27: =capacity!AI43 -> 863.0742704 | AN27: =capacity!AJ43 -> 560.7174728 | AO27: =capacity!AK43 -> 508.9384076 | AQ27: =capacity!AL43 -> 1184.547758 | AR27: =capacity!AM43 -> 884.0526293 | AS27: =capacity!AN43 -> 567.9737838 | AT27: =capacity!AO43 -> 518.2174014 | AV27: =capacity!AP43 -> 1217.083727 | AW27: =capacity!AQ43 -> 903.6534767 | AX27: =capacity!AR43 -> 573.968692 | AY27: =capacity!AS43 -> 526.5711213 | BA27: =capacity!AT43 -> 1247.657674 | BB27: =capacity!AU43 -> 921.8037803 | BC27: =capacity!AV43 -> 579.0510611 | BD27: =capacity!AW43 -> 534.0745248 | BF27: =capacity!AX43 -> 1271.204345 | BG27: =capacity!AY43 -> 935.6636905 | BH27: =capacity!AZ43 -> 582.7218531 | BI27: =capacity!BA43 -> 539.6630748
G28: Pa [W] | H28: =capacity!J18 -> 142.0022223 | I28: =capacity!K18 -> 142.0022223 | J28: =capacity!L18 -> 142.0022223 | K28: =capacity!M18 -> 142.0022223 | M28: =capacity!N18 -> 142.0022223 | N28: =capacity!O18 -> 142.0022223 | O28: =capacity!P18 -> 142.0022223 | P28: =capacity!Q18 -> 142.0022223 | R28: =capacity!R18 -> 142.0022223 | S28: =capacity!S18 -> 142.0022223 | T28: =capacity!T18 -> 142.0022223 | U28: =capacity!U18 -> 142.0022223 | W28: =capacity!V18 -> 142.0022223 | X28: =capacity!W18 -> 142.0022223 | Y28: =capacity!X18 -> 142.0022223 | Z28: =capacity!Y18 -> 142.0022223 | AB28: =capacity!Z18 -> 142.0022223 | AC28: =capacity!AA18 -> 142.0022223 | AD28: =capacity!AB18 -> 142.0022223 | AE28: =capacity!AC18 -> 142.0022223 | AG28: =capacity!AD18 -> 142.0022223 | AH28: =capacity!AE18 -> 142.0022223 | AI28: =capacity!AF18 -> 142.0022223 | AJ28: =capacity!AG18 -> 142.0022223 | AL28: =capacity!AH18 -> 142.0022223 | AM28: =capacity!AI18 -> 142.0022223 | AN28: =capacity!AJ18 -> 142.0022223 | AO28: =capacity!AK18 -> 142.0022223 | AQ28: =capacity!AL18 -> 142.0022223 | AR28: =capacity!AM18 -> 142.0022223 | AS28: =capacity!AN18 -> 142.0022223 | AT28: =capacity!AO18 -> 142.0022223 | AV28: =capacity!AP18 -> 142.0022223 | AW28: =capacity!AQ18 -> 142.0022223 | AX28: =capacity!AR18 -> 142.0022223 | AY28: =capacity!AS18 -> 142.0022223 | BA28: =capacity!AT18 -> 142.0022223 | BB28: =capacity!AU18 -> 142.0022223 | BC28: =capacity!AV18 -> 142.0022223 | BD28: =capacity!AW18 -> 142.0022223 | BF28: =capacity!AX18 -> 142.0022223 | BG28: =capacity!AY18 -> 142.0022223 | BH28: =capacity!AZ18 -> 142.0022223 | BI28: =capacity!BA18 -> 142.0022223
F30: =IF('general info'!F1="NL",talen!A54,IF('general info'!F1="FR",talen!B54,IF('general info'!F1="EN",talen!C54,talen!D54))) -> Heating | G30: Pt [W] | H30: =IF($B$20="yes",0,IF($B$17="Four pipe",capacity!J$72,capacity!J$104)) -> 515.4948155 | I30: =IF($B$20="yes",0,IF($B$17="Four pipe",capacity!K$72,capacity!K$104)) -> 507.7737758 | J30: =IF($B$20="yes",0,IF($B$17="Four pipe",capacity!L$72,capacity!L$104)) -> 471.5712605 | K30: =IF($B$20="yes",0,IF($B$17="Four pipe",capacity!M$72,capacity!M$104)) -> 429.2838603 | M30: =IF($B$20="yes",0,IF($B$17="Four pipe",capacity!N$72,capacity!N$104)) -> 562.2218655 | N30: =IF($B$20="yes",0,IF($B$17="Four pipe",capacity!O$72,capacity!O$104)) -> 547.9585626 | O30: =IF($B$20="yes",0,IF($B$17="Four pipe",capacity!P$72,capacity!P$104)) -> 509.79251 | P30: =IF($B$20="yes",0,IF($B$17="Four pipe",capacity!Q$72,capacity!Q$104)) -> 468.1163326 | R30: =IF($B$20="yes",0,IF($B$17="Four pipe",capacity!R$72,capacity!R$104)) -> 577.9574357 | S30: =IF($B$20="yes",0,IF($B$17="Four pipe",capacity!S$72,capacity!S$104)) -> 563.031887 | T30: =IF($B$20="yes",0,IF($B$17="Four pipe",capacity!T$72,capacity!T$104)) -> 525.3349632 | U30: =IF($B$20="yes",0,IF($B$17="Four pipe",capacity!U$72,capacity!U$104)) -> 484.2397736 | W30: =IF($B$20="yes",0,IF($B$17="Four pipe",capacity!V$72,capacity!V$104)) -> 594.0442027 | X30: =IF($B$20="yes",0,IF($B$17="Four pipe",capacity!W$72,capacity!W$104)) -> 579.0739974 | Y30: =IF($B$20="yes",0,IF($B$17="Four pipe",capacity!X$72,capacity!X$104)) -> 542.2540838 | Z30: =IF($B$20="yes",0,IF($B$17="Four pipe",capacity!Y$72,capacity!Y$104)) -> 501.8010215 | AB30: =IF($B$20="yes",0,IF($B$17="Four pipe",capacity!Z$72,capacity!Z$104)) -> 610.5910975 | AC30: =IF($B$20="yes",0,IF($B$17="Four pipe",capacity!AA$72,capacity!AA$104)) -> 596.1226914 | AD30: =IF($B$20="yes",0,IF($B$17="Four pipe",capacity!AB$72,capacity!AB$104)) -> 560.4966068 | AE30: =IF($B$20="yes",0,IF($B$17="Four pipe",capacity!AC$72,capacity!AC$104)) -> 520.6602636 | AG30: =IF($B$20="yes",0,IF($B$17="Four pipe",capacity!AD$72,capacity!AD$104)) -> 663.7914805 | AH30: =IF($B$20="yes",0,IF($B$17="Four pipe",capacity!AE$72,capacity!AE$104)) -> 653.4187599 | AI30: =IF($B$20="yes",0,IF($B$17="Four pipe",capacity!AF$72,capacity!AF$104)) -> 622.234126 | AJ30: =IF($B$20="yes",0,IF($B$17="Four pipe",capacity!AG$72,capacity!AG$104)) -> 583.0363562 | AL30: =IF($B$20="yes",0,IF($B$17="Four pipe",capacity!AH$72,capacity!AH$104)) -> 723.2458171 | AM30: =IF($B$20="yes",0,IF($B$17="Four pipe",capacity!AI$72,capacity!AI$104)) -> 719.2035407 | AN30: =IF($B$20="yes",0,IF($B$17="Four pipe",capacity!AJ$72,capacity!AJ$104)) -> 690.9480506 | AO30: =IF($B$20="yes",0,IF($B$17="Four pipe",capacity!AK$72,capacity!AK$104)) -> 647.8514331 | AQ30: =IF($B$20="yes",0,IF($B$17="Four pipe",capacity!AL$72,capacity!AL$104)) -> 788.7269188 | AR30: =IF($B$20="yes",0,IF($B$17="Four pipe",capacity!AM$72,capacity!AM$104)) -> 790.4019977 | AS30: =IF($B$20="yes",0,IF($B$17="Four pipe",capacity!AN$72,capacity!AN$104)) -> 758.9877808 | AT30: =IF($B$20="yes",0,IF($B$17="Four pipe",capacity!AO$72,capacity!AO$104)) -> 704.2011506 | AV30: =IF($B$20="yes",0,IF($B$17="Four pipe",capacity!AP$72,capacity!AP$104)) -> 857.8321802 | AW30: =IF($B$20="yes",0,IF($B$17="Four pipe",capacity!AQ$72,capacity!AQ$104)) -> 860.775834 | AX30: =IF($B$20="yes",0,IF($B$17="Four pipe",capacity!AR$72,capacity!AR$104)) -> 815.9008468 | AY30: =IF($B$20="yes",0,IF($B$17="Four pipe",capacity!AS$72,capacity!AS$104)) -> 741.87429 | BA30: =IF($B$20="yes",0,IF($B$17="Four pipe",capacity!AT$72,capacity!AT$104)) -> 925.5131171 | BB30: =IF($B$20="yes",0,IF($B$17="Four pipe",capacity!AU$72,capacity!AU$104)) -> 921.4923959 | BC30: =IF($B$20="yes",0,IF($B$17="Four pipe",capacity!AV$72,capacity!AV$104)) -> 853.0343451 | BD30: =IF($B$20="yes",0,IF($B$17="Four pipe",capacity!AW$72,capacity!AW$104)) -> 759.0159855 | BF30: =IF($B$20="yes",0,IF($B$17="Four pipe",capacity!AX$72,capacity!AX$104)) -> 975.6452477 | BG30: =IF($B$20="yes",0,IF($B$17="Four pipe",capacity!AY$72,capacity!AY$104)) -> 958.701159 | BH30: =IF($B$20="yes",0,IF($B$17="Four pipe",capacity!AZ$72,capacity!AZ$104)) -> 868.3514866 | BI30: =IF($B$20="yes",0,IF($B$17="Four pipe",capacity!BA$72,capacity!BA$104)) -> 763.4805009
G31: Ps [Pa] | H31: =capacity!J16 -> 5025.620003 | I31: =capacity!K16 -> 3010.506988 | J31: =capacity!L16 -> 1280.509225 | K31: =capacity!M16 -> 628.0436732 | M31: =capacity!N16 -> 1862.044462 | N31: =capacity!O16 -> 1115.424139 | O31: =capacity!P16 -> 474.4419813 | P31: =capacity!Q16 -> 232.6967107 | R31: =capacity!R16 -> 1457.132427 | S31: =capacity!S16 -> 872.8688899 | T31: =capacity!T16 -> 371.2719055 | U31: =capacity!U16 -> 182.0955029 | W31: =capacity!V16 -> 1171.250322 | X31: =capacity!W16 -> 701.6163729 | Y31: =capacity!X16 -> 298.4302118 | Z31: =capacity!Y16 -> 146.3692746 | AB31: =capacity!Z16 -> 961.9350787 | AC31: =capacity!AA16 -> 576.2298531 | AD31: =capacity!AB16 -> 245.0974689 | AE31: =capacity!AC16 -> 120.2114843 | AG31: =capacity!AD16 -> 585.9735399 | AH31: =capacity!AE16 -> 351.0168766 | AI31: =capacity!AF16 -> 149.3038716 | AJ31: =capacity!AG16 -> 73.22817367 | AL31: =capacity!AH16 -> 394.0086082 | AM31: =capacity!AI16 -> 236.0237478 | AN31: =capacity!AJ16 -> 100.3919232 | AO31: =capacity!AK16 -> 49.23862398 | AQ31: =capacity!AL16 -> 282.9708476 | AR31: =capacity!AM16 -> 169.5085807 | AS31: =capacity!AN16 -> 72.09991615 | AT31: =capacity!AO16 -> 35.36241308 | AV31: =capacity!AP16 -> 213.0236853 | AW31: =capacity!AQ16 -> 127.6079951 | AX31: =capacity!AR16 -> 54.27764016 | AY31: =capacity!AS16 -> 26.62122836 | BA31: =capacity!AT16 -> 166.1361985 | BB31: =capacity!AU16 -> 99.52089215 | BC31: =capacity!AV16 -> 42.33088347 | BD31: =capacity!AW16 -> 20.76177432 | BF31: =capacity!AX16 -> 139.6005556 | BG31: =capacity!AY16 -> 83.6251941 | BH31: =capacity!AZ16 -> 35.5697007 | BI31: =capacity!BA16 -> 17.44565759
G32: Lwa [dB(A)] | H32: =noise!C58 ->  | I32: =noise!D58 ->  | J32: =noise!E58 -> 1999.002109 | K32: =noise!F58 -> 61.79806144 | M32: =noise!G58 ->  | N32: =noise!H58 -> 499.8697343 | O32: =noise!I58 -> 70.97742841 | P32: =noise!J58 -> 36.90159641 | R32: =noise!K58 -> 1681.348251 | S32: =noise!L58 -> 213.9613941 | T32: =noise!M58 -> 45.65426266 | U32: =noise!N58 -> 33.73222751 | W32: =noise!O58 -> 669.5024207 | X32: =noise!P58 -> 114.1525038 | Y32: =noise!Q58 -> 34.70838082 | Z32: =noise!R58 -> 31.52022574 | AB32: =noise!S58 -> 322.4568407 | AC32: =noise!T58 -> 72.16295845 | AD32: =noise!U58 -> 29.32397673 | AE32: =noise!V58 -> 29.92780291 | AG32: =noise!W58 -> 79.62502543 | AH32: =noise!X58 -> 34.97766465 | AI32: =noise!Y58 -> 23.79563874 | AJ32: =noise!Z58 -> 27.20089005 | AL32: =noise!AA58 -> 41.50425373 | AM32: =noise!AB58 -> 27.21647281 | AN32: =noise!AC58 -> 22.64686887 | AO32: =noise!AD58 -> 25.97321991 | AQ32: =noise!AE58 -> 31.20005179 | AR32: =noise!AF58 -> 24.89778721 | AS32: =noise!AG58 -> 22.50607296 | AT32: =noise!AH58 -> 25.39836062 | AV32: =noise!AI58 -> 27.51438866 | AW32: =noise!AJ58 -> 24.13189664 | AX32: =noise!AK58 -> 22.67440034 | AY32: =noise!AL58 -> 25.14654348 | BA32: =noise!AM58 -> 25.99686559 | BB32: =noise!AN58 -> 23.93083391 | BC32: =noise!AO58 -> 22.94844795 | BD32: =noise!AP58 -> 25.06848459 | BF32: =noise!AQ58 -> 25.44723345 | BG32: =noise!AR58 -> 23.94657471 | BH32: =noise!AS58 -> 23.18677244 | BI32: =noise!AT58 -> 25.07848457
G33: Pb [kpa] | H33: =IF($B$20="yes",0,IF($B$17="four pipe",capacity!J$71,capacity!J$103)) -> 0.1507046776 | I33: =IF($B$20="yes",0,IF($B$17="four pipe",capacity!K$71,capacity!K$103)) -> 0.1507046776 | J33: =IF($B$20="yes",0,IF($B$17="four pipe",capacity!L$71,capacity!L$103)) -> 0.1507046776 | K33: =IF($B$20="yes",0,IF($B$17="four pipe",capacity!M$71,capacity!M$103)) -> 0.1507046776 | M33: =IF($B$20="yes",0,IF($B$17="four pipe",capacity!N$71,capacity!N$103)) -> 0.2323091317 | N33: =IF($B$20="yes",0,IF($B$17="four pipe",capacity!O$71,capacity!O$103)) -> 0.2323091317 | O33: =IF($B$20="yes",0,IF($B$17="four pipe",capacity!P$71,capacity!P$103)) -> 0.2323091317 | P33: =IF($B$20="yes",0,IF($B$17="four pipe",capacity!Q$71,capacity!Q$103)) -> 0.2323091317 | R33: =IF($B$20="yes",0,IF($B$17="four pipe",capacity!R$71,capacity!R$103)) -> 0.2671274725 | S33: =IF($B$20="yes",0,IF($B$17="four pipe",capacity!S$71,capacity!S$103)) -> 0.2671274725 | T33: =IF($B$20="yes",0,IF($B$17="four pipe",capacity!T$71,capacity!T$103)) -> 0.2671274725 | U33: =IF($B$20="yes",0,IF($B$17="four pipe",capacity!U$71,capacity!U$103)) -> 0.2671274725 | W33: =IF($B$20="yes",0,IF($B$17="four pipe",capacity!V$71,capacity!V$103)) -> 0.2937098901 | X33: =IF($B$20="yes",0,IF($B$17="four pipe",capacity!W$71,capacity!W$103)) -> 0.2937098901 | Y33: =IF($B$20="yes",0,IF($B$17="four pipe",capacity!X$71,capacity!X$103)) -> 0.2937098901 | Z33: =IF($B$20="yes",0,IF($B$17="four pipe",capacity!Y$71,capacity!Y$103)) -> 0.2937098901 | AB33: =IF($B$20="yes",0,IF($B$17="four pipe",capacity!Z$71,capacity!Z$103)) -> 0.3203142853 | AC33: =IF($B$20="yes",0,IF($B$17="four pipe",capacity!AA$71,capacity!AA$103)) -> 0.3203142853 | AD33: =IF($B$20="yes",0,IF($B$17="four pipe",capacity!AB$71,capacity!AB$103)) -> 0.3203142853 | AE33: =IF($B$20="yes",0,IF($B$17="four pipe",capacity!AC$71,capacity!AC$103)) -> 0.3203142853 | AG33: =IF($B$20="yes",0,IF($B$17="four pipe",capacity!AD$71,capacity!AD$103)) -> 0.4167392275 | AH33: =IF($B$20="yes",0,IF($B$17="four pipe",capacity!AE$71,capacity!AE$103)) -> 0.4167392275 | AI33: =IF($B$20="yes",0,IF($B$17="four pipe",capacity!AF$71,capacity!AF$103)) -> 0.4167392275 | AJ33: =IF($B$20="yes",0,IF($B$17="four pipe",capacity!AG$71,capacity!AG$103)) -> 0.4167392275 | AL33: =IF($B$20="yes",0,IF($B$17="four pipe",capacity!AH$71,capacity!AH$103)) -> 0.525309797 | AM33: =IF($B$20="yes",0,IF($B$17="four pipe",capacity!AI$71,capacity!AI$103)) -> 0.525309797 | AN33: =IF($B$20="yes",0,IF($B$17="four pipe",capacity!AJ$71,capacity!AJ$103)) -> 0.525309797 | AO33: =IF($B$20="yes",0,IF($B$17="four pipe",capacity!AK$71,capacity!AK$103)) -> 0.525309797 | AQ33: =IF($B$20="yes",0,IF($B$17="four pipe",capacity!AL$71,capacity!AL$103)) -> 0.6381137724 | AR33: =IF($B$20="yes",0,IF($B$17="four pipe",capacity!AM$71,capacity!AM$103)) -> 0.6381137724 | AS33: =IF($B$20="yes",0,IF($B$17="four pipe",capacity!AN$71,capacity!AN$103)) -> 0.6381137724 | AT33: =IF($B$20="yes",0,IF($B$17="four pipe",capacity!AO$71,capacity!AO$103)) -> 0.6381137724 | AV33: =IF($B$20="yes",0,IF($B$17="four pipe",capacity!AP$71,capacity!AP$103)) -> 0.8383578622 | AW33: =IF($B$20="yes",0,IF($B$17="four pipe",capacity!AQ$71,capacity!AQ$103)) -> 0.8383578622 | AX33: =IF($B$20="yes",0,IF($B$17="four pipe",capacity!AR$71,capacity!AR$103)) -> 0.8383578622 | AY33: =IF($B$20="yes",0,IF($B$17="four pipe",capacity!AS$71,capacity!AS$103)) -> 0.8383578622 | BA33: =IF($B$20="yes",0,IF($B$17="four pipe",capacity!AT$71,capacity!AT$103)) -> 0.9222052866 | BB33: =IF($B$20="yes",0,IF($B$17="four pipe",capacity!AU$71,capacity!AU$103)) -> 0.9222052866 | BC33: =IF($B$20="yes",0,IF($B$17="four pipe",capacity!AV$71,capacity!AV$103)) -> 0.9222052866 | BD33: =IF($B$20="yes",0,IF($B$17="four pipe",capacity!AW$71,capacity!AW$103)) -> 0.9222052866 | BF33: =IF($B$20="yes",0,IF($B$17="four pipe",capacity!AX$71,capacity!AX$103)) -> 1.047640427 | BG33: =IF($B$20="yes",0,IF($B$17="four pipe",capacity!AY$71,capacity!AY$103)) -> 1.047640427 | BH33: =IF($B$20="yes",0,IF($B$17="four pipe",capacity!AZ$71,capacity!AZ$103)) -> 1.047640427 | BI33: =IF($B$20="yes",0,IF($B$17="four pipe",capacity!BA$71,capacity!BA$103)) -> 1.047640427
G34: Pw [W] | H34: =IF($B$20="yes",0,IF($B$17="Four pipe",capacity!J$59,capacity!J$99)) -> 515.4948155 | I34: =IF($B$20="yes",0,IF($B$17="Four pipe",capacity!K$59,capacity!K$99)) -> 507.7737758 | J34: =IF($B$20="yes",0,IF($B$17="Four pipe",capacity!L$59,capacity!L$99)) -> 471.5712605 | K34: =IF($B$20="yes",0,IF($B$17="Four pipe",capacity!M$59,capacity!M$99)) -> 429.2838603 | M34: =IF($B$20="yes",0,IF($B$17="Four pipe",capacity!N$59,capacity!N$99)) -> 562.2218655 | N34: =IF($B$20="yes",0,IF($B$17="Four pipe",capacity!O$59,capacity!O$99)) -> 547.9585626 | O34: =IF($B$20="yes",0,IF($B$17="Four pipe",capacity!P$59,capacity!P$99)) -> 509.79251 | P34: =IF($B$20="yes",0,IF($B$17="Four pipe",capacity!Q$59,capacity!Q$99)) -> 468.1163326 | R34: =IF($B$20="yes",0,IF($B$17="Four pipe",capacity!R$59,capacity!R$99)) -> 577.9574357 | S34: =IF($B$20="yes",0,IF($B$17="Four pipe",capacity!S$59,capacity!S$99)) -> 563.031887 | T34: =IF($B$20="yes",0,IF($B$17="Four pipe",capacity!T$59,capacity!T$99)) -> 525.3349632 | U34: =IF($B$20="yes",0,IF($B$17="Four pipe",capacity!U$59,capacity!U$99)) -> 484.2397736 | W34: =IF($B$20="yes",0,IF($B$17="Four pipe",capacity!V$59,capacity!V$99)) -> 594.0442027 | X34: =IF($B$20="yes",0,IF($B$17="Four pipe",capacity!W$59,capacity!W$99)) -> 579.0739974 | Y34: =IF($B$20="yes",0,IF($B$17="Four pipe",capacity!X$59,capacity!X$99)) -> 542.2540838 | Z34: =IF($B$20="yes",0,IF($B$17="Four pipe",capacity!Y$59,capacity!Y$99)) -> 501.8010215 | AB34: =IF($B$20="yes",0,IF($B$17="Four pipe",capacity!Z$59,capacity!Z$99)) -> 610.5910975 | AC34: =IF($B$20="yes",0,IF($B$17="Four pipe",capacity!AA$59,capacity!AA$99)) -> 596.1226914 | AD34: =IF($B$20="yes",0,IF($B$17="Four pipe",capacity!AB$59,capacity!AB$99)) -> 560.4966068 | AE34: =IF($B$20="yes",0,IF($B$17="Four pipe",capacity!AC$59,capacity!AC$99)) -> 520.6602636 | AG34: =IF($B$20="yes",0,IF($B$17="Four pipe",capacity!AD$59,capacity!AD$99)) -> 663.7914805 | AH34: =IF($B$20="yes",0,IF($B$17="Four pipe",capacity!AE$59,capacity!AE$99)) -> 653.4187599 | AI34: =IF($B$20="yes",0,IF($B$17="Four pipe",capacity!AF$59,capacity!AF$99)) -> 622.234126 | AJ34: =IF($B$20="yes",0,IF($B$17="Four pipe",capacity!AG$59,capacity!AG$99)) -> 583.0363562 | AL34: =IF($B$20="yes",0,IF($B$17="Four pipe",capacity!AH$59,capacity!AH$99)) -> 723.2458171 | AM34: =IF($B$20="yes",0,IF($B$17="Four pipe",capacity!AI$59,capacity!AI$99)) -> 719.2035407 | AN34: =IF($B$20="yes",0,IF($B$17="Four pipe",capacity!AJ$59,capacity!AJ$99)) -> 690.9480506 | AO34: =IF($B$20="yes",0,IF($B$17="Four pipe",capacity!AK$59,capacity!AK$99)) -> 647.8514331 | AQ34: =IF($B$20="yes",0,IF($B$17="Four pipe",capacity!AL$59,capacity!AL$99)) -> 788.7269188 | AR34: =IF($B$20="yes",0,IF($B$17="Four pipe",capacity!AM$59,capacity!AM$99)) -> 790.4019977 | AS34: =IF($B$20="yes",0,IF($B$17="Four pipe",capacity!AN$59,capacity!AN$99)) -> 758.9877808 | AT34: =IF($B$20="yes",0,IF($B$17="Four pipe",capacity!AO$59,capacity!AO$99)) -> 704.2011506 | AV34: =IF($B$20="yes",0,IF($B$17="Four pipe",capacity!AP$59,capacity!AP$99)) -> 857.8321802 | AW34: =IF($B$20="yes",0,IF($B$17="Four pipe",capacity!AQ$59,capacity!AQ$99)) -> 860.775834 | AX34: =IF($B$20="yes",0,IF($B$17="Four pipe",capacity!AR$59,capacity!AR$99)) -> 815.9008468 | AY34: =IF($B$20="yes",0,IF($B$17="Four pipe",capacity!AS$59,capacity!AS$99)) -> 741.87429 | BA34: =IF($B$20="yes",0,IF($B$17="Four pipe",capacity!AT$59,capacity!AT$99)) -> 925.5131171 | BB34: =IF($B$20="yes",0,IF($B$17="Four pipe",capacity!AU$59,capacity!AU$99)) -> 921.4923959 | BC34: =IF($B$20="yes",0,IF($B$17="Four pipe",capacity!AV$59,capacity!AV$99)) -> 853.0343451 | BD34: =IF($B$20="yes",0,IF($B$17="Four pipe",capacity!AW$59,capacity!AW$99)) -> 759.0159855 | BF34: =IF($B$20="yes",0,IF($B$17="Four pipe",capacity!AX$59,capacity!AX$99)) -> 975.6452477 | BG34: =IF($B$20="yes",0,IF($B$17="Four pipe",capacity!AY$59,capacity!AY$99)) -> 958.701159 | BH34: =IF($B$20="yes",0,IF($B$17="Four pipe",capacity!AZ$59,capacity!AZ$99)) -> 868.3514866 | BI34: =IF($B$20="yes",0,IF($B$17="Four pipe",capacity!BA$59,capacity!BA$99)) -> 763.4805009
G35: Pa [W] | H35: =IF($B$17="Four pipe",capacity!J$20,capacity!J$108) -> 0 | I35: =IF($B$17="Four pipe",capacity!K$20,capacity!K$108) -> 0 | J35: =IF($B$17="Four pipe",capacity!L$20,capacity!L$108) -> 0 | K35: =IF($B$17="Four pipe",capacity!M$20,capacity!M$108) -> 0 | M35: =IF($B$17="Four pipe",capacity!N$20,capacity!N$108) -> 0 | N35: =IF($B$17="Four pipe",capacity!O$20,capacity!O$108) -> 0 | O35: =IF($B$17="Four pipe",capacity!P$20,capacity!P$108) -> 0 | P35: =IF($B$17="Four pipe",capacity!Q$20,capacity!Q$108) -> 0 | R35: =IF($B$17="Four pipe",capacity!R$20,capacity!R$108) -> 0 | S35: =IF($B$17="Four pipe",capacity!S$20,capacity!S$108) -> 0 | T35: =IF($B$17="Four pipe",capacity!T$20,capacity!T$108) -> 0 | U35: =IF($B$17="Four pipe",capacity!U$20,capacity!U$108) -> 0 | W35: =IF($B$17="Four pipe",capacity!V$20,capacity!V$108) -> 0 | X35: =IF($B$17="Four pipe",capacity!W$20,capacity!W$108) -> 0 | Y35: =IF($B$17="Four pipe",capacity!X$20,capacity!X$108) -> 0 | Z35: =IF($B$17="Four pipe",capacity!Y$20,capacity!Y$108) -> 0 | AB35: =IF($B$17="Four pipe",capacity!Z$20,capacity!Z$108) -> 0 | AC35: =IF($B$17="Four pipe",capacity!AA$20,capacity!AA$108) -> 0 | AD35: =IF($B$17="Four pipe",capacity!AB$20,capacity!AB$108) -> 0 | AE35: =IF($B$17="Four pipe",capacity!AC$20,capacity!AC$108) -> 0 | AG35: =IF($B$17="Four pipe",capacity!AD$20,capacity!AD$108) -> 0 | AH35: =IF($B$17="Four pipe",capacity!AE$20,capacity!AE$108) -> 0 | AI35: =IF($B$17="Four pipe",capacity!AF$20,capacity!AF$108) -> 0 | AJ35: =IF($B$17="Four pipe",capacity!AG$20,capacity!AG$108) -> 0 | AL35: =IF($B$17="Four pipe",capacity!AH$20,capacity!AH$108) -> 0 | AM35: =IF($B$17="Four pipe",capacity!AI$20,capacity!AI$108) -> 0 | AN35: =IF($B$17="Four pipe",capacity!AJ$20,capacity!AJ$108) -> 0 | AO35: =IF($B$17="Four pipe",capacity!AK$20,capacity!AK$108) -> 0 | AQ35: =IF($B$17="Four pipe",capacity!AL$20,capacity!AL$108) -> 0 | AR35: =IF($B$17="Four pipe",capacity!AM$20,capacity!AM$108) -> 0 | AS35: =IF($B$17="Four pipe",capacity!AN$20,capacity!AN$108) -> 0 | AT35: =IF($B$17="Four pipe",capacity!AO$20,capacity!AO$108) -> 0 | AV35: =IF($B$17="Four pipe",capacity!AP$20,capacity!AP$108) -> 0 | AW35: =IF($B$17="Four pipe",capacity!AQ$20,capacity!AQ$108) -> 0 | AX35: =IF($B$17="Four pipe",capacity!AR$20,capacity!AR$108) -> 0 | AY35: =IF($B$17="Four pipe",capacity!AS$20,capacity!AS$108) -> 0 | BA35: =IF($B$17="Four pipe",capacity!AT$20,capacity!AT$108) -> 0 | BB35: =IF($B$17="Four pipe",capacity!AU$20,capacity!AU$108) -> 0 | BC35: =IF($B$17="Four pipe",capacity!AV$20,capacity!AV$108) -> 0 | BD35: =IF($B$17="Four pipe",capacity!AW$20,capacity!AW$108) -> 0 | BF35: =IF($B$17="Four pipe",capacity!AX$20,capacity!AX$108) -> 0 | BG35: =IF($B$17="Four pipe",capacity!AY$20,capacity!AY$108) -> 0 | BH35: =IF($B$17="Four pipe",capacity!AZ$20,capacity!AZ$108) -> 0 | BI35: =IF($B$17="Four pipe",capacity!BA$20,capacity!BA$108) -> 0
F37: =IF('general info'!F1="NL",talen!A69,IF('general info'!F1="FR",talen!B69,IF('general info'!F1="EN",talen!C69,talen!D69))) -> Air velocity
F38: =IF('general info'!F1="NL",talen!A53,IF('general info'!F1="FR",talen!B53,IF('general info'!F1="EN",talen!C53,talen!D53))) -> Cooling | G38: V1 [m/s] | H38: =velocity!Z5 ->  | I38: =velocity!AA5 ->  | J38: =velocity!AB5 ->  | K38: =velocity!AC5 ->  | M38: =velocity!AD5 ->  | N38: =velocity!AE5 ->  | O38: =velocity!AF5 ->  | P38: =velocity!AG5 ->  | R38: =velocity!AH5 ->  | S38: =velocity!AI5 ->  | T38: =velocity!AJ5 ->  | U38: =velocity!AK5 -> 0.08025326146 | W38: =velocity!AL5 ->  | X38: =velocity!AM5 ->  | Y38: =velocity!AN5 ->  | Z38: =velocity!AO5 -> 0.07180572425 | AB38: =velocity!AP5 ->  | AC38: =velocity!AQ5 ->  | AD38: =velocity!AR5 -> 0.07656695107 | AE38: =velocity!AS5 -> 0.06646786932 | AG38: =velocity!AT5 ->  | AH38: =velocity!AU5 -> 0.07302901209 | AI38: =velocity!AV5 -> 0.06309598424 | AJ38: =velocity!AW5 -> 0.05855547983 | AL38: =velocity!AX5 -> 0.07067772707 | AM38: =velocity!AY5 -> 0.06318130867 | AN38: =velocity!AZ5 -> 0.05790956367 | AO38: =velocity!BA5 -> 0.05516773377 | AQ38: =velocity!BB5 -> 0.06296123941 | AR38: =velocity!BC5 -> 0.05855570488 | AS38: =velocity!BD5 -> 0.05514206132 | AT38: =velocity!BE5 -> 0.05347062205 | AV38: =velocity!BF5 -> 0.05892970805 | AW38: =velocity!BG5 -> 0.05605503692 | AX38: =velocity!BH5 -> 0.0536711357 | AY38: =velocity!BI5 -> 0.05233795685 | BA38: =velocity!BJ5 -> 0.05663668078 | BB38: =velocity!BK5 -> 0.05442922205 | BC38: =velocity!BL5 -> 0.05256902338 | BD38: =velocity!BM5 -> 0.05164937644 | BF38: =velocity!BN5 -> 0.05514040037 | BG38: =velocity!BO5 -> 0.05350411527 | BH38: =velocity!BP5 -> 0.05202543128 | BI38: =velocity!BQ5 -> 0.05118688196
F39: & | G39: V2 [m/s] | H39: =velocity!Z6 ->  | I39: =velocity!AA6 ->  | J39: =velocity!AB6 ->  | K39: =velocity!AC6 ->  | M39: =velocity!AD6 ->  | N39: =velocity!AE6 ->  | O39: =velocity!AF6 ->  | P39: =velocity!AG6 ->  | R39: =velocity!AH6 ->  | S39: =velocity!AI6 ->  | T39: =velocity!AJ6 ->  | U39: =velocity!AK6 -> 0.117176214 | W39: =velocity!AL6 ->  | X39: =velocity!AM6 ->  | Y39: =velocity!AN6 ->  | Z39: =velocity!AO6 -> 0.1021917695 | AB39: =velocity!AP6 ->  | AC39: =velocity!AQ6 ->  | AD39: =velocity!AR6 -> 0.1109012101 | AE39: =velocity!AS6 -> 0.09116812674 | AG39: =velocity!AT6 ->  | AH39: =velocity!AU6 -> 0.1045853349 | AI39: =velocity!AV6 -> 0.08327257868 | AJ39: =velocity!AW6 -> 0.0709390146 | AL39: =velocity!AX6 -> 0.09990507062 | AM39: =velocity!AY6 -> 0.08347920863 | AN39: =velocity!AZ6 -> 0.06883465118 | AO39: =velocity!BA6 -> 0.05989595433 | AQ39: =velocity!BB6 -> 0.08294626754 | AR39: =velocity!BC6 -> 0.0709397478 | AS39: =velocity!BD6 -> 0.05979422416 | AT39: =velocity!BE6 -> 0.05317094554 | AV39: =velocity!BF6 -> 0.07206980723 | AW39: =velocity!BG6 -> 0.06279269327 | AX39: =velocity!BH6 -> 0.05396550495 | AY39: =velocity!BI6 -> 0.04842539436 | BA39: =velocity!BJ6 -> 0.06468766068 | BB39: =velocity!BK6 -> 0.05696951304 | BC39: =velocity!BL6 -> 0.04953893471 | BD39: =velocity!BM6 -> 0.04510703378 | BF39: =velocity!BN6 -> 0.05978764243 | BG39: =velocity!BO6 -> 0.05330366646 | BH39: =velocity!BP6 -> 0.04691929209 | BI39: =velocity!BQ6 -> 0.04287821134
F40: =IF('general info'!F1="NL",talen!A54,IF('general info'!F1="FR",talen!B54,IF('general info'!F1="EN",talen!C54,talen!D54))) -> Heating | G40: V3 [m/s] | H40: =velocity!Z7 ->  | I40: =velocity!AA7 ->  | J40: =velocity!AB7 ->  | K40: =velocity!AC7 ->  | M40: =velocity!AD7 ->  | N40: =velocity!AE7 ->  | O40: =velocity!AF7 ->  | P40: =velocity!AG7 ->  | R40: =velocity!AH7 ->  | S40: =velocity!AI7 ->  | T40: =velocity!AJ7 ->  | U40: =velocity!AK7 -> 0.6661096615 | W40: =velocity!AL7 ->  | X40: =velocity!AM7 ->  | Y40: =velocity!AN7 ->  | Z40: =velocity!AO7 -> 0.5715525394 | AB40: =velocity!AP7 ->  | AC40: =velocity!AQ7 ->  | AD40: =velocity!AR7 -> 0.6270775015 | AE40: =velocity!AS7 -> 0.5230109769 | AG40: =velocity!AT7 ->  | AH40: =velocity!AU7 -> 0.5829746211 | AI40: =velocity!AV7 -> 0.4772318858 | AJ40: =velocity!AW7 -> 0.4039939058 | AL40: =velocity!AX7 -> 0.5624721657 | AM40: =velocity!AY7 -> 0.4783438356 | AN40: =velocity!AZ7 -> 0.3870399361 | AO40: =velocity!BA7 -> 0.314844104 | AQ40: =velocity!BB7 -> 0.4754758885 | AR40: =velocity!BC7 -> 0.4039998129 | AS40: =velocity!BD7 -> 0.3134755173 | AT40: =velocity!BE7 -> 0.2243718528 | AV40: =velocity!BF7 -> 0.4105334182 | AW40: =velocity!BG7 -> 0.3383624263 | AX40: =velocity!BH7 -> 0.2350611442 | AY40: =velocity!BI7 -> 0.1723700981 | BA40: =velocity!BJ7 -> 0.3536293805 | BB40: =velocity!BK7 -> 0.2754743813 | BC40: =velocity!BL7 -> 0.1782405199 | BD40: =velocity!BM7 -> 0.1548761866 | BF40: =velocity!BN7 -> 0.3133869726 | BG40: =velocity!BO7 -> 0.2261573614 | BH40: =velocity!BP7 -> 0.1644301472 | BI40: =velocity!BQ7 -> 0.1431261607
F42: Extra data
F43: =IF('general info'!F1="NL",talen!A53,IF('general info'!F1="FR",talen!B53,IF('general info'!F1="EN",talen!C53,talen!D53))) -> Cooling | G43: ΔT c [°C] | H43: =capacity!J44 -> 7.450522346 | I43: =capacity!K44 -> 5.225052017 | J43: =capacity!L44 -> 2.884168502 | K43: =capacity!M44 -> 2.981756962 | M43: =capacity!N44 -> 8.159749676 | N43: =capacity!O44 -> 5.915937683 | O43: =capacity!P44 -> 3.555761303 | P43: =capacity!Q44 -> 3.473631545 | R43: =capacity!R44 -> 8.322181153 | S43: =capacity!S44 -> 6.074523694 | T43: =capacity!T44 -> 3.710302421 | U43: =capacity!U44 -> 3.584020443 | W43: =capacity!V44 -> 8.46438933 | X43: =capacity!W44 -> 6.212353426 | Y43: =capacity!X44 -> 3.843526641 | Z43: =capacity!Y44 -> 3.678806592 | AB43: =capacity!Z44 -> 9.267896341 | AC43: =capacity!AA44 -> 7.009186641 | AD43: =capacity!AB44 -> 4.633339957 | AE43: =capacity!AC44 -> 4.178092705 | AG43: =capacity!AD44 -> 9.594164071 | AH43: =capacity!AE44 -> 7.230774352 | AI43: =capacity!AF44 -> 4.744818929 | AJ43: =capacity!AG44 -> 4.288267537 | AL43: =capacity!AH44 -> 9.898884494 | AM43: =capacity!AI44 -> 7.425723679 | AN43: =capacity!AJ44 -> 4.824304417 | AO43: =capacity!AK44 -> 4.37880738 | AQ43: =capacity!AL44 -> 10.19161923 | AR43: =capacity!AM44 -> 7.606217411 | AS43: =capacity!AN44 -> 4.88673631 | AT43: =capacity!AO44 -> 4.458642043 | AV43: =capacity!AP44 -> 10.4715524 | AW43: =capacity!AQ44 -> 7.774859301 | AX43: =capacity!AR44 -> 4.938315338 | AY43: =capacity!AS44 -> 4.530515829 | BA43: =capacity!AT44 -> 10.73460471 | BB43: =capacity!AU44 -> 7.931020995 | BC43: =capacity!AV44 -> 4.982043056 | BD43: =capacity!AW44 -> 4.595073658 | BF43: =capacity!AX44 -> 10.93719571 | BG43: =capacity!AY44 -> 8.050268974 | BH43: =capacity!AZ44 -> 5.013625839 | BI43: =capacity!BA44 -> 4.643156459
G44: Δθ c [°C] | H44: =capacity!J45 -> 7.274738827 | I44: =capacity!K45 -> 8.387473992 | J44: =capacity!L45 -> 9.557915749 | K44: =capacity!M45 -> 9.509121519 | M44: =capacity!N45 -> 6.920125162 | N44: =capacity!O45 -> 8.042031158 | O44: =capacity!P45 -> 9.222119348 | P44: =capacity!Q45 -> 9.263184227 | R44: =capacity!R45 -> 6.838909423 | S44: =capacity!S45 -> 7.962738153 | T44: =capacity!T45 -> 9.14484879 | U44: =capacity!U45 -> 9.207989779 | W44: =capacity!V45 -> 6.767805335 | X44: =capacity!W45 -> 7.893823287 | Y44: =capacity!X45 -> 9.078236679 | Z44: =capacity!Y45 -> 9.160596704 | AB44: =capacity!Z45 -> 6.366051829 | AC44: =capacity!AA45 -> 7.495406679 | AD44: =capacity!AB45 -> 8.683330022 | AE44: =capacity!AC45 -> 8.910953648 | AG44: =capacity!AD45 -> 6.202917965 | AH44: =capacity!AE45 -> 7.384612824 | AI44: =capacity!AF45 -> 8.627590536 | AJ44: =capacity!AG45 -> 8.855866232 | AL44: =capacity!AH45 -> 6.050557753 | AM44: =capacity!AI45 -> 7.28713816 | AN44: =capacity!AJ45 -> 8.587847792 | AO44: =capacity!AK45 -> 8.81059631 | AQ44: =capacity!AL45 -> 5.904190384 | AR44: =capacity!AM45 -> 7.196891294 | AS44: =capacity!AN45 -> 8.556631845 | AT44: =capacity!AO45 -> 8.770678979 | AV44: =capacity!AP45 -> 5.764223798 | AW44: =capacity!AQ45 -> 7.112570349 | AX44: =capacity!AR45 -> 8.530842331 | AY44: =capacity!AS45 -> 8.734742085 | BA44: =capacity!AT45 -> 5.632697644 | BB44: =capacity!AU45 -> 7.034489503 | BC44: =capacity!AV45 -> 8.508978472 | BD44: =capacity!AW45 -> 8.702463171 | BF44: =capacity!AX45 -> 5.531402146 | BG44: =capacity!AY45 -> 6.974865513 | BH44: =capacity!AZ45 -> 8.493187081 | BI44: =capacity!BA45 -> 8.67842177
F45: =IF('general info'!F1="NL",talen!A54,IF('general info'!F1="FR",talen!B54,IF('general info'!F1="EN",talen!C54,talen!D54))) -> Heating | G45: ΔT h [°C] | H45: =IF($B$20="yes",0,IF($B$17="Four pipe",capacity!J$68,capacity!J$100)) -> 4.483517064 | I45: =IF($B$20="yes",0,IF($B$17="Four pipe",capacity!K$68,capacity!K$100)) -> 4.416363308 | J45: =IF($B$20="yes",0,IF($B$17="Four pipe",capacity!L$68,capacity!L$100)) -> 4.101491867 | K45: =IF($B$20="yes",0,IF($B$17="Four pipe",capacity!M$68,capacity!M$100)) -> 3.73369713 | M45: =IF($B$20="yes",0,IF($B$17="Four pipe",capacity!N$68,capacity!N$100)) -> 4.889925664 | N45: =IF($B$20="yes",0,IF($B$17="Four pipe",capacity!O$68,capacity!O$100)) -> 4.765870562 | O45: =IF($B$20="yes",0,IF($B$17="Four pipe",capacity!P$68,capacity!P$100)) -> 4.433921252 | P45: =IF($B$20="yes",0,IF($B$17="Four pipe",capacity!Q$68,capacity!Q$100)) -> 4.071442626 | R45: =IF($B$20="yes",0,IF($B$17="Four pipe",capacity!R$68,capacity!R$100)) -> 5.026785813 | S45: =IF($B$20="yes",0,IF($B$17="Four pipe",capacity!S$68,capacity!S$100)) -> 4.896970827 | T45: =IF($B$20="yes",0,IF($B$17="Four pipe",capacity!T$68,capacity!T$100)) -> 4.569101766 | U45: =IF($B$20="yes",0,IF($B$17="Four pipe",capacity!U$68,capacity!U$100)) -> 4.211676283 | W45: =IF($B$20="yes",0,IF($B$17="Four pipe",capacity!V$68,capacity!V$100)) -> 5.166700497 | X45: =IF($B$20="yes",0,IF($B$17="Four pipe",capacity!W$68,capacity!W$100)) -> 5.036497111 | Y45: =IF($B$20="yes",0,IF($B$17="Four pipe",capacity!X$68,capacity!X$100)) -> 4.716255848 | Z45: =IF($B$20="yes",0,IF($B$17="Four pipe",capacity!Y$68,capacity!Y$100)) -> 4.364415267 | AB45: =IF($B$20="yes",0,IF($B$17="Four pipe",capacity!Z$68,capacity!Z$100)) -> 5.310617145 | AC45: =IF($B$20="yes",0,IF($B$17="Four pipe",capacity!AA$68,capacity!AA$100)) -> 5.184778157 | AD45: =IF($B$20="yes",0,IF($B$17="Four pipe",capacity!AB$68,capacity!AB$100)) -> 4.874920224 | AE45: =IF($B$20="yes",0,IF($B$17="Four pipe",capacity!AC$68,capacity!AC$100)) -> 4.528443558 | AG45: =IF($B$20="yes",0,IF($B$17="Four pipe",capacity!AD$68,capacity!AD$100)) -> 5.773327569 | AH45: =IF($B$20="yes",0,IF($B$17="Four pipe",capacity!AE$68,capacity!AE$100)) -> 5.683110813 | AI45: =IF($B$20="yes",0,IF($B$17="Four pipe",capacity!AF$68,capacity!AF$100)) -> 5.411882405 | AJ45: =IF($B$20="yes",0,IF($B$17="Four pipe",capacity!AG$68,capacity!AG$100)) -> 5.070959734 | AL45: =IF($B$20="yes",0,IF($B$17="Four pipe",capacity!AH$68,capacity!AH$100)) -> 6.290431766 | AM45: =IF($B$20="yes",0,IF($B$17="Four pipe",capacity!AI$68,capacity!AI$100)) -> 6.25527406 | AN45: =IF($B$20="yes",0,IF($B$17="Four pipe",capacity!AJ$68,capacity!AJ$100)) -> 6.009521885 | AO45: =IF($B$20="yes",0,IF($B$17="Four pipe",capacity!AK$68,capacity!AK$100)) -> 5.634688979 | AQ45: =IF($B$20="yes",0,IF($B$17="Four pipe",capacity!AL$68,capacity!AL$100)) -> 6.859953764 | AR45: =IF($B$20="yes",0,IF($B$17="Four pipe",capacity!AM$68,capacity!AM$100)) -> 6.874522765 | AS45: =IF($B$20="yes",0,IF($B$17="Four pipe",capacity!AN$68,capacity!AN$100)) -> 6.601297558 | AT45: =IF($B$20="yes",0,IF($B$17="Four pipe",capacity!AO$68,capacity!AO$100)) -> 6.124790746 | AV45: =IF($B$20="yes",0,IF($B$17="Four pipe",capacity!AP$68,capacity!AP$100)) -> 7.460996896 | AW45: =IF($B$20="yes",0,IF($B$17="Four pipe",capacity!AQ$68,capacity!AQ$100)) -> 7.48659933 | AX45: =IF($B$20="yes",0,IF($B$17="Four pipe",capacity!AR$68,capacity!AR$100)) -> 7.09629905 | AY45: =IF($B$20="yes",0,IF($B$17="Four pipe",capacity!AS$68,capacity!AS$100)) -> 6.452452942 | BA45: =IF($B$20="yes",0,IF($B$17="Four pipe",capacity!AT$68,capacity!AT$100)) -> 8.049651963 | BB45: =IF($B$20="yes",0,IF($B$17="Four pipe",capacity!AU$68,capacity!AU$100)) -> 8.014681734 | BC45: =IF($B$20="yes",0,IF($B$17="Four pipe",capacity!AV$68,capacity!AV$100)) -> 7.419267717 | BD45: =IF($B$20="yes",0,IF($B$17="Four pipe",capacity!AW$68,capacity!AW$100)) -> 6.601542869 | BF45: =IF($B$20="yes",0,IF($B$17="Four pipe",capacity!AX$68,capacity!AX$100)) -> 8.485676258 | BG45: =IF($B$20="yes",0,IF($B$17="Four pipe",capacity!AY$68,capacity!AY$100)) -> 8.338305016 | BH45: =IF($B$20="yes",0,IF($B$17="Four pipe",capacity!AZ$68,capacity!AZ$100)) -> 7.552488582 | BI45: =IF($B$20="yes",0,IF($B$17="Four pipe",capacity!BA$68,capacity!BA$100)) -> 6.640372999
G46: Δθ h [°C] | H46: =IF($B$20="yes",0,IF($B$17="Four pipe",capacity!J$69,capacity!J$101)) -> 22.75824147 | I46: =IF($B$20="yes",0,IF($B$17="Four pipe",capacity!K$69,capacity!K$101)) -> 22.79181835 | J46: =IF($B$20="yes",0,IF($B$17="Four pipe",capacity!L$69,capacity!L$101)) -> 22.94925407 | K46: =IF($B$20="yes",0,IF($B$17="Four pipe",capacity!M$69,capacity!M$101)) -> 23.13315144 | M46: =IF($B$20="yes",0,IF($B$17="Four pipe",capacity!N$69,capacity!N$101)) -> 22.55503717 | N46: =IF($B$20="yes",0,IF($B$17="Four pipe",capacity!O$69,capacity!O$101)) -> 22.61706472 | O46: =IF($B$20="yes",0,IF($B$17="Four pipe",capacity!P$69,capacity!P$101)) -> 22.78303937 | P46: =IF($B$20="yes",0,IF($B$17="Four pipe",capacity!Q$69,capacity!Q$101)) -> 22.96427869 | R46: =IF($B$20="yes",0,IF($B$17="Four pipe",capacity!R$69,capacity!R$101)) -> 22.48660709 | S46: =IF($B$20="yes",0,IF($B$17="Four pipe",capacity!S$69,capacity!S$101)) -> 22.55151459 | T46: =IF($B$20="yes",0,IF($B$17="Four pipe",capacity!T$69,capacity!T$101)) -> 22.71544912 | U46: =IF($B$20="yes",0,IF($B$17="Four pipe",capacity!U$69,capacity!U$101)) -> 22.89416186 | W46: =IF($B$20="yes",0,IF($B$17="Four pipe",capacity!V$69,capacity!V$101)) -> 22.41664975 | X46: =IF($B$20="yes",0,IF($B$17="Four pipe",capacity!W$69,capacity!W$101)) -> 22.48175144 | Y46: =IF($B$20="yes",0,IF($B$17="Four pipe",capacity!X$69,capacity!X$101)) -> 22.64187208 | Z46: =IF($B$20="yes",0,IF($B$17="Four pipe",capacity!Y$69,capacity!Y$101)) -> 22.81779237 | AB46: =IF($B$20="yes",0,IF($B$17="Four pipe",capacity!Z$69,capacity!Z$101)) -> 22.34469143 | AC46: =IF($B$20="yes",0,IF($B$17="Four pipe",capacity!AA$69,capacity!AA$101)) -> 22.40761092 | AD46: =IF($B$20="yes",0,IF($B$17="Four pipe",capacity!AB$69,capacity!AB$101)) -> 22.56253989 | AE46: =IF($B$20="yes",0,IF($B$17="Four pipe",capacity!AC$69,capacity!AC$101)) -> 22.73577822 | AG46: =IF($B$20="yes",0,IF($B$17="Four pipe",capacity!AD$69,capacity!AD$101)) -> 22.11333622 | AH46: =IF($B$20="yes",0,IF($B$17="Four pipe",capacity!AE$69,capacity!AE$101)) -> 22.15844459 | AI46: =IF($B$20="yes",0,IF($B$17="Four pipe",capacity!AF$69,capacity!AF$101)) -> 22.2940588 | AJ46: =IF($B$20="yes",0,IF($B$17="Four pipe",capacity!AG$69,capacity!AG$101)) -> 22.46452013 | AL46: =IF($B$20="yes",0,IF($B$17="Four pipe",capacity!AH$69,capacity!AH$101)) -> 21.85478412 | AM46: =IF($B$20="yes",0,IF($B$17="Four pipe",capacity!AI$69,capacity!AI$101)) -> 21.87236297 | AN46: =IF($B$20="yes",0,IF($B$17="Four pipe",capacity!AJ$69,capacity!AJ$101)) -> 21.99523906 | AO46: =IF($B$20="yes",0,IF($B$17="Four pipe",capacity!AK$69,capacity!AK$101)) -> 22.18265551 | AQ46: =IF($B$20="yes",0,IF($B$17="Four pipe",capacity!AL$69,capacity!AL$101)) -> 21.57002312 | AR46: =IF($B$20="yes",0,IF($B$17="Four pipe",capacity!AM$69,capacity!AM$101)) -> 21.56273862 | AS46: =IF($B$20="yes",0,IF($B$17="Four pipe",capacity!AN$69,capacity!AN$101)) -> 21.69935122 | AT46: =IF($B$20="yes",0,IF($B$17="Four pipe",capacity!AO$69,capacity!AO$101)) -> 21.93760463 | AV46: =IF($B$20="yes",0,IF($B$17="Four pipe",capacity!AP$69,capacity!AP$101)) -> 21.26950155 | AW46: =IF($B$20="yes",0,IF($B$17="Four pipe",capacity!AQ$69,capacity!AQ$101)) -> 21.25670034 | AX46: =IF($B$20="yes",0,IF($B$17="Four pipe",capacity!AR$69,capacity!AR$101)) -> 21.45185047 | AY46: =IF($B$20="yes",0,IF($B$17="Four pipe",capacity!AS$69,capacity!AS$101)) -> 21.77377353 | BA46: =IF($B$20="yes",0,IF($B$17="Four pipe",capacity!AT$69,capacity!AT$101)) -> 20.97517402 | BB46: =IF($B$20="yes",0,IF($B$17="Four pipe",capacity!AU$69,capacity!AU$101)) -> 20.99265913 | BC46: =IF($B$20="yes",0,IF($B$17="Four pipe",capacity!AV$69,capacity!AV$101)) -> 21.29036614 | BD46: =IF($B$20="yes",0,IF($B$17="Four pipe",capacity!AW$69,capacity!AW$101)) -> 21.69922857 | BF46: =IF($B$20="yes",0,IF($B$17="Four pipe",capacity!AX$69,capacity!AX$101)) -> 20.75716187 | BG46: =IF($B$20="yes",0,IF($B$17="Four pipe",capacity!AY$69,capacity!AY$101)) -> 20.83084749 | BH46: =IF($B$20="yes",0,IF($B$17="Four pipe",capacity!AZ$69,capacity!AZ$101)) -> 21.22375571 | BI46: =IF($B$20="yes",0,IF($B$17="Four pipe",capacity!BA$69,capacity!BA$101)) -> 21.6798135
E49: if 0 = Ps realistic / 1000 Ps not realistic | H49: =IF(OR(H24>'instelwaarden & data'!$E$36,H24<'instelwaarden & data'!$E$37,H26>'instelwaarden & data'!$E$38,H50<>"OK",H51<>"OK"),1000,0) -> 1000 | I49: =IF(OR(I24>'instelwaarden & data'!$E$36,I24<'instelwaarden & data'!$E$37,I26>'instelwaarden & data'!$E$38,I50<>"OK",I51<>"OK"),1000,0) -> 1000 | J49: =IF(OR(J24>'instelwaarden & data'!$E$36,J24<'instelwaarden & data'!$E$37,J26>'instelwaarden & data'!$E$38,J50<>"OK",J51<>"OK"),1000,0) -> 1000 | K49: =IF(OR(K24>'instelwaarden & data'!$E$36,K24<'instelwaarden & data'!$E$37,K26>'instelwaarden & data'!$E$38,K50<>"OK",K51<>"OK"),1000,0) -> 1000 | L49: =IF(OR(L24>'instelwaarden & data'!$E$36,L24<'instelwaarden & data'!$E$37,L26>'instelwaarden & data'!$E$38,L50<>"OK",L51<>"OK"),1000,0) -> 1000 | M49: =IF(OR(M24>'instelwaarden & data'!$E$36,M24<'instelwaarden & data'!$E$37,M26>'instelwaarden & data'!$E$38,M50<>"OK",M51<>"OK"),1000,0) -> 1000 | N49: =IF(OR(N24>'instelwaarden & data'!$E$36,N24<'instelwaarden & data'!$E$37,N26>'instelwaarden & data'!$E$38,N50<>"OK",N51<>"OK"),1000,0) -> 1000 | O49: =IF(OR(O24>'instelwaarden & data'!$E$36,O24<'instelwaarden & data'!$E$37,O26>'instelwaarden & data'!$E$38,O50<>"OK",O51<>"OK"),1000,0) -> 1000 | P49: =IF(OR(P24>'instelwaarden & data'!$E$36,P24<'instelwaarden & data'!$E$37,P26>'instelwaarden & data'!$E$38,P50<>"OK",P51<>"OK"),1000,0) -> 1000 | Q49: =IF(OR(Q24>'instelwaarden & data'!$E$36,Q24<'instelwaarden & data'!$E$37,Q26>'instelwaarden & data'!$E$38,Q50<>"OK",Q51<>"OK"),1000,0) -> 1000 | R49: =IF(OR(R24>'instelwaarden & data'!$E$36,R24<'instelwaarden & data'!$E$37,R26>'instelwaarden & data'!$E$38,R50<>"OK",R51<>"OK"),1000,0) -> 1000 | S49: =IF(OR(S24>'instelwaarden & data'!$E$36,S24<'instelwaarden & data'!$E$37,S26>'instelwaarden & data'!$E$38,S50<>"OK",S51<>"OK"),1000,0) -> 1000 | T49: =IF(OR(T24>'instelwaarden & data'!$E$36,T24<'instelwaarden & data'!$E$37,T26>'instelwaarden & data'!$E$38,T50<>"OK",T51<>"OK"),1000,0) -> 1000 | U49: =IF(OR(U24>'instelwaarden & data'!$E$36,U24<'instelwaarden & data'!$E$37,U26>'instelwaarden & data'!$E$38,U50<>"OK",U51<>"OK"),1000,0) -> 1000 | V49: =IF(OR(V24>'instelwaarden & data'!$E$36,V24<'instelwaarden & data'!$E$37,V26>'instelwaarden & data'!$E$38,V50<>"OK",V51<>"OK"),1000,0) -> 1000 | W49: =IF(OR(W24>'instelwaarden & data'!$E$36,W24<'instelwaarden & data'!$E$37,W26>'instelwaarden & data'!$E$38,W50<>"OK",W51<>"OK"),1000,0) -> 1000 | X49: =IF(OR(X24>'instelwaarden & data'!$E$36,X24<'instelwaarden & data'!$E$37,X26>'instelwaarden & data'!$E$38,X50<>"OK",X51<>"OK"),1000,0) -> 1000 | Y49: =IF(OR(Y24>'instelwaarden & data'!$E$36,Y24<'instelwaarden & data'!$E$37,Y26>'instelwaarden & data'!$E$38,Y50<>"OK",Y51<>"OK"),1000,0) -> 1000 | Z49: =IF(OR(Z24>'instelwaarden & data'!$E$36,Z24<'instelwaarden & data'!$E$37,Z26>'instelwaarden & data'!$E$38,Z50<>"OK",Z51<>"OK"),1000,0) -> 0 | AA49: =IF(OR(AA24>'instelwaarden & data'!$E$36,AA24<'instelwaarden & data'!$E$37,AA26>'instelwaarden & data'!$E$38,AA50<>"OK",AA51<>"OK"),1000,0) -> 1000 | AB49: =IF(OR(AB24>'instelwaarden & data'!$E$36,AB24<'instelwaarden & data'!$E$37,AB26>'instelwaarden & data'!$E$38,AB50<>"OK",AB51<>"OK"),1000,0) -> 1000 | AC49: =IF(OR(AC24>'instelwaarden & data'!$E$36,AC24<'instelwaarden & data'!$E$37,AC26>'instelwaarden & data'!$E$38,AC50<>"OK",AC51<>"OK"),1000,0) -> 1000 | AD49: =IF(OR(AD24>'instelwaarden & data'!$E$36,AD24<'instelwaarden & data'!$E$37,AD26>'instelwaarden & data'!$E$38,AD50<>"OK",AD51<>"OK"),1000,0) -> 1000 | AE49: =IF(OR(AE24>'instelwaarden & data'!$E$36,AE24<'instelwaarden & data'!$E$37,AE26>'instelwaarden & data'!$E$38,AE50<>"OK",AE51<>"OK"),1000,0) -> 0 | AF49: =IF(OR(AF24>'instelwaarden & data'!$E$36,AF24<'instelwaarden & data'!$E$37,AF26>'instelwaarden & data'!$E$38,AF50<>"OK",AF51<>"OK"),1000,0) -> 1000 | AG49: =IF(OR(AG24>'instelwaarden & data'!$E$36,AG24<'instelwaarden & data'!$E$37,AG26>'instelwaarden & data'!$E$38,AG50<>"OK",AG51<>"OK"),1000,0) -> 1000 | AH49: =IF(OR(AH24>'instelwaarden & data'!$E$36,AH24<'instelwaarden & data'!$E$37,AH26>'instelwaarden & data'!$E$38,AH50<>"OK",AH51<>"OK"),1000,0) -> 1000 | AI49: =IF(OR(AI24>'instelwaarden & data'!$E$36,AI24<'instelwaarden & data'!$E$37,AI26>'instelwaarden & data'!$E$38,AI50<>"OK",AI51<>"OK"),1000,0) -> 0 | AJ49: =IF(OR(AJ24>'instelwaarden & data'!$E$36,AJ24<'instelwaarden & data'!$E$37,AJ26>'instelwaarden & data'!$E$38,AJ50<>"OK",AJ51<>"OK"),1000,0) -> 0 | AK49: =IF(OR(AK24>'instelwaarden & data'!$E$36,AK24<'instelwaarden & data'!$E$37,AK26>'instelwaarden & data'!$E$38,AK50<>"OK",AK51<>"OK"),1000,0) -> 1000 | AL49: =IF(OR(AL24>'instelwaarden & data'!$E$36,AL24<'instelwaarden & data'!$E$37,AL26>'instelwaarden & data'!$E$38,AL50<>"OK",AL51<>"OK"),1000,0) -> 1000 | AM49: =IF(OR(AM24>'instelwaarden & data'!$E$36,AM24<'instelwaarden & data'!$E$37,AM26>'instelwaarden & data'!$E$38,AM50<>"OK",AM51<>"OK"),1000,0) -> 1000 | AN49: =IF(OR(AN24>'instelwaarden & data'!$E$36,AN24<'instelwaarden & data'!$E$37,AN26>'instelwaarden & data'!$E$38,AN50<>"OK",AN51<>"OK"),1000,0) -> 0 | AO49: =IF(OR(AO24>'instelwaarden & data'!$E$36,AO24<'instelwaarden & data'!$E$37,AO26>'instelwaarden & data'!$E$38,AO50<>"OK",AO51<>"OK"),1000,0) -> 0 | AP49: =IF(OR(AP24>'instelwaarden & data'!$E$36,AP24<'instelwaarden & data'!$E$37,AP26>'instelwaarden & data'!$E$38,AP50<>"OK",AP51<>"OK"),1000,0) -> 1000 | AQ49: =IF(OR(AQ24>'instelwaarden & data'!$E$36,AQ24<'instelwaarden & data'!$E$37,AQ26>'instelwaarden & data'!$E$38,AQ50<>"OK",AQ51<>"OK"),1000,0) -> 1000 | AR49: =IF(OR(AR24>'instelwaarden & data'!$E$36,AR24<'instelwaarden & data'!$E$37,AR26>'instelwaarden & data'!$E$38,AR50<>"OK",AR51<>"OK"),1000,0) -> 0 | AS49: =IF(OR(AS24>'instelwaarden & data'!$E$36,AS24<'instelwaarden & data'!$E$37,AS26>'instelwaarden & data'!$E$38,AS50<>"OK",AS51<>"OK"),1000,0) -> 0 | AT49: =IF(OR(AT24>'instelwaarden & data'!$E$36,AT24<'instelwaarden & data'!$E$37,AT26>'instelwaarden & data'!$E$38,AT50<>"OK",AT51<>"OK"),1000,0) -> 0 | AU49: =IF(OR(AU24>'instelwaarden & data'!$E$36,AU24<'instelwaarden & data'!$E$37,AU26>'instelwaarden & data'!$E$38,AU50<>"OK",AU51<>"OK"),1000,0) -> 1000 | AV49: =IF(OR(AV24>'instelwaarden & data'!$E$36,AV24<'instelwaarden & data'!$E$37,AV26>'instelwaarden & data'!$E$38,AV50<>"OK",AV51<>"OK"),1000,0) -> 1000 | AW49: =IF(OR(AW24>'instelwaarden & data'!$E$36,AW24<'instelwaarden & data'!$E$37,AW26>'instelwaarden & data'!$E$38,AW50<>"OK",AW51<>"OK"),1000,0) -> 0 | AX49: =IF(OR(AX24>'instelwaarden & data'!$E$36,AX24<'instelwaarden & data'!$E$37,AX26>'instelwaarden & data'!$E$38,AX50<>"OK",AX51<>"OK"),1000,0) -> 0 | AY49: =IF(OR(AY24>'instelwaarden & data'!$E$36,AY24<'instelwaarden & data'!$E$37,AY26>'instelwaarden & data'!$E$38,AY50<>"OK",AY51<>"OK"),1000,0) -> 1000 | AZ49: =IF(OR(AZ24>'instelwaarden & data'!$E$36,AZ24<'instelwaarden & data'!$E$37,AZ26>'instelwaarden & data'!$E$38,AZ50<>"OK",AZ51<>"OK"),1000,0) -> 1000 | BA49: =IF(OR(BA24>'instelwaarden & data'!$E$36,BA24<'instelwaarden & data'!$E$37,BA26>'instelwaarden & data'!$E$38,BA50<>"OK",BA51<>"OK"),1000,0) -> 0 | BB49: =IF(OR(BB24>'instelwaarden & data'!$E$36,BB24<'instelwaarden & data'!$E$37,BB26>'instelwaarden & data'!$E$38,BB50<>"OK",BB51<>"OK"),1000,0) -> 0 | BC49: =IF(OR(BC24>'instelwaarden & data'!$E$36,BC24<'instelwaarden & data'!$E$37,BC26>'instelwaarden & data'!$E$38,BC50<>"OK",BC51<>"OK"),1000,0) -> 0 | BD49: =IF(OR(BD24>'instelwaarden & data'!$E$36,BD24<'instelwaarden & data'!$E$37,BD26>'instelwaarden & data'!$E$38,BD50<>"OK",BD51<>"OK"),1000,0) -> 1000 | BE49: =IF(OR(BE24>'instelwaarden & data'!$E$36,BE24<'instelwaarden & data'!$E$37,BE26>'instelwaarden & data'!$E$38,BE50<>"OK",BE51<>"OK"),1000,0) -> 1000 | BF49: =IF(OR(BF24>'instelwaarden & data'!$E$36,BF24<'instelwaarden & data'!$E$37,BF26>'instelwaarden & data'!$E$38,BF50<>"OK",BF51<>"OK"),1000,0) -> 0 | BG49: =IF(OR(BG24>'instelwaarden & data'!$E$36,BG24<'instelwaarden & data'!$E$37,BG26>'instelwaarden & data'!$E$38,BG50<>"OK",BG51<>"OK"),1000,0) -> 0 | BH49: =IF(OR(BH24>'instelwaarden & data'!$E$36,BH24<'instelwaarden & data'!$E$37,BH26>'instelwaarden & data'!$E$38,BH50<>"OK",BH51<>"OK"),1000,0) -> 0 | BI49: =IF(OR(BI24>'instelwaarden & data'!$E$36,BI24<'instelwaarden & data'!$E$37,BI26>'instelwaarden & data'!$E$38,BI50<>"OK",BI51<>"OK"),1000,0) -> 1000
F50: error Qw cooling | H50: =IF(($B$15+H43)<=$B$12,"OK","error Qw") -> OK | I50: OK | J50: OK | K50: OK | L50: OK | M50: OK | N50: OK | O50: OK | P50: OK | Q50: OK | R50: OK | S50: OK | T50: OK | U50: OK | V50: OK | W50: OK | X50: OK | Y50: OK | Z50: OK | AA50: OK | AB50: OK | AC50: OK | AD50: OK | AE50: OK | AF50: OK | AG50: OK | AH50: OK | AI50: OK | AJ50: OK | AK50: OK | AL50: OK | AM50: OK | AN50: =IF(($B$15+AN43)<=$B$12,"OK","error Qw") -> OK | AO50: OK | AP50: OK | AQ50: OK | AR50: OK | AS50: OK | AT50: OK | AU50: OK | AV50: OK | AW50: OK | AX50: OK | AY50: OK | AZ50: OK | BA50: OK | BB50: OK | BC50: OK | BD50: OK | BE50: OK | BF50: OK | BG50: OK | BH50: OK | BI50: OK
F51: error Qw heating | H51: =IF(($C$15-H45)>$C$12,"OK","error Qw") -> OK | I51: =IF(($C$15-I45)>$C$12,"OK","error Qw") -> OK | J51: OK | K51: OK | L51: OK | M51: OK | N51: OK | O51: OK | P51: OK | Q51: OK | R51: OK | S51: OK | T51: OK | U51: OK | V51: OK | W51: OK | X51: OK | Y51: OK | Z51: OK | AA51: OK | AB51: OK | AC51: OK | AD51: OK | AE51: OK | AF51: OK | AG51: OK | AH51: OK | AI51: OK | AJ51: OK | AK51: OK | AL51: OK | AM51: OK | AN51: OK | AO51: OK | AP51: OK | AQ51: OK | AR51: OK | AS51: OK | AT51: OK | AU51: OK | AV51: OK | AW51: OK | AX51: OK | AY51: OK | AZ51: OK | BA51: OK | BB51: OK | BC51: OK | BD51: OK | BE51: OK | BF51: OK | BG51: OK | BH51: OK | BI51: OK

Sheet physical parameters (hidden)
A1: Calculation of air density
A2: Constants
A3: Rd | B3: specific gas constant for dry air | C3: J/(kg.K) | D3: 287.058
A4: Rv | B4: specific gas constant for water vapor | C4: J/(kg.K) | D4: 461.495
A5: input data | D5: cooling | E5: heating
A6: P | B6: atmospheric pressure | C6: Pa | D6: 101325 | E6: =D6 -> 101325 | F6: 101325
A7: T | B7: temperature at working condition | C7: K | D7: =selection!B12+273 -> 298 | E7: =capacity!C3+273 -> 293 | F7: 295.0356642
A8: RelHum | B8: relative humidity | C8: % | D8: 50 | E8: =D8 -> 50 | F8: 50
A9: Calculations
A10: Psat | B10: saturation pressure | C10: Pa | D10: =610.78*10^((7.5*$D$7-2048.625)/($D$7-35.85)) -> 3139.299409 | E10: =610.78*10^((7.5*$D$7-2048.625)/($D$7-35.85)) -> 3139.299409 | F10: 2745.33233
A11: Pv | B11: partial pressure for water vapor | C11: Pa | D11: =D10*(D8/100) -> 1569.649704 | E11: =E10*(E8/100) -> 1569.649704 | F11: 1372.666165
A12: Pd | B12: partial pressure for dry air | C12: Pa | D12: =D6-D11 -> 99755.3503 | E12: =E6-E11 -> 99755.3503 | F12: 99952.33384
A13: Result | D13: cooling | E13: heating
A14: Rho | B14: density of humid air | C14: kg/m³ | D14: =D12/($D$3*D7)+D11/($D$4*D7) -> 1.177552407 | E14: =E12/($D$3*E7)+E11/($D$4*E7) -> 1.197647158
A16: Calculation of air specific heat capacity (ref.: www.ohio.edu/mechanical/thermo/property_tables_air)
A17: Temperature [°C] | B17: specific heat capacity [J/kg.°C] | E17: % fout
A18: -23.15 | B18: 1.003 | D18: =$H$25*A18^2+$I$25*A18+$J$25 -> 1.002981185 | E18: =(B18-D18)/(B18/100) -> 0.001875922233
A19: 26.85 | B19: 1.005 | D19: =$H$25*A19^2+$I$25*A19+$J$25 -> 1.005018185 | E19: =(B19-D19)/(B19/100) -> -0.001809402985
A20: 76.85 | B20: 1.008 | D20: =$H$25*A20^2+$I$25*A20+$J$25 -> 1.008055185 | E20: =(B20-D20)/(B20/100) -> -0.005474652778
D21: cp air
A22: Result | D22: cooling | E22: heating
A23: find position smaller T | D23: =capacity!B3 -> 25 | E23: =capacity!C3 -> 20
A24: Cp | B24: specific heat capacity | C24: J/kg.°C | D24: =$H$25*D23^2+$I$25*D23+$J$25 -> 1.004925 | E24: =$H$25*E23^2+$I$25*E23+$J$25 -> 1.00468
H25: =2*10^-7 -> 2e-07 | I25: =4*10^-5 -> 4e-05 | J25: 1.0038
A27: WATER
A30: Calculation of water density and specific heat capacity (ref.: www.thermexcel.com/english/tables/eau_atm.html)
A31: Temperature [°C] | B31: density [kg/m³] | C31: specific heat capacity [J/kg.°C]
A32: 5 | B32: 1000 | C32: 4.202
A33: =A32+1 -> 6 | B33: 999.99 | C33: 4.2
A34: =A33+1 -> 7 | B34: 999.96 | C34: 4.198
A35: 8 | B35: 999.91 | C35: 4.196
A36: 9 | B36: 999.85 | C36: 4.194
A37: 10 | B37: 999.77 | C37: 4.092
A38: 11 | B38: 999.68 | C38: 4.191
A39: 12 | B39: 999.58 | C39: 4.189
A40: 13 | B40: 999.46 | C40: 4.188
A41: 14 | B41: 999.33 | C41: 4.187
A42: 15 | B42: 999.19 | C42: 4.186
A43: 16 | B43: 999.03 | C43: 4.185
A44: 17 | B44: 998.86 | C44: 4.184
A45: 18 | B45: 998.68 | C45: 4.183
A46: 19 | B46: 998.49 | C46: 4.182
A47: 20 | B47: 998.29 | C47: 4.182
A48: 21 | B48: 998.08 | C48: 4.181
A49: 22 | B49: 997.86 | C49: 4.181
A50: 23 | B50: 997.62 | C50: 4.18
A51: 24 | B51: 997.38 | C51: 4.18
A52: 25 | B52: 997.13 | C52: 4.18
A53: 26 | B53: 996.86 | C53: 4.179
A54: 27 | B54: 996.59 | C54: 4.179
A55: 28 | B55: 996.31 | C55: 4.179
A56: 29 | B56: 996.02 | C56: 4.179
A57: 30 | B57: 995.71 | C57: 4.178
A58: 31 | B58: 995.41 | C58: 4.178
A59: 32 | B59: 995.09 | C59: 4.178
A60: 33 | B60: 994.76 | C60: 4.178
A61: 34 | B61: 994.43 | C61: 4.178
A62: 35 | B62: 994.08 | C62: 4.178
A63: 36 | B63: 993.73 | C63: 4.178
A64: 37 | B64: 993.37 | C64: 4.178
A65: 38 | B65: 993 | C65: 4.178
A66: 39 | B66: 992.63 | C66: 4.179
A67: 40 | B67: 992.25 | C67: 4.179
A68: 41 | B68: 991.86 | C68: 4.179
A69: 42 | B69: 991.46 | C69: 4.179
A70: 43 | B70: 991.05 | C70: 4.179
A71: 44 | B71: 990.64 | C71: 4.179
A72: 45 | B72: 990.22 | C72: 4.18
A73: 46 | B73: 989.8 | C73: 4.18
A74: 47 | B74: 989.36 | C74: 4.18
A75: 48 | B75: 988.92 | C75: 4.18
A76: 49 | B76: 988.47 | C76: 4.181
A77: 50 | B77: 988.02 | C77: 4.181
A78: 51 | B78: 987.56 | C78: 4.181
A79: 52 | B79: 987.09 | C79: 4.182
A80: 53 | B80: 986.62 | C80: 4.182
A81: 54 | B81: 986.14 | C81: 4.182
A82: 55 | B82: 985.65 | C82: 4.183
A83: 56 | B83: 985.16 | C83: 4.183
A84: 57 | B84: 984.66 | C84: 4.183
A85: 58 | B85: 984.16 | C85: 4.184
A86: 59 | B86: 983.64 | C86: 4.184
A87: 60 | B87: 983.13 | C87: 4.185
A88: 61 | B88: 982.6 | C88: 4.185
A89: 62 | B89: 982.07 | C89: 4.186
A90: 63 | B90: 981.54 | C90: 4.186
A91: 64 | B91: 981 | C91: 4.187
A92: 65 | B92: 980.45 | C92: 4.187
A93: 66 | B93: 979.9 | C93: 4.188
A94: 67 | B94: 979.34 | C94: 4.188
A95: 68 | B95: 978.78 | C95: 4.189
A96: 69 | B96: 978.21 | C96: 4.189
A97: 70 | B97: 977.63 | C97: 4.19
A98: =A97+1 -> 71 | B98: 977.05 | C98: 4.19
A99: 72 | B99: 976.47 | C99: 4.191
A100: 73 | B100: 975.88 | C100: 4.192
A101: 74 | B101: 975.28 | C101: 4.192
A102: 75 | B102: 974.68 | C102: 4.193
A103: 76 | B103: 974.08 | C103: 4.194
A104: 77 | B104: 973.46 | C104: 4.194
A105: 78 | B105: 972.85 | C105: 4.195
A106: 79 | B106: 972.23 | C106: 4.196
A107: 80 | B107: 971.6 | C107: 4.196
A109: Result | D109: cooling | E109: heating
A110: find position smaller T | C110: water temp | D110: =capacity!B6 -> 14 | E110: =capacity!C6 -> 45
A111: Rho | B111: density of water | C111: kg/m³ | D111: =VLOOKUP(D110,A32:B107,2,1) -> 999.33 | E111: =VLOOKUP(E110,A32:C107,2,1) -> 990.22
A112: Cp | B112: specific heat capacity water | C112: J/kg.°C | D112: =VLOOKUP(D110,A32:C107,3,1) -> 4.187 | E112: =VLOOKUP(E110,A32:C107,3,1) -> 4.18

Sheet configuration (hidden)
A1: =IF('general info'!$F$1="NL",talen!A8,IF('general info'!$F$1="FR",talen!B8,IF('general info'!$F$1="EN",talen!C8,talen!D8))) -> Choose nominal beam length: | B1: =selection!G21 -> 1800
A2: =IF('general info'!$F$1="NL",talen!A17,IF('general info'!$F$1="FR",talen!B17,IF('general info'!$F$1="EN",talen!C17,talen!D17))) -> Battery length: | B2: =selection!F21 -> 1800
A3: =IF($F$1="NL",talen!A18,IF($F$1="FR",talen!B18,IF($F$1="EN",talen!C18,talen!D18))) -> Nozzletyp: | B3: =selection!F22 -> D
E4: ='general info'!B7 -> Name | F4: ='general info'!C7 -> Mounting type | G4: ='general info'!D7 -> Model | H4: ='general info'!E7 -> Connection | I4: ='general info'!F7 -> Nozzle | J4: ='general info'!G7 -> Battery type | K4: ='general info'!H7 -> Options | L4: ='general info'!I7 -> Beam length | M4: ='general info'!J7 -> Battery length
A5: =IF('general info'!$F$1="NL",talen!A45,IF('general info'!$F$1="FR",talen!B45,IF('general info'!$F$1="EN",talen!C45,talen!D45))) -> Order code: | B5: =IF(B1>=B2,CONCATENATE(E5,LEFT(F5,1),G5,LEFT(H5,1),I5,LEFT(J5,1),LEFT(K5,1),L5,M5),"Error nom length") -> KT6LDH-18001800 | E5: ='general info'!B8 -> K | F5: ='general info'!C8 -> T: T-bar | G5: ='general info'!D8 -> 6 | H5: =IF(selection!B13<130,'general info'!E8,IF('general info'!E8='instelwaarden & data'!C4,'instelwaarden & data'!C6,'instelwaarden & data'!C5)) -> L: left connection | I5: ='general info'!F8 -> D | J5: ='general info'!G8 -> H: cooling & heating coil | K5: ='general info'!H8 -> - : None | L5: ='general info'!I8 -> 1800 | M5: ='general info'!J8 -> 1800
A9: =IF('general info'!$F$1="NL",talen!A71,IF('general info'!$F$1="FR",talen!B71,IF('general info'!$F$1="EN",talen!C71,talen!D71))) -> Selected beam specifications
A11: =IF('general info'!$F$1="NL",talen!A72,IF('general info'!$F$1="FR",talen!B72,IF('general info'!$F$1="EN",talen!C72,talen!D72))) -> Calculated data - cooling | D11: =IF('general info'!$F$1="NL",talen!A66,IF('general info'!$F$1="FR",talen!B66,IF('general info'!$F$1="EN",talen!C66,talen!D66))) -> Required | G11: =IF('general info'!$F$1="NL",talen!A74,IF('general info'!$F$1="FR",talen!B74,IF('general info'!$F$1="EN",talen!C74,talen!D74))) -> Input data - cooling
A12: =IF('general info'!$F$1="NL",talen!A18,IF('general info'!$F$1="FR",talen!B18,IF('general info'!$F$1="EN",talen!C18,talen!D18))) -> Nozzle type: | B12: - | C12: =selection!F22 -> D | D12: - | E12: =IF('general info'!$F$1="NL",talen!A10,IF('general info'!$F$1="FR",talen!B10,IF('general info'!$F$1="EN",talen!C10,talen!D10))) -> Room air temperature: | G12: =selection!B12 -> 25 | H12: ºC | K12: =selection!A21 -> cooling only | L12: =selection!B21 -> No | M12: =selection!C21 -> 0
A13: =IF('general info'!$F$1="NL",talen!A17,IF('general info'!$F$1="FR",talen!B17,IF('general info'!$F$1="EN",talen!C17,talen!D17))) -> Battery length: | B13: mm | C13: =selection!F21 -> 1800 | D13: =IF(selection!F14="","0",selection!F14) -> 0 | E13: =IF('general info'!$F$1="NL",talen!A11,IF('general info'!$F$1="FR",talen!B11,IF('general info'!$F$1="EN",talen!C11,talen!D11))) -> Supply (primary) air flow rate: | G13: =selection!B13 -> 86.4 | H13: m3/h | K13: =selection!A22 -> heating only | L13: =selection!B22 -> No | M13: =selection!C22 -> 0
A14: =IF('general info'!$F$1="NL",talen!A21,IF('general info'!$F$1="FR",talen!B21,IF('general info'!$F$1="EN",talen!C21,talen!D21))) -> Total capacity: | B14: W | C14: =IF(AND(L13="yes",M13=0),0,IF(AND(C$13=600,C$12="A"),selection!H23,IF(AND(C$13=600,C$12="B"),selection!I23,IF(AND(C$13=600,C$12="C"),selection!J23,IF(AND(C$13=600,C$12="D"),selection!K23,IF(AND(C$13=900,C$12="A"),selection!M23,IF(AND(C$13=900,C$12="B"),selection!N23,IF(AND(C$13=900,C$12="C"),selection!O23,IF(AND(C$13=900,C$12="D"),selection!P23,IF(AND(C$13=1000,C$12="A"),selection!R23,IF(AND(C$13=1000,C$12="B"),selection!S23,IF(AND(C$13=1000,C$12="C"),selection!T23,IF(AND(C$13=1000,C$12="D"),selection!U23,IF(AND(C$13=1100,C$12="A"),selection!W23,IF(AND(C$13=1100,C$12="B"),selection!X23,IF(AND(C$13=1100,C$12="C"),selection!Y23,IF(AND(C$13=1100,C$12="D"),selection!Z23,IF(AND(C$13=1200,C$12="A"),selection!AB23,IF(AND(C$13=1200,C$12="B"),selection!AC23,IF(AND(C$13=1200,C$12="C"),selection!AD23,IF(AND(C$13=1200,C$12="D"),selection!AE23,IF(AND(C$13=1500,C$12="A"),selection!AG23,IF(AND(C$13=1500,C$12="B"),selection!AH23,IF(AND(C$13=1500,C$12="C"),selection!AI23,IF(AND(C$13=1500,C$12="D"),selection!AJ23,IF(AND(C$13=1800,C$12="A"),selection!AL23,IF(AND(C$13=1800,C$12="B"),selection!AM23,IF(AND(C$13=1800,C$12="C"),selection!AN23,IF(AND(C$13=1800,C$12="D"),selection!AO23,IF(AND(C$13=2100,C$12="A"),selection!AQ23,IF(AND(C$13=2100,C$12="B"),selection!AR23,IF(AND(C$13=2100,C$12="C"),selection!AS23,IF(AND(C$13=2100,C$12="D"),selection!AT23,IF(AND(C$13=2400,C$12="A"),selection!AV23,IF(AND(C$13=2400,C$12="B"),selection!AW23,IF(AND(C$13=2400,C$12="C"),selection!AX23,IF(AND(C$13=2400,C$12="D"),selection!AY23,IF(AND(C$13=2700,C$12="A"),selection!BA23,IF(AND(C$13=2700,C$12="B"),selection!BB23,IF(AND(C$13=2700,C$12="C"),selection!BC23,IF(AND(C$13=2700,C$12="D"),selection!BD23,IF(AND(C$13=2950,C$12="A"),selection!BF23,IF(AND(C$13=2950,C$12="B"),selection!BG23,IF(AND(C$13=2950,C$12="C"),selection!BH23,IF(AND(C$13=2950,C$12="D"),selection!BI23))))))))))))))))))))))))))))))))))))))))))))) -> 650.94063 | D14: =IF(selection!F19="","0",selection!F19) -> 0 | E14: =IF('general info'!$F$1="NL",talen!A12,IF('general info'!$F$1="FR",talen!B12,IF('general info'!$F$1="EN",talen!C12,talen!D12))) -> Supply (primary) air temperature: | G14: =selection!B14 -> 20 | H14: ºC
A15: =IF('general info'!$F$1="NL",talen!A24,IF('general info'!$F$1="FR",talen!B24,IF('general info'!$F$1="EN",talen!C24,talen!D24))) -> Plenum static pressure: | B15: Pa | C15: =IF(AND(C$13=600,C$12="A"),selection!H24,IF(AND(C$13=600,C$12="B"),selection!I24,IF(AND(C$13=600,C$12="C"),selection!J24,IF(AND(C$13=600,C$12="D"),selection!K24,IF(AND(C$13=900,C$12="A"),selection!M24,IF(AND(C$13=900,C$12="B"),selection!N24,IF(AND(C$13=900,C$12="C"),selection!O24,IF(AND(C$13=900,C$12="D"),selection!P24,IF(AND(C$13=1000,C$12="A"),selection!R24,IF(AND(C$13=1000,C$12="B"),selection!S24,IF(AND(C$13=1000,C$12="C"),selection!T24,IF(AND(C$13=1000,C$12="D"),selection!U24,IF(AND(C$13=1100,C$12="A"),selection!W24,IF(AND(C$13=1100,C$12="B"),selection!X24,IF(AND(C$13=1100,C$12="C"),selection!Y24,IF(AND(C$13=1100,C$12="D"),selection!Z24,IF(AND(C$13=1200,C$12="A"),selection!AB24,IF(AND(C$13=1200,C$12="B"),selection!AC24,IF(AND(C$13=1200,C$12="C"),selection!AD24,IF(AND(C$13=1200,C$12="D"),selection!AE24,IF(AND(C$13=1500,C$12="A"),selection!AG24,IF(AND(C$13=1500,C$12="B"),selection!AH24,IF(AND(C$13=1500,C$12="C"),selection!AI24,IF(AND(C$13=1500,C$12="D"),selection!AJ24,IF(AND(C$13=1800,C$12="A"),selection!AL24,IF(AND(C$13=1800,C$12="B"),selection!AM24,IF(AND(C$13=1800,C$12="C"),selection!AN24,IF(AND(C$13=1800,C$12="D"),selection!AO24,IF(AND(C$13=2100,C$12="A"),selection!AQ24,IF(AND(C$13=2100,C$12="B"),selection!AR24,IF(AND(C$13=2100,C$12="C"),selection!AS24,IF(AND(C$13=2100,C$12="D"),selection!AT24,IF(AND(C$13=2400,C$12="A"),selection!AV24,IF(AND(C$13=2400,C$12="B"),selection!AW24,IF(AND(C$13=2400,C$12="C"),selection!AX24,IF(AND(C$13=2400,C$12="D"),selection!AY24,IF(AND(C$13=2700,C$12="A"),selection!BA24,IF(AND(C$13=2700,C$12="B"),selection!BB24,IF(AND(C$13=2700,C$12="C"),selection!BC24,IF(AND(C$13=2700,C$12="D"),selection!BD24,IF(AND(C$13=2950,C$12="A"),selection!BF24,IF(AND(C$13=2950,C$12="B"),selection!BG24,IF(AND(C$13=2950,C$12="C"),selection!BH24,IF(AND(C$13=2950,C$12="D"),selection!BI24)))))))))))))))))))))))))))))))))))))))))))) -> 49.23862398 | D15: =IF(selection!F18="","0",selection!F18) -> 0 | E15: =IF('general info'!$F$1="NL",talen!A13,IF('general info'!$F$1="FR",talen!B13,IF('general info'!$F$1="EN",talen!C13,talen!D13))) -> Water inlet temperature: | G15: =selection!B15 -> 14 | H15: ºC
A16: =IF('general info'!$F$1="NL",talen!A30,IF('general info'!$F$1="FR",talen!B30,IF('general info'!$F$1="EN",talen!C30,talen!D30))) -> Room air velocity, V3: | B16: m/s | C16: =IF(AND(C$13=600,C$12="A"),selection!H40,IF(AND(C$13=600,C$12="B"),selection!I40,IF(AND(C$13=600,C$12="C"),selection!J40,IF(AND(C$13=600,C$12="D"),selection!K40,IF(AND(C$13=900,C$12="A"),selection!M40,IF(AND(C$13=900,C$12="B"),selection!N40,IF(AND(C$13=900,C$12="C"),selection!O40,IF(AND(C$13=900,C$12="D"),selection!P40,IF(AND(C$13=1000,C$12="A"),selection!R40,IF(AND(C$13=1000,C$12="B"),selection!S40,IF(AND(C$13=1000,C$12="C"),selection!T40,IF(AND(C$13=1000,C$12="D"),selection!U40,IF(AND(C$13=1100,C$12="A"),selection!W40,IF(AND(C$13=1100,C$12="B"),selection!X40,IF(AND(C$13=1100,C$12="C"),selection!Y40,IF(AND(C$13=1100,C$12="D"),selection!Z40,IF(AND(C$13=1200,C$12="A"),selection!AB40,IF(AND(C$13=1200,C$12="B"),selection!AC40,IF(AND(C$13=1200,C$12="C"),selection!AD40,IF(AND(C$13=1200,C$12="D"),selection!AE40,IF(AND(C$13=1500,C$12="A"),selection!AG40,IF(AND(C$13=1500,C$12="B"),selection!AH40,IF(AND(C$13=1500,C$12="C"),selection!AI40,IF(AND(C$13=1500,C$12="D"),selection!AJ40,IF(AND(C$13=1800,C$12="A"),selection!AL40,IF(AND(C$13=1800,C$12="B"),selection!AM40,IF(AND(C$13=1800,C$12="C"),selection!AN40,IF(AND(C$13=1800,C$12="D"),selection!AO40,IF(AND(C$13=2100,C$12="A"),selection!AQ40,IF(AND(C$13=2100,C$12="B"),selection!AR40,IF(AND(C$13=2100,C$12="C"),selection!AS40,IF(AND(C$13=2100,C$12="D"),selection!AT40,IF(AND(C$13=2400,C$12="A"),selection!AV40,IF(AND(C$13=2400,C$12="B"),selection!AW40,IF(AND(C$13=2400,C$12="C"),selection!AX40,IF(AND(C$13=2400,C$12="D"),selection!AY40,IF(AND(C$13=2700,C$12="A"),selection!BA40,IF(AND(C$13=2700,C$12="B"),selection!BB40,IF(AND(C$13=2700,C$12="C"),selection!BC40,IF(AND(C$13=2700,C$12="D"),selection!BD40,IF(AND(C$13=2950,C$12="A"),selection!BF40,IF(AND(C$13=2950,C$12="B"),selection!BG40,IF(AND(C$13=2950,C$12="C"),selection!BH40,IF(AND(C$13=2950,C$12="D"),selection!BI40)))))))))))))))))))))))))))))))))))))))))))) -> 0.314844104 | D16: =IF(selection!F15="","0",selection!F15) -> 0 | E16: =IF('general info'!$F$1="NL",talen!A14,IF('general info'!$F$1="FR",talen!B14,IF('general info'!$F$1="EN",talen!C14,talen!D14))) -> Water flow rate : | G16: =IF(AND(L13="yes",M13=0),0,selection!B16) -> 100 | H16: l/h
A17: =IF('general info'!$F$1="NL",talen!A16,IF('general info'!$F$1="FR",talen!B16,IF('general info'!$F$1="EN",talen!C16,talen!D16))) -> Temperature difference battery: | B17: ºC | C17: =IF(AND(L13="yes",M13=0),0,IF(AND(C$13=600,C$12="A"),selection!H43,IF(AND(C$13=600,C$12="B"),selection!I43,IF(AND(C$13=600,C$12="C"),selection!J43,IF(AND(C$13=600,C$12="D"),selection!K43,IF(AND(C$13=900,C$12="A"),selection!M43,IF(AND(C$13=900,C$12="B"),selection!N43,IF(AND(C$13=900,C$12="C"),selection!O43,IF(AND(C$13=900,C$12="D"),selection!P43,IF(AND(C$13=1000,C$12="A"),selection!R43,IF(AND(C$13=1000,C$12="B"),selection!S43,IF(AND(C$13=1000,C$12="C"),selection!T43,IF(AND(C$13=1000,C$12="D"),selection!U43,IF(AND(C$13=1100,C$12="A"),selection!W43,IF(AND(C$13=1100,C$12="B"),selection!X43,IF(AND(C$13=1100,C$12="C"),selection!Y43,IF(AND(C$13=1100,C$12="D"),selection!Z43,IF(AND(C$13=1200,C$12="A"),selection!AB43,IF(AND(C$13=1200,C$12="B"),selection!AC43,IF(AND(C$13=1200,C$12="C"),selection!AD43,IF(AND(C$13=1200,C$12="D"),selection!AE43,IF(AND(C$13=1500,C$12="A"),selection!AG43,IF(AND(C$13=1500,C$12="B"),selection!AH43,IF(AND(C$13=1500,C$12="C"),selection!AI43,IF(AND(C$13=1500,C$12="D"),selection!AJ43,IF(AND(C$13=1800,C$12="A"),selection!AL43,IF(AND(C$13=1800,C$12="B"),selection!AM43,IF(AND(C$13=1800,C$12="C"),selection!AN43,IF(AND(C$13=1800,C$12="D"),selection!AO43,IF(AND(C$13=2100,C$12="A"),selection!AQ43,IF(AND(C$13=2100,C$12="B"),selection!AR43,IF(AND(C$13=2100,C$12="C"),selection!AS43,IF(AND(C$13=2100,C$12="D"),selection!AT43,IF(AND(C$13=2400,C$12="A"),selection!AV43,IF(AND(C$13=2400,C$12="B"),selection!AW43,IF(AND(C$13=2400,C$12="C"),selection!AX43,IF(AND(C$13=2400,C$12="D"),selection!AY43,IF(AND(C$13=2700,C$12="A"),selection!BA43,IF(AND(C$13=2700,C$12="B"),selection!BB43,IF(AND(C$13=2700,C$12="C"),selection!BC43,IF(AND(C$13=2700,C$12="D"),selection!BD43,IF(AND(C$13=2950,C$12="A"),selection!BF43,IF(AND(C$13=2950,C$12="B"),selection!BG43,IF(AND(C$13=2950,C$12="C"),selection!BH43,IF(AND(C$13=2950,C$12="D"),selection!BI43))))))))))))))))))))))))))))))))))))))))))))) -> 4.37880738 | D17: =IF(selection!F17="","0",selection!F17) -> 0
A18: =IF('general info'!$F$1="NL",talen!A35,IF('general info'!$F$1="FR",talen!B35,IF('general info'!$F$1="EN",talen!C35,talen!D35))) -> Water capacity: | B18: W | C18: =IF(AND(L13="yes",M13=0),0,IF(AND(C$13=600,C$12="A"),selection!H27,IF(AND(C$13=600,C$12="B"),selection!I27,IF(AND(C$13=600,C$12="C"),selection!J27,IF(AND(C$13=600,C$12="D"),selection!K27,IF(AND(C$13=900,C$12="A"),selection!M27,IF(AND(C$13=900,C$12="B"),selection!N27,IF(AND(C$13=900,C$12="C"),selection!O27,IF(AND(C$13=900,C$12="D"),selection!P27,IF(AND(C$13=1000,C$12="A"),selection!R27,IF(AND(C$13=1000,C$12="B"),selection!S27,IF(AND(C$13=1000,C$12="C"),selection!T27,IF(AND(C$13=1000,C$12="D"),selection!U27,IF(AND(C$13=1100,C$12="A"),selection!W27,IF(AND(C$13=1100,C$12="B"),selection!X27,IF(AND(C$13=1100,C$12="C"),selection!Y27,IF(AND(C$13=1100,C$12="D"),selection!Z27,IF(AND(C$13=1200,C$12="A"),selection!AB27,IF(AND(C$13=1200,C$12="B"),selection!AC27,IF(AND(C$13=1200,C$12="C"),selection!AD27,IF(AND(C$13=1200,C$12="D"),selection!AE27,IF(AND(C$13=1500,C$12="A"),selection!AG27,IF(AND(C$13=1500,C$12="B"),selection!AH27,IF(AND(C$13=1500,C$12="C"),selection!AI27,IF(AND(C$13=1500,C$12="D"),selection!AJ27,IF(AND(C$13=1800,C$12="A"),selection!AL27,IF(AND(C$13=1800,C$12="B"),selection!AM27,IF(AND(C$13=1800,C$12="C"),selection!AN27,IF(AND(C$13=1800,C$12="D"),selection!AO27,IF(AND(C$13=2100,C$12="A"),selection!AQ27,IF(AND(C$13=2100,C$12="B"),selection!AR27,IF(AND(C$13=2100,C$12="C"),selection!AS27,IF(AND(C$13=2100,C$12="D"),selection!AT27,IF(AND(C$13=2400,C$12="A"),selection!AV27,IF(AND(C$13=2400,C$12="B"),selection!AW27,IF(AND(C$13=2400,C$12="C"),selection!AX27,IF(AND(C$13=2400,C$12="D"),selection!AY27,IF(AND(C$13=2700,C$12="A"),selection!BA27,IF(AND(C$13=2700,C$12="B"),selection!BB27,IF(AND(C$13=2700,C$12="C"),selection!BC27,IF(AND(C$13=2700,C$12="D"),selection!BD27,IF(AND(C$13=2950,C$12="A"),selection!BF27,IF(AND(C$13=2950,C$12="B"),selection!BG27,IF(AND(C$13=2950,C$12="C"),selection!BH27,IF(AND(C$13=2950,C$12="D"),selection!BI27))))))))))))))))))))))))))))))))))))))))))))) -> 508.9384076
A19: =IF('general info'!$F$1="NL",talen!A19,IF('general info'!$F$1="FR",talen!B19,IF('general info'!$F$1="EN",talen!C19,talen!D19))) -> Supply (primary) air capacity: | B19: W | C19: =IF(AND(L13="yes",M13=0),0,IF(AND(C$13=600,C$12="A"),selection!H28,IF(AND(C$13=600,C$12="B"),selection!I28,IF(AND(C$13=600,C$12="C"),selection!J28,IF(AND(C$13=600,C$12="D"),selection!K28,IF(AND(C$13=900,C$12="A"),selection!M28,IF(AND(C$13=900,C$12="B"),selection!N28,IF(AND(C$13=900,C$12="C"),selection!O28,IF(AND(C$13=900,C$12="D"),selection!P28,IF(AND(C$13=1000,C$12="A"),selection!R28,IF(AND(C$13=1000,C$12="B"),selection!S28,IF(AND(C$13=1000,C$12="C"),selection!T28,IF(AND(C$13=1000,C$12="D"),selection!U28,IF(AND(C$13=1100,C$12="A"),selection!W28,IF(AND(C$13=1100,C$12="B"),selection!X28,IF(AND(C$13=1100,C$12="C"),selection!Y28,IF(AND(C$13=1100,C$12="D"),selection!Z28,IF(AND(C$13=1200,C$12="A"),selection!AB28,IF(AND(C$13=1200,C$12="B"),selection!AC28,IF(AND(C$13=1200,C$12="C"),selection!AD28,IF(AND(C$13=1200,C$12="D"),selection!AE28,IF(AND(C$13=1500,C$12="A"),selection!AG28,IF(AND(C$13=1500,C$12="B"),selection!AH28,IF(AND(C$13=1500,C$12="C"),selection!AI28,IF(AND(C$13=1500,C$12="D"),selection!AJ28,IF(AND(C$13=1800,C$12="A"),selection!AL28,IF(AND(C$13=1800,C$12="B"),selection!AM28,IF(AND(C$13=1800,C$12="C"),selection!AN28,IF(AND(C$13=1800,C$12="D"),selection!AO28,IF(AND(C$13=2100,C$12="A"),selection!AQ28,IF(AND(C$13=2100,C$12="B"),selection!AR28,IF(AND(C$13=2100,C$12="C"),selection!AS28,IF(AND(C$13=2100,C$12="D"),selection!AT28,IF(AND(C$13=2400,C$12="A"),selection!AV28,IF(AND(C$13=2400,C$12="B"),selection!AW28,IF(AND(C$13=2400,C$12="C"),selection!AX28,IF(AND(C$13=2400,C$12="D"),selection!AY28,IF(AND(C$13=2700,C$12="A"),selection!BA28,IF(AND(C$13=2700,C$12="B"),selection!BB28,IF(AND(C$13=2700,C$12="C"),selection!BC28,IF(AND(C$13=2700,C$12="D"),selection!BD28,IF(AND(C$13=2950,C$12="A"),selection!BF28,IF(AND(C$13=2950,C$12="B"),selection!BG28,IF(AND(C$13=2950,C$12="C"),selection!BH28,IF(AND(C$13=2950,C$12="D"),selection!BI28))))))))))))))))))))))))))))))))))))))))))))) -> 142.0022223
A20: =IF('general info'!$F$1="NL",talen!A23,IF('general info'!$F$1="FR",talen!B23,IF('general info'!$F$1="EN",talen!C23,talen!D23))) -> Water pressure drop: | B20: kPa | C20: =IF(AND(L13="yes",M13=0),0,IF(AND(C$13=600,C$12="A"),selection!H26,IF(AND(C$13=600,C$12="B"),selection!I26,IF(AND(C$13=600,C$12="C"),selection!J26,IF(AND(C$13=600,C$12="D"),selection!K26,IF(AND(C$13=900,C$12="A"),selection!M26,IF(AND(C$13=900,C$12="B"),selection!N26,IF(AND(C$13=900,C$12="C"),selection!O26,IF(AND(C$13=900,C$12="D"),selection!P26,IF(AND(C$13=1000,C$12="A"),selection!R26,IF(AND(C$13=1000,C$12="B"),selection!S26,IF(AND(C$13=1000,C$12="C"),selection!T26,IF(AND(C$13=1000,C$12="D"),selection!U26,IF(AND(C$13=1100,C$12="A"),selection!W26,IF(AND(C$13=1100,C$12="B"),selection!X26,IF(AND(C$13=1100,C$12="C"),selection!Y26,IF(AND(C$13=1100,C$12="D"),selection!Z26,IF(AND(C$13=1200,C$12="A"),selection!AB26,IF(AND(C$13=1200,C$12="B"),selection!AC26,IF(AND(C$13=1200,C$12="C"),selection!AD26,IF(AND(C$13=1200,C$12="D"),selection!AE26,IF(AND(C$13=1500,C$12="A"),selection!AG26,IF(AND(C$13=1500,C$12="B"),selection!AH26,IF(AND(C$13=1500,C$12="C"),selection!AI26,IF(AND(C$13=1500,C$12="D"),selection!AJ26,IF(AND(C$13=1800,C$12="A"),selection!AL26,IF(AND(C$13=1800,C$12="B"),selection!AM26,IF(AND(C$13=1800,C$12="C"),selection!AN26,IF(AND(C$13=1800,C$12="D"),selection!AO26,IF(AND(C$13=2100,C$12="A"),selection!AQ26,IF(AND(C$13=2100,C$12="B"),selection!AR26,IF(AND(C$13=2100,C$12="C"),selection!AS26,IF(AND(C$13=2100,C$12="D"),selection!AT26,IF(AND(C$13=2400,C$12="A"),selection!AV26,IF(AND(C$13=2400,C$12="B"),selection!AW26,IF(AND(C$13=2400,C$12="C"),selection!AX26,IF(AND(C$13=2400,C$12="D"),selection!AY26,IF(AND(C$13=2700,C$12="A"),selection!BA26,IF(AND(C$13=2700,C$12="B"),selection!BB26,IF(AND(C$13=2700,C$12="C"),selection!BC26,IF(AND(C$13=2700,C$12="D"),selection!BD26,IF(AND(C$13=2950,C$12="A"),selection!BF26,IF(AND(C$13=2950,C$12="B"),selection!BG26,IF(AND(C$13=2950,C$12="C"),selection!BH26,IF(AND(C$13=2950,C$12="D"),selection!BI26))))))))))))))))))))))))))))))))))))))))))))) -> 0.5792003212
A21: =IF('general info'!$F$1="NL",talen!A25,IF('general info'!$F$1="FR",talen!B25,IF('general info'!$F$1="EN",talen!C25,talen!D25))) -> Sound level (excl. room attenuation): | B21: dB(A) | C21: =IF(AND(C$13=600,C$12="A"),selection!H25,IF(AND(C$13=600,C$12="B"),selection!I25,IF(AND(C$13=600,C$12="C"),selection!J25,IF(AND(C$13=600,C$12="D"),selection!K25,IF(AND(C$13=900,C$12="A"),selection!M25,IF(AND(C$13=900,C$12="B"),selection!N25,IF(AND(C$13=900,C$12="C"),selection!O25,IF(AND(C$13=900,C$12="D"),selection!P25,IF(AND(C$13=1000,C$12="A"),selection!R25,IF(AND(C$13=1000,C$12="B"),selection!S25,IF(AND(C$13=1000,C$12="C"),selection!T25,IF(AND(C$13=1000,C$12="D"),selection!U25,IF(AND(C$13=1100,C$12="A"),selection!W25,IF(AND(C$13=1100,C$12="B"),selection!X25,IF(AND(C$13=1100,C$12="C"),selection!Y25,IF(AND(C$13=1100,C$12="D"),selection!Z25,IF(AND(C$13=1200,C$12="A"),selection!AB25,IF(AND(C$13=1200,C$12="B"),selection!AC25,IF(AND(C$13=1200,C$12="C"),selection!AD25,IF(AND(C$13=1200,C$12="D"),selection!AE25,IF(AND(C$13=1500,C$12="A"),selection!AG25,IF(AND(C$13=1500,C$12="B"),selection!AH25,IF(AND(C$13=1500,C$12="C"),selection!AI25,IF(AND(C$13=1500,C$12="D"),selection!AJ25,IF(AND(C$13=1800,C$12="A"),selection!AL25,IF(AND(C$13=1800,C$12="B"),selection!AM25,IF(AND(C$13=1800,C$12="C"),selection!AN25,IF(AND(C$13=1800,C$12="D"),selection!AO25,IF(AND(C$13=2100,C$12="A"),selection!AQ25,IF(AND(C$13=2100,C$12="B"),selection!AR25,IF(AND(C$13=2100,C$12="C"),selection!AS25,IF(AND(C$13=2100,C$12="D"),selection!AT25,IF(AND(C$13=2400,C$12="A"),selection!AV25,IF(AND(C$13=2400,C$12="B"),selection!AW25,IF(AND(C$13=2400,C$12="C"),selection!AX25,IF(AND(C$13=2400,C$12="D"),selection!AY25,IF(AND(C$13=2700,C$12="A"),selection!BA25,IF(AND(C$13=2700,C$12="B"),selection!BB25,IF(AND(C$13=2700,C$12="C"),selection!BC25,IF(AND(C$13=2700,C$12="D"),selection!BD25,IF(AND(C$13=2950,C$12="A"),selection!BF25,IF(AND(C$13=2950,C$12="B"),selection!BG25,IF(AND(C$13=2950,C$12="C"),selection!BH25,IF(AND(C$13=2950,C$12="D"),selection!BI25)))))))))))))))))))))))))))))))))))))))))))) -> 25.97321991
A22: =IF('general info'!$F$1="NL",talen!A27,IF('general info'!$F$1="FR",talen!B27,IF('general info'!$F$1="EN",talen!C27,talen!D27))) -> Mean temperature difference air-water: | B22: Dq | C22: =IF(AND(C$13=600,C$12="A"),selection!H44,IF(AND(C$13=600,C$12="B"),selection!I44,IF(AND(C$13=600,C$12="C"),selection!J44,IF(AND(C$13=600,C$12="D"),selection!K44,IF(AND(C$13=900,C$12="A"),selection!M44,IF(AND(C$13=900,C$12="B"),selection!N44,IF(AND(C$13=900,C$12="C"),selection!O44,IF(AND(C$13=900,C$12="D"),selection!P44,IF(AND(C$13=1000,C$12="A"),selection!R44,IF(AND(C$13=1000,C$12="B"),selection!S44,IF(AND(C$13=1000,C$12="C"),selection!T44,IF(AND(C$13=1000,C$12="D"),selection!U44,IF(AND(C$13=1100,C$12="A"),selection!W44,IF(AND(C$13=1100,C$12="B"),selection!X44,IF(AND(C$13=1100,C$12="C"),selection!Y44,IF(AND(C$13=1100,C$12="D"),selection!Z44,IF(AND(C$13=1200,C$12="A"),selection!AB44,IF(AND(C$13=1200,C$12="B"),selection!AC44,IF(AND(C$13=1200,C$12="C"),selection!AD44,IF(AND(C$13=1200,C$12="D"),selection!AE44,IF(AND(C$13=1500,C$12="A"),selection!AG44,IF(AND(C$13=1500,C$12="B"),selection!AH44,IF(AND(C$13=1500,C$12="C"),selection!AI44,IF(AND(C$13=1500,C$12="D"),selection!AJ44,IF(AND(C$13=1800,C$12="A"),selection!AL44,IF(AND(C$13=1800,C$12="B"),selection!AM44,IF(AND(C$13=1800,C$12="C"),selection!AN44,IF(AND(C$13=1800,C$12="D"),selection!AO44,IF(AND(C$13=2100,C$12="A"),selection!AQ44,IF(AND(C$13=2100,C$12="B"),selection!AR44,IF(AND(C$13=2100,C$12="C"),selection!AS44,IF(AND(C$13=2100,C$12="D"),selection!AT44,IF(AND(C$13=2400,C$12="A"),selection!AV44,IF(AND(C$13=2400,C$12="B"),selection!AW44,IF(AND(C$13=2400,C$12="C"),selection!AX44,IF(AND(C$13=2400,C$12="D"),selection!AY44,IF(AND(C$13=2700,C$12="A"),selection!BA44,IF(AND(C$13=2700,C$12="B"),selection!BB44,IF(AND(C$13=2700,C$12="C"),selection!BC44,IF(AND(C$13=2700,C$12="D"),selection!BD44,IF(AND(C$13=2950,C$12="A"),selection!BF44,IF(AND(C$13=2950,C$12="B"),selection!BG44,IF(AND(C$13=2950,C$12="C"),selection!BH44,IF(AND(C$13=2950,C$12="D"),selection!BI44)))))))))))))))))))))))))))))))))))))))))))) -> 8.81059631
A23: =IF('general info'!$F$1="NL",talen!A28,IF('general info'!$F$1="FR",talen!B28,IF('general info'!$F$1="EN",talen!C28,talen!D28))) -> Room air velocity, V1: | B23: m/s | C23: =IF(AND(C$13=600,C$12="A"),selection!H38,IF(AND(C$13=600,C$12="B"),selection!I38,IF(AND(C$13=600,C$12="C"),selection!J38,IF(AND(C$13=600,C$12="D"),selection!K38,IF(AND(C$13=900,C$12="A"),selection!M38,IF(AND(C$13=900,C$12="B"),selection!N38,IF(AND(C$13=900,C$12="C"),selection!O38,IF(AND(C$13=900,C$12="D"),selection!P38,IF(AND(C$13=1000,C$12="A"),selection!R38,IF(AND(C$13=1000,C$12="B"),selection!S38,IF(AND(C$13=1000,C$12="C"),selection!T38,IF(AND(C$13=1000,C$12="D"),selection!U38,IF(AND(C$13=1100,C$12="A"),selection!W38,IF(AND(C$13=1100,C$12="B"),selection!X38,IF(AND(C$13=1100,C$12="C"),selection!Y38,IF(AND(C$13=1100,C$12="D"),selection!Z38,IF(AND(C$13=1200,C$12="A"),selection!AB38,IF(AND(C$13=1200,C$12="B"),selection!AC38,IF(AND(C$13=1200,C$12="C"),selection!AD38,IF(AND(C$13=1200,C$12="D"),selection!AE38,IF(AND(C$13=1500,C$12="A"),selection!AG38,IF(AND(C$13=1500,C$12="B"),selection!AH38,IF(AND(C$13=1500,C$12="C"),selection!AI38,IF(AND(C$13=1500,C$12="D"),selection!AJ38,IF(AND(C$13=1800,C$12="A"),selection!AL38,IF(AND(C$13=1800,C$12="B"),selection!AM38,IF(AND(C$13=1800,C$12="C"),selection!AN38,IF(AND(C$13=1800,C$12="D"),selection!AO38,IF(AND(C$13=2100,C$12="A"),selection!AQ38,IF(AND(C$13=2100,C$12="B"),selection!AR38,IF(AND(C$13=2100,C$12="C"),selection!AS38,IF(AND(C$13=2100,C$12="D"),selection!AT38,IF(AND(C$13=2400,C$12="A"),selection!AV38,IF(AND(C$13=2400,C$12="B"),selection!AW38,IF(AND(C$13=2400,C$12="C"),selection!AX38,IF(AND(C$13=2400,C$12="D"),selection!AY38,IF(AND(C$13=2700,C$12="A"),selection!BA38,IF(AND(C$13=2700,C$12="B"),selection!BB38,IF(AND(C$13=2700,C$12="C"),selection!BC38,IF(AND(C$13=2700,C$12="D"),selection!BD38,IF(AND(C$13=2950,C$12="A"),selection!BF38,IF(AND(C$13=2950,C$12="B"),selection!BG38,IF(AND(C$13=2950,C$12="C"),selection!BH38,IF(AND(C$13=2950,C$12="D"),selection!BI38)))))))))))))))))))))))))))))))))))))))))))) -> 0.05516773377
A24: =IF('general info'!$F$1="NL",talen!A29,IF('general info'!$F$1="FR",talen!B29,IF('general info'!$F$1="EN",talen!C29,talen!D29))) -> Room air velocity, V2: | B24: m/s | C24: =IF(AND(C$13=600,C$12="A"),selection!H39,IF(AND(C$13=600,C$12="B"),selection!I39,IF(AND(C$13=600,C$12="C"),selection!J39,IF(AND(C$13=600,C$12="D"),selection!K39,IF(AND(C$13=900,C$12="A"),selection!M39,IF(AND(C$13=900,C$12="B"),selection!N39,IF(AND(C$13=900,C$12="C"),selection!O39,IF(AND(C$13=900,C$12="D"),selection!P39,IF(AND(C$13=1000,C$12="A"),selection!R39,IF(AND(C$13=1000,C$12="B"),selection!S39,IF(AND(C$13=1000,C$12="C"),selection!T39,IF(AND(C$13=1000,C$12="D"),selection!U39,IF(AND(C$13=1100,C$12="A"),selection!W39,IF(AND(C$13=1100,C$12="B"),selection!X39,IF(AND(C$13=1100,C$12="C"),selection!Y39,IF(AND(C$13=1100,C$12="D"),selection!Z39,IF(AND(C$13=1200,C$12="A"),selection!AB39,IF(AND(C$13=1200,C$12="B"),selection!AC39,IF(AND(C$13=1200,C$12="C"),selection!AD39,IF(AND(C$13=1200,C$12="D"),selection!AE39,IF(AND(C$13=1500,C$12="A"),selection!AG39,IF(AND(C$13=1500,C$12="B"),selection!AH39,IF(AND(C$13=1500,C$12="C"),selection!AI39,IF(AND(C$13=1500,C$12="D"),selection!AJ39,IF(AND(C$13=1800,C$12="A"),selection!AL39,IF(AND(C$13=1800,C$12="B"),selection!AM39,IF(AND(C$13=1800,C$12="C"),selection!AN39,IF(AND(C$13=1800,C$12="D"),selection!AO39,IF(AND(C$13=2100,C$12="A"),selection!AQ39,IF(AND(C$13=2100,C$12="B"),selection!AR39,IF(AND(C$13=2100,C$12="C"),selection!AS39,IF(AND(C$13=2100,C$12="D"),selection!AT39,IF(AND(C$13=2400,C$12="A"),selection!AV39,IF(AND(C$13=2400,C$12="B"),selection!AW39,IF(AND(C$13=2400,C$12="C"),selection!AX39,IF(AND(C$13=2400,C$12="D"),selection!AY39,IF(AND(C$13=2700,C$12="A"),selection!BA39,IF(AND(C$13=2700,C$12="B"),selection!BB39,IF(AND(C$13=2700,C$12="C"),selection!BC39,IF(AND(C$13=2700,C$12="D"),selection!BD39,IF(AND(C$13=2950,C$12="A"),selection!BF39,IF(AND(C$13=2950,C$12="B"),selection!BG39,IF(AND(C$13=2950,C$12="C"),selection!BH39,IF(AND(C$13=2950,C$12="D"),selection!BI39)))))))))))))))))))))))))))))))))))))))))))) -> 0.05989595433
A26: =IF('general info'!$F$1="NL",talen!A73,IF('general info'!$F$1="FR",talen!B73,IF('general info'!$F$1="EN",talen!C73,talen!D73))) -> Calculated data - heating | D26: =IF('general info'!$F$1="NL",talen!A66,IF('general info'!$F$1="FR",talen!B66,IF('general info'!$F$1="EN",talen!C66,talen!D66))) -> Required | G26: =IF('general info'!$F$1="NL",talen!A75,IF('general info'!$F$1="FR",talen!B75,IF('general info'!$F$1="EN",talen!C75,talen!D75))) -> Input data - heating
A27: =A12 -> Nozzle type: | B27: - | C27: =IF(selection!B20="H",selection!F22,0) -> 0 | D27: - | E27: =E12 -> Room air temperature: | G27: =selection!C12 -> 20 | H27: ºC
A28: =A13 -> Battery length: | B28: mm | C28: =selection!F21 -> 1800 | D28: =IF(selection!F14="","0",selection!F14) -> 0 | E28: =E13 -> Supply (primary) air flow rate: | G28: =selection!C13 -> 86.4 | H28: m3/h
A29: =A14 -> Total capacity: | B29: W | C29: =IF(AND(L12="yes",M12=0),0,IF(AND(C$13=600,C$12="A"),selection!H30,IF(AND(C$13=600,C$12="B"),selection!I30,IF(AND(C$13=600,C$12="C"),selection!J30,IF(AND(C$13=600,C$12="D"),selection!K30,IF(AND(C$13=900,C$12="A"),selection!M30,IF(AND(C$13=900,C$12="B"),selection!N30,IF(AND(C$13=900,C$12="C"),selection!O30,IF(AND(C$13=900,C$12="D"),selection!P30,IF(AND(C$13=1000,C$12="A"),selection!R30,IF(AND(C$13=1000,C$12="B"),selection!S30,IF(AND(C$13=1000,C$12="C"),selection!T30,IF(AND(C$13=1000,C$12="D"),selection!U30,IF(AND(C$13=1100,C$12="A"),selection!W30,IF(AND(C$13=1100,C$12="B"),selection!X30,IF(AND(C$13=1100,C$12="C"),selection!Y30,IF(AND(C$13=1100,C$12="D"),selection!Z30,IF(AND(C$13=1200,C$12="A"),selection!AB30,IF(AND(C$13=1200,C$12="B"),selection!AC30,IF(AND(C$13=1200,C$12="C"),selection!AD30,IF(AND(C$13=1200,C$12="D"),selection!AE30,IF(AND(C$13=1500,C$12="A"),selection!AG30,IF(AND(C$13=1500,C$12="B"),selection!AH30,IF(AND(C$13=1500,C$12="C"),selection!AI30,IF(AND(C$13=1500,C$12="D"),selection!AJ30,IF(AND(C$13=1800,C$12="A"),selection!AL30,IF(AND(C$13=1800,C$12="B"),selection!AM30,IF(AND(C$13=1800,C$12="C"),selection!AN30,IF(AND(C$13=1800,C$12="D"),selection!AO30,IF(AND(C$13=2100,C$12="A"),selection!AQ30,IF(AND(C$13=2100,C$12="B"),selection!AR30,IF(AND(C$13=2100,C$12="C"),selection!AS30,IF(AND(C$13=2100,C$12="D"),selection!AT30,IF(AND(C$13=2400,C$12="A"),selection!AV30,IF(AND(C$13=2400,C$12="B"),selection!AW30,IF(AND(C$13=2400,C$12="C"),selection!AX30,IF(AND(C$13=2400,C$12="D"),selection!AY30,IF(AND(C$13=2700,C$12="A"),selection!BA30,IF(AND(C$13=2700,C$12="B"),selection!BB30,IF(AND(C$13=2700,C$12="C"),selection!BC30,IF(AND(C$13=2700,C$12="D"),selection!BD30,IF(AND(C$13=2950,C$12="A"),selection!BF30,IF(AND(C$13=2950,C$12="B"),selection!BG30,IF(AND(C$13=2950,C$12="C"),selection!BH30,IF(AND(C$13=2950,C$12="D"),selection!BI30))))))))))))))))))))))))))))))))))))))))))))) -> 647.8514331 | D29: =IF(selection!F13="","0",selection!F13) -> 0 | E29: =E14 -> Supply (primary) air temperature: | G29: =selection!C14 -> 20 | H29: ºC
A30: =A17 -> Temperature difference battery: | B30: ºC | C30: =IF(AND(L12="yes",M12=0),0,IF(AND(C$13=600,C$12="A"),selection!H45,IF(AND(C$13=600,C$12="B"),selection!I45,IF(AND(C$13=600,C$12="C"),selection!J45,IF(AND(C$13=600,C$12="D"),selection!K45,IF(AND(C$13=900,C$12="A"),selection!M45,IF(AND(C$13=900,C$12="B"),selection!N45,IF(AND(C$13=900,C$12="C"),selection!O45,IF(AND(C$13=900,C$12="D"),selection!P45,IF(AND(C$13=1000,C$12="A"),selection!R45,IF(AND(C$13=1000,C$12="B"),selection!S45,IF(AND(C$13=1000,C$12="C"),selection!T45,IF(AND(C$13=1000,C$12="D"),selection!U45,IF(AND(C$13=1100,C$12="A"),selection!W45,IF(AND(C$13=1100,C$12="B"),selection!X45,IF(AND(C$13=1100,C$12="C"),selection!Y45,IF(AND(C$13=1100,C$12="D"),selection!Z45,IF(AND(C$13=1200,C$12="A"),selection!AB45,IF(AND(C$13=1200,C$12="B"),selection!AC45,IF(AND(C$13=1200,C$12="C"),selection!AD45,IF(AND(C$13=1200,C$12="D"),selection!AE45,IF(AND(C$13=1500,C$12="A"),selection!AG45,IF(AND(C$13=1500,C$12="B"),selection!AH45,IF(AND(C$13=1500,C$12="C"),selection!AI45,IF(AND(C$13=1500,C$12="D"),selection!AJ45,IF(AND(C$13=1800,C$12="A"),selection!AL45,IF(AND(C$13=1800,C$12="B"),selection!AM45,IF(AND(C$13=1800,C$12="C"),selection!AN45,IF(AND(C$13=1800,C$12="D"),selection!AO45,IF(AND(C$13=2100,C$12="A"),selection!AQ45,IF(AND(C$13=2100,C$12="B"),selection!AR45,IF(AND(C$13=2100,C$12="C"),selection!AS45,IF(AND(C$13=2100,C$12="D"),selection!AT45,IF(AND(C$13=2400,C$12="A"),selection!AV45,IF(AND(C$13=2400,C$12="B"),selection!AW45,IF(AND(C$13=2400,C$12="C"),selection!AX45,IF(AND(C$13=2400,C$12="D"),selection!AY45,IF(AND(C$13=2700,C$12="A"),selection!BA45,IF(AND(C$13=2700,C$12="B"),selection!BB45,IF(AND(C$13=2700,C$12="C"),selection!BC45,IF(AND(C$13=2700,C$12="D"),selection!BD45,IF(AND(C$13=2950,C$12="A"),selection!BF45,IF(AND(C$13=2950,C$12="B"),selection!BG45,IF(AND(C$13=2950,C$12="C"),selection!BH45,IF(AND(C$13=2950,C$12="D"),selection!BI45))))))))))))))))))))))))))))))))))))))))))))) -> 5.634688979 | D30: =IF(selection!F12="","0",selection!F12) -> 0 | E30: =E15 -> Water inlet temperature: | G30: =selection!C15 -> 45 | H30: ºC
A31: =A18 -> Water capacity: | B31: W | C31: =IF(AND(L12="yes",M12=0),0,IF(AND(C$13=600,C$12="A"),selection!H34,IF(AND(C$13=600,C$12="B"),selection!I34,IF(AND(C$13=600,C$12="C"),selection!J34,IF(AND(C$13=600,C$12="D"),selection!K34,IF(AND(C$13=900,C$12="A"),selection!M34,IF(AND(C$13=900,C$12="B"),selection!N34,IF(AND(C$13=900,C$12="C"),selection!O34,IF(AND(C$13=900,C$12="D"),selection!P34,IF(AND(C$13=1000,C$12="A"),selection!R34,IF(AND(C$13=1000,C$12="B"),selection!S34,IF(AND(C$13=1000,C$12="C"),selection!T34,IF(AND(C$13=1000,C$12="D"),selection!U34,IF(AND(C$13=1100,C$12="A"),selection!W34,IF(AND(C$13=1100,C$12="B"),selection!X34,IF(AND(C$13=1100,C$12="C"),selection!Y34,IF(AND(C$13=1100,C$12="D"),selection!Z34,IF(AND(C$13=1200,C$12="A"),selection!AB34,IF(AND(C$13=1200,C$12="B"),selection!AC34,IF(AND(C$13=1200,C$12="C"),selection!AD34,IF(AND(C$13=1200,C$12="D"),selection!AE34,IF(AND(C$13=1500,C$12="A"),selection!AG34,IF(AND(C$13=1500,C$12="B"),selection!AH34,IF(AND(C$13=1500,C$12="C"),selection!AI34,IF(AND(C$13=1500,C$12="D"),selection!AJ34,IF(AND(C$13=1800,C$12="A"),selection!AL34,IF(AND(C$13=1800,C$12="B"),selection!AM34,IF(AND(C$13=1800,C$12="C"),selection!AN34,IF(AND(C$13=1800,C$12="D"),selection!AO34,IF(AND(C$13=2100,C$12="A"),selection!AQ34,IF(AND(C$13=2100,C$12="B"),selection!AR34,IF(AND(C$13=2100,C$12="C"),selection!AS34,IF(AND(C$13=2100,C$12="D"),selection!AT34,IF(AND(C$13=2400,C$12="A"),selection!AV34,IF(AND(C$13=2400,C$12="B"),selection!AW34,IF(AND(C$13=2400,C$12="C"),selection!AX34,IF(AND(C$13=2400,C$12="D"),selection!AY34,IF(AND(C$13=2700,C$12="A"),selection!BA34,IF(AND(C$13=2700,C$12="B"),selection!BB34,IF(AND(C$13=2700,C$12="C"),selection!BC34,IF(AND(C$13=2700,C$12="D"),selection!BD34,IF(AND(C$13=2950,C$12="A"),selection!BF34,IF(AND(C$13=2950,C$12="B"),selection!BG34,IF(AND(C$13=2950,C$12="C"),selection!BH34,IF(AND(C$13=2950,C$12="D"),selection!BI34))))))))))))))))))))))))))))))))))))))))))))) -> 647.8514331 | E31: =E16 -> Water flow rate : | G31: =IF(AND(L12="yes",M12=0),0,selection!C16) -> 100 | H31: l/h
A32: =A19 -> Supply (primary) air capacity: | B32: W | C32: =IF(AND(L12="yes",M12=0),0,IF(AND(C$13=600,C$12="A"),selection!H35,IF(AND(C$13=600,C$12="B"),selection!I35,IF(AND(C$13=600,C$12="C"),selection!J35,IF(AND(C$13=600,C$12="D"),selection!K35,IF(AND(C$13=900,C$12="A"),selection!M35,IF(AND(C$13=900,C$12="B"),selection!N35,IF(AND(C$13=900,C$12="C"),selection!O35,IF(AND(C$13=900,C$12="D"),selection!P35,IF(AND(C$13=1000,C$12="A"),selection!R35,IF(AND(C$13=1000,C$12="B"),selection!S35,IF(AND(C$13=1000,C$12="C"),selection!T35,IF(AND(C$13=1000,C$12="D"),selection!U35,IF(AND(C$13=1100,C$12="A"),selection!W35,IF(AND(C$13=1100,C$12="B"),selection!X35,IF(AND(C$13=1100,C$12="C"),selection!Y35,IF(AND(C$13=1100,C$12="D"),selection!Z35,IF(AND(C$13=1200,C$12="A"),selection!AB35,IF(AND(C$13=1200,C$12="B"),selection!AC35,IF(AND(C$13=1200,C$12="C"),selection!AD35,IF(AND(C$13=1200,C$12="D"),selection!AE35,IF(AND(C$13=1500,C$12="A"),selection!AG35,IF(AND(C$13=1500,C$12="B"),selection!AH35,IF(AND(C$13=1500,C$12="C"),selection!AI35,IF(AND(C$13=1500,C$12="D"),selection!AJ35,IF(AND(C$13=1800,C$12="A"),selection!AL35,IF(AND(C$13=1800,C$12="B"),selection!AM35,IF(AND(C$13=1800,C$12="C"),selection!AN35,IF(AND(C$13=1800,C$12="D"),selection!AO35,IF(AND(C$13=2100,C$12="A"),selection!AQ35,IF(AND(C$13=2100,C$12="B"),selection!AR35,IF(AND(C$13=2100,C$12="C"),selection!AS35,IF(AND(C$13=2100,C$12="D"),selection!AT35,IF(AND(C$13=2400,C$12="A"),selection!AV35,IF(AND(C$13=2400,C$12="B"),selection!AW35,IF(AND(C$13=2400,C$12="C"),selection!AX35,IF(AND(C$13=2400,C$12="D"),selection!AY35,IF(AND(C$13=2700,C$12="A"),selection!BA35,IF(AND(C$13=2700,C$12="B"),selection!BB35,IF(AND(C$13=2700,C$12="C"),selection!BC35,IF(AND(C$13=2700,C$12="D"),selection!BD35,IF(AND(C$13=2950,C$12="A"),selection!BF35,IF(AND(C$13=2950,C$12="B"),selection!BG35,IF(AND(C$13=2950,C$12="C"),selection!BH35,IF(AND(C$13=2950,C$12="D"),selection!BI35))))))))))))))))))))))))))))))))))))))))))))) -> 0
A33: =A20 -> Water pressure drop: | B33: kPa | C33: =IF(AND(L12="yes",M12=0),0,IF(AND(C$13=600,C$12="A"),selection!H33,IF(AND(C$13=600,C$12="B"),selection!I33,IF(AND(C$13=600,C$12="C"),selection!J33,IF(AND(C$13=600,C$12="D"),selection!K33,IF(AND(C$13=900,C$12="A"),selection!M33,IF(AND(C$13=900,C$12="B"),selection!N33,IF(AND(C$13=900,C$12="C"),selection!O33,IF(AND(C$13=900,C$12="D"),selection!P33,IF(AND(C$13=1000,C$12="A"),selection!R33,IF(AND(C$13=1000,C$12="B"),selection!S33,IF(AND(C$13=1000,C$12="C"),selection!T33,IF(AND(C$13=1000,C$12="D"),selection!U33,IF(AND(C$13=1100,C$12="A"),selection!W33,IF(AND(C$13=1100,C$12="B"),selection!X33,IF(AND(C$13=1100,C$12="C"),selection!Y33,IF(AND(C$13=1100,C$12="D"),selection!Z33,IF(AND(C$13=1200,C$12="A"),selection!AB33,IF(AND(C$13=1200,C$12="B"),selection!AC33,IF(AND(C$13=1200,C$12="C"),selection!AD33,IF(AND(C$13=1200,C$12="D"),selection!AE33,IF(AND(C$13=1500,C$12="A"),selection!AG33,IF(AND(C$13=1500,C$12="B"),selection!AH33,IF(AND(C$13=1500,C$12="C"),selection!AI33,IF(AND(C$13=1500,C$12="D"),selection!AJ33,IF(AND(C$13=1800,C$12="A"),selection!AL33,IF(AND(C$13=1800,C$12="B"),selection!AM33,IF(AND(C$13=1800,C$12="C"),selection!AN33,IF(AND(C$13=1800,C$12="D"),selection!AO33,IF(AND(C$13=2100,C$12="A"),selection!AQ33,IF(AND(C$13=2100,C$12="B"),selection!AR33,IF(AND(C$13=2100,C$12="C"),selection!AS33,IF(AND(C$13=2100,C$12="D"),selection!AT33,IF(AND(C$13=2400,C$12="A"),selection!AV33,IF(AND(C$13=2400,C$12="B"),selection!AW33,IF(AND(C$13=2400,C$12="C"),selection!AX33,IF(AND(C$13=2400,C$12="D"),selection!AY33,IF(AND(C$13=2700,C$12="A"),selection!BA33,IF(AND(C$13=2700,C$12="B"),selection!BB33,IF(AND(C$13=2700,C$12="C"),selection!BC33,IF(AND(C$13=2700,C$12="D"),selection!BD33,IF(AND(C$13=2950,C$12="A"),selection!BF33,IF(AND(C$13=2950,C$12="B"),selection!BG33,IF(AND(C$13=2950,C$12="C"),selection!BH33,IF(AND(C$13=2950,C$12="D"),selection!BI33))))))))))))))))))))))))))))))))))))))))))))) -> 0.525309797
A34: =A15 -> Plenum static pressure: | B34: Pa | C34: =IF(AND(C$13=600,C$12="A"),selection!H31,IF(AND(C$13=600,C$12="B"),selection!I31,IF(AND(C$13=600,C$12="C"),selection!J31,IF(AND(C$13=600,C$12="D"),selection!K31,IF(AND(C$13=900,C$12="A"),selection!M31,IF(AND(C$13=900,C$12="B"),selection!N31,IF(AND(C$13=900,C$12="C"),selection!O31,IF(AND(C$13=900,C$12="D"),selection!P31,IF(AND(C$13=1000,C$12="A"),selection!R31,IF(AND(C$13=1000,C$12="B"),selection!S31,IF(AND(C$13=1000,C$12="C"),selection!T31,IF(AND(C$13=1000,C$12="D"),selection!U31,IF(AND(C$13=1100,C$12="A"),selection!W31,IF(AND(C$13=1100,C$12="B"),selection!X31,IF(AND(C$13=1100,C$12="C"),selection!Y31,IF(AND(C$13=1100,C$12="D"),selection!Z31,IF(AND(C$13=1200,C$12="A"),selection!AB31,IF(AND(C$13=1200,C$12="B"),selection!AC31,IF(AND(C$13=1200,C$12="C"),selection!AD31,IF(AND(C$13=1200,C$12="D"),selection!AE31,IF(AND(C$13=1500,C$12="A"),selection!AG31,IF(AND(C$13=1500,C$12="B"),selection!AH31,IF(AND(C$13=1500,C$12="C"),selection!AI31,IF(AND(C$13=1500,C$12="D"),selection!AJ31,IF(AND(C$13=1800,C$12="A"),selection!AL31,IF(AND(C$13=1800,C$12="B"),selection!AM31,IF(AND(C$13=1800,C$12="C"),selection!AN31,IF(AND(C$13=1800,C$12="D"),selection!AO31,IF(AND(C$13=2100,C$12="A"),selection!AQ31,IF(AND(C$13=2100,C$12="B"),selection!AR31,IF(AND(C$13=2100,C$12="C"),selection!AS31,IF(AND(C$13=2100,C$12="D"),selection!AT31,IF(AND(C$13=2400,C$12="A"),selection!AV31,IF(AND(C$13=2400,C$12="B"),selection!AW31,IF(AND(C$13=2400,C$12="C"),selection!AX31,IF(AND(C$13=2400,C$12="D"),selection!AY31,IF(AND(C$13=2700,C$12="A"),selection!BA31,IF(AND(C$13=2700,C$12="B"),selection!BB31,IF(AND(C$13=2700,C$12="C"),selection!BC31,IF(AND(C$13=2700,C$12="D"),selection!BD31,IF(AND(C$13=2950,C$12="A"),selection!BF31,IF(AND(C$13=2950,C$12="B"),selection!BG31,IF(AND(C$13=2950,C$12="C"),selection!BH31,IF(AND(C$13=2950,C$12="D"),selection!BI31)))))))))))))))))))))))))))))))))))))))))))) -> 49.23862398
A35: =A21 -> Sound level (excl. room attenuation): | B35: dB(A) | C35: =IF(AND(C$13=600,C$12="A"),selection!H32,IF(AND(C$13=600,C$12="B"),selection!I32,IF(AND(C$13=600,C$12="C"),selection!J32,IF(AND(C$13=600,C$12="D"),selection!K32,IF(AND(C$13=900,C$12="A"),selection!M32,IF(AND(C$13=900,C$12="B"),selection!N32,IF(AND(C$13=900,C$12="C"),selection!O32,IF(AND(C$13=900,C$12="D"),selection!P32,IF(AND(C$13=1000,C$12="A"),selection!R32,IF(AND(C$13=1000,C$12="B"),selection!S32,IF(AND(C$13=1000,C$12="C"),selection!T32,IF(AND(C$13=1000,C$12="D"),selection!U32,IF(AND(C$13=1100,C$12="A"),selection!W32,IF(AND(C$13=1100,C$12="B"),selection!X32,IF(AND(C$13=1100,C$12="C"),selection!Y32,IF(AND(C$13=1100,C$12="D"),selection!Z32,IF(AND(C$13=1200,C$12="A"),selection!AB32,IF(AND(C$13=1200,C$12="B"),selection!AC32,IF(AND(C$13=1200,C$12="C"),selection!AD32,IF(AND(C$13=1200,C$12="D"),selection!AE32,IF(AND(C$13=1500,C$12="A"),selection!AG32,IF(AND(C$13=1500,C$12="B"),selection!AH32,IF(AND(C$13=1500,C$12="C"),selection!AI32,IF(AND(C$13=1500,C$12="D"),selection!AJ32,IF(AND(C$13=1800,C$12="A"),selection!AL32,IF(AND(C$13=1800,C$12="B"),selection!AM32,IF(AND(C$13=1800,C$12="C"),selection!AN32,IF(AND(C$13=1800,C$12="D"),selection!AO32,IF(AND(C$13=2100,C$12="A"),selection!AQ32,IF(AND(C$13=2100,C$12="B"),selection!AR32,IF(AND(C$13=2100,C$12="C"),selection!AS32,IF(AND(C$13=2100,C$12="D"),selection!AT32,IF(AND(C$13=2400,C$12="A"),selection!AV32,IF(AND(C$13=2400,C$12="B"),selection!AW32,IF(AND(C$13=2400,C$12="C"),selection!AX32,IF(AND(C$13=2400,C$12="D"),selection!AY32,IF(AND(C$13=2700,C$12="A"),selection!BA32,IF(AND(C$13=2700,C$12="B"),selection!BB32,IF(AND(C$13=2700,C$12="C"),selection!BC32,IF(AND(C$13=2700,C$12="D"),selection!BD32,IF(AND(C$13=2950,C$12="A"),selection!BF32,IF(AND(C$13=2950,C$12="B"),selection!BG32,IF(AND(C$13=2950,C$12="C"),selection!BH32,IF(AND(C$13=2950,C$12="D"),selection!BI32)))))))))))))))))))))))))))))))))))))))))))) -> 25.97321991
A36: =IF('general info'!$F$1="NL",talen!A27,IF('general info'!$F$1="FR",talen!B27,IF('general info'!$F$1="EN",talen!C27,talen!D27))) -> Mean temperature difference air-water: | B36: Dq | C36: =IF(AND(C$13=600,C$12="A"),selection!H46,IF(AND(C$13=600,C$12="B"),selection!I46,IF(AND(C$13=600,C$12="C"),selection!J46,IF(AND(C$13=600,C$12="D"),selection!K46,IF(AND(C$13=900,C$12="A"),selection!M46,IF(AND(C$13=900,C$12="B"),selection!N46,IF(AND(C$13=900,C$12="C"),selection!O46,IF(AND(C$13=900,C$12="D"),selection!P46,IF(AND(C$13=1000,C$12="A"),selection!R46,IF(AND(C$13=1000,C$12="B"),selection!S46,IF(AND(C$13=1000,C$12="C"),selection!T46,IF(AND(C$13=1000,C$12="D"),selection!U46,IF(AND(C$13=1100,C$12="A"),selection!W46,IF(AND(C$13=1100,C$12="B"),selection!X46,IF(AND(C$13=1100,C$12="C"),selection!Y46,IF(AND(C$13=1100,C$12="D"),selection!Z46,IF(AND(C$13=1200,C$12="A"),selection!AB46,IF(AND(C$13=1200,C$12="B"),selection!AC46,IF(AND(C$13=1200,C$12="C"),selection!AD46,IF(AND(C$13=1200,C$12="D"),selection!AE46,IF(AND(C$13=1500,C$12="A"),selection!AG46,IF(AND(C$13=1500,C$12="B"),selection!AH46,IF(AND(C$13=1500,C$12="C"),selection!AI46,IF(AND(C$13=1500,C$12="D"),selection!AJ46,IF(AND(C$13=1800,C$12="A"),selection!AL46,IF(AND(C$13=1800,C$12="B"),selection!AM46,IF(AND(C$13=1800,C$12="C"),selection!AN46,IF(AND(C$13=1800,C$12="D"),selection!AO46,IF(AND(C$13=2100,C$12="A"),selection!AQ46,IF(AND(C$13=2100,C$12="B"),selection!AR46,IF(AND(C$13=2100,C$12="C"),selection!AS46,IF(AND(C$13=2100,C$12="D"),selection!AT46,IF(AND(C$13=2400,C$12="A"),selection!AV46,IF(AND(C$13=2400,C$12="B"),selection!AW46,IF(AND(C$13=2400,C$12="C"),selection!AX46,IF(AND(C$13=2400,C$12="D"),selection!AY46,IF(AND(C$13=2700,C$12="A"),selection!BA46,IF(AND(C$13=2700,C$12="B"),selection!BB46,IF(AND(C$13=2700,C$12="C"),selection!BC46,IF(AND(C$13=2700,C$12="D"),selection!BD46,IF(AND(C$13=2950,C$12="A"),selection!BF46,IF(AND(C$13=2950,C$12="B"),selection!BG46,IF(AND(C$13=2950,C$12="C"),selection!BH46,IF(AND(C$13=2950,C$12="D"),selection!BI46)))))))))))))))))))))))))))))))))))))))))))) -> 22.18265551

Sheet summary
A29: =IF('general info'!F1="NL",talen!A81,IF('general info'!F1="FR",talen!B81,IF('general info'!F1="EN",talen!C81,talen!D81))) -> user | J29: =IF('general info'!$F$1="NL",talen!$A86,IF('general info'!$F$1="FR",talen!$B86,IF('general info'!$F$1="EN",talen!$C86,talen!$D86))) -> customer ID | U29: =IF('general info'!F1="NL",talen!A85,IF('general info'!F1="FR",talen!B85,IF('general info'!F1="EN",talen!C85,talen!D85))) -> date | W29: =TODAY() -> 2021-09-15
A30: =IF('general info'!F1="NL",talen!A2,IF('general info'!F1="FR",talen!B2,IF('general info'!F1="EN",talen!C2,talen!D2))) -> Project/Building: | C30: =IF(selection!B2="","",selection!B2) -> 
A31: =IF('general info'!F1="NL",talen!A82,IF('general info'!F1="FR",talen!B82,IF('general info'!F1="EN",talen!C82,talen!D82))) -> remarks
A32: =IF('general info'!F1="NL",talen!A3,IF('general info'!F1="FR",talen!B3,IF('general info'!F1="EN",talen!C3,talen!D3))) -> Reference/ Room data: | B32: =IF('general info'!F1="NL",talen!A53,IF('general info'!F1="FR",talen!B53,IF('general info'!F1="EN",talen!C53,talen!D53))) -> Cooling | E32: =IF('general info'!F1="NL",talen!A54,IF('general info'!F1="FR",talen!B54,IF('general info'!F1="EN",talen!C54,talen!D54))) -> Heating | H32: n° | J32: =IF('general info'!F1="NL",talen!A83,IF('general info'!F1="FR",talen!B83,IF('general info'!F1="EN",talen!C83,talen!D83))) -> air | O32: =IF('general info'!F1="NL",talen!A84,IF('general info'!F1="FR",talen!B84,IF('general info'!F1="EN",talen!C84,talen!D84))) -> water | W32: =IF('general info'!F1="NL",talen!A80,IF('general info'!F1="FR",talen!B80,IF('general info'!F1="EN",talen!C80,talen!D80))) -> actual | Y32: =IF('general info'!$F$1="NL",talen!$A66,IF('general info'!$F$1="FR",talen!$B66,IF('general info'!$F$1="EN",talen!$C66,talen!$D66))) -> Required
M33: =IF('general info'!F1="NL",talen!A78,IF('general info'!F1="FR",talen!B78,IF('general info'!F1="EN",talen!C78,talen!D78))) -> cool | N33: =IF('general info'!F1="NL",talen!A79,IF('general info'!F1="FR",talen!B79,IF('general info'!F1="EN",talen!C79,talen!D79))) -> heat | O33: =IF('general info'!F1="NL",talen!A53,IF('general info'!F1="FR",talen!B53,IF('general info'!F1="EN",talen!C53,talen!D53))) -> Cooling | S33: =IF('general info'!F1="NL",talen!A54,IF('general info'!F1="FR",talen!B54,IF('general info'!F1="EN",talen!C54,talen!D54))) -> Heating | W33: =IF('general info'!F1="NL",talen!A78,IF('general info'!F1="FR",talen!B78,IF('general info'!F1="EN",talen!C78,talen!D78))) -> cool | X33: =IF('general info'!F1="NL",talen!A79,IF('general info'!F1="FR",talen!B79,IF('general info'!F1="EN",talen!C79,talen!D79))) -> heat | Y33: =IF('general info'!F1="NL",talen!A78,IF('general info'!F1="FR",talen!B78,IF('general info'!F1="EN",talen!C78,talen!D78))) -> cool | Z33: =IF('general info'!F1="NL",talen!A79,IF('general info'!F1="FR",talen!B79,IF('general info'!F1="EN",talen!C79,talen!D79))) -> heat
B34: Tr | C34: Tp | D34: Twin | E34: Tr | F34: Tp | G34: Twin | I34: CODE | J34: Qv | K34: Ps | L34: Lw | M34: Pa | N34: Pa | O34: Qw | P34: Pb | Q34: Pw | R34: ∆T | S34: Qw | T34: Pb | U34: Pw | V34: ∆T | W34: Pt | Y34: Pt
B35: °C | C35: °C | D35: °C | E35: °C | F35: °C | G35: °C | J35: m³/h | K35: Pa | L35: dB(A) | M35: W | N35: W | O35: l/h | P35: kPa | Q35: W | R35: °C | S35: l/h | T35: kPa | U35: W | V35: °C | W35: W | X35: W | Y35: W | Z35: W

Sheet air velocities
A7: =IF('general info'!F1="NL",talen!A81,IF('general info'!F1="FR",talen!B81,IF('general info'!F1="EN",talen!C81,talen!D81))) -> user | C7: =summary!C29 -> 0 | J7: =IF('general info'!$F$1="NL",talen!$A86,IF('general info'!$F$1="FR",talen!$B86,IF('general info'!$F$1="EN",talen!$C86,talen!$D86))) -> customer ID | U7: =IF('general info'!F1="NL",talen!A85,IF('general info'!F1="FR",talen!B85,IF('general info'!F1="EN",talen!C85,talen!D85))) -> date | W7: =TODAY() -> 2021-09-15
A8: =IF('general info'!F1="NL",talen!A2,IF('general info'!F1="FR",talen!B2,IF('general info'!F1="EN",talen!C2,talen!D2))) -> Project/Building: | C8: =summary!C30 -> 
A9: =IF('general info'!F1="NL",talen!A82,IF('general info'!F1="FR",talen!B82,IF('general info'!F1="EN",talen!C82,talen!D82))) -> remarks
A35: Room No. | B35: H | C35: X | D35: Y | E35: H1 | F35: L1 | G35: V1 | H35: L2 | I35: V2 | J35: L3 | K35: V3 | L35: Order Code

Sheet instelwaarden & data (hidden)
A1: Type: | B1: Length | C1: aansluiting | D1: Mounting Type: | E1: Perforation Type | F1: Installation | G1: NozzleType: | H1: UserID | I1: type battery | J1: extra's | U1: Français | V1: English | W1: Deutch
A2: None | B2: None | C2: None | D2: None | E2: None | F2: None | G2: None | H2: None | I2: C: Cooling only | J2: - : None | R2: Tr | S2: ºC | T2: Ruimte temperatuur: | U2: Température d'ambiance: | V2: Room Air Temperature (Tr): | W2: Raum-Temperatur:
A3: K60 | B3: 600 | C3: L: left connection | D3: T: T-bar | E3: 2: Circular | G3: A | H3: Arn Winand (arn.winand@grada.be) | I3: H: cooling & heating coil | J3: V: deflectoren | R3: Qp | S3: m3/h | T3: Toevoer (primair) lucht volume : | U3: Débit d'air primaire: | V3: Supply (Primary) Air Flow Rate: | W3: Primärluft-Volumenstrom:
B4: 900 | C4: R: Right connection | D4: S: Recessed | E4: 3: Square | G4: B | H4: Gilbert Dumortier (gilbert.dumortier@grada.be) | I4: E: cooling with electrical heating | R4: Tp | S4: ºC | T4: Toevoer (primair) lucht temp.: | U4: Température d'air primaire: | V4: Supply (Primary) Air Temperature (Tp): | W4: Primärluft-Temperatur:
B5: 1000 | C5: G: left connection with 2 connections ( recommended @ Qp=130m³/h) | D5: Z: Surface | G5: C | H5: Koen Van Riet (koen.van.riet@grada.be) | R5: Twin | S5: ºC | T5: Inlaat water temperatuur: | U5: Température d'eau d'entrée: | V5: Water Inlet Temperature (Twin): | W5: Kaltwasser-Vorlauftemperatur:
B6: 1100 | C6: D: Right connection with 2 connections (recommended @ Qp=130m³/h) | D6: V: Flush | G6: D | H6: Steven Gobert (steven.gobert@grada.be) | R6: Qw | S6: l/h | T6: Water volume: | U6: Débit d'eau: | V6: Water Flow Rate : | W6: Kaltwasser-Volumenstrom:
B7: 1200 | H7: Tilly Van Cauwenberghe (tilly.vancauwenberghe@grada.be) | R7: type batt | S7: C/CH | T7: Type batterij (koeling/koeling & verwarming ): | U7: type de batterie (seul refroidissement / refroidissemen et chaleur ): | V7: Type of battery (cooling/cooling & heating): | W7: Batterietyp (Kühlung/Kühlung und Heizung):
B8: 1500 | H8: Brahim Essabir (brahim.essabir@gradafrance.com) | R8: x | S8: m | T8: Afstand tot de muur: | U8: Distance jusque au cloison: | V8: Distance to wall: | W8: Abstand zu dem Mauer:
B9: 1800 | H9: Stephane Chaleroux (stephane.chaleroux@gradafrance.com) | R9: y | S9: m | T9: Afstand tussen 2 koelbalken: | U9: Distance entre 2 poutre: | V9: Distance between chilled beams : | W9: Abstand zwischen zwei Kühlbalken:
B10: 2100 | H10: Erik Sauvage (erik.sauvage@gradafrance.com) | R10: Pt | S10: W | T10: Totale vermogen: | U10: Puissance totale: | V10: Total Capacity: | W10: Gesamt-Kühlleistung:
B11: 2400 | H11: Ismail Hajji (ismail.hajji@gradafrance.com) | R11: Ps | S11: Pa | T11: Plenum statische druk: | U11: Pression statique dans le plénum: | V11: Plenum static pressure: | W11: Primärluft-Druckverlust:
B12: 2700 | H12: Lahcene Slimi (Lahcene.slimi@gradafrance.com) | R12: LwA | S12: dB(A) | T12: Geluid Vermogen Pw: | U12: Puissance acoustique Pw (sans atténuation du local): | V12: Sound Power Pw: | W12: NR Schallleistungspegel (ohne Raumdämpfung):
B13: 2950 | H13: György Pócsi (pocsi.gyorgy@grada.be) | R13: Pb | S13: kPa | T13: Water druk verlies: | U13: Perte de pression de l'eau: | V13: Water pressure drop: | W13: Wasser-Druckverlust:
H14: Ann Geerts (ann.geerts@grada.be ) | R14: Pw | S14: W | T14: Waterzijdige vermogen: | U14: Puissance de l'eau : | V14: Water capacity: | W14: Leistung Wasser:
R15: Pa | S15: W | T15: Luchtzijdig vermogen: | U15: Puissance d'air: | V15: Air capacity: | W15: Leistung Luft:
A16: gebruikt in VBA: | R16: V1 | S16: m/s | T16: v1 (0,5m van de muur op 1,8m hoogtet): | U16: Vitesse d'air V1: | V16: v1 (0,5m from wall @ 1,8m height): | W16: Luftgeschwindigkeit V1:
A17: Kolomnamen bij Wat Als-Analyse | R17: V2 | S17: m/s | T17: v2 (0,5m van de muur op 0,1 m hoogte: | U17: Vitesse d'air V2: | V17: v2 (0,5m from wall @ 0,1 m height): | W17: Luftgeschwindigkeit V2:
A18: Lnom | B18: A | C18: B | D18: C | E18: D | F18: length0 | G18: Length1 | H18: length2 | I18: length3 | J18: length4 | K18: length5 | L18: length6 | M18: length7 | N18: length8 | O18: length9 | P18: length10 | R18: V3 | S18: m/s | T18: v3 (tussen 2 koelbalken op 1,8m hoogte): | U18: Vitesse d'air V3: | V18: v3 (between 2 chilled beams @ 1,8m height): | W18: Luftgeschwindigkeit V3:
A19: 600 | B19: BP | C19: BQ | D19: BR | E19: BS | F19: None | G19: None | H19: None | I19: None | J19: None | K19: None | L19: None | M19: None | N19: None | O19: None | P19: None | R19: ΔT c | S19: °C | T19: Temperatuusverschil koelingbatterij: | U19: Diff .Temp entre la batterie refroidissement: | V19: ΔT battery cooling: | W19: Temperaturdifferenz Batterie für Kühlung:
A20: 900 | B20: BJ | C20: BK | D20: BL | E20: BM | F20: 600 | G20: 600 | H20: 600 | I20: 600 | J20: 600 | K20: 600 | L20: 600 | M20: 600 | N20: 600 | O20: 600 | P20: 600 | R20: Δθ c | S20: °C | T20: Verschil temp. Lucht-Water: koeling: | U20: Diff. Temp. D'air-de l'eau: refroidissement: | V20: Temp. diff. air-water mean Dq: cooling: | W20: Temperaturdifferenz Luft-Wasser Kühling:
A21: 1000 | B21: BD | C21: BE | D21: BF | E21: BG | F21: 900 | G21: 900 | H21: 900 | I21: 900 | J21: 900 | K21: 900 | L21: 900 | M21: 900 | N21: 900 | O21: 900 | R21: ΔT h | S21: °C | T21: Temperatuursverschil warmwaterbatterij: | U21: Diff .Temp entre la batterie chaleur: | V21: ΔT battery heating: | W21: Temperaturdifferenz Batterie für Heizung:
A22: 1100 | B22: AX | C22: AY | D22: AZ | E22: BA | F22: 1000 | G22: 1000 | H22: 1000 | I22: 1000 | J22: 1000 | K22: 1000 | L22: 1000 | M22: 1000 | N22: 1000 | R22: Δθ h | S22: °C | T22: Verschil temp. Lucht-Water: verwarming: | U22: Diff. Temp. D'air-de l'eau: chaleur: | V22: Temp. diff. air-water mean Dq: heating: | W22: Temperaturdifferenz Luft-Wasser Heizung:
A23: 1200 | B23: AR | C23: AS | D23: AT | E23: AU | F23: 1100 | G23: 1100 | H23: 1100 | I23: 1100 | J23: 1100 | K23: 1100 | L23: 1100 | M23: 1100
A24: 1500 | B24: AL | C24: AM | D24: AN | E24: AO | F24: 1200 | G24: 1200 | H24: 1200 | I24: 1200 | J24: 1200 | K24: 1200 | L24: 1200
A25: 1800 | B25: AF | C25: AG | D25: AH | E25: AI | F25: 1500 | G25: 1500 | H25: 1500 | I25: 1500 | J25: 1500 | K25: 1500
A26: 2100 | B26: Z | C26: AA | D26: AB | E26: AC | F26: 1800 | G26: 1800 | H26: 1800 | I26: 1800 | J26: 1800
A27: 2400 | B27: T | C27: U | D27: V | E27: W | F27: 2100 | G27: 2100 | H27: 2100 | I27: 2100
A28: 2700 | B28: N | C28: O | D28: P | E28: Q | F28: 2400 | G28: 2400 | H28: 2400
A29: 2950 | B29: H | C29: I | D29: J | E29: K | F29: 2700 | G29: 2700
F30: 2950
G31: Glength1 | H31: Glength2 | I31: Glength3 | J31: Glength4 | K31: Glength5 | L31: Glength6 | M31: Glength7 | N31: Glength8 | O31: Glength9 | P31: Glength10 | Q31: Glength11 | T31: nomlength
G32: 2950 | H32: 2950 | I32: 2950 | J32: 2950 | K32: 2950 | L32: 2950 | M32: 2950 | N32: 2950 | O32: 2950 | P32: 2950 | Q32: 2950 | T32: 600
H33: 2700 | I33: 2700 | J33: 2700 | K33: 2700 | L33: 2700 | M33: 2700 | N33: 2700 | O33: 2700 | P33: 2700 | Q33: 2700 | T33: 700
I34: 2400 | J34: 2400 | K34: 2400 | L34: 2400 | M34: 2400 | N34: 2400 | O34: 2400 | P34: 2400 | Q34: 2400 | T34: 800
A35: instelwaarden visualisatie | J35: 2100 | K35: 2100 | L35: 2100 | M35: 2100 | N35: 2100 | O35: 2100 | P35: 2100 | Q35: 2100 | T35: 900
A36: max static pressure | E36: 180 | F36: Pa | K36: 1800 | L36: 1800 | M36: 1800 | N36: 1800 | O36: 1800 | P36: 1800 | Q36: 1800 | T36: 1000
A37: min static pressure | E37: 35 | F37: Pa | L37: 1500 | M37: 1500 | N37: 1500 | O37: 1500 | P37: 1500 | Q37: 1500 | T37: 1100
A38: max differential pressure battery | E38: 35 | F38: kPa | M38: 1200 | N38: 1200 | O38: 1200 | P38: 1200 | Q38: 1200 | T38: 1200
N39: 1100 | O39: 1100 | P39: 1100 | Q39: 1100 | T39: 1300
A40: instelwaarden | O40: 1000 | P40: 1000 | Q40: 1000 | T40: 1400
P41: 900 | Q41: 900 | T41: 1500
Q42: 600 | T42: 1600
A43: dauwpuntsT | C43: =(B46*B48)/(B45-B48) -> 13.8429097 | T43: 1700
T44: 1800
A45: a | B45: 17.271 | T45: 1900
A46: b | B46: 237.7 | T46: 2000
T47: 2100
A48: γ | B48: =(B45*selection!B12)/(B46+selection!B12)+LN(B49/100) -> 0.9504576919 | T48: 2200
A49: RH | B49: 50 | T49: 2300
T50: 2400
A51: gebruikt bij waterzijdige drukval | G51: 25.4 | H51: mm | T51: 2500
A52: Ø tubes | B52: 0.5 | C52: inch | F52: 1 inch | T52: 2600
A53: Ø tubes | B53: 11.3 | C53: [mm] | T53: 2700
A54: A | B54: =((PI()*B53^2)/4) -> 100.2874915 | C54: mm² | T54: 2800
A55: A | B55: =B54*10^-6 -> 0.0001002874915 | C55: m² | T55: 2900
T56: 2950
T57: 3000

Sheet talen (hidden)
A1: NL | B1: FR | C1: EN | D1: DU
A2: Project/Gebouw: | B2: Projet/ Construction: | C2: Project/Building: | D2: Projekt/ Gebäude:
A3: Referentie/ Kamer info: | B3: Référence/ Info Chambre: | C3: Reference/ Room data: | D3: Referentz/ Raum info:
A4: # per Kamer: | B4: # par chambre: | C4: # per room: | D4: # pro Zimmer:
A5: Kies het modeltype: | B5: Sélectionnez le type de modèle: | C5: Choose model type: | D5: Wählen sie Ihr Modell Typ:
A6: Kies de modelspecificaties: | B6: Sélectionnez les spécifications de modèle: | C6: Choose model specifications: | D6: Wählen sie Ihr Modell Spezifikationen:
A7: Figuur met modelspecificaties: | B7: Figure de modèle: | C7: Picture of model specifications: | D7: Modell Spezificationen Abbildung:
A8: Kies de nominale lengte: | B8: Sélectionnez la longueur nominale: | C8: Choose nominal beam length: | D8: Wählen Sie ihre Nennlänge:
A9: de batterijlengte: | B9: la longueur de la batterie: | C9: battery length: | D9: Sie ihre Batterielänge:
A10: Ruimtetemperatuur: | B10: Température ambiante: | C10: Room air temperature: | D10: Raum-Temperatur:
A11: Debiet (primair) toevoerlucht: | B11: Débit d'air primaire: | C11: Supply (primary) air flow rate: | D11: Primärluft-Volumenstrom:
A12: Temperatuur (primair) toevoerlucht: | B12: Température d'air primaire: | C12: Supply (primary) air temperature: | D12: Primärluft-Temperatur:
A13: Temperatuur ingang water: | B13: Température d'entrée de l'eau: | C13: Water inlet temperature: | D13: Kaltwasser-Vorlauftemperatur:
A14: Waterdebiet: | B14: Débit d'eau: | C14: Water flow rate : | D14: Kaltwasser-Volumenstrom:
A15: Totaal verwacht vermogen: | B15: Puissance totale attendue: | C15: Required total capacity : | D15: Gesamt erwartet Leistung:
A16: Temperatuursverschil batterij: | B16: Différence de température de la batterie | C16: Temperature difference battery: | D16: Temperatur-Differenz-Batterie:
A17: Batterijlengte: | B17: Longueur de la batterie: | C17: Battery length: | D17: Batterielänge:
A18: Nozzletype: | B18: Type de buse: | C18: Nozzle type: | D18: Nozzletyp:
A19: Vermogen (primair) toevoerlucht: | B19: Puissance d'air primaire: | C19: Supply (primary) air capacity: | D19: Kühlleistung der Primärluft:
A20: Waterzijdig vermogen: | B20: Puissance d'eau secondaire: | C20: Water capacity: | D20: Kühlleistung der Sekundärluft:
A21: Totaal vermogen: | B21: Puissance totale: | C21: Total capacity: | D21: Gesamtleistung:
A22: Temperatuur uitgang water: | B22: Température de sortie de l'eau: | C22: Water outlet temperature: | D22: Kaltwasser-Rücklauftemperatur:
A23: Waterzijdig drukverlies: | B23: Perte de pression de l'eau: | C23: Water pressure drop: | D23: Wasser-Druckverlust:
A24: Statische luchtdruk plenum: | B24: Pression statique du plénum: | C24: Plenum static pressure: | D24: Primärluft-Druckverlust:
A25: Geluidsniveau (excl. ruimtedemping): | B25: Niveau sonore (sans atténuation du local): | C25: Sound level (excl. room attenuation): | D25: Schallleistungspegel (ohne Raumdämpfung):
A26: Geluidsvermogen: | B26: Puissance acoustique (sans atténuation du local): | C26: Sound power: | D26: Schallleistungspegel (ohne Raumdämpfung):
A27: Verschiltemperatuur lucht-water: | B27: Différence de température entre l'air et l'eau: | C27: Mean temperature difference air-water: | D27: Temperaturdifferenz Luft-Wasser:
A28: Luchtsnelheid, V1: | B28: Vitesse d'air, V1: | C28: Room air velocity, V1: | D28: Luftgeschwindigkeit, V1:
A29: Luchtsnelheid, V2: | B29: Vitesse d'air, V2: | C29: Room air velocity, V2: | D29: Luftgeschwindigkeit, V2:
A30: Luchtsnelheid, V3: | B30: Vitesse d'air, V3: | C30: Room air velocity, V3: | D30: Luftgeschwindigkeit, V3:
A32: Batterijlengte: | B32: Longueur de la batterie: | C32: Battery lengtht: | D32: Batterielänge:
A33: Nozzletype: | B33: Type de buse: | C33: Nozzle type: | D33: Nozzletyp:
A34: Vermogen (primair) toevoerlucht: | B34: Puissance d'air primaire: | C34: Supply (primary) air capacity: | D34: Kühlleistung der Primärluft:
A35: Waterzijdig vermogen: | B35: Puissance d'eau secondaire: | C35: Water capacity: | D35: Kühlleistung der Sekundärluft:
A36: Totaal vermogen: | B36: Puissance totale: | C36: Total capacity: | D36: Gesamt-Kühlleistung:
A37: Temperatuur uitgang water: | B37: Température de sortie de l'eau: | C37: Water outlet temperature: | D37: Austrittstemperatur Wasser:
A38: Waterzijdig drukverlies: | B38: Perte de pression de l'eau: | C38: Water pressure drop: | D38: Drulverlust Wasser:
A39: Statische luchtdruk plenum: | B39: Pression statique du plénum: | C39: Plenum static pressure: | D39: Statischer Druck AnschlussKasten:
A40: Geluidsniveau (excl. ruimtedemping): | B40: Niveau sonore (sans atténuation du local): | C40: Sound level (excl. room attenuation): | D40: Lärm (excl. Raumdämpfung):
A41: Geluidsvermogen, Pw: | B41: Puissance acoustique (sans atténuation du local): | C41: Sound power: | D41: Shallleistung:
A43: Gekozen nominale lengte: | B43: Longueur nominale choisie: | C43: Chosen nominal beam length: | D43: gewählte Nennlänge Kuhlbalk:
A44: Kies nozzletype: | B44: Sélectionnez le type de buse: | C44: Choose nozzle type: | D44: Wählen Sie ihre Nozzletyp:
A45: Bestelcode: | B45: Code de commande: | C45: Order code: | D45: Bestellcode:
A47: Hoogte ruimte [m] | B47: Hauteur de la chambre [m] | C47: Room height [m] | D47: Höge Raum [m]
A48: Positie Koelbalk 1 [m] | B48: Position poutre froide 1 [m] | C48: Position chilled beam 1 [m] | D48: Position Kuhlbalk 1 [m]
A49: Positie Koelbalk 2 [m] | B49: Position poutre froide 2 [m] | C49: Position chilled beam 2 [m] | D49: Position Kuhlbalk 2 [m]
A50: Type montage | B50: Type de montage | C50: Mounting type | D50: Befestigungart
A51: Perforatietype | B51: Type de perforation | C51: Perforation type | D51: Typ Perforation
A52: Aansluiting | B52: Raccordement | C52: Connection | D52: Anschluss
A53: Koeling | B53: Refroidissement | C53: Cooling | D53: Kühlung
A54: Verwarming | B54: Chauffage | C54: Heating | D54: Heizung
A56: Eenheid | B56: Unité | C56: Unit | D56: Einheit
A57: Betekenis | B57: Signification | C57: Meaning | D57: Bedeutung
A58: Gebruikte afkorting | B58: Abréviation utilisée | C58: Used abbreviation | D58: Benutzte Abkürzung
A59: Opties | B59: Options | C59: Options | D59: Optionen
A60: Naam | B60: Nom | C60: Name | D60: Name
A61: Model | B61: Modèle | C61: Model | D61: Modell
A62: Batterijtype | B62: Type de batterie | C62: Battery type | D62: Art der Batterie
A63: Lengte koelbalk | B63: Longueur de la poutre froide | C63: Beam length | D63: Länge des Kuhlbalk
A64: Lengte batterij | B64: Longueur de la batterie | C64: Battery length | D64: Länge der Batterie
A65: Invoergegevens | B65: Donneés | C65: Input data | D65: Eingabedaten
A66: Verwacht | B66: Attendu | C66: Required | D66: Erwarted
A67: Berekende gegevens | B67: Donneés calculées | C67: Calculated data | D67: Berechneten Daten
A68: koeling & verwarming | B68: refroidissement & chauffage | C68: cooling & heating | D68: Kühlung & Heizung
A69: Luchtsnelheid | B69: Vitesse d'air | C69: Air velocity | D69: Luftgeschwindigkeit
A70: Lengte [mm]: | B70: Longueur [mm]: | C70: Length [mm]: | D70: Länge [mm]:
A71: Specificaties gekozen koelbalk | B71: Specifications de la poutre froide sélectionnée | C71: Selected beam specifications | D71: Spezifikationen des ausgewählten Kuhlbalk
A72: Berekende gegevens - koeling | B72: Donneés calculées - refroidissement | C72: Calculated data - cooling | D72: Berechneten Daten - Külung
A73: Berekende gegevens - verwarming | B73: Donneés calculées - chauffage | C73: Calculated data - heating | D73: Berechneten Daten - Heizung
A74: Invoergegevens - koeling | B74: Donneés - refroidissement | C74: Input data - cooling | D74: Eingabedaten - Kühlung
A75: Invoergegevens- verwarming | B75: Donneés - chauffage | C75: Input data - heating | D75: Eingabedaten - Heizung
A76: kies | B76: Sélectionnez | C76: choose | D76: whälen
A77: nominale lengte: | B77: longueur nominal | C77: beam length: | D77: länge:
A78: koud | B78: froid | C78: cool | D78: Kühl
A79: warm | B79: chaud | C79: heat | D79: Wärme
A80: actueel | B80: actuèle | C80: actual | D80: aktuell
A81: gebruiker | B81: utilisateur | C81: user | D81: Benutzer
A82: opmerkingen | B82: remarques | C82: remarks | D82: Anmerkung
A83: lucht | B83: l'air | C83: air | D83: Luft
A84: water | B84: l'eau | C84: water | D84: Wasser
A85: datum | B85: date | C85: date | D85: Datum
A86: klant ID | B86: ID client | C86: customer ID | D86: Kunden ID

Sheet velocity (hidden)
A1: X | B1: =selection!B18 -> 4 | C1: m | E1: Q prim | F1: =capacity!B4 -> 86.4 | G1: [m³/h] | Q1: L1 @ 1,8m | R1: =B1+(B3-1.8) -> 4.9 | S1: m
A2: Y | B2: =selection!B19 -> 4 | C2: m | Q2: L1 @ 2m | R2: =B1+(B3-2) -> 4.7 | S2: m
A3: H | B3: 2.7 | C3: m | Q3: L2 | R3: =B1+(B3-0.1)+0.5 -> 7.1 | S3: m | X3: length beam | Y3: [mm] | Z3: 600 | AA3: 600 | AB3: 600 | AC3: 600 | AD3: 900 | AE3: 900 | AF3: 900 | AG3: 900 | AH3: 1000 | AI3: 1000 | AJ3: 1000 | AK3: 1000 | AL3: 1100 | AM3: 1100 | AN3: 1100 | AO3: 1100 | AP3: 1200 | AQ3: 1200 | AR3: 1200 | AS3: 1200 | AT3: 1500 | AU3: 1500 | AV3: 1500 | AW3: 1500 | AX3: 1800 | AY3: 1800 | AZ3: 1800 | BA3: 1800 | BB3: 2100 | BC3: 2100 | BD3: 2100 | BE3: 2100 | BF3: 2400 | BG3: 2400 | BH3: 2400 | BI3: 2400 | BJ3: 2700 | BK3: 2700 | BL3: 2700 | BM3: 2700 | BN3: 2950 | BO3: 2950 | BP3: 2950 | BQ3: 2950
A4: lengte batt | B4: 600 | C4: 900 | D4: 1000 | E4: 1100 | F4: 1200 | G4: 1500 | H4: 1800 | I4: 2100 | J4: 2400 | K4: 2700 | L4: 2950 | M4: [mm] | N4: Nozzle | O4: inductie | Q4: L3 @ 1,8m | R4: =B2+(B3-1.8) -> 4.9 | S4: m | U4: A | V4: 2 | X4: nozzle | Y4: [] | Z4: A | AA4: B | AB4: C | AC4: D | AD4: A | AE4: B | AF4: C | AG4: D | AH4: A | AI4: B | AJ4: C | AK4: D | AL4: A | AM4: B | AN4: C | AO4: D | AP4: A | AQ4: B | AR4: C | AS4: D | AT4: A | AU4: B | AV4: C | AW4: D | AX4: A | AY4: B | AZ4: C | BA4: D | BB4: A | BC4: B | BD4: C | BE4: D | BF4: A | BG4: B | BH4: C | BI4: D | BJ4: A | BK4: B | BL4: C | BM4: D | BN4: A | BO4: B | BP4: C | BQ4: D
A5: Qt [m³/h/m] | B5: =($F$1+($F$1*$O$5))/((B4-115)/1000) -> 1346.712983 | C5: =($F$1+($F$1*$O$5))/((C4-115)/1000) -> 832.0456013 | D5: 738.0291491 | E5: =($F$1+($F$1*$O$5))/((E4-115)/1000) -> 663.102332 | F5: 601.9869097 | G5: 471.5926332 | H5: 387.6295531 | I5: 329.0457416 | J5: 285.8449877 | K5: 252.6714882 | L5: 230.3900518 | M5: [m³/h/m] | N5: A | O5: =capacity!B13 -> 6.559673576 | Q5: L3 @ 2m | R5: =B2+(B3-2) -> 4.7 | S5: m | U5: B | V5: 3 | X5: v1 | Y5: [m/s] | Z5: =HLOOKUP(Z3,$B$11:$L$15,VLOOKUP(Z4,$U$4:$V$7,2,1),1) ->  | AA5: =HLOOKUP(AA3,$B$11:$L$15,VLOOKUP(AA4,$U$4:$V$7,2,1),1) ->  | AH5: =HLOOKUP(AH3,$B$11:$L$15,VLOOKUP(AH4,$U$4:$V$7,2,1),1) ->  | AK5: =HLOOKUP(AK3,$B$11:$L$15,VLOOKUP(AK4,$U$4:$V$7,2,1),1) -> 0.08025326146 | AO5: 0.07180572425 | AR5: 0.07656695107 | AS5: 0.06646786932 | AU5: 0.07302901209 | AV5: 0.06309598424 | AW5: 0.05855547983 | AX5: 0.07067772707 | AY5: 0.06318130867 | AZ5: 0.05790956367 | BA5: 0.05516773377 | BB5: 0.06296123941 | BC5: 0.05855570488 | BD5: 0.05514206132 | BE5: 0.05347062205 | BF5: 0.05892970805 | BG5: 0.05605503692 | BH5: 0.0536711357 | BI5: 0.05233795685 | BJ5: 0.05663668078 | BK5: 0.05442922205 | BL5: 0.05256902338 | BM5: 0.05164937644 | BN5: 0.05514040037 | BO5: 0.05350411527 | BP5: 0.05202543128 | BQ5: 0.05118688196
A6: Qt [m³/h/m] | B6: =($F$1+($F$1*$O$6))/((B$4-115)/1000) -> 1149.995595 | C6: =($F$1+($F$1*$O$6))/((C$4-115)/1000) -> 710.5068328 | D6: 630.2235748 | E6: 566.241486 | F6: 514.0533306 | G6: 402.7060388 | H6: 331.0076343 | I6: 280.9812916 | J6: 244.0909688 | K6: 215.7631968 | L6: =($F$1+($F$1*$O$6))/((L$4-115)/1000) -> 196.7364599 | M6: [m³/h/m] | N6: B | O6: =capacity!C13 -> 5.45541509 | U6: C | V6: 4 | X6: v2 | Y6: [m/s] | Z6: =HLOOKUP(Z3,$Q$11:$AA$15,VLOOKUP(Z4,$U$4:$V$7,2,1),1) ->  | AA6: =HLOOKUP(AA3,$Q$11:$AA$15,VLOOKUP(AA4,$U$4:$V$7,2,1),1) ->  | AC6: =HLOOKUP(AC3,$Q$11:$AA$15,VLOOKUP(AC4,$U$4:$V$7,2,1),1) ->  | AK6: 0.117176214 | AO6: 0.1021917695 | AR6: 0.1109012101 | AS6: 0.09116812674 | AU6: 0.1045853349 | AV6: 0.08327257868 | AW6: 0.0709390146 | AX6: 0.09990507062 | AY6: 0.08347920863 | AZ6: 0.06883465118 | BA6: 0.05989595433 | BB6: 0.08294626754 | BC6: 0.0709397478 | BD6: 0.05979422416 | BE6: 0.05317094554 | BF6: 0.07206980723 | BG6: 0.06279269327 | BH6: 0.05396550495 | BI6: 0.04842539436 | BJ6: 0.06468766068 | BK6: 0.05696951304 | BL6: 0.04953893471 | BM6: 0.04510703378 | BN6: 0.05978764243 | BO6: 0.05330366646 | BP6: 0.04691929209 | BQ6: 0.04287821134
A7: Qt [m³/h/m] | B7: =($F$1+($F$1*$O$7))/((B$4-115)/1000) -> 943.0764174 | C7: =($F$1+($F$1*$O$7))/((C$4-115)/1000) -> 582.6650477 | D7: 516.8271892 | E7: 464.3574238 | F7: 421.5595046 | G7: 330.2469765 | H7: 271.4492952 | I7: 230.4242128 | J7: 200.1715809 | K7: 176.9408365 | L7: 161.3375882 | M7: [m³/h/m] | N7: C | O7: =capacity!D13 -> 4.293889612 | U7: D | V7: 5 | X7: v3 | Y7: [m/s] | Z7: =HLOOKUP(Z3,$AF$11:$AP$15,VLOOKUP(Z4,$U$4:$V$7,2,1),1) ->  | AA7: =HLOOKUP(AA3,$AF$11:$AP$15,VLOOKUP(AA4,$U$4:$V$7,2,1),1) ->  | AK7: 0.6661096615 | AO7: 0.5715525394 | AR7: 0.6270775015 | AS7: 0.5230109769 | AU7: 0.5829746211 | AV7: 0.4772318858 | AW7: 0.4039939058 | AX7: 0.5624721657 | AY7: 0.4783438356 | AZ7: 0.3870399361 | BA7: 0.314844104 | BB7: 0.4754758885 | BC7: 0.4039998129 | BD7: 0.3134755173 | BE7: 0.2243718528 | BF7: 0.4105334182 | BG7: 0.3383624263 | BH7: 0.2350611442 | BI7: 0.1723700981 | BJ7: 0.3536293805 | BK7: 0.2754743813 | BL7: 0.1782405199 | BM7: 0.1548761866 | BN7: 0.3133869726 | BO7: 0.2261573614 | BP7: 0.1644301472 | BQ7: 0.1431261607
A8: Qt [m³/h/m] | B8: =($F$1+($F$1*$O$8))/((B$4-115)/1000) -> 802.380393 | C8: =($F$1+($F$1*$O$8))/((C$4-115)/1000) -> 495.7382046 | D8: 439.7225883 | E8: 395.0807011 | F8: 358.6677333 | G8: 280.9779716 | H8: 230.95222 | I8: 196.0476023 | J8: 170.308311 | K8: 150.5433233 | L8: 137.2678979 | M8: [m³/h/m] | N8: D | O8: =capacity!E13 -> 3.504102901
A11: lengte | B11: 600 | C11: 900 | D11: 1000 | E11: 1100 | F11: 1200 | G11: 1500 | H11: 1800 | I11: 2100 | J11: 2400 | K11: 2700 | L11: 2950 | M11: [mm] | N11: Nozzle | P11: lengte | Q11: 600 | R11: 900 | S11: 1000 | T11: 1100 | U11: 1200 | V11: 1500 | W11: 1800 | X11: 2100 | Y11: 2400 | Z11: 2700 | AA11: 2950 | AB11: [mm] | AC11: Nozzle | AE11: lengte | AF11: 600 | AG11: 900 | AH11: 1000 | AI11: 1100 | AJ11: 1200 | AK11: 1500 | AL11: 1800 | AM11: 2100 | AN11: 2400 | AO11: 2700 | AP11: 2950 | AQ11: [mm] | AR11: Nozzle
A12: v1 @1,8m | B12: =AV28 ->  | C12: =AW28 ->  | F12: =AZ28 ->  | H12: 0.07067772707 | I12: 0.06296123941 | J12: 0.05892970805 | K12: 0.05663668078 | L12: 0.05514040037 | M12: [m³/h/m] | N12: A | P12: v2 | Q12: =CF28 ->  | R12: =CG28 ->  | W12: 0.09990507062 | X12: 0.08294626754 | Y12: 0.07206980723 | Z12: 0.06468766068 | AA12: 0.05978764243 | AB12: [m³/h/m] | AC12: A | AE12: v3 @ 1,8m | AF12: =EE28 ->  | AG12: =EF28 ->  | AL12: 0.5624721657 | AM12: 0.4754758885 | AN12: 0.4105334182 | AO12: 0.3536293805 | AP12: 0.3133869726 | AQ12: [m³/h/m] | AR12: A
A13: v1 @1,8m | B13: =AV67 ->  | C13: =AW67 ->  | G13: 0.07302901209 | H13: 0.06318130867 | I13: 0.05855570488 | J13: 0.05605503692 | K13: 0.05442922205 | L13: 0.05350411527 | M13: [m³/h/m] | N13: B | P13: v2 | Q13: =CF67 ->  | R13: =CG67 ->  | V13: 0.1045853349 | W13: 0.08347920863 | X13: 0.0709397478 | Y13: 0.06279269327 | Z13: 0.05696951304 | AA13: 0.05330366646 | AB13: [m³/h/m] | AC13: B | AE13: v3 @ 1,8m | AF13: =EE67 ->  | AG13: =EF67 ->  | AK13: 0.5829746211 | AL13: 0.4783438356 | AM13: 0.4039998129 | AN13: 0.3383624263 | AO13: 0.2754743813 | AP13: 0.2261573614 | AQ13: [m³/h/m] | AR13: B
A14: v1 @1,8m | B14: =AV98 ->  | C14: =AW98 ->  | F14: 0.07656695107 | G14: 0.06309598424 | H14: 0.05790956367 | I14: 0.05514206132 | J14: 0.0536711357 | K14: 0.05256902338 | L14: 0.05202543128 | M14: [m³/h/m] | N14: C | P14: v2 | Q14: =CF98 ->  | R14: =CG98 ->  | U14: 0.1109012101 | V14: 0.08327257868 | W14: 0.06883465118 | X14: 0.05979422416 | Y14: 0.05396550495 | Z14: 0.04953893471 | AA14: 0.04691929209 | AB14: [m³/h/m] | AC14: C | AE14: v3 @ 1,8m | AF14: =EE98 ->  | AG14: =EF98 ->  | AJ14: 0.6270775015 | AK14: 0.4772318858 | AL14: 0.3870399361 | AM14: 0.3134755173 | AN14: 0.2350611442 | AO14: 0.1782405199 | AP14: 0.1644301472 | AQ14: [m³/h/m] | AR14: C
A15: v1 @1,8m | B15: =AV129 ->  | C15: =AW129 ->  | D15: 0.08025326146 | E15: 0.07180572425 | F15: 0.06646786932 | G15: 0.05855547983 | H15: 0.05516773377 | I15: 0.05347062205 | J15: 0.05233795685 | K15: 0.05164937644 | L15: 0.05118688196 | M15: [m³/h/m] | N15: D | P15: v2 | Q15: =CF129 ->  | R15: =CG129 ->  | S15: 0.117176214 | T15: 0.1021917695 | U15: 0.09116812674 | V15: 0.0709390146 | W15: 0.05989595433 | X15: 0.05317094554 | Y15: 0.04842539436 | Z15: 0.04510703378 | AA15: 0.04287821134 | AB15: [m³/h/m] | AC15: D | AE15: v3 @ 1,8m | AF15: =EE129 ->  | AG15: =EF129 ->  | AH15: 0.6661096615 | AI15: 0.5715525394 | AJ15: 0.5230109769 | AK15: 0.4039939058 | AL15: 0.314844104 | AM15: 0.2243718528 | AN15: 0.1723700981 | AO15: 0.1548761866 | AP15: 0.1431261607 | AQ15: [m³/h/m] | AR15: D
A17: A nozzle | B17: A nozzle | C17: A nozzle | D17: A nozzle | E17: A nozzle | F17: A nozzle | G17: A nozzle | H17: A nozzle | I17: A nozzle | J17: A nozzle | K17: A nozzle | L17: A nozzle | M17: A nozzle | N17: A nozzle | O17: A nozzle | P17: A nozzle | Q17: A nozzle | R17: A nozzle | S17: A nozzle | T17: A nozzle | U17: A nozzle | V17: A nozzle | W17: A nozzle | X17: A nozzle | Y17: A nozzle | Z17: A nozzle | AA17: A nozzle | AB17: A nozzle | AC17: A nozzle | AD17: A nozzle | AE17: A nozzle | AF17: A nozzle | AG17: A nozzle | AH17: A nozzle | AI17: A nozzle | AJ17: A nozzle | AK17: A nozzle | AL17: A nozzle | AM17: A nozzle | AN17: A nozzle | AO17: A nozzle | AP17: A nozzle | AQ17: A nozzle | AR17: A nozzle | AS17: A nozzle | AT17: A nozzle | AU17: A nozzle | AV17: A nozzle | AW17: A nozzle | AX17: A nozzle | AY17: A nozzle | AZ17: A nozzle | BA17: A nozzle | BB17: A nozzle | BC17: A nozzle | BD17: A nozzle | BE17: A nozzle | BF17: A nozzle | BG17: A nozzle | BH17: A nozzle | BI17: A nozzle | BJ17: A nozzle | BK17: A nozzle | BL17: A nozzle | BM17: A nozzle | BN17: A nozzle | BO17: A nozzle | BP17: A nozzle | BQ17: A nozzle | BR17: A nozzle | BS17: A nozzle | BT17: A nozzle | BU17: A nozzle | BV17: A nozzle | BW17: A nozzle | BX17: A nozzle | BY17: A nozzle | BZ17: A nozzle | CA17: A nozzle | CB17: A nozzle | CC17: A nozzle | CD17: A nozzle | CE17: A nozzle | CF17: A nozzle | CG17: A nozzle | CH17: A nozzle | CI17: A nozzle | CJ17: A nozzle | CK17: A nozzle | CL17: A nozzle | CM17: A nozzle | CN17: A nozzle | CO17: A nozzle | CP17: A nozzle | CQ17: A nozzle | CR17: A nozzle | CS17: A nozzle | CT17: A nozzle | CU17: A nozzle | CV17: A nozzle | CW17: A nozzle | CX17: A nozzle | CY17: A nozzle | CZ17: A nozzle | DA17: A nozzle | DB17: A nozzle | DC17: A nozzle | DD17: A nozzle | DE17: A nozzle | DF17: A nozzle | DG17: A nozzle | DH17: A nozzle | DI17: A nozzle | DJ17: A nozzle | DK17: A nozzle | DL17: A nozzle | DM17: A nozzle | DN17: A nozzle | DO17: A nozzle | DP17: A nozzle | DQ17: A nozzle | DR17: A nozzle | DS17: A nozzle | DT17: A nozzle | DU17: A nozzle | DV17: A nozzle | DW17: A nozzle | DX17: A nozzle | DY17: A nozzle | DZ17: A nozzle | EA17: A nozzle | EB17: A nozzle | EC17: A nozzle | ED17: A nozzle | EE17: A nozzle | EF17: A nozzle | EG17: A nozzle | EH17: A nozzle | EI17: A nozzle | EJ17: A nozzle | EK17: A nozzle | EL17: A nozzle | EM17: A nozzle | EN17: A nozzle | EO17: A nozzle
L19: V1 (h=2m) | AK19: v1 (h=1,8m) | BU19: v2 | CT19: V3 (h =2) | DT19: V3 (h =1,8)
I21: lengte test batt | J21: 1.085 | K21: m | M21: 0.5 | N21: 1 | O21: 1.5 | P21: 2 | Q21: 2.5 | R21: 3 | S21: 3.5 | T21: 4.18 | U21: x [m] | AL21: 0.5 | AM21: 1 | AN21: 1.5 | AO21: 2 | AP21: 2.5 | AQ21: 3 | AR21: 3.5 | AS21: 4.18 | AT21: x [m] | BV21: 0.5 | BW21: 1 | BX21: 1.5 | BY21: 2 | BZ21: 2.5 | CA21: 3 | CB21: 3.5 | CC21: 4.18 | CD21: x [m] | CU21: 0.5 | CV21: 1 | CW21: 1.5 | CX21: 2 | CY21: 2.5 | CZ21: 3 | DA21: 3.5 | DB21: 4.18 | DC21: x [m] | DU21: 0.5 | DV21: 1 | DW21: 1.5 | DX21: 2 | DY21: 2.5 | DZ21: 3 | EA21: 3.5 | EB21: 4.18 | EC21: x [m]
M23: =IF(M25-$W$26<=0,10000,(M25-$W$26)) -> 1.2 | N23: =IF(N25-$W$26<=0,10000,(N25-$W$26)) -> 1.7 | O23: 2.2 | P23: 2.7 | Q23: 3.2 | R23: 3.7 | S23: 4.2 | T23: 4.88 | U23: L3max | V23: =MIN(M23:T23) -> 1.2 | AL23: =IF(AL25-$AV$26<=0,10000,(AL25-$AV$26)) -> 10000 | AM23: =IF(AM25-$AV$26<=0,10000,(AM25-$AV$26)) -> 10000 | AN23: 10000 | AO23: 10000 | AP23: 10000 | AQ23: 10000 | AR23: 10000 | AS23: 0.18 | AT23: L3max | AU23: =MIN(AL23:AS23) -> 0.18 | BV23: =IF(BV25-$CF$26<=0,10000,(BV25-$CF$26)) -> 10000 | BW23: =IF(BW25-$CF$26<=0,10000,(BW25-$CF$26)) -> 10000 | BX23: 10000 | BY23: 10000 | BZ23: 10000 | CA23: 10000 | CB23: 10000 | CC23: 0.18 | CD23: L3max | CE23: =MIN(BV23:CC23) -> 0.18 | CU23: =IF(CU25-$DE$26<=0,10000,(CU25-$DE$26)) -> 1.2 | CV23: =IF(CV25-$DE$26<=0,10000,(CV25-$DE$26)) -> 1.7 | CW23: 2.2 | CX23: 2.7 | CY23: 3.2 | CZ23: 3.7 | DA23: 4.2 | DB23: 4.88 | DC23: L3max | DD23: =MIN(CU23:DB23) -> 1.2 | DU23: =IF(DU25-$EE$26<=0,10000,(DU25-$EE$26)) -> 10000 | DV23: =IF(DV25-$EE$26<=0,10000,(DV25-$EE$26)) -> 10000 | DW23: 10000 | DX23: 10000 | DY23: 10000 | DZ23: 10000 | EA23: 10000 | EB23: 0.18 | EC23: L3max | ED23: =MIN(DU23:EB23) -> 0.18
D24: plenum | F24: inductie | L24: 2 sides | M24: 1 | N24: 2 | O24: 3 | P24: 4 | Q24: 5 | R24: 6 | S24: 7 | T24: 8 | U24: index | AK24: 2 sides | AL24: 1 | AM24: 2 | AN24: 3 | AO24: 4 | AP24: 5 | AQ24: 6 | AR24: 7 | AS24: 8 | AT24: index | BV24: 1 | BW24: 2 | BX24: 3 | BY24: 4 | BZ24: 5 | CA24: 6 | CB24: 7 | CC24: 8 | CD24: index | CF24: beam | CT24: 2 sides | CU24: 1 | CV24: 2 | CW24: 3 | CX24: 4 | CY24: 5 | CZ24: 6 | DA24: 7 | DB24: 8 | DC24: index | DT24: 2 sides | DU24: 1 | DV24: 2 | DW24: 3 | DX24: 4 | DY24: 5 | DZ24: 6 | EA24: 7 | EB24: 8 | EC24: index | EE24: beam
A25: koelbalk | B25: meetinstrument | C25: ΔP mi [Pa] | D25: Ps [Pa] | E25: Qp [m³/h] | F25: i [] | G25: Qsec [m³/h] | H25: Qt [m³/h] | L25: Qt [m³/h/m] | M25: =M21+(2.7-2) -> 1.2 | N25: =N21+(2.7-2) -> 1.7 | O25: 2.2 | P25: 2.7 | Q25: 3.2 | R25: 3.7 | S25: 4.2 | T25: 4.88 | U25: L1 h 2m [m] | Y25: 600 | Z25: 900 | AA25: 1000 | AB25: 1100 | AC25: 1200 | AD25: 1500 | AE25: 1800 | AF25: 2100 | AG25: 2400 | AH25: 2700 | AI25: 2950 | AK25: Q [m³/h/m] | AL25: =AL21+(2.7-1.8) -> 1.4 | AM25: 1.9 | AN25: 2.4 | AO25: 2.9 | AP25: 3.4 | AQ25: 3.9 | AR25: 4.4 | AS25: 5.08 | AT25: L1 h=1,8m [m] | AV25: 600 | AW25: 900 | AX25: 1000 | AY25: 1100 | AZ25: 1200 | BA25: 1500 | BB25: 1800 | BC25: 2100 | BD25: 2400 | BE25: 2700 | BF25: 2950 | BI25: 600 | BJ25: 900 | BK25: 1000 | BL25: 1100 | BM25: 1200 | BN25: 1500 | BO25: 1800 | BP25: 2100 | BQ25: 2400 | BR25: 2700 | BS25: 2950 | BU25: Q [m³/h/m] | BV25: =BV21+2.6+0.5 -> 3.6 | BW25: 4.1 | BX25: 4.6 | BY25: 5.1 | BZ25: 5.6 | CA25: 6.1 | CB25: 6.6 | CC25: 7.28 | CD25: L2 [m] | CF25: 600 | CG25: 900 | CH25: 1000 | CI25: 1100 | CJ25: 1200 | CK25: 1500 | CL25: 1800 | CM25: 2100 | CN25: 2400 | CO25: 2700 | CP25: 2950 | CT25: Q [m³/h/m] | CU25: =CU21+(2.7-2) -> 1.2 | CV25: =CV21+(2.7-2) -> 1.7 | CW25: =CW21+(2.7-2) -> 2.2 | CX25: 2.7 | CY25: 3.2 | CZ25: 3.7 | DA25: 4.2 | DB25: 4.88 | DC25: L3 h 2 [m] | DH25: 600 | DI25: 900 | DJ25: 1000 | DK25: 1100 | DL25: 1200 | DM25: 1500 | DN25: 1800 | DO25: 2100 | DP25: 2400 | DQ25: 2700 | DR25: 2950 | DT25: Q [m³/h/m] | DU25: =DU21+(2.7-1.8) -> 1.4 | DV25: 1.9 | DW25: 2.4 | DX25: 2.9 | DY25: 3.4 | DZ25: 3.9 | EA25: 4.4 | EB25: 5.08 | EC25: L3 h 1,8m [m] | EE25: 600 | EF25: 900 | EG25: 1000 | EH25: 1100 | EI25: 1200 | EJ25: 1500 | EK25: 1800 | EL25: 2100 | EM25: 2400 | EN25: 2700 | EO25: 2950
A26: KT64A_1200 | D26: 20 | E26: =$A$47*D26^$A$48 -> 12.59585444 | F26: =$O$5 -> 6.559673576 | G26: =E26*F26 -> 82.62469353 | H26: =E26+G26 -> 95.22054796 | J26: =IF(L26-$W$27<=0,10000,L26-$W$27) -> 87.7608737 | K26: 1 | L26: =H26/$J$21 -> 87.7608737 | Y26: =IF($AK26-AV$27<=0,10000,$AK26-AV$27) -> 10000 | Z26: 10000 | AA26: 10000 | AB26: 10000 | AC26: 10000 | AD26: 10000 | AE26: 10000 | AF26: 10000 | AG26: 10000 | AH26: 10000 | AI26: 10000 | AJ26: 1 | AK26: =L26 -> 87.7608737 | AL26: 0.05389528448 | AM26: 0.05310251238 | AN26: 0.05239036436 | AO26: 0.05175064104 | AP26: 0.05117597689 | AQ26: 0.05065975547 | AR26: 0.05019603321 | AS26: 0.04964011424 | AU26: L1 @ 1,8m | AV26: =$R$1 -> 4.9 | AW26: 4.9 | AX26: 4.9 | AY26: 4.9 | AZ26: 4.9 | BA26: 4.9 | BB26: 4.9 | BC26: 4.9 | BD26: 4.9 | BE26: 4.9 | BF26: 4.9 | BI26: =IF($BU26-CF$27<=0,10000,$BU26-CF$27) -> 10000 | BJ26: 10000 | BK26: 10000 | BL26: 10000 | BM26: 10000 | BN26: 10000 | BO26: 10000 | BP26: 10000 | BQ26: 10000 | BR26: 10000 | BS26: 10000 | BT26: 1 | BU26: =AK26 -> 87.7608737 | BV26: 0.04047007784 | BW26: 0.03968877573 | BX26: 0.03891737199 | BY26: 0.03815574121 | BZ26: 0.03740375958 | CA26: 0.03666130485 | CB26: 0.03592825633 | CC26: 0.03494619147 | CE26: L2 | CF26: =$R$3 -> 7.1 | CG26: 7.1 | CH26: 7.1 | CI26: 7.1 | CJ26: 7.1 | CK26: 7.1 | CL26: 7.1 | CM26: 7.1 | CN26: 7.1 | CO26: 7.1 | CP26: 7.1 | CR26: =IF(CT26-$DE$27<=0,10000,CT26-$DE$27) -> 87.7608737 | CS26: 1 | CT26: =BU26 -> 87.7608737 | DH26: =IF($DT26-EE$27<=0,10000,$DT26-EE$27) -> 10000 | DI26: 10000 | DJ26: 10000 | DK26: 10000 | DL26: 10000 | DM26: 10000 | DN26: 10000 | DO26: 10000 | DP26: 10000 | DQ26: 10000 | DR26: 10000 | DS26: 1 | DT26: =CT26 -> 87.7608737 | DU26: 0.12 | DV26: 0.05 | DW26: 1e-05 | DX26: 1e-05 | DY26: 1e-05 | DZ26: 1e-05 | EA26: 1e-05 | EB26: 1e-05 | ED26: L3 | EE26: =$R$4 -> 4.9 | EF26: 4.9 | EG26: 4.9 | EH26: 4.9 | EI26: 4.9 | EJ26: 4.9 | EK26: 4.9 | EL26: 4.9 | EM26: 4.9 | EN26: 4.9 | EO26: 4.9
A27: KT64A_1200 | D27: 35 | E27: =$A$47*D27^$A$48 -> 16.61991057 | F27: =$O$5 -> 6.559673576 | G27: =E27*F27 -> 109.0211882 | H27: =E27+G27 -> 125.6410987 | J27: =IF(L27-$W$27<=0,10000,L27-$W$27) -> 115.7982477 | K27: 2 | L27: =H27/$J$21 -> 115.7982477 | Y27: 10000 | Z27: 10000 | AA27: 10000 | AB27: 10000 | AC27: 10000 | AD27: 10000 | AE27: 10000 | AF27: 10000 | AG27: 10000 | AH27: 10000 | AI27: 10000 | AJ27: 2 | AK27: =L27 -> 115.7982477 | AL27: 0.05536470474 | AM27: 0.05442249418 | AN27: 0.05357610542 | AO27: 0.0528157935 | AP27: 0.05213280448 | AQ27: 0.05151927472 | AR27: 0.05096814028 | AS27: 0.05030742992 | AU27: Q1 | AV27: =B5 -> 1346.712983 | AW27: =C5 -> 832.0456013 | AX27: 738.0291491 | AY27: 663.102332 | AZ27: 601.9869097 | BA27: 471.5926332 | BB27: 387.6295531 | BC27: 329.0457416 | BD27: 285.8449877 | BE27: 252.6714882 | BF27: 230.3900518 | BI27: 10000 | BJ27: 10000 | BK27: 10000 | BL27: 10000 | BM27: 10000 | BN27: 10000 | BO27: 10000 | BP27: 10000 | BQ27: 10000 | BR27: 10000 | BS27: 10000 | BT27: 2 | BU27: =AK27 -> 115.7982477 | BV27: 0.04492070856 | BW27: 0.04408302113 | BX27: 0.04325594642 | BY27: 0.04243934997 | BZ27: 0.04163309903 | CA27: 0.04083706253 | CB27: 0.04005111107 | CC27: 0.03899817217 | CE27: Q2 | CF27: =B5 -> 1346.712983 | CG27: =C5 -> 832.0456013 | CH27: 738.0291491 | CI27: 663.102332 | CJ27: 601.9869097 | CK27: 471.5926332 | CL27: 387.6295531 | CM27: 329.0457416 | CN27: 285.8449877 | CO27: 252.6714882 | CP27: 230.3900518 | CR27: =IF(CT27-$DE$27<=0,10000,CT27-$DE$27) -> 115.7982477 | CS27: 2 | CT27: =BU27 -> 115.7982477 | DH27: =IF($DT27-EE$27<=0,10000,$DT27-EE$27) -> 10000 | DI27: 10000 | DJ27: 10000 | DK27: 10000 | DL27: 10000 | DM27: 10000 | DN27: 10000 | DO27: 10000 | DP27: 10000 | DQ27: 10000 | DR27: 10000 | DS27: 2 | DT27: =CT27 -> 115.7982477 | DU27: 0.23 | DV27: 0.16 | DW27: 0.07 | DX27: 0.05 | DY27: 0.04 | DZ27: 0.03 | EA27: 0.02 | EB27: 0.01 | ED27: Q3 | EE27: =B5 -> 1346.712983 | EF27: =C5 -> 832.0456013 | EG27: 738.0291491 | EH27: 663.102332 | EI27: 601.9869097 | EJ27: 471.5926332 | EK27: 387.6295531 | EL27: 329.0457416 | EM27: 285.8449877 | EN27: 252.6714882 | EO27: =L5 -> 230.3900518
A28: KT64D_1200 | B28: orifice 100 | C28: 39 | D28: 15 | E28: =$A$43*D28^$A$44 -> 30.45477481 | F28: =$O$8 -> 3.504102901 | G28: =E28*F28 -> 106.7166648 | H28: =E28+G28 -> 137.1714396 | J28: 126.4252899 | K28: 3 | L28: 126.4252899 | Y28: 10000 | Z28: 10000 | AA28: 10000 | AB28: 10000 | AC28: 10000 | AD28: 10000 | AE28: 10000 | AF28: 10000 | AG28: 10000 | AH28: 10000 | AI28: 10000 | AJ28: 3 | AK28: 126.4252899 | AL28: 0.05605563551 | AM28: 0.05504315803 | AN28: 0.05413364842 | AO28: 0.05331663497 | AP28: 0.05258271091 | AQ28: 0.05192342615 | AR28: 0.05133118994 | AS28: 0.05062120601 | AU28: v1 | AV28: =FORECAST(AV27,AV44:AV45,AV31:AV32) ->  | AW28: =FORECAST(AW27,AW44:AW45,AW31:AW32) ->  | BB28: 0.07067772707 | BC28: 0.06296123941 | BD28: 0.05892970805 | BE28: 0.05663668078 | BF28: 0.05514040037 | BI28: 10000 | BJ28: 10000 | BK28: 10000 | BL28: 10000 | BM28: 10000 | BN28: 10000 | BO28: 10000 | BP28: 10000 | BQ28: 10000 | BR28: 10000 | BS28: 10000 | BT28: 3 | BU28: =AK28 -> 126.4252899 | BV28: 0.04686785512 | BW28: 0.04600549917 | BX28: 0.04515406846 | BY28: 0.04431342458 | BZ28: 0.04348343087 | CA28: 0.0426639524 | CB28: 0.04185485596 | CC28: 0.04077090973 | CE28: v2 | CF28: =FORECAST(CF27,CF44:CF45,CF31:CF32) ->  | CG28: =FORECAST(CG27,CG44:CG45,CG31:CG32) ->  | CL28: 0.09990507062 | CM28: 0.08294626754 | CN28: 0.07206980723 | CO28: 0.06468766068 | CP28: 0.05978764243 | CR28: 126.4252899 | CS28: 3 | CT28: =BU28 -> 126.4252899 | DH28: 10000 | DI28: 10000 | DJ28: 10000 | DK28: 10000 | DL28: 10000 | DM28: 10000 | DN28: 10000 | DO28: 10000 | DP28: 10000 | DQ28: 10000 | DR28: 10000 | DS28: 3 | DT28: =CT28 -> 126.4252899 | DU28: 0.33 | DV28: 0.21 | DW28: 0.13 | DX28: 0.1 | DY28: 0.06 | DZ28: 0.06 | EA28: 0.06 | EB28: 0.16 | ED28: v3 | EE28: =FORECAST(EE27,EE44:EE45,EE31:EE32) ->  | EF28: =FORECAST(EF27,EF44:EF45,EF31:EF32) ->  | EK28: 0.5624721657 | EL28: 0.4754758885 | EM28: 0.4105334182 | EN28: 0.3536293805 | EO28: 0.3133869726
A29: KT64D_1200 | B29: orifice 100 | C29: 78 | D29: 30 | E29: =$A$43*D29^$A$44 -> 43.102407 | F29: =$O$8 -> 3.504102901 | G29: =E29*F29 -> 151.0352694 | H29: =E29+G29 -> 194.1376764 | J29: 178.928734 | K29: 4 | L29: 178.928734 | Y29: 10000 | Z29: 10000 | AA29: 10000 | AB29: 10000 | AC29: 10000 | AD29: 10000 | AE29: 10000 | AF29: 10000 | AG29: 10000 | AH29: 10000 | AI29: 10000 | AJ29: 4 | AK29: 178.928734 | AL29: 0.05992262524 | AM29: 0.05851687904 | AN29: 0.05725409572 | AO29: 0.05611973612 | AP29: 0.05510073967 | AQ29: 0.05418537407 | AR29: 0.05336310018 | AS29: 0.05237734274 | AU29: L1min | AV29: =HLOOKUP(AV39,$AL$24:$AS$25,2,0) -> 4.4 | AW29: =HLOOKUP(AW39,$AL$24:$AS$25,2,0) -> 4.4 | AX29: 4.4 | AY29: 4.4 | AZ29: 4.4 | BA29: 4.4 | BB29: 4.4 | BC29: 4.4 | BD29: 4.4 | BE29: 4.4 | BF29: 4.4 | BI29: 10000 | BJ29: 10000 | BK29: 10000 | BL29: 10000 | BM29: 10000 | BN29: 10000 | BO29: 10000 | BP29: 10000 | BQ29: 10000 | BR29: 10000 | BS29: 10000 | BT29: 4 | BU29: 178.928734 | BV29: 0.05650532113 | BW29: 0.05552086752 | BX29: 0.054548886 | BY29: 0.05358921859 | BZ29: 0.05264170926 | CA29: 0.05170620399 | CB29: 0.05078255069 | CC29: 0.04954513268 | CE29: L2min | CF29: =HLOOKUP(CF39,$BV$24:$CC$25,2,0) -> 6.6 | CG29: =HLOOKUP(CG39,$BV$24:$CC$25,2,0) -> 6.6 | CH29: 6.6 | CI29: 6.6 | CJ29: 6.6 | CK29: 6.6 | CL29: 6.6 | CM29: 6.6 | CN29: 6.6 | CO29: 6.6 | CP29: 6.6 | CR29: 178.928734 | CS29: 4 | CT29: 178.928734 | DH29: 10000 | DI29: 10000 | DJ29: 10000 | DK29: 10000 | DL29: 10000 | DM29: 10000 | DN29: 10000 | DO29: 10000 | DP29: 10000 | DQ29: 10000 | DR29: 10000 | DS29: 4 | DT29: 178.928734 | DU29: 0.49 | DV29: 0.39 | DW29: 0.31 | DX29: 0.28 | DY29: 0.22 | DZ29: 0.19 | EA29: 0.18 | EB29: 0.18 | ED29: L3min | EE29: =HLOOKUP(EE39,$DU$24:$EB$25,2,0) -> 4.4 | EF29: =HLOOKUP(EF39,$DU$24:$EB$25,2,0) -> 4.4 | EG29: 4.4 | EH29: 4.4 | EI29: 4.4 | EJ29: 4.4 | EK29: 4.4 | EL29: 4.4 | EM29: 4.4 | EN29: 4.4 | EO29: 4.4
A30: KT64D_1200 | B30: orifice 100 | C30: 133 | D30: 50 | E30: =$A$43*D30^$A$44 -> 55.67624431 | F30: 3.504102901 | G30: 195.0952892 | H30: 250.7715335 | J30: 231.1258373 | K30: 5 | L30: 231.1258373 | Y30: 10000 | Z30: 10000 | AA30: 10000 | AB30: 10000 | AC30: 10000 | AD30: 10000 | AE30: 10000 | AF30: 10000 | AG30: 10000 | AH30: 10000 | AI30: 0.7357854698 | AJ30: 5 | AK30: 231.1258373 | AL30: 0.06528801243 | AM30: 0.06333661209 | AN30: 0.06158366707 | AO30: 0.0600089947 | AP30: 0.05859446481 | AQ30: 0.05732379111 | AR30: 0.05618234356 | AS30: 0.05481395472 | AU30: L1max | AV30: =HLOOKUP(AV40,$AL$24:$AS$25,2,0) -> 5.08 | AW30: 5.08 | AX30: 5.08 | AY30: 5.08 | AZ30: 5.08 | BA30: 5.08 | BB30: 5.08 | BC30: 5.08 | BD30: 5.08 | BE30: 5.08 | BF30: 5.08 | BI30: 10000 | BJ30: 10000 | BK30: 10000 | BL30: 10000 | BM30: 10000 | BN30: 10000 | BO30: 10000 | BP30: 10000 | BQ30: 10000 | BR30: 10000 | BS30: 0.7357854698 | BT30: 5 | BU30: 231.1258373 | BV30: 0.06750055356 | BW30: 0.06637680065 | BX30: 0.06526728464 | BY30: 0.06417182515 | BZ30: 0.06309024412 | CA30: 0.06202236569 | CB30: 0.06096801629 | CC30: 0.05955550476 | CE30: L2max | CF30: =HLOOKUP(CF40,$BV$24:$CC$25,2,0) -> 7.28 | CG30: 7.28 | CH30: 7.28 | CI30: 7.28 | CJ30: 7.28 | CK30: 7.28 | CL30: 7.28 | CM30: 7.28 | CN30: 7.28 | CO30: 7.28 | CP30: 7.28 | CR30: 231.1258373 | CS30: 5 | CT30: 231.1258373 | DH30: 10000 | DI30: 10000 | DJ30: 10000 | DK30: 10000 | DL30: 10000 | DM30: 10000 | DN30: 10000 | DO30: 10000 | DP30: 10000 | DQ30: 10000 | DR30: 0.7357854698 | DS30: 5 | DT30: 231.1258373 | DU30: 0.65 | DV30: 0.53 | DW30: 0.42 | DX30: 0.42 | DY30: 0.37 | DZ30: 0.36 | EA30: 0.33 | EB30: 0.31 | ED30: L3max | EE30: =HLOOKUP(EE40,$DU$24:$EB$25,2,0) -> 5.08 | EF30: 5.08 | EG30: 5.08 | EH30: 5.08 | EI30: 5.08 | EJ30: 5.08 | EK30: 5.08 | EL30: 5.08 | EM30: 5.08 | EN30: 5.08 | EO30: 5.08
A31: KT64D_1200 | B31: orifice 100 | C31: 205 | D31: 75 | E31: =$A$43*D31^$A$44 -> 68.21961463 | F31: 3.504102901 | G31: 239.0485495 | H31: 307.2681641 | J31: 283.1964646 | K31: 6 | L31: 283.1964646 | Y31: 10000 | Z31: 10000 | AA31: 10000 | AB31: 10000 | AC31: 10000 | AD31: 10000 | AE31: 10000 | AF31: 10000 | AG31: 10000 | AH31: 30.52497645 | AI31: 52.8064128 | AJ31: 6 | AK31: 283.1964646 | AL31: 0.07275015429 | AM31: 0.0700398621 | AN31: 0.06760520373 | AO31: 0.06541814752 | AP31: 0.06345351258 | AQ31: 0.06168867891 | AR31: 0.06010332694 | AS31: 0.05820277712 | AU31: Qmin | AV31: =VLOOKUP(AV41,$AJ$26:$AK$38,2,0) ->  | AW31: =VLOOKUP(AW41,$AJ$26:$AK$38,2,0) ->  | BB31: 365.810558 | BC31: 327.1106081 | BD31: 283.1964646 | BE31: 231.1258373 | BF31: 178.928734 | BI31: 10000 | BJ31: 10000 | BK31: 10000 | BL31: 10000 | BM31: 10000 | BN31: 10000 | BO31: 10000 | BP31: 10000 | BQ31: 10000 | BR31: 30.52497645 | BS31: 52.8064128 | BT31: 6 | BU31: 283.1964646 | BV31: 0.08007326704 | BW31: 0.07879022963 | BX31: 0.0775234471 | BY31: 0.07627271352 | BZ31: 0.07503782556 | CA31: 0.07381858248 | CB31: 0.07261478606 | CC31: 0.07100206041 | CE31: Qmin | CF31: =VLOOKUP(CF41,$BT$26:$BU$38,2,0) ->  | CG31: =VLOOKUP(CG41,$BT$26:$BU$38,2,0) ->  | CL31: 365.810558 | CM31: 327.1106081 | CN31: 283.1964646 | CO31: 231.1258373 | CP31: 178.928734 | CR31: 283.1964646 | CS31: 6 | CT31: 283.1964646 | DH31: 10000 | DI31: 10000 | DJ31: 10000 | DK31: 10000 | DL31: 10000 | DM31: 10000 | DN31: 10000 | DO31: 10000 | DP31: 10000 | DQ31: 30.52497645 | DR31: 52.8064128 | DS31: 6 | DT31: 283.1964646 | DU31: 0.82 | DV31: 0.63 | DW31: 0.56 | DX31: 0.56 | DY31: 0.47 | DZ31: 0.46 | EA31: 0.43 | EB31: 0.4 | ED31: Qmin | EE31: =VLOOKUP(EE41,$DS$26:$DT$38,2,0) ->  | EF31: =VLOOKUP(EF41,$DS$26:$DT$38,2,0) ->  | EK31: 365.810558 | EL31: 327.1106081 | EM31: 283.1964646 | EN31: 231.1258373 | EO31: 178.928734
A32: KT64D_1200 | B32: orifice 100 | C32: 232 | D32: 85 | E32: 72.63532538 | F32: 3.504102901 | G32: 254.5216544 | H32: 327.1569797 | J32: 301.5271703 | K32: 7 | L32: 301.5271703 | Y32: 10000 | Z32: 10000 | AA32: 10000 | AB32: 10000 | AC32: 10000 | AD32: 10000 | AE32: 10000 | AF32: 10000 | AG32: 15.68218253 | AH32: 48.85568208 | AI32: 71.13711842 | AJ32: 7 | AK32: 301.5271703 | AL32: 0.07602543416 | AM32: 0.07298204952 | AN32: 0.07024817384 | AO32: 0.06779233039 | AP32: 0.06558624359 | AQ32: 0.06360451346 | AR32: 0.06182432317 | AS32: 0.05969019748 | AU32: Qmax | AV32: =VLOOKUP(AV42,$AJ$26:$AK$38,2,0) -> 87.7608737 | AW32: 87.7608737 | AX32: 87.7608737 | AY32: 87.7608737 | AZ32: 87.7608737 | BA32: 87.7608737 | BB32: 400.8057638 | BC32: 346.2244863 | BD32: 301.5271703 | BE32: 283.1964646 | BF32: 231.1258373 | BI32: 10000 | BJ32: 10000 | BK32: 10000 | BL32: 10000 | BM32: 10000 | BN32: 10000 | BO32: 10000 | BP32: 10000 | BQ32: 15.68218253 | BR32: 48.85568208 | BS32: 71.13711842 | BT32: 7 | BU32: 301.5271703 | BV32: 0.08492256721 | BW32: 0.08357809371 | BX32: 0.08225065343 | BY32: 0.08094003058 | BZ32: 0.07964601208 | CA32: 0.07836838759 | CB32: 0.07710694941 | CC32: 0.0754170011 | CE32: Qmax | CF32: =VLOOKUP(CF42,$BT$26:$BU$38,2,0) -> 87.7608737 | CG32: 87.7608737 | CH32: 87.7608737 | CI32: 87.7608737 | CJ32: 87.7608737 | CK32: 87.7608737 | CL32: 400.8057638 | CM32: 346.2244863 | CN32: 301.5271703 | CO32: 283.1964646 | CP32: 231.1258373 | CR32: 301.5271703 | CS32: 7 | CT32: 301.5271703 | DH32: 10000 | DI32: 10000 | DJ32: 10000 | DK32: 10000 | DL32: 10000 | DM32: 10000 | DN32: 10000 | DO32: 10000 | DP32: 15.68218253 | DQ32: 48.85568208 | DR32: 71.13711842 | DS32: 7 | DT32: 301.5271703 | DU32: 0.88 | DV32: 0.7 | DW32: 0.59 | DX32: 0.53 | DY32: 0.49 | DZ32: 0.48 | EA32: 0.47 | EB32: 0.41 | ED32: Qmax | EE32: =VLOOKUP(EE42,$DS$26:$DT$38,2,0) -> 87.7608737 | EF32: 87.7608737 | EG32: 87.7608737 | EH32: 87.7608737 | EI32: 87.7608737 | EJ32: 87.7608737 | EK32: 400.8057638 | EL32: 346.2244863 | EM32: 301.5271703 | EN32: 283.1964646 | EO32: 231.1258373
A33: KT64D_1200 | B33: orifice 100 | C33: 277 | D33: 100 | E33: 78.7981575 | F33: 3.504102901 | G33: 276.1168523 | H33: 354.9150097 | J33: 327.1106081 | K33: 8 | L33: 327.1106081 | Y33: 10000 | Z33: 10000 | AA33: 10000 | AB33: 10000 | AC33: 10000 | AD33: 10000 | AE33: 10000 | AF33: 10000 | AG33: 41.26562032 | AH33: 74.43911987 | AI33: 96.72055622 | AJ33: 8 | AK33: 327.1106081 | AL33: 0.08128757238 | AM33: 0.07770903391 | AN33: 0.07449442897 | AO33: 0.07160674592 | AP33: 0.06901273714 | AQ33: 0.06668253628 | AR33: 0.06458931436 | AS33: 0.06207992046 | BI33: 10000 | BJ33: 10000 | BK33: 10000 | BL33: 10000 | BM33: 10000 | BN33: 10000 | BO33: 10000 | BP33: 10000 | BQ33: 41.26562032 | BR33: 74.43911987 | BS33: 96.72055622 | BT33: 8 | BU33: 327.1106081 | BV33: 0.09209066441 | BW33: 0.09065537783 | BX33: 0.08923827499 | BY33: 0.08783912552 | BZ33: 0.08645770196 | CA33: 0.08509377974 | CB33: 0.08374713713 | CC33: 0.0819430405 | CR33: 327.1106081 | CS33: 8 | CT33: 327.1106081 | DH33: 10000 | DI33: 10000 | DJ33: 10000 | DK33: 10000 | DL33: 10000 | DM33: 10000 | DN33: 10000 | DO33: 10000 | DP33: 41.26562032 | DQ33: 74.43911987 | DR33: 96.72055622 | DS33: 8 | DT33: 327.1106081 | DU33: 0.96 | DV33: 0.77 | DW33: 0.65 | DX33: 0.6 | DY33: 0.53 | DZ33: 0.51 | EA33: 0.48 | EB33: 0.47
A34: KT64D_1200 | B34: meetbuis 100-80 | C34: 38 | D34: 112 | E34: 83.40252784 | F34: 3.504102901 | G34: 292.2510397 | H34: 375.6535676 | J34: 346.2244863 | K34: 9 | L34: 346.2244863 | Y34: 10000 | Z34: 10000 | AA34: 10000 | AB34: 10000 | AC34: 10000 | AD34: 10000 | AE34: 10000 | AF34: 17.1787447 | AG34: 60.37949851 | AH34: 93.55299806 | AI34: 115.8344344 | AJ34: 9 | AK34: 346.2244863 | AL34: 0.08582030455 | AM34: 0.08178079207 | AN34: 0.07815209368 | AO34: 0.07489243004 | AP34: 0.0719642707 | AQ34: 0.06933390203 | AR34: 0.06697103905 | AS34: 0.06413839437 | AU34: Lmin Q min | AV34: =INDEX($AL$26:$AS$38,AV41,AV39) -> 0.06697103905 | AW34: =INDEX($AL$26:$AS$38,AW41,AW39) -> 0.06697103905 | AX34: 0.06697103905 | AY34: 0.06697103905 | AZ34: 0.06697103905 | BA34: 0.06697103905 | BB34: 0.0697331117 | BC34: 0.06458931436 | BD34: 0.06010332694 | BE34: 0.05618234356 | BF34: 0.05336310018 | BI34: 10000 | BJ34: 10000 | BK34: 10000 | BL34: 10000 | BM34: 10000 | BN34: 10000 | BO34: 10000 | BP34: 17.1787447 | BQ34: 60.37949851 | BR34: 93.55299806 | BS34: 115.8344344 | BT34: 9 | BU34: 346.2244863 | BV34: 0.09776742799 | BW34: 0.09626022214 | BX34: 0.09477211117 | BY34: 0.09330285318 | BZ34: 0.09185220931 | CA34: 0.09041994373 | CB34: 0.08900582362 | CC34: 0.08711132739 | CE34: Lmin Q min | CF34: =INDEX($BV$26:$CC$38,CF41,CF39) -> 0.08900582362 | CG34: =INDEX($BV$26:$CC$38,CG41,CG39) -> 0.08900582362 | CH34: 0.08900582362 | CI34: 0.08900582362 | CJ34: 0.08900582362 | CK34: 0.08900582362 | CL34: 0.09467364585 | CM34: 0.08374713713 | CN34: 0.07261478606 | CO34: 0.06096801629 | CP34: 0.05078255069 | CR34: 346.2244863 | CS34: 9 | CT34: 346.2244863 | DH34: 10000 | DI34: 10000 | DJ34: 10000 | DK34: 10000 | DL34: 10000 | DM34: 10000 | DN34: 10000 | DO34: 17.1787447 | DP34: 60.37949851 | DQ34: 93.55299806 | DR34: 115.8344344 | DS34: 9 | DT34: 346.2244863 | DU34: 0.99 | DV34: 0.8 | DW34: 0.73 | DX34: 0.63 | DY34: 0.58 | DZ34: 0.55 | EA34: 0.53 | EB34: 0.49 | ED34: Lmin Q min | EE34: =INDEX($DU$26:$EB$38,EE41,EE39) -> 0.53 | EF34: 0.53 | EG34: 0.53 | EH34: 0.53 | EI34: 0.53 | EJ34: 0.53 | EK34: 0.58 | EL34: 0.48 | EM34: 0.43 | EN34: 0.33 | EO34: 0.18
A35: KT64D_1200 | B35: meetbuis 100-80 | C35: 44 | D35: 125 | E35: 88.12064559 | F35: 3.504102901 | G35: 308.7838098 | H35: 396.9044554 | J35: 365.810558 | K35: 10 | L35: 365.810558 | Y35: 10000 | Z35: 10000 | AA35: 10000 | AB35: 10000 | AC35: 10000 | AD35: 10000 | AE35: 10000 | AF35: 36.76481642 | AG35: 79.96557023 | AH35: 113.1390698 | AI35: 135.4205061 | AJ35: 10 | AK35: 365.810558 | AL35: 0.09107688841 | AM35: 0.08650278697 | AN35: 0.08239386675 | AO35: 0.07870281932 | AP35: 0.07538714747 | AQ35: 0.0724086759 | AR35: 0.0697331117 | AS35: 0.06652559491 | AU35: Lmax Q min | AV35: =INDEX($AL$26:$AS$38,AV41,AV40) -> 0.06652559491 | AW35: =INDEX($AL$26:$AS$38,AW41,AW40) -> 0.06652559491 | AX35: 0.06652559491 | AY35: 0.06652559491 | AZ35: 0.06652559491 | BA35: 0.06652559491 | BB35: 0.06652559491 | BC35: 0.06207992046 | BD35: 0.05820277712 | BE35: 0.05481395472 | BF35: 0.05237734274 | BI35: 10000 | BJ35: 10000 | BK35: 10000 | BL35: 10000 | BM35: 10000 | BN35: 10000 | BO35: 10000 | BP35: 36.76481642 | BQ35: 79.96557023 | BR35: 113.1390698 | BS35: 135.4205061 | BT35: 10 | BU35: 365.810558 | BV35: 0.1038858545 | BW35: 0.1023011339 | BX35: 0.1007364903 | BY35: 0.09919166917 | BZ35: 0.09766641952 | CA35: 0.09616049335 | CB35: 0.09467364585 | CC35: 0.09268171677 | CE35: Lmax Q min | CF35: =INDEX($BV$26:$CC$38,CF41,CF40) -> 0.09268171677 | CG35: =INDEX($BV$26:$CC$38,CG41,CG40) -> 0.09268171677 | CH35: 0.09268171677 | CI35: 0.09268171677 | CJ35: 0.09268171677 | CK35: 0.09268171677 | CL35: 0.09268171677 | CM35: 0.0819430405 | CN35: 0.07100206041 | CO35: 0.05955550476 | CP35: 0.04954513268 | CR35: 365.810558 | CS35: 10 | CT35: 365.810558 | DH35: 10000 | DI35: 10000 | DJ35: 10000 | DK35: 10000 | DL35: 10000 | DM35: 10000 | DN35: 10000 | DO35: 36.76481642 | DP35: 79.96557023 | DQ35: 113.1390698 | DR35: 135.4205061 | DS35: 10 | DT35: 365.810558 | DU35: 1.04 | DV35: 0.86 | DW35: 0.79 | DX35: 0.67 | DY35: 0.62 | DZ35: 0.6 | EA35: 0.58 | EB35: 0.52 | ED35: Lmax Q min | EE35: =INDEX($DU$26:$EB$38,EE41,EE40) -> 0.52 | EF35: =INDEX($DU$26:$EB$38,EF41,EF40) -> 0.52 | EG35: 0.52 | EH35: 0.52 | EI35: 0.52 | EJ35: 0.52 | EK35: 0.52 | EL35: 0.47 | EM35: 0.4 | EN35: 0.31 | EO35: 0.18
A36: KT64D_1200 | B36: meetbuis 100-80 | C36: 53 | D36: 150 | E36: 96.5506924 | F36: 3.504102901 | G36: 338.3235613 | H36: 434.8742537 | J36: 400.8057638 | K36: 11 | L36: 400.8057638 | Y36: 10000 | Z36: 10000 | AA36: 10000 | AB36: 10000 | AC36: 10000 | AD36: 10000 | AE36: 13.17621067 | AF36: 71.76002222 | AG36: 114.960776 | AH36: 148.1342756 | AI36: 170.4157119 | AJ36: 11 | AK36: 400.8057638 | AL36: 0.102276952 | AM36: 0.09656381607 | AN36: 0.09143169995 | AO36: 0.08682151455 | AP36: 0.08268018008 | AQ36: 0.0789600149 | AR36: 0.07561818653 | AS36: 0.0716119397 | AU36: Lmin Q max | AV36: =INDEX($AL$26:$AS$38,AV42,AV39) -> 0.05019603321 | AW36: =INDEX($AL$26:$AS$38,AW42,AW39) -> 0.05019603321 | AX36: 0.05019603321 | AY36: 0.05019603321 | AZ36: 0.05019603321 | BA36: 0.05019603321 | BB36: 0.07561818653 | BC36: 0.06697103905 | BD36: 0.06182432317 | BE36: 0.06010332694 | BF36: 0.05618234356 | BI36: 10000 | BJ36: 10000 | BK36: 10000 | BL36: 10000 | BM36: 10000 | BN36: 10000 | BO36: 13.17621067 | BP36: 71.76002222 | BQ36: 114.960776 | BR36: 148.1342756 | BS36: 170.4157119 | BT36: 11 | BU36: 400.8057638 | BV36: 0.1156278628 | BW36: 0.113894382 | BX36: 0.1121828627 | BY36: 0.1104930268 | BZ36: 0.1088245996 | CA36: 0.1071773097 | CB36: 0.1055508895 | CC36: 0.1033719748 | CE36: Lmin Q max | CF36: =INDEX($BV$26:$CC$38,CF42,CF39) -> 0.03592825633 | CG36: =INDEX($BV$26:$CC$38,CG42,CG39) -> 0.03592825633 | CH36: 0.03592825633 | CI36: 0.03592825633 | CJ36: 0.03592825633 | CK36: 0.03592825633 | CL36: 0.1055508895 | CM36: 0.08900582362 | CN36: 0.07710694941 | CO36: 0.07261478606 | CP36: 0.06096801629 | CR36: 400.8057638 | CS36: 11 | CT36: 400.8057638 | DH36: 10000 | DI36: 10000 | DJ36: 10000 | DK36: 10000 | DL36: 10000 | DM36: 10000 | DN36: 13.17621067 | DO36: 71.76002222 | DP36: 114.960776 | DQ36: 148.1342756 | DR36: 170.4157119 | DS36: 11 | DT36: 400.8057638 | DU36: 1.16 | DV36: 0.94 | DW36: 0.83 | DX36: 0.75 | DY36: 0.71 | DZ36: 0.65 | EA36: 0.63 | EB36: 0.56 | ED36: Lmin Q max | EE36: =INDEX($DU$26:$EB$38,EE42,EE39) -> 1e-05 | EF36: =INDEX($DU$26:$EB$38,EF42,EF39) -> 1e-05 | EG36: 1e-05 | EH36: 1e-05 | EI36: 1e-05 | EJ36: 1e-05 | EK36: 0.63 | EL36: 0.53 | EM36: 0.47 | EN36: 0.43 | EO36: 0.33
A37: KT64D_1200 | B37: meetbuis 100-80 | C37: 62 | D37: 175 | E37: 104.3043519 | F37: 3.504102901 | G37: 365.493182 | H37: 469.7975339 | J37: 432.9931188 | K37: 12 | L37: 432.9931188 | Y37: 10000 | Z37: 10000 | AA37: 10000 | AB37: 10000 | AC37: 10000 | AD37: 10000 | AE37: 45.36356571 | AF37: 103.9473773 | AG37: 147.1481311 | AH37: 180.3216306 | AI37: 202.603067 | AJ37: 12 | AK37: 432.9931188 | AL37: 0.1150463831 | AM37: 0.1080346097 | AN37: 0.1017359261 | AO37: 0.09607781194 | AP37: 0.09099512192 | AQ37: 0.08642933604 | AR37: 0.08232788571 | AS37: 0.07741098974 | AU37: Lmax Q max | AV37: =INDEX($AL$26:$AS$38,AV42,AV40) -> 0.04964011424 | AW37: =INDEX($AL$26:$AS$38,AW42,AW40) -> 0.04964011424 | AX37: 0.04964011424 | AY37: 0.04964011424 | AZ37: 0.04964011424 | BA37: 0.04964011424 | BB37: 0.0716119397 | BC37: 0.06413839437 | BD37: 0.05969019748 | BE37: 0.05820277712 | BF37: 0.05481395472 | BI37: 10000 | BJ37: 10000 | BK37: 10000 | BL37: 10000 | BM37: 10000 | BN37: 10000 | BO37: 45.36356571 | BP37: 103.9473773 | BQ37: 147.1481311 | BR37: 180.3216306 | BS37: 202.603067 | BT37: 12 | BU37: 432.9931188 | BV37: 0.1274168277 | BW37: 0.1255339917 | BX37: 0.1236750095 | BY37: 0.1218395789 | BZ37: 0.1200274015 | CA37: 0.1182381826 | CB37: 0.1164716315 | CC37: 0.1141049835 | CE37: Lmax Q max | CF37: =INDEX($BV$26:$CC$38,CF42,CF40) -> 0.03494619147 | CG37: =INDEX($BV$26:$CC$38,CG42,CG40) -> 0.03494619147 | CH37: 0.03494619147 | CI37: 0.03494619147 | CJ37: 0.03494619147 | CK37: 0.03494619147 | CL37: 0.1033719748 | CM37: 0.08711132739 | CN37: 0.0754170011 | CO37: 0.07100206041 | CP37: 0.05955550476 | CR37: 432.9931188 | CS37: 12 | CT37: 432.9931188 | DH37: 10000 | DI37: 10000 | DJ37: 10000 | DK37: 10000 | DL37: 10000 | DM37: 10000 | DN37: 45.36356571 | DO37: 103.9473773 | DP37: 147.1481311 | DQ37: 180.3216306 | DR37: 202.603067 | DS37: 12 | DT37: 432.9931188 | DU37: 1.26 | DV37: 1.02 | DW37: 0.93 | DX37: 0.84 | DY37: 0.75 | DZ37: 0.72 | EA37: 0.72 | EB37: 0.63 | ED37: Lmax Q max | EE37: =INDEX($DU$26:$EB$38,EE42,EE40) -> 1e-05 | EF37: =INDEX($DU$26:$EB$38,EF42,EF40) -> 1e-05 | EG37: 1e-05 | EH37: 1e-05 | EI37: 1e-05 | EJ37: 1e-05 | EK37: 0.56 | EL37: 0.49 | EM37: 0.41 | EN37: 0.4 | EO37: 0.31
A38: KT64D_1200 | B38: meetbuis 100-80 | C38: 71 | D38: 200 | E38: 111.5224222 | F38: 3.504102901 | G38: 390.7860432 | H38: 502.3084654 | J38: 462.9571109 | K38: 13 | L38: 462.9571109 | Y38: 10000 | Z38: 10000 | AA38: 10000 | AB38: 10000 | AC38: 10000 | AD38: 10000 | AE38: 75.32755784 | AF38: 133.9113694 | AG38: 177.1121232 | AH38: 210.2856227 | AI38: 232.5670591 | AJ38: 13 | AK38: 462.9571109 | AL38: 0.1295499708 | AM38: 0.121063198 | AN38: 0.113439521 | AO38: 0.1065911637 | AP38: 0.1004392771 | AQ38: 0.09491303071 | AR38: 0.0899487977 | AS38: 0.0839975816 | AU38: Index | BI38: 10000 | BJ38: 10000 | BK38: 10000 | BL38: 10000 | BM38: 10000 | BN38: 10000 | BO38: 75.32755784 | BP38: 133.9113694 | BQ38: 177.1121232 | BR38: 210.2856227 | BS38: 232.5670591 | BT38: 13 | BU38: 462.9571109 | BV38: 0.1393183903 | BW38: 0.1372847727 | BX38: 0.1352769191 | BY38: 0.1332945032 | BZ38: 0.1313372026 | CA38: 0.1294046991 | CB38: 0.1274966787 | CC38: 0.1249405044 | CE38: Index | CR38: 462.9571109 | CS38: 13 | CT38: 462.9571109 | DH38: 10000 | DI38: 10000 | DJ38: 10000 | DK38: 10000 | DL38: 10000 | DM38: 10000 | DN38: 75.32755784 | DO38: 133.9113694 | DP38: 177.1121232 | DQ38: 210.2856227 | DR38: =IF($DT38-EO$27<=0,10000,$DT38-EO$27) -> 232.5670591 | DS38: 13 | DT38: 462.9571109 | DU38: 1.36 | DV38: 1.08 | DW38: 0.97 | DX38: 0.88 | DY38: 0.82 | DZ38: 0.77 | EA38: 0.76 | EB38: 0.69 | ED38: Index
J39: Qmax | K39: index | Y39: Qmax | Z39: Qmax | AA39: Qmax | AB39: Qmax | AC39: Qmax | AD39: Qmax | AE39: Qmax | AF39: Qmax | AG39: Qmax | AH39: Qmax | AI39: Qmax | AJ39: index | AU39: L1min | AV39: =AV40-1 -> 7 | AW39: =AW40-1 -> 7 | AX39: 7 | AY39: 7 | AZ39: 7 | BA39: 7 | BB39: 7 | BC39: 7 | BD39: 7 | BE39: 7 | BF39: 7 | BI39: Qmax | BJ39: Qmax | BK39: Qmax | BL39: Qmax | BM39: Qmax | BN39: Qmax | BO39: Qmax | BP39: Qmax | BQ39: Qmax | BR39: Qmax | BS39: Qmax | BT39: index | CE39: L2min | CF39: =CF40-1 -> 7 | CG39: =CG40-1 -> 7 | CH39: 7 | CI39: 7 | CJ39: 7 | CK39: 7 | CL39: 7 | CM39: 7 | CN39: 7 | CO39: 7 | CP39: 7 | CR39: Qmax | CS39: index | DH39: Qmax | DI39: Qmax | DJ39: Qmax | DK39: Qmax | DL39: Qmax | DM39: Qmax | DN39: Qmax | DO39: Qmax | DP39: Qmax | DQ39: Qmax | DR39: Qmax | DS39: index | ED39: L3min | EE39: =EE40-1 -> 7 | EF39: =EF40-1 -> 7 | EG39: 7 | EH39: 7 | EI39: 7 | EJ39: 7 | EK39: 7 | EL39: 7 | EM39: 7 | EN39: 7 | EO39: 7
A40: KT64A_1201 | D40: 87 | E40: =$A$47*D40^$A$48 -> 26.09367273 | F40: =$F$26 -> 6.559673576 | G40: =E40*F40 -> 171.1659755 | H40: =E40+G40 -> 197.2596482 | J40: =MIN(J26:J38) -> 87.7608737 | L40: =H40/$J$21 -> 181.8061274 | Y40: =MIN(Y26:Y38) -> 10000 | Z40: =MIN(Z26:Z38) -> 10000 | AA40: 10000 | AB40: 10000 | AC40: 10000 | AD40: 10000 | AE40: 13.17621067 | AF40: 17.1787447 | AG40: 15.68218253 | AH40: 30.52497645 | AI40: 0.7357854698 | AU40: L1max | AV40: =HLOOKUP(AU23,AL23:AS24,2,0) -> 8 | AW40: =HLOOKUP($ED$23,$DU$23:$EB$24,2,0) -> 8 | AX40: 8 | AY40: 8 | AZ40: 8 | BA40: 8 | BB40: 8 | BC40: 8 | BD40: 8 | BE40: 8 | BF40: 8 | BI40: =MIN(BI26:BI38) -> 10000 | BJ40: =MIN(BJ26:BJ38) -> 10000 | BK40: 10000 | BL40: 10000 | BM40: 10000 | BN40: 10000 | BO40: 13.17621067 | BP40: 17.1787447 | BQ40: 15.68218253 | BR40: 30.52497645 | BS40: 0.7357854698 | BU40: =AK40 -> 0 | BV40: 0.07 | BW40: 0.07 | BX40: 0.04 | BY40: 0.04 | BZ40: 0.04 | CA40: 0.04 | CB40: 0.04 | CC40: 0.04 | CE40: L2max | CF40: =HLOOKUP(CE23,BV23:CC24,2,0) -> 8 | CG40: =HLOOKUP($ED$23,$DU$23:$EB$24,2,0) -> 8 | CH40: 8 | CI40: 8 | CJ40: 8 | CK40: 8 | CL40: 8 | CM40: 8 | CN40: 8 | CO40: 8 | CP40: 8 | CR40: =MIN(CR26:CR38) -> 87.7608737 | DH40: =MIN(DH26:DH38) -> 10000 | DI40: =MIN(DI26:DI38) -> 10000 | DJ40: 10000 | DK40: 10000 | DL40: 10000 | DM40: 10000 | DN40: 13.17621067 | DO40: 17.1787447 | DP40: 15.68218253 | DQ40: 30.52497645 | DR40: 0.7357854698 | DT40: =CT51 -> 0 | DU40: 0.44 | DV40: 0.38 | DW40: 0.3 | DX40: 0.29 | DY40: 0.27 | DZ40: 0.21 | EA40: 0.17 | EB40: 0.13 | ED40: L3max | EE40: =HLOOKUP($ED$23,$DU$23:$EB$24,2,0) -> 8 | EF40: =HLOOKUP($ED$23,$DU$23:$EB$24,2,0) -> 8 | EG40: 8 | EH40: 8 | EI40: 8 | EJ40: 8 | EK40: 8 | EL40: 8 | EM40: 8 | EN40: 8 | EO40: 8
AU41: Qmin | AV41: =AV42-1 -> 0 | AW41: =AW42-1 -> 0 | AX41: 0 | AY41: 0 | AZ41: 0 | BA41: 0 | BB41: 10 | BC41: 8 | BD41: 6 | BE41: 5 | BF41: 4 | CE41: Qmin | CF41: =CF42-1 -> 0 | CG41: =CG42-1 -> 0 | CH41: 0 | CI41: 0 | CJ41: 0 | CK41: 0 | CL41: 10 | CM41: 8 | CN41: 6 | CO41: 5 | CP41: 4 | ED41: Qmin | EE41: =EE42-1 -> 0 | EF41: =EF42-1 -> 0 | EG41: 0 | EH41: 0 | EI41: 0 | EJ41: 0 | EK41: 10 | EL41: 8 | EM41: 6 | EN41: 5 | EO41: 4
A42: factoren D nozzle | D42: gemeten | F42: trendanalyse | L42: fout | T42: =ABS(T29-T40) -> 0 | AU42: Qmax | AV42: =VLOOKUP(Y40,Y26:$AJ$38,12,0) -> 1 | AW42: =VLOOKUP(Z40,Z26:$AJ$38,11,0) -> 1 | AX42: =VLOOKUP(AA40,AA26:$AJ$38,10,0) -> 1 | AY42: =VLOOKUP(AB40,AB26:$AJ$38,9,0) -> 1 | AZ42: =VLOOKUP(AC40,AC26:$AJ$38,8,0) -> 1 | BA42: =VLOOKUP(AD40,AD26:$AJ$38,7,0) -> 1 | BB42: =VLOOKUP(AE40,AE26:$AJ$38,6,0) -> 11 | BC42: =VLOOKUP(AF40,AF26:$AJ$38,5,0) -> 9 | BD42: =VLOOKUP(AG40,AG26:$AJ$38,4,0) -> 7 | BE42: =VLOOKUP(AH40,AH26:$AJ$38,3,0) -> 6 | BF42: =VLOOKUP(AI40,AI26:$AJ$38,2,0) -> 5 | BU42: fout | BV42: =ABS(BV29-BV40) -> 0.01349467887 | BW42: =ABS(BW29-BW40) -> 0.01447913248 | BX42: 0.014548886 | BY42: 0.01358921859 | BZ42: 0.01264170926 | CA42: 0.01170620399 | CB42: 0.01078255069 | CC42: 0.009545132677 | CE42: Qmax | CF42: =VLOOKUP(BI40,BI26:BT38,12,0) -> 1 | CG42: =VLOOKUP(BJ40,BJ26:BT38,11,0) -> 1 | CH42: =VLOOKUP(BK40,BK26:BU38,10,0) -> 1 | CI42: =VLOOKUP(BL40,BL26:BV38,9,0) -> 1 | CJ42: =VLOOKUP(BM40,BM26:BW38,8,0) -> 1 | CK42: =VLOOKUP(BN40,BN26:BX38,7,0) -> 1 | CL42: =VLOOKUP(BO40,BO26:BY38,6,0) -> 11 | CM42: =VLOOKUP(BP40,BP26:BZ38,5,0) -> 9 | CN42: =VLOOKUP(BQ40,BQ26:CA38,4,0) -> 7 | CO42: =VLOOKUP(BR40,BR26:CB38,3,0) -> 6 | CP42: =VLOOKUP(BS40,BS26:CC38,2,0) -> 5 | ED42: Qmax | EE42: =VLOOKUP(DH40,$DH$26:$DS$38,12,0) -> 1 | EF42: =VLOOKUP(DI40,DI26:DS38,11,0) -> 1 | EG42: =VLOOKUP(DJ40,DJ26:DS37,10,0) -> 1 | EH42: =VLOOKUP(DK40,$DK$26:$DS$38,9,0) -> 1 | EI42: =VLOOKUP(DL40,$DL$26:$DS$38,8,0) -> 1 | EJ42: =VLOOKUP(DM40,$DM$26:$DS$38,7,0) -> 1 | EK42: =VLOOKUP(DN40,$DN$26:$DS$38,6,0) -> 11 | EL42: =VLOOKUP(DO40,$DO$26:$DS$38,5,0) -> 9 | EM42: =VLOOKUP(DP40,$DP$26:$DS$38,4,0) -> 7 | EN42: =VLOOKUP(DQ40,$DQ$26:$DS$38,3,0) -> 6 | EO42: =VLOOKUP(DR40,$DR$26:$DS$38,2,0) -> 5
A43: 7.84 | B43: a | D43: Ps plenum | E43: qp [m³/h] | F43: qp [m³/h] | H43: Fout [%]
A44: 0.5011 | B44: b | D44: 15 | E44: 33.78 | F44: =$A$43*D44^$A$44 -> 30.45477481 | H44: =(E44-F44)/(E44/100) -> 9.843769059 | AU44: interp Qmin | AV44: =FORECAST(AV26,AV34:AV35,AV29:AV30) -> 0.0666435066 | AW44: =FORECAST(AW26,AW34:AW35,AW29:AW30) -> 0.0666435066 | AX44: =FORECAST(AX26,AX34:AX35,AX29:AX30) -> 0.0666435066 | AY44: 0.0666435066 | AZ44: 0.0666435066 | BA44: 0.0666435066 | BB44: 0.06737464347 | BC44: 0.06274417179 | BD44: =FORECAST(BD26,BD34:BD35,BD29:BD30) -> 0.05870586383 | BE44: =FORECAST(BE26,BE34:BE35,BE29:BE30) -> 0.05517617529 | BF44: =FORECAST(BF26,BF34:BF35,BF29:BF30) -> 0.05263827853 | CE44: interp Qmin | CF44: =FORECAST(CF26,CF34:CF35,CF29:CF30) -> 0.09170868623 | CG44: =FORECAST(CG26,CG34:CG35,CG29:CG30) -> 0.09170868623 | CH44: =FORECAST(CH26,CH34:CH35,CH29:CH30) -> 0.09170868623 | CI44: 0.09170868623 | CJ44: =FORECAST(CJ26,CJ34:CJ35,CJ29:CJ30) -> 0.09170868623 | CK44: 0.09170868623 | CL44: 0.09320899211 | CM44: 0.08242059549 | CN44: =FORECAST(CN26,CN34:CN35,CN29:CN30) -> 0.07142895838 | CO44: =FORECAST(CO26,CO34:CO35,CO29:CO30) -> 0.05992940487 | CP44: =FORECAST(CP26,CP34:CP35,CP29:CP30) -> 0.0498726845 | ED44: interp Qmin | EE44: =FORECAST(EE26,EE34:EE35,EE29:EE30) -> 0.5226470588 | EF44: =FORECAST(EF26,EF34:EF35,EF29:EF30) -> 0.5226470588 | EG44: =FORECAST(EG26,EG34:EG35,EG29:EG30) -> 0.5226470588 | EH44: 0.5226470588 | EI44: 0.5226470588 | EJ44: 0.5226470588 | EK44: 0.5358823529 | EL44: 0.4726470588 | EM44: =FORECAST(EM26,EM34:EM35,EM29:EM30) -> 0.4079411765 | EN44: 0.3152941176 | EO44: 0.18
D45: =D29 -> 30 | E45: 47.78 | F45: =$A$43*D45^$A$44 -> 43.102407 | H45: =(E45-F45)/(E45/100) -> 9.789855598 | AU45: interp Qmax | AV45: =FORECAST(AV26,AV36:AV37,AV29:AV30) -> 0.04978726926 | AW45: =FORECAST(AW26,AW36:AW37,AW29:AW30) -> 0.04978726926 | AX45: 0.04978726926 | AY45: 0.04978726926 | AZ45: 0.04978726926 | BA45: 0.04978726926 | BB45: 0.0726724168 | BC45: 0.06488821208 | BD45: 0.06025511311 | BE45: 0.05870586383 | BF45: 0.05517617529 | CE45: interp Qmax | CF45: =FORECAST(CF26,CF36:CF37,CF29:CF30) -> 0.03520614982 | CG45: =FORECAST(CG26,CG36:CG37,CG29:CG30) -> 0.03520614982 | CH45: 0.03520614982 | CI45: 0.03520614982 | CJ45: 0.03520614982 | CK45: 0.03520614982 | CL45: 0.1039487463 | CM45: 0.08761281169 | CN45: 0.07586434036 | CO45: 0.07142895838 | CP45: 0.05992940487 | ED45: interp Qmax | EE45: =FORECAST(EE26,EE36:EE37,EE29:EE30) -> 1e-05 | EF45: =FORECAST(EF26,EF36:EF37,EF29:EF30) -> 1e-05 | EG45: 1e-05 | EH45: 1e-05 | EI45: 1e-05 | EJ45: 1e-05 | EK45: 0.5785294118 | EL45: 0.5005882353 | EM45: 0.4258823529 | EN45: 0.4079411765 | EO45: 0.3152941176
A46: factoren A nozzle | D46: 50 | E46: 62.39 | F46: 55.67624431 | H46: 10.76094838
A47: 2.8556 | B47: a | D47: 75 | E47: 77.45 | F47: 68.21961463 | H47: 11.91786361
A48: 0.4954 | B48: b | D48: 85 | E48: 82.4 | F48: 72.63532538 | H48: 11.85033328
D49: 100 | E49: 90.03 | F49: 78.7981575 | H49: 12.47566645
D50: 112 | E50: 99.4 | F50: 83.40252784 | H50: 16.09403638
D51: 125 | E51: 106.9 | F51: 88.12064559 | H51: 17.56721648 | CT51: =BU40 -> 0 | CU51: 0.43 | CV51: 0.39 | CW51: 0.35 | CX51: 0.29 | CY51: 0.29 | CZ51: 0.25 | DA51: 0.21 | DB51: 0.2
D52: 150 | E52: 117.3 | F52: 96.5506924 | H52: 17.68909429
D53: 175 | E53: 126.8 | F53: 104.3043519 | H53: 17.7410474 | CT53: fout | CU53: =ABS(CU29-CU51) -> 0.43 | CV53: 0.39 | CW53: 0.35 | CX53: 0.29 | CY53: 0.29 | CZ53: 0.25 | DA53: 0.21 | DB53: 0.2
D54: 200 | E54: 135.7 | F54: 111.5224222 | H54: 17.81693279
A56: B nozzle | B56: B nozzle | C56: B nozzle | D56: B nozzle | E56: B nozzle | F56: B nozzle | G56: B nozzle | H56: B nozzle | I56: B nozzle | J56: B nozzle | K56: B nozzle | L56: B nozzle | M56: B nozzle | N56: B nozzle | O56: B nozzle | P56: B nozzle | Q56: B nozzle | R56: B nozzle | S56: B nozzle | T56: B nozzle | U56: B nozzle | V56: B nozzle | W56: B nozzle | X56: B nozzle | Y56: B nozzle | Z56: B nozzle | AA56: B nozzle | AB56: B nozzle | AC56: B nozzle | AD56: B nozzle | AE56: B nozzle | AF56: B nozzle | AG56: B nozzle | AH56: B nozzle | AI56: B nozzle | AJ56: B nozzle | AK56: B nozzle | AL56: B nozzle | AM56: B nozzle | AN56: B nozzle | AO56: B nozzle | AP56: B nozzle | AQ56: B nozzle | AR56: B nozzle | AS56: B nozzle | AT56: B nozzle | AU56: B nozzle | AV56: B nozzle | AW56: B nozzle | AX56: B nozzle | AY56: B nozzle | AZ56: B nozzle | BA56: B nozzle | BB56: B nozzle | BC56: B nozzle | BD56: B nozzle | BE56: B nozzle | BF56: B nozzle | BG56: B nozzle | BH56: B nozzle | BI56: B nozzle | BJ56: B nozzle | BK56: B nozzle | BL56: B nozzle | BM56: B nozzle | BN56: B nozzle | BO56: B nozzle | BP56: B nozzle | BQ56: B nozzle | BR56: B nozzle | BS56: B nozzle | BT56: B nozzle | BU56: B nozzle | BV56: B nozzle | BW56: B nozzle | BX56: B nozzle | BY56: B nozzle | BZ56: B nozzle | CA56: B nozzle | CB56: B nozzle | CC56: B nozzle | CD56: B nozzle | CE56: B nozzle | CF56: B nozzle | CG56: B nozzle | CH56: B nozzle | CI56: B nozzle | CJ56: B nozzle | CK56: B nozzle | CL56: B nozzle | CM56: B nozzle | CN56: B nozzle | CO56: B nozzle | CP56: B nozzle | CQ56: B nozzle | CR56: B nozzle | CS56: B nozzle | CT56: B nozzle | CU56: B nozzle | CV56: B nozzle | CW56: B nozzle | CX56: B nozzle | CY56: B nozzle | CZ56: B nozzle | DA56: B nozzle | DB56: B nozzle | DC56: B nozzle | DD56: B nozzle | DE56: B nozzle | DF56: B nozzle | DG56: B nozzle | DH56: B nozzle | DI56: B nozzle | DJ56: B nozzle | DK56: B nozzle | DL56: B nozzle | DM56: B nozzle | DN56: B nozzle | DO56: B nozzle | DP56: B nozzle | DQ56: B nozzle | DR56: B nozzle | DS56: B nozzle | DT56: B nozzle | DU56: B nozzle | DV56: B nozzle | DW56: B nozzle | DX56: B nozzle | DY56: B nozzle | DZ56: B nozzle | EA56: B nozzle | EB56: B nozzle | EC56: B nozzle | ED56: B nozzle | EE56: B nozzle | EF56: B nozzle | EG56: B nozzle | EH56: B nozzle | EI56: B nozzle | EJ56: B nozzle | EK56: B nozzle | EL56: B nozzle | EM56: B nozzle | EN56: B nozzle | EO56: B nozzle
L58: V1 (h=2m) | AK58: v1 (h=1,8m) | BU58: v2 | CT58: V3 (h =2) | DT58: V3 (h =1,8)
M60: 0.5 | N60: 1 | O60: 1.5 | P60: 2 | Q60: 2.5 | R60: 3 | S60: 3.5 | T60: 4.18 | U60: x [m] | AL60: 0.5 | AM60: 1 | AN60: 1.5 | AO60: 2 | AP60: 2.5 | AQ60: 3 | AR60: 3.5 | AS60: 4.18 | AT60: x [m] | BV60: 0.5 | BW60: 1 | BX60: 1.5 | BY60: 2 | BZ60: 2.5 | CA60: 3 | CB60: 3.5 | CC60: 4.18 | CD60: x [m] | CU60: 0.5 | CV60: 1 | CW60: 1.5 | CX60: 2 | CY60: 2.5 | CZ60: 3 | DA60: 3.5 | DB60: 4.18 | DC60: x [m] | DU60: 0.5 | DV60: 1 | DW60: 1.5 | DX60: 2 | DY60: 2.5 | DZ60: 3 | EA60: 3.5 | EB60: 4.18 | EC60: x [m]
M62: =IF(M64-$W$26<=0,10000,(M64-$W$26)) -> 1.2 | N62: =IF(N64-$W$26<=0,10000,(N64-$W$26)) -> 1.7 | O62: 2.2 | P62: 2.7 | Q62: 3.2 | R62: 3.7 | S62: 4.2 | T62: 4.88 | U62: L3max | V62: =MIN(M62:T62) -> 1.2 | AL62: =IF(AL64-$AV$26<=0,10000,(AL64-$AV$26)) -> 10000 | AM62: =IF(AM64-$AV$26<=0,10000,(AM64-$AV$26)) -> 10000 | AN62: 10000 | AO62: 10000 | AP62: 10000 | AQ62: 10000 | AR62: 10000 | AS62: 0.18 | AT62: L3max | AU62: =MIN(AL62:AS62) -> 0.18 | BV62: =IF(BV64-$CF$26<=0,10000,(BV64-$CF$26)) -> 10000 | BW62: =IF(BW64-$CF$26<=0,10000,(BW64-$CF$26)) -> 10000 | BX62: 10000 | BY62: 10000 | BZ62: 10000 | CA62: 10000 | CB62: 10000 | CC62: 0.18 | CD62: L3max | CE62: =MIN(BV62:CC62) -> 0.18 | CU62: =IF(CU64-$DE$26<=0,10000,(CU64-$DE$26)) -> 1.2 | CV62: =IF(CV64-$DE$26<=0,10000,(CV64-$DE$26)) -> 1.7 | CW62: 2.2 | CX62: 2.7 | CY62: 3.2 | CZ62: 3.7 | DA62: 4.2 | DB62: 4.88 | DC62: L3max | DD62: =MIN(CU62:DB62) -> 1.2 | DU62: =IF(DU64-$EE$26<=0,10000,(DU64-$EE$26)) -> 10000 | DV62: =IF(DV64-$EE$26<=0,10000,(DV64-$EE$26)) -> 10000 | DW62: 10000 | DX62: 10000 | DY62: 10000 | DZ62: 10000 | EA62: 10000 | EB62: 0.18 | EC62: L3max | ED62: =MIN(DU62:EB62) -> 0.18
L63: 2 sides | M63: 1 | N63: 2 | O63: 3 | P63: 4 | Q63: 5 | R63: 6 | S63: 7 | T63: 8 | U63: index | AK63: 2 sides | AL63: 1 | AM63: 2 | AN63: 3 | AO63: 4 | AP63: 5 | AQ63: 6 | AR63: 7 | AS63: 8 | AT63: index | BV63: 1 | BW63: 2 | BX63: 3 | BY63: 4 | BZ63: 5 | CA63: 6 | CB63: 7 | CC63: 8 | CD63: index | CF63: beam | CT63: 2 sides | CU63: 1 | CV63: 2 | CW63: 3 | CX63: 4 | CY63: 5 | CZ63: 6 | DA63: 7 | DB63: 8 | DC63: index | DT63: 2 sides | DU63: 1 | DV63: 2 | DW63: 3 | DX63: 4 | DY63: 5 | DZ63: 6 | EA63: 7 | EB63: 8 | EC63: index | EE63: beam
H64: Qt [m³/h] | L64: Qt [m³/h/m] | M64: =M60+(2.7-2) -> 1.2 | N64: =N60+(2.7-2) -> 1.7 | O64: 2.2 | P64: 2.7 | Q64: 3.2 | R64: 3.7 | S64: 4.2 | T64: 4.88 | U64: L1 h 2m [m] | Y64: 600 | Z64: 900 | AA64: 1000 | AB64: 1100 | AC64: 1200 | AD64: 1500 | AE64: 1800 | AF64: 2100 | AG64: 2400 | AH64: 2700 | AI64: 3000 | AK64: Q [m³/h/m] | AL64: =AL60+(2.7-1.8) -> 1.4 | AM64: 1.9 | AN64: 2.4 | AO64: 2.9 | AP64: 3.4 | AQ64: 3.9 | AR64: 4.4 | AS64: 5.08 | AT64: L1 h=1,8m [m] | AV64: 600 | AW64: 900 | AX64: 1000 | AY64: 1100 | AZ64: 1200 | BA64: 1500 | BB64: 1800 | BC64: 2100 | BD64: 2400 | BE64: 2700 | BF64: 3000 | BI64: 600 | BJ64: 900 | BK64: 1000 | BL64: 1100 | BM64: 1200 | BN64: 1500 | BO64: 1800 | BP64: 2100 | BQ64: 2400 | BR64: 2700 | BS64: 3000 | BU64: Q [m³/h/m] | BV64: =BV60+2.6+0.5 -> 3.6 | BW64: 4.1 | BX64: 4.6 | BY64: 5.1 | BZ64: 5.6 | CA64: 6.1 | CB64: 6.6 | CC64: 7.28 | CD64: L2 [m] | CF64: 600 | CG64: 900 | CH64: 1000 | CI64: 1100 | CJ64: 1200 | CK64: 1500 | CL64: 1800 | CM64: 2100 | CN64: 2400 | CO64: 2700 | CP64: 3000 | CT64: Q [m³/h/m] | CU64: =CU60+(2.7-2) -> 1.2 | CV64: =CV60+(2.7-2) -> 1.7 | CW64: =CW60+(2.7-2) -> 2.2 | CX64: 2.7 | CY64: 3.2 | CZ64: 3.7 | DA64: 4.2 | DB64: 4.88 | DC64: L3 h 2 [m] | DH64: 600 | DI64: 900 | DJ64: 1000 | DK64: 1100 | DL64: 1200 | DM64: 1500 | DN64: 1800 | DO64: 2100 | DP64: 2400 | DQ64: 2700 | DR64: 3000 | DT64: Q [m³/h/m] | DU64: =DU60+(2.7-1.8) -> 1.4 | DV64: 1.9 | DW64: 2.4 | DX64: 2.9 | DY64: 3.4 | DZ64: 3.9 | EA64: 4.4 | EB64: 5.08 | EC64: L3 h 1,8m [m] | EE64: 600 | EF64: 900 | EG64: 1000 | EH64: 1100 | EI64: 1200 | EJ64: 1500 | EK64: 1800 | EL64: 2100 | EM64: 2400 | EN64: 2700 | EO64: 3000
H65: =H26 -> 95.22054796 | J65: =IF(L65-$W$27<=0,10000,L65-$W$27) -> 87.7608737 | K65: 1 | L65: =H65/$J$21 -> 87.7608737 | Y65: =IF($AK65-AV$66<=0,10000,$AK65-AV$66) -> 10000 | Z65: =IF($AK65-AW$66<=0,10000,$AK65-AW$66) -> 10000 | AA65: 10000 | AB65: 10000 | AC65: 10000 | AD65: 10000 | AE65: 10000 | AF65: 10000 | AG65: 10000 | AH65: 10000 | AI65: 10000 | AJ65: 1 | AK65: =L65 -> 87.7608737 | AL65: 0.05389528448 | AM65: 0.05310251238 | AN65: 0.05239036436 | AO65: 0.05175064104 | AP65: 0.05117597689 | AQ65: 0.05065975547 | AR65: 0.05019603321 | AS65: 0.04964011424 | AU65: L1 @ 1,8m | AV65: =$R$1 -> 4.9 | AW65: 4.9 | AX65: 4.9 | AY65: 4.9 | AZ65: 4.9 | BA65: 4.9 | BB65: 4.9 | BC65: 4.9 | BD65: 4.9 | BE65: 4.9 | BF65: 4.9 | BI65: =IF($BU65-CF$66<=0,10000,$BU65-CF$66) -> 10000 | BJ65: =IF($BU65-CG$66<=0,10000,$BU65-CG$66) -> 10000 | BK65: 10000 | BL65: 10000 | BM65: 10000 | BN65: 10000 | BO65: 10000 | BP65: 10000 | BQ65: 10000 | BR65: 10000 | BS65: 10000 | BT65: 1 | BU65: =AK65 -> 87.7608737 | BV65: 0.04047007784 | BW65: 0.03968877573 | BX65: 0.03891737199 | BY65: 0.03815574121 | BZ65: 0.03740375958 | CA65: 0.03666130485 | CB65: 0.03592825633 | CC65: 0.03494619147 | CE65: L2 | CF65: =$R$3 -> 7.1 | CG65: 7.1 | CH65: 7.1 | CI65: 7.1 | CJ65: 7.1 | CK65: 7.1 | CL65: 7.1 | CM65: 7.1 | CN65: 7.1 | CO65: 7.1 | CP65: 7.1 | CR65: =IF(CT65-$DE$27<=0,10000,CT65-$DE$27) -> 87.7608737 | CS65: 1 | CT65: =BU65 -> 87.7608737 | DH65: =IF($DT65-EE$66<=0,10000,$DT65-EE$66) -> 10000 | DI65: =IF($DT65-EF$66<=0,10000,$DT65-EF$66) -> 10000 | DJ65: 10000 | DK65: 10000 | DL65: 10000 | DM65: 10000 | DN65: 10000 | DO65: 10000 | DP65: 10000 | DQ65: 10000 | DR65: 10000 | DS65: 1 | DT65: =CT65 -> 87.7608737 | DU65: 0.12 | DV65: 0.05 | DW65: 1e-05 | DX65: 1e-05 | DY65: 1e-05 | DZ65: 1e-05 | EA65: 1e-05 | EB65: 1e-05 | ED65: L3 | EE65: =$R$4 -> 4.9 | EF65: 4.9 | EG65: 4.9 | EH65: 4.9 | EI65: 4.9 | EJ65: 4.9 | EK65: 4.9 | EL65: 4.9 | EM65: 4.9 | EN65: 4.9 | EO65: 4.9
H66: =H27 -> 125.6410987 | J66: =IF(L66-$W$27<=0,10000,L66-$W$27) -> 115.7982477 | K66: 2 | L66: =H66/$J$21 -> 115.7982477 | Y66: =IF($AK66-AV$66<=0,10000,$AK66-AV$66) -> 10000 | Z66: 10000 | AA66: 10000 | AB66: 10000 | AC66: 10000 | AD66: 10000 | AE66: 10000 | AF66: 10000 | AG66: 10000 | AH66: 10000 | AI66: 10000 | AJ66: 2 | AK66: =L66 -> 115.7982477 | AL66: 0.05536470474 | AM66: 0.05442249418 | AN66: 0.05357610542 | AO66: 0.0528157935 | AP66: 0.05213280448 | AQ66: 0.05151927472 | AR66: 0.05096814028 | AS66: 0.05030742992 | AU66: Q1 | AV66: =B6 -> 1149.995595 | AW66: =C6 -> 710.5068328 | AX66: 630.2235748 | AY66: 566.241486 | AZ66: 514.0533306 | BA66: 402.7060388 | BB66: 331.0076343 | BC66: 280.9812916 | BD66: 244.0909688 | BE66: 215.7631968 | BF66: 196.7364599 | BI66: =IF($BU66-CF$66<=0,10000,$BU66-CF$66) -> 10000 | BJ66: 10000 | BK66: 10000 | BL66: 10000 | BM66: 10000 | BN66: 10000 | BO66: 10000 | BP66: 10000 | BQ66: 10000 | BR66: 10000 | BS66: 10000 | BT66: 2 | BU66: =AK66 -> 115.7982477 | BV66: 0.04492070856 | BW66: 0.04408302113 | BX66: 0.04325594642 | BY66: 0.04243934997 | BZ66: 0.04163309903 | CA66: 0.04083706253 | CB66: 0.04005111107 | CC66: 0.03899817217 | CE66: Q2 | CF66: =B6 -> 1149.995595 | CG66: =C6 -> 710.5068328 | CH66: 630.2235748 | CI66: 566.241486 | CJ66: 514.0533306 | CK66: 402.7060388 | CL66: 331.0076343 | CM66: 280.9812916 | CN66: 244.0909688 | CO66: 215.7631968 | CP66: 196.7364599 | CR66: =IF(CT66-$DE$27<=0,10000,CT66-$DE$27) -> 115.7982477 | CS66: 2 | CT66: =BU66 -> 115.7982477 | DH66: =IF($DT66-EE$66<=0,10000,$DT66-EE$66) -> 10000 | DI66: 10000 | DJ66: 10000 | DK66: 10000 | DL66: 10000 | DM66: 10000 | DN66: 10000 | DO66: 10000 | DP66: 10000 | DQ66: 10000 | DR66: 10000 | DS66: 2 | DT66: =CT66 -> 115.7982477 | DU66: 0.23 | DV66: 0.16 | DW66: 0.07 | DX66: 0.05 | DY66: 0.04 | DZ66: 0.03 | EA66: 0.02 | EB66: 0.01 | ED66: Q3 | EE66: =B6 -> 1149.995595 | EF66: =C6 -> 710.5068328 | EG66: 630.2235748 | EH66: 566.241486 | EI66: 514.0533306 | EJ66: 402.7060388 | EK66: 331.0076343 | EL66: 280.9812916 | EM66: 244.0909688 | EN66: 215.7631968 | EO66: 196.7364599
H67: 137.1714396 | J67: 126.4252899 | K67: 3 | L67: 126.4252899 | Y67: 10000 | Z67: 10000 | AA67: 10000 | AB67: 10000 | AC67: 10000 | AD67: 10000 | AE67: 10000 | AF67: 10000 | AG67: 10000 | AH67: 10000 | AI67: 10000 | AJ67: 3 | AK67: 126.4252899 | AL67: 0.05605563551 | AM67: 0.05504315803 | AN67: 0.05413364842 | AO67: 0.05331663497 | AP67: 0.05258271091 | AQ67: 0.05192342615 | AR67: 0.05133118994 | AS67: 0.05062120601 | AU67: v1 | AV67: =FORECAST(AV66,AV83:AV84,AV70:AV71) ->  | AW67: =FORECAST(AW66,AW83:AW84,AW70:AW71) ->  | BA67: 0.07302901209 | BB67: 0.06318130867 | BC67: 0.05855570488 | BD67: 0.05605503692 | BE67: 0.05442922205 | BF67: 0.05350411527 | BI67: 10000 | BJ67: 10000 | BK67: 10000 | BL67: 10000 | BM67: 10000 | BN67: 10000 | BO67: 10000 | BP67: 10000 | BQ67: 10000 | BR67: 10000 | BS67: 10000 | BT67: 3 | BU67: =AK67 -> 126.4252899 | BV67: 0.04686785512 | BW67: 0.04600549917 | BX67: 0.04515406846 | BY67: 0.04431342458 | BZ67: 0.04348343087 | CA67: 0.0426639524 | CB67: 0.04185485596 | CC67: 0.04077090973 | CE67: v2 | CF67: =FORECAST(CF66,CF83:CF84,CF70:CF71) ->  | CG67: =FORECAST(CG66,CG83:CG84,CG70:CG71) ->  | CK67: 0.1045853349 | CL67: 0.08347920863 | CM67: 0.0709397478 | CN67: 0.06279269327 | CO67: =FORECAST(CO66,CO83:CO84,CO70:CO71) -> 0.05696951304 | CP67: 0.05330366646 | CR67: 126.4252899 | CS67: 3 | CT67: =BU67 -> 126.4252899 | DH67: 10000 | DI67: 10000 | DJ67: 10000 | DK67: 10000 | DL67: 10000 | DM67: 10000 | DN67: 10000 | DO67: 10000 | DP67: 10000 | DQ67: 10000 | DR67: 10000 | DS67: 3 | DT67: =CT67 -> 126.4252899 | DU67: 0.33 | DV67: 0.21 | DW67: 0.13 | DX67: 0.1 | DY67: 0.06 | DZ67: 0.06 | EA67: 0.06 | EB67: 0.16 | ED67: v3 | EE67: =FORECAST(EE66,EE83:EE84,EE70:EE71) ->  | EF67: =FORECAST(EF66,EF83:EF84,EF70:EF71) ->  | EJ67: 0.5829746211 | EK67: 0.4783438356 | EL67: 0.4039998129 | EM67: 0.3383624263 | EN67: 0.2754743813 | EO67: 0.2261573614
H68: 194.1376764 | J68: 178.928734 | K68: 4 | L68: 178.928734 | Y68: 10000 | Z68: 10000 | AA68: 10000 | AB68: 10000 | AC68: 10000 | AD68: 10000 | AE68: 10000 | AF68: 10000 | AG68: 10000 | AH68: 10000 | AI68: 10000 | AJ68: 4 | AK68: 178.928734 | AL68: 0.05992262524 | AM68: 0.05851687904 | AN68: 0.05725409572 | AO68: 0.05611973612 | AP68: 0.05510073967 | AQ68: 0.05418537407 | AR68: 0.05336310018 | AS68: 0.05237734274 | AU68: L1min | AV68: =HLOOKUP(AV78,$AL$24:$AS$25,2,0) -> 4.4 | AW68: =HLOOKUP(AW78,$AL$24:$AS$25,2,0) -> 4.4 | AX68: 4.4 | AY68: 4.4 | AZ68: 4.4 | BA68: 4.4 | BB68: 4.4 | BC68: 4.4 | BD68: 4.4 | BE68: 4.4 | BF68: 4.4 | BI68: 10000 | BJ68: 10000 | BK68: 10000 | BL68: 10000 | BM68: 10000 | BN68: 10000 | BO68: 10000 | BP68: 10000 | BQ68: 10000 | BR68: 10000 | BS68: 10000 | BT68: 4 | BU68: 178.928734 | BV68: 0.05650532113 | BW68: 0.05552086752 | BX68: 0.054548886 | BY68: 0.05358921859 | BZ68: 0.05264170926 | CA68: 0.05170620399 | CB68: 0.05078255069 | CC68: 0.04954513268 | CE68: L2min | CF68: =HLOOKUP(CF78,$BV$24:$CC$25,2,0) -> 6.6 | CG68: =HLOOKUP(CG78,$BV$24:$CC$25,2,0) -> 6.6 | CH68: 6.6 | CI68: 6.6 | CJ68: 6.6 | CK68: 6.6 | CL68: 6.6 | CM68: 6.6 | CN68: 6.6 | CO68: 6.6 | CP68: 6.6 | CR68: 178.928734 | CS68: 4 | CT68: 178.928734 | DH68: 10000 | DI68: 10000 | DJ68: 10000 | DK68: 10000 | DL68: 10000 | DM68: 10000 | DN68: 10000 | DO68: 10000 | DP68: 10000 | DQ68: 10000 | DR68: 10000 | DS68: 4 | DT68: 178.928734 | DU68: 0.49 | DV68: 0.39 | DW68: 0.31 | DX68: 0.28 | DY68: 0.22 | DZ68: 0.19 | EA68: 0.18 | EB68: 0.18 | ED68: L3min | EE68: =HLOOKUP(EE78,$DU$24:$EB$25,2,0) -> 4.4 | EF68: =HLOOKUP(EF78,$DU$24:$EB$25,2,0) -> 4.4 | EG68: 4.4 | EH68: 4.4 | EI68: 4.4 | EJ68: 4.4 | EK68: 4.4 | EL68: 4.4 | EM68: 4.4 | EN68: 4.4 | EO68: 4.4
H69: 250.7715335 | J69: 231.1258373 | K69: 5 | L69: 231.1258373 | Y69: 10000 | Z69: 10000 | AA69: 10000 | AB69: 10000 | AC69: 10000 | AD69: 10000 | AE69: 10000 | AF69: 10000 | AG69: 10000 | AH69: 15.36264051 | AI69: 34.38937744 | AJ69: 5 | AK69: 231.1258373 | AL69: 0.06528801243 | AM69: 0.06333661209 | AN69: 0.06158366707 | AO69: 0.0600089947 | AP69: 0.05859446481 | AQ69: 0.05732379111 | AR69: 0.05618234356 | AS69: 0.05481395472 | AU69: L1max | AV69: =HLOOKUP(AV79,$AL$24:$AS$25,2,0) -> 5.08 | AW69: 5.08 | AX69: 5.08 | AY69: 5.08 | AZ69: 5.08 | BA69: 5.08 | BB69: 5.08 | BC69: 5.08 | BD69: 5.08 | BE69: 5.08 | BF69: 5.08 | BI69: 10000 | BJ69: 10000 | BK69: 10000 | BL69: 10000 | BM69: 10000 | BN69: 10000 | BO69: 10000 | BP69: 10000 | BQ69: 10000 | BR69: 15.36264051 | BS69: 34.38937744 | BT69: 5 | BU69: 231.1258373 | BV69: 0.06750055356 | BW69: 0.06637680065 | BX69: 0.06526728464 | BY69: 0.06417182515 | BZ69: 0.06309024412 | CA69: 0.06202236569 | CB69: 0.06096801629 | CC69: 0.05955550476 | CE69: L2max | CF69: =HLOOKUP(CF79,$BV$24:$CC$25,2,0) -> 7.28 | CG69: 7.28 | CH69: 7.28 | CI69: 7.28 | CJ69: 7.28 | CK69: 7.28 | CL69: 7.28 | CM69: 7.28 | CN69: 7.28 | CO69: 7.28 | CP69: 7.28 | CR69: 231.1258373 | CS69: 5 | CT69: 231.1258373 | DH69: 10000 | DI69: 10000 | DJ69: 10000 | DK69: 10000 | DL69: 10000 | DM69: 10000 | DN69: 10000 | DO69: 10000 | DP69: 10000 | DQ69: 15.36264051 | DR69: 34.38937744 | DS69: 5 | DT69: 231.1258373 | DU69: 0.65 | DV69: 0.53 | DW69: 0.42 | DX69: 0.42 | DY69: 0.37 | DZ69: 0.36 | EA69: 0.33 | EB69: 0.31 | ED69: L3max | EE69: =HLOOKUP(EE79,$DU$24:$EB$25,2,0) -> 5.08 | EF69: 5.08 | EG69: 5.08 | EH69: 5.08 | EI69: 5.08 | EJ69: 5.08 | EK69: 5.08 | EL69: 5.08 | EM69: 5.08 | EN69: 5.08 | EO69: 5.08
H70: 307.2681641 | J70: 283.1964646 | K70: 6 | L70: 283.1964646 | Y70: 10000 | Z70: 10000 | AA70: 10000 | AB70: 10000 | AC70: 10000 | AD70: 10000 | AE70: 10000 | AF70: 2.215173093 | AG70: 39.10549584 | AH70: 67.43326784 | AI70: 86.46000478 | AJ70: 6 | AK70: 283.1964646 | AL70: 0.07275015429 | AM70: 0.0700398621 | AN70: 0.06760520373 | AO70: 0.06541814752 | AP70: 0.06345351258 | AQ70: 0.06168867891 | AR70: 0.06010332694 | AS70: 0.05820277712 | AU70: Qmin | AV70: =VLOOKUP(AV80,$AJ$65:$AK$77,2,0) ->  | AW70: =VLOOKUP(AW80,$AJ$65:$AK$77,2,0) ->  | BA70: 400.8057638 | BB70: 327.1106081 | BC70: 231.1258373 | BD70: 231.1258373 | BE70: 178.928734 | BF70: 178.928734 | BI70: 10000 | BJ70: 10000 | BK70: 10000 | BL70: 10000 | BM70: 10000 | BN70: 10000 | BO70: 10000 | BP70: 2.215173093 | BQ70: 39.10549584 | BR70: 67.43326784 | BS70: 86.46000478 | BT70: 6 | BU70: 283.1964646 | BV70: 0.08007326704 | BW70: 0.07879022963 | BX70: 0.0775234471 | BY70: 0.07627271352 | BZ70: 0.07503782556 | CA70: 0.07381858248 | CB70: 0.07261478606 | CC70: 0.07100206041 | CE70: Qmin | CF70: =VLOOKUP(CF80,$BT$65:$BU$77,2,0) ->  | CG70: =VLOOKUP(CG80,$BT$65:$BU$77,2,0) ->  | CK70: 400.8057638 | CL70: 327.1106081 | CM70: 231.1258373 | CN70: 231.1258373 | CO70: =VLOOKUP(CO80,$BT$65:$BU$77,2,0) -> 178.928734 | CP70: 178.928734 | CR70: 283.1964646 | CS70: 6 | CT70: 283.1964646 | DH70: 10000 | DI70: 10000 | DJ70: 10000 | DK70: 10000 | DL70: 10000 | DM70: 10000 | DN70: 10000 | DO70: 2.215173093 | DP70: 39.10549584 | DQ70: 67.43326784 | DR70: 86.46000478 | DS70: 6 | DT70: 283.1964646 | DU70: 0.82 | DV70: 0.63 | DW70: 0.56 | DX70: 0.56 | DY70: 0.47 | DZ70: 0.46 | EA70: 0.43 | EB70: 0.4 | ED70: Qmin | EE70: =VLOOKUP(EE80,$DS$65:$DT$77,2,0) ->  | EJ70: 400.8057638 | EK70: 327.1106081 | EL70: 231.1258373 | EM70: 231.1258373 | EN70: 178.928734 | EO70: 178.928734
H71: 327.1569797 | J71: 301.5271703 | K71: 7 | L71: 301.5271703 | Y71: 10000 | Z71: 10000 | AA71: 10000 | AB71: 10000 | AC71: 10000 | AD71: 10000 | AE71: 10000 | AF71: 20.54587871 | AG71: 57.43620146 | AH71: 85.76397347 | AI71: 104.7907104 | AJ71: 7 | AK71: 301.5271703 | AL71: 0.07602543416 | AM71: 0.07298204952 | AN71: 0.07024817384 | AO71: 0.06779233039 | AP71: 0.06558624359 | AQ71: 0.06360451346 | AR71: 0.06182432317 | AS71: 0.05969019748 | AU71: Qmax | AV71: =VLOOKUP(AV81,$AJ$65:$AK$77,2,0) -> 87.7608737 | AW71: 87.7608737 | AX71: 87.7608737 | AY71: 87.7608737 | AZ71: 87.7608737 | BA71: 432.9931188 | BB71: 346.2244863 | BC71: 283.1964646 | BD71: 283.1964646 | BE71: 231.1258373 | BF71: 231.1258373 | BI71: 10000 | BJ71: 10000 | BK71: 10000 | BL71: 10000 | BM71: 10000 | BN71: 10000 | BO71: 10000 | BP71: 20.54587871 | BQ71: 57.43620146 | BR71: 85.76397347 | BS71: 104.7907104 | BT71: 7 | BU71: 301.5271703 | BV71: 0.08492256721 | BW71: 0.08357809371 | BX71: 0.08225065343 | BY71: 0.08094003058 | BZ71: 0.07964601208 | CA71: 0.07836838759 | CB71: 0.07710694941 | CC71: 0.0754170011 | CE71: Qmax | CF71: =VLOOKUP(CF81,$BT$65:$BU$77,2,0) -> 87.7608737 | CG71: 87.7608737 | CH71: 87.7608737 | CI71: 87.7608737 | CJ71: 87.7608737 | CK71: 432.9931188 | CL71: 346.2244863 | CM71: 283.1964646 | CN71: 283.1964646 | CO71: 231.1258373 | CP71: 231.1258373 | CR71: 301.5271703 | CS71: 7 | CT71: 301.5271703 | DH71: 10000 | DI71: 10000 | DJ71: 10000 | DK71: 10000 | DL71: 10000 | DM71: 10000 | DN71: 10000 | DO71: 20.54587871 | DP71: 57.43620146 | DQ71: 85.76397347 | DR71: 104.7907104 | DS71: 7 | DT71: 301.5271703 | DU71: 0.88 | DV71: 0.7 | DW71: 0.59 | DX71: 0.53 | DY71: 0.49 | DZ71: 0.48 | EA71: 0.47 | EB71: 0.41 | ED71: Qmax | EE71: =VLOOKUP(EE81,$DS$65:$DT$77,2,0) -> 87.7608737 | EF71: =VLOOKUP(EF81,$DS$65:$DT$77,2,0) -> 87.7608737 | EG71: 87.7608737 | EH71: 87.7608737 | EI71: 87.7608737 | EJ71: 432.9931188 | EK71: 346.2244863 | EL71: 283.1964646 | EM71: 283.1964646 | EN71: 231.1258373 | EO71: 231.1258373
H72: 354.9150097 | J72: 327.1106081 | K72: 8 | L72: 327.1106081 | Y72: 10000 | Z72: 10000 | AA72: 10000 | AB72: 10000 | AC72: 10000 | AD72: 10000 | AE72: 10000 | AF72: 46.12931651 | AG72: 83.01963925 | AH72: 111.3474113 | AI72: 130.3741482 | AJ72: 8 | AK72: 327.1106081 | AL72: 0.08128757238 | AM72: 0.07770903391 | AN72: 0.07449442897 | AO72: 0.07160674592 | AP72: 0.06901273714 | AQ72: 0.06668253628 | AR72: 0.06458931436 | AS72: 0.06207992046 | BI72: 10000 | BJ72: 10000 | BK72: 10000 | BL72: 10000 | BM72: 10000 | BN72: 10000 | BO72: 10000 | BP72: 46.12931651 | BQ72: 83.01963925 | BR72: 111.3474113 | BS72: 130.3741482 | BT72: 8 | BU72: 327.1106081 | BV72: 0.09209066441 | BW72: 0.09065537783 | BX72: 0.08923827499 | BY72: 0.08783912552 | BZ72: 0.08645770196 | CA72: 0.08509377974 | CB72: 0.08374713713 | CC72: 0.0819430405 | CR72: 327.1106081 | CS72: 8 | CT72: 327.1106081 | DH72: 10000 | DI72: 10000 | DJ72: 10000 | DK72: 10000 | DL72: 10000 | DM72: 10000 | DN72: 10000 | DO72: 46.12931651 | DP72: 83.01963925 | DQ72: 111.3474113 | DR72: 130.3741482 | DS72: 8 | DT72: 327.1106081 | DU72: 0.96 | DV72: 0.77 | DW72: 0.65 | DX72: 0.6 | DY72: 0.53 | DZ72: 0.51 | EA72: 0.48 | EB72: 0.47
H73: 375.6535676 | J73: 346.2244863 | K73: 9 | L73: 346.2244863 | Y73: 10000 | Z73: 10000 | AA73: 10000 | AB73: 10000 | AC73: 10000 | AD73: 10000 | AE73: 15.21685198 | AF73: 65.2431947 | AG73: 102.1335174 | AH73: 130.4612894 | AI73: 149.4880264 | AJ73: 9 | AK73: 346.2244863 | AL73: 0.08582030455 | AM73: 0.08178079207 | AN73: 0.07815209368 | AO73: 0.07489243004 | AP73: 0.0719642707 | AQ73: 0.06933390203 | AR73: 0.06697103905 | AS73: 0.06413839437 | AU73: Lmin Q min | AV73: =INDEX($AL$65:$AS$77,AV80,AV78) -> 0.06697103905 | AW73: =INDEX($AL$65:$AS$77,AW80,AW78) -> 0.06697103905 | AX73: 0.06697103905 | AY73: 0.06697103905 | AZ73: 0.06697103905 | BA73: 0.07561818653 | BB73: 0.06458931436 | BC73: 0.05618234356 | BD73: 0.05618234356 | BE73: 0.05336310018 | BF73: 0.05336310018 | BI73: 10000 | BJ73: 10000 | BK73: 10000 | BL73: 10000 | BM73: 10000 | BN73: 10000 | BO73: 15.21685198 | BP73: 65.2431947 | BQ73: 102.1335174 | BR73: 130.4612894 | BS73: 149.4880264 | BT73: 9 | BU73: 346.2244863 | BV73: 0.09776742799 | BW73: 0.09626022214 | BX73: 0.09477211117 | BY73: 0.09330285318 | BZ73: 0.09185220931 | CA73: 0.09041994373 | CB73: 0.08900582362 | CC73: 0.08711132739 | CE73: Lmin Q min | CF73: =INDEX($BV$65:$CC$77,CF80,CF78) -> 0.08900582362 | CG73: =INDEX($BV$65:$CC$77,CG80,CG78) -> 0.08900582362 | CH73: 0.08900582362 | CI73: 0.08900582362 | CJ73: 0.08900582362 | CK73: 0.1055508895 | CL73: 0.08374713713 | CM73: 0.06096801629 | CN73: 0.06096801629 | CO73: 0.05078255069 | CP73: 0.05078255069 | CR73: 346.2244863 | CS73: 9 | CT73: 346.2244863 | DH73: 10000 | DI73: 10000 | DJ73: 10000 | DK73: 10000 | DL73: 10000 | DM73: 10000 | DN73: 15.21685198 | DO73: 65.2431947 | DP73: 102.1335174 | DQ73: 130.4612894 | DR73: 149.4880264 | DS73: 9 | DT73: 346.2244863 | DU73: 0.99 | DV73: 0.8 | DW73: 0.73 | DX73: 0.63 | DY73: 0.58 | DZ73: 0.55 | EA73: 0.53 | EB73: 0.49 | ED73: Lmin Q min | EE73: =INDEX($DU$65:$EB$77,EE80,EE78) -> 0.53 | EF73: =INDEX($DU$65:$EB$77,EF80,EF78) -> 0.53 | EG73: 0.53 | EH73: 0.53 | EI73: 0.53 | EJ73: 0.63 | EK73: 0.48 | EL73: 0.33 | EM73: 0.33 | EN73: 0.18 | EO73: 0.18
H74: 396.9044554 | J74: 365.810558 | K74: 10 | L74: 365.810558 | Y74: 10000 | Z74: 10000 | AA74: 10000 | AB74: 10000 | AC74: 10000 | AD74: 10000 | AE74: 34.8029237 | AF74: 84.82926641 | AG74: 121.7195892 | AH74: 150.0473612 | AI74: 169.0740981 | AJ74: 10 | AK74: 365.810558 | AL74: 0.09107688841 | AM74: 0.08650278697 | AN74: 0.08239386675 | AO74: 0.07870281932 | AP74: 0.07538714747 | AQ74: 0.0724086759 | AR74: 0.0697331117 | AS74: 0.06652559491 | AU74: Lmax Q min | AV74: =INDEX($AL$65:$AS$77,AV80,AV79) -> 0.06652559491 | AW74: =INDEX($AL$65:$AS$77,AW80,AW79) -> 0.06652559491 | AX74: 0.06652559491 | AY74: 0.06652559491 | AZ74: 0.06652559491 | BA74: 0.0716119397 | BB74: 0.06207992046 | BC74: 0.05481395472 | BD74: 0.05481395472 | BE74: 0.05237734274 | BF74: 0.05237734274 | BI74: 10000 | BJ74: 10000 | BK74: 10000 | BL74: 10000 | BM74: 10000 | BN74: 10000 | BO74: 34.8029237 | BP74: 84.82926641 | BQ74: 121.7195892 | BR74: 150.0473612 | BS74: 169.0740981 | BT74: 10 | BU74: 365.810558 | BV74: 0.1038858545 | BW74: 0.1023011339 | BX74: 0.1007364903 | BY74: 0.09919166917 | BZ74: 0.09766641952 | CA74: 0.09616049335 | CB74: 0.09467364585 | CC74: 0.09268171677 | CE74: Lmax Q min | CF74: =INDEX($BV$65:$CC$77,CF80,CF79) -> 0.09268171677 | CG74: =INDEX($BV$65:$CC$77,CG80,CG79) -> 0.09268171677 | CH74: 0.09268171677 | CI74: 0.09268171677 | CJ74: 0.09268171677 | CK74: 0.1033719748 | CL74: 0.0819430405 | CM74: 0.05955550476 | CN74: 0.05955550476 | CO74: 0.04954513268 | CP74: 0.04954513268 | CR74: 365.810558 | CS74: 10 | CT74: 365.810558 | DH74: 10000 | DI74: 10000 | DJ74: 10000 | DK74: 10000 | DL74: 10000 | DM74: 10000 | DN74: 34.8029237 | DO74: 84.82926641 | DP74: 121.7195892 | DQ74: 150.0473612 | DR74: 169.0740981 | DS74: 10 | DT74: 365.810558 | DU74: 1.04 | DV74: 0.86 | DW74: 0.79 | DX74: 0.67 | DY74: 0.62 | DZ74: 0.6 | EA74: 0.58 | EB74: 0.52 | ED74: Lmax Q min | EE74: =INDEX($DU$65:$EB$77,EE80,EE79) -> 0.52 | EF74: =INDEX($DU$65:$EB$77,EF80,EF79) -> 0.52 | EG74: 0.52 | EH74: 0.52 | EI74: 0.52 | EJ74: 0.56 | EK74: 0.47 | EL74: 0.31 | EM74: 0.31 | EN74: 0.18 | EO74: 0.18
H75: 434.8742537 | J75: 400.8057638 | K75: 11 | L75: 400.8057638 | Y75: 10000 | Z75: 10000 | AA75: 10000 | AB75: 10000 | AC75: 10000 | AD75: 10000 | AE75: 69.79812951 | AF75: 119.8244722 | AG75: 156.714795 | AH75: 185.042567 | AI75: 204.0693039 | AJ75: 11 | AK75: 400.8057638 | AL75: 0.102276952 | AM75: 0.09656381607 | AN75: 0.09143169995 | AO75: 0.08682151455 | AP75: 0.08268018008 | AQ75: 0.0789600149 | AR75: 0.07561818653 | AS75: 0.0716119397 | AU75: Lmin Q max | AV75: =INDEX($AL$65:$AS$77,AV81,AV78) -> 0.05019603321 | AW75: =INDEX($AL$65:$AS$77,AW81,AW78) -> 0.05019603321 | AX75: 0.05019603321 | AY75: 0.05019603321 | AZ75: 0.05019603321 | BA75: 0.08232788571 | BB75: 0.06697103905 | BC75: 0.06010332694 | BD75: 0.06010332694 | BE75: 0.05618234356 | BF75: 0.05618234356 | BI75: 10000 | BJ75: 10000 | BK75: 10000 | BL75: 10000 | BM75: 10000 | BN75: 10000 | BO75: 69.79812951 | BP75: 119.8244722 | BQ75: 156.714795 | BR75: 185.042567 | BS75: 204.0693039 | BT75: 11 | BU75: 400.8057638 | BV75: 0.1156278628 | BW75: 0.113894382 | BX75: 0.1121828627 | BY75: 0.1104930268 | BZ75: 0.1088245996 | CA75: 0.1071773097 | CB75: 0.1055508895 | CC75: 0.1033719748 | CE75: Lmin Q max | CF75: =INDEX($BV$65:$CC$77,CF81,CF78) -> 0.03592825633 | CG75: =INDEX($BV$65:$CC$77,CG81,CG78) -> 0.03592825633 | CH75: 0.03592825633 | CI75: 0.03592825633 | CJ75: 0.03592825633 | CK75: 0.1164716315 | CL75: 0.08900582362 | CM75: 0.07261478606 | CN75: 0.07261478606 | CO75: 0.06096801629 | CP75: 0.06096801629 | CR75: 400.8057638 | CS75: 11 | CT75: 400.8057638 | DH75: 10000 | DI75: 10000 | DJ75: 10000 | DK75: 10000 | DL75: 10000 | DM75: 10000 | DN75: 69.79812951 | DO75: 119.8244722 | DP75: 156.714795 | DQ75: 185.042567 | DR75: 204.0693039 | DS75: 11 | DT75: 400.8057638 | DU75: 1.16 | DV75: 0.94 | DW75: 0.83 | DX75: 0.75 | DY75: 0.71 | DZ75: 0.65 | EA75: 0.63 | EB75: 0.56 | ED75: Lmin Q max | EE75: =INDEX($DU$65:$EB$77,EE81,EE78) -> 1e-05 | EF75: =INDEX($DU$26:$EB$38,EF81,EF78) -> 1e-05 | EG75: 1e-05 | EH75: 1e-05 | EI75: 1e-05 | EJ75: 0.72 | EK75: 0.53 | EL75: 0.43 | EM75: 0.43 | EN75: 0.33 | EO75: 0.33
H76: 469.7975339 | J76: 432.9931188 | K76: 12 | L76: 432.9931188 | Y76: 10000 | Z76: 10000 | AA76: 10000 | AB76: 10000 | AC76: 10000 | AD76: 30.28708002 | AE76: 101.9854845 | AF76: 152.0118273 | AG76: 188.90215 | AH76: 217.229922 | AI76: 236.2566589 | AJ76: 12 | AK76: 432.9931188 | AL76: 0.1150463831 | AM76: 0.1080346097 | AN76: 0.1017359261 | AO76: 0.09607781194 | AP76: 0.09099512192 | AQ76: 0.08642933604 | AR76: 0.08232788571 | AS76: 0.07741098974 | AU76: Lmax Q max | AV76: =INDEX($AL$65:$AS$77,AV81,AV79) -> 0.04964011424 | AW76: =INDEX($AL$65:$AS$77,AW81,AW79) -> 0.04964011424 | AX76: 0.04964011424 | AY76: 0.04964011424 | AZ76: 0.04964011424 | BA76: =INDEX($AL$65:$AS$77,BA81,BA79) -> 0.07741098974 | BB76: 0.06413839437 | BC76: 0.05820277712 | BD76: 0.05820277712 | BE76: 0.05481395472 | BF76: 0.05481395472 | BI76: 10000 | BJ76: 10000 | BK76: 10000 | BL76: 10000 | BM76: 10000 | BN76: 30.28708002 | BO76: 101.9854845 | BP76: 152.0118273 | BQ76: 188.90215 | BR76: 217.229922 | BS76: 236.2566589 | BT76: 12 | BU76: 432.9931188 | BV76: 0.1274168277 | BW76: 0.1255339917 | BX76: 0.1236750095 | BY76: 0.1218395789 | BZ76: 0.1200274015 | CA76: 0.1182381826 | CB76: 0.1164716315 | CC76: 0.1141049835 | CE76: Lmax Q max | CF76: =INDEX($BV$65:$CC$77,CF81,CF79) -> 0.03494619147 | CG76: =INDEX($BV$65:$CC$77,CG81,CG79) -> 0.03494619147 | CH76: 0.03494619147 | CI76: 0.03494619147 | CJ76: 0.03494619147 | CK76: 0.1141049835 | CL76: 0.08711132739 | CM76: 0.07100206041 | CN76: 0.07100206041 | CO76: 0.05955550476 | CP76: 0.05955550476 | CR76: 432.9931188 | CS76: 12 | CT76: 432.9931188 | DH76: 10000 | DI76: 10000 | DJ76: 10000 | DK76: 10000 | DL76: 10000 | DM76: 30.28708002 | DN76: 101.9854845 | DO76: 152.0118273 | DP76: 188.90215 | DQ76: 217.229922 | DR76: 236.2566589 | DS76: 12 | DT76: 432.9931188 | DU76: 1.26 | DV76: 1.02 | DW76: 0.93 | DX76: 0.84 | DY76: 0.75 | DZ76: 0.72 | EA76: 0.72 | EB76: 0.63 | ED76: Lmax Q max | EE76: =INDEX($DU$65:$EB$77,EE81,EE79) -> 1e-05 | EF76: =INDEX($DU$26:$EB$38,EF81,EF79) -> 1e-05 | EG76: 1e-05 | EH76: 1e-05 | EI76: 1e-05 | EJ76: 0.63 | EK76: 0.49 | EL76: 0.4 | EM76: 0.4 | EN76: 0.31 | EO76: 0.31
H77: 502.3084654 | J77: 462.9571109 | K77: 13 | L77: 462.9571109 | Y77: =IF($AK77-AV$66<=0,10000,$AK77-AV$66) -> 10000 | Z77: 10000 | AA77: 10000 | AB77: 10000 | AC77: 10000 | AD77: 60.25107214 | AE77: 131.9494767 | AF77: 181.9758194 | AG77: 218.8661421 | AH77: 247.1939141 | AI77: 266.2206511 | AJ77: 13 | AK77: 462.9571109 | AL77: 0.1295499708 | AM77: 0.121063198 | AN77: 0.113439521 | AO77: 0.1065911637 | AP77: 0.1004392771 | AQ77: 0.09491303071 | AR77: 0.0899487977 | AS77: 0.0839975816 | AU77: Index | BI77: 10000 | BJ77: 10000 | BK77: 10000 | BL77: 10000 | BM77: 10000 | BN77: 60.25107214 | BO77: 131.9494767 | BP77: 181.9758194 | BQ77: 218.8661421 | BR77: 247.1939141 | BS77: =IF($BU77-CP$66<=0,10000,$BU77-CP$66) -> 266.2206511 | BT77: 13 | BU77: 462.9571109 | BV77: 0.1393183903 | BW77: 0.1372847727 | BX77: 0.1352769191 | BY77: 0.1332945032 | BZ77: 0.1313372026 | CA77: 0.1294046991 | CB77: 0.1274966787 | CC77: 0.1249405044 | CE77: Index | CR77: 462.9571109 | CS77: 13 | CT77: 462.9571109 | DH77: 10000 | DI77: 10000 | DJ77: 10000 | DK77: 10000 | DL77: 10000 | DM77: 60.25107214 | DN77: 131.9494767 | DO77: 181.9758194 | DP77: 218.8661421 | DQ77: 247.1939141 | DR77: =IF($DT77-EO$66<=0,10000,$DT77-EO$66) -> 266.2206511 | DS77: 13 | DT77: 462.9571109 | DU77: 1.36 | DV77: 1.08 | DW77: 0.97 | DX77: 0.88 | DY77: 0.82 | DZ77: 0.77 | EA77: 0.76 | EB77: 0.69 | ED77: Index
J78: Qmax | K78: index | Y78: Qmax | Z78: Qmax | AA78: Qmax | AB78: Qmax | AC78: Qmax | AD78: Qmax | AE78: Qmax | AF78: Qmax | AG78: Qmax | AH78: Qmax | AI78: Qmax | AJ78: index | AU78: L1min | AV78: =AV79-1 -> 7 | AW78: =AW79-1 -> 7 | AX78: 7 | AY78: 7 | AZ78: 7 | BA78: 7 | BB78: 7 | BC78: 7 | BD78: 7 | BE78: 7 | BF78: 7 | BI78: Qmax | BJ78: Qmax | BK78: Qmax | BL78: Qmax | BM78: Qmax | BN78: Qmax | BO78: Qmax | BP78: Qmax | BQ78: Qmax | BR78: Qmax | BS78: Qmax | BT78: index | CE78: L2min | CF78: =CF79-1 -> 7 | CG78: =CG79-1 -> 7 | CH78: 7 | CI78: 7 | CJ78: 7 | CK78: 7 | CL78: 7 | CM78: 7 | CN78: 7 | CO78: 7 | CP78: 7 | CR78: Qmax | CS78: index | DH78: Qmax | DI78: Qmax | DJ78: Qmax | DK78: Qmax | DL78: Qmax | DM78: Qmax | DN78: Qmax | DO78: Qmax | DP78: Qmax | DQ78: Qmax | DR78: Qmax | DS78: index | ED78: L3min | EE78: =EE79-1 -> 7 | EF78: =EF79-1 -> 7 | EG78: 7 | EH78: 7 | EI78: 7 | EJ78: 7 | EK78: 7 | EL78: 7 | EM78: 7 | EN78: 7 | EO78: 7
J79: =MIN(J65:J77) -> 87.7608737 | Y79: =MIN(Y65:Y77) -> 10000 | Z79: =MIN(Z65:Z77) -> 10000 | AA79: 10000 | AB79: 10000 | AC79: 10000 | AD79: 30.28708002 | AE79: 15.21685198 | AF79: 2.215173093 | AG79: 39.10549584 | AH79: 15.36264051 | AI79: 34.38937744 | AU79: L1max | AV79: =HLOOKUP(AU62,AL62:AS63,2,0) -> 8 | AW79: =HLOOKUP($ED$23,$DU$23:$EB$24,2,0) -> 8 | AX79: 8 | AY79: 8 | AZ79: 8 | BA79: 8 | BB79: 8 | BC79: 8 | BD79: 8 | BE79: 8 | BF79: 8 | BI79: =MIN(BI65:BI77) -> 10000 | BJ79: =MIN(BJ65:BJ77) -> 10000 | BK79: 10000 | BL79: 10000 | BM79: 10000 | BN79: 30.28708002 | BO79: 15.21685198 | BP79: 2.215173093 | BQ79: 39.10549584 | BR79: 15.36264051 | BS79: 34.38937744 | CE79: L2max | CF79: =HLOOKUP(CE62,BV62:CC63,2,0) -> 8 | CG79: =HLOOKUP($ED$23,$DU$23:$EB$24,2,0) -> 8 | CH79: 8 | CI79: 8 | CJ79: 8 | CK79: 8 | CL79: 8 | CM79: 8 | CN79: 8 | CO79: 8 | CP79: 8 | CR79: =MIN(CR65:CR77) -> 87.7608737 | DH79: =MIN(DH65:DH77) -> 10000 | DI79: =MIN(DI65:DI77) -> 10000 | DJ79: 10000 | DK79: 10000 | DL79: 10000 | DM79: 30.28708002 | DN79: 15.21685198 | DO79: 2.215173093 | DP79: 39.10549584 | DQ79: 15.36264051 | DR79: 34.38937744 | ED79: L3max | EE79: =HLOOKUP($ED$23,$DU$23:$EB$24,2,0) -> 8 | EF79: =HLOOKUP($ED$23,$DU$23:$EB$24,2,0) -> 8 | EG79: 8 | EH79: 8 | EI79: 8 | EJ79: 8 | EK79: 8 | EL79: 8 | EM79: 8 | EN79: 8 | EO79: 8
AU80: Qmin | AV80: =AV81-1 -> 0 | AW80: =AW81-1 -> 0 | AX80: 0 | AY80: 0 | AZ80: 0 | BA80: 11 | BB80: 8 | BC80: 5 | BD80: 5 | BE80: 4 | BF80: 4 | CE80: Qmin | CF80: =CF81-1 -> 0 | CG80: =CG81-1 -> 0 | CH80: 0 | CI80: 0 | CJ80: 0 | CK80: 11 | CL80: 8 | CM80: 5 | CN80: 5 | CO80: 4 | CP80: 4 | ED80: Qmin | EE80: =EE81-1 -> 0 | EF80: =EF81-1 -> 0 | EG80: 0 | EH80: 0 | EI80: 0 | EJ80: 11 | EK80: 8 | EL80: 5 | EM80: 5 | EN80: =EN81-1 -> 4 | EO80: =EO81-1 -> 4
AU81: Qmax | AV81: =VLOOKUP(Y79,Y65:$AJ$77,12,0) -> 1 | AW81: =VLOOKUP(Z79,Z65:$AJ$77,11,0) -> 1 | AX81: =VLOOKUP(AA79,AA65:$AJ$77,10,0) -> 1 | AY81: =VLOOKUP(AB79,AB65:$AJ$77,9,0) -> 1 | AZ81: =VLOOKUP(AC79,AC65:$AJ$77,8,0) -> 1 | BA81: =VLOOKUP(AD79,AD65:$AJ$77,7,0) -> 12 | BB81: =VLOOKUP(AE79,AE65:$AJ$77,6,0) -> 9 | BC81: =VLOOKUP(AF79,AF65:$AJ$77,5,0) -> 6 | BD81: =VLOOKUP(AG79,AG65:$AJ$77,4,0) -> 6 | BE81: =VLOOKUP(AH79,AH65:$AJ$77,3,0) -> 5 | BF81: =VLOOKUP(AI79,AI65:$AJ$77,2,0) -> 5 | CE81: Qmax | CF81: =VLOOKUP(BI79,BI65:BT77,12,0) -> 1 | CG81: =VLOOKUP(BJ79,BJ65:BT77,11,0) -> 1 | CH81: =VLOOKUP(BK79,BK65:BU77,10,0) -> 1 | CI81: =VLOOKUP(BL79,BL65:BV77,9,0) -> 1 | CJ81: =VLOOKUP(BM79,BM65:BW77,8,0) -> 1 | CK81: =VLOOKUP(BN79,BN65:BX77,7,0) -> 12 | CL81: =VLOOKUP(BO79,BO65:BY77,6,0) -> 9 | CM81: =VLOOKUP(BP79,BP65:BZ77,5,0) -> 6 | CN81: =VLOOKUP(BQ79,BQ65:CA77,4,0) -> 6 | CO81: =VLOOKUP(BR79,BR65:CB77,3,0) -> 5 | CP81: =VLOOKUP(BS79,BS65:CC77,2,0) -> 5 | ED81: Qmax | EE81: =VLOOKUP(DH79,DH65:$DS$77,12,0) -> 1 | EF81: =VLOOKUP(DI79,DI65:$DS$77,11,0) -> 1 | EG81: =VLOOKUP(DJ79,DJ65:$DS$77,10,0) -> 1 | EH81: =VLOOKUP(DK79,DK65:$DS$77,9,0) -> 1 | EI81: =VLOOKUP(DL79,DL65:$DS$77,8,0) -> 1 | EJ81: =VLOOKUP(DM79,DM65:$DS$77,7,0) -> 12 | EK81: =VLOOKUP(DN79,DN65:$DS$77,6,0) -> 9 | EL81: =VLOOKUP(DO79,DO65:$DS$77,5,0) -> 6 | EM81: =VLOOKUP(DP79,DP65:$DS$77,4,0) -> 6 | EN81: =VLOOKUP(DQ79,DQ65:$DS$77,3,0) -> 5 | EO81: =VLOOKUP(DR79,DR65:$DS$77,2,0) -> 5
AU83: interp Qmin | AV83: =FORECAST(AV65,AV73:AV74,AV68:AV69) -> 0.0666435066 | AW83: =FORECAST(AW65,AW73:AW74,AW68:AW69) -> 0.0666435066 | AX83: =FORECAST(AX65,AX73:AX74,AX68:AX69) -> 0.0666435066 | AY83: 0.0666435066 | AZ83: 0.0666435066 | BA83: 0.0726724168 | BB83: 0.06274417179 | BC83: 0.05517617529 | BD83: =FORECAST(BD65,BD73:BD74,BD68:BD69) -> 0.05517617529 | BE83: =FORECAST(BE65,BE73:BE74,BE68:BE69) -> 0.05263827853 | BF83: =FORECAST(BF65,BF73:BF74,BF68:BF69) -> 0.05263827853 | CE83: interp Qmin | CF83: =FORECAST(CF65,CF73:CF74,CF68:CF69) -> 0.09170868623 | CG83: 0.09170868623 | CH83: 0.09170868623 | CI83: 0.09170868623 | CJ83: 0.09170868623 | CK83: 0.1039487463 | CL83: 0.08242059549 | CM83: 0.05992940487 | CN83: 0.05992940487 | CO83: 0.0498726845 | CP83: 0.0498726845 | ED83: interp Qmin | EE83: =FORECAST(EE65,EE73:EE74,EE68:EE69) -> 0.5226470588 | EF83: =FORECAST(EF65,EF73:EF74,EF68:EF69) -> 0.5226470588 | EG83: =FORECAST(EG65,EG73:EG74,EG68:EG69) -> 0.5226470588 | EH83: 0.5226470588 | EI83: 0.5226470588 | EJ83: 0.5785294118 | EK83: 0.4726470588 | EL83: 0.3152941176 | EM83: =FORECAST(EM65,EM73:EM74,EM68:EM69) -> 0.3152941176 | EN83: =FORECAST(EN65,EN73:EN74,EN68:EN69) -> 0.18 | EO83: =FORECAST(EO65,EO73:EO74,EO68:EO69) -> 0.18
AU84: interp Qmax | AV84: =FORECAST(AV65,AV75:AV76,AV68:AV69) -> 0.04978726926 | AW84: =FORECAST(AW65,AW75:AW76,AW68:AW69) -> 0.04978726926 | AX84: 0.04978726926 | AY84: 0.04978726926 | AZ84: 0.04978726926 | BA84: 0.07871252102 | BB84: 0.06488821208 | BC84: 0.05870586383 | BD84: 0.05870586383 | BE84: 0.05517617529 | BF84: 0.05517617529 | CE84: interp Qmax | CF84: =FORECAST(CF65,CF75:CF76,CF68:CF69) -> 0.03520614982 | CG84: =FORECAST(CG65,CG75:CG76,CG68:CG69) -> 0.03520614982 | CH84: 0.03520614982 | CI84: 0.03520614982 | CJ84: 0.03520614982 | CK84: 0.1147314491 | CL84: 0.08761281169 | CM84: 0.07142895838 | CN84: 0.07142895838 | CO84: 0.05992940487 | CP84: 0.05992940487 | ED84: interp Qmax | EE84: =FORECAST(EE65,EE75:EE76,EE68:EE69) -> 1e-05 | EF84: =FORECAST(EF65,EF75:EF76,EF68:EF69) -> 1e-05 | EG84: 1e-05 | EH84: 1e-05 | EI84: 1e-05 | EJ84: 0.6538235294 | EK84: 0.5005882353 | EL84: 0.4079411765 | EM84: 0.4079411765 | EN84: 0.3152941176 | EO84: 0.3152941176
A87: C nozzle | B87: C nozzle | C87: C nozzle | D87: C nozzle | E87: C nozzle | F87: C nozzle | G87: C nozzle | H87: C nozzle | I87: C nozzle | J87: C nozzle | K87: C nozzle | L87: C nozzle | M87: C nozzle | N87: C nozzle | O87: C nozzle | P87: C nozzle | Q87: C nozzle | R87: C nozzle | S87: C nozzle | T87: C nozzle | U87: C nozzle | V87: C nozzle | W87: C nozzle | X87: C nozzle | Y87: C nozzle | Z87: C nozzle | AA87: C nozzle | AB87: C nozzle | AC87: C nozzle | AD87: C nozzle | AE87: C nozzle | AF87: C nozzle | AG87: C nozzle | AH87: C nozzle | AI87: C nozzle | AJ87: C nozzle | AK87: C nozzle | AL87: C nozzle | AM87: C nozzle | AN87: C nozzle | AO87: C nozzle | AP87: C nozzle | AQ87: C nozzle | AR87: C nozzle | AS87: C nozzle | AT87: C nozzle | AU87: C nozzle | AV87: C nozzle | AW87: C nozzle | AX87: C nozzle | AY87: C nozzle | AZ87: C nozzle | BA87: C nozzle | BB87: C nozzle | BC87: C nozzle | BD87: C nozzle | BE87: C nozzle | BF87: C nozzle | BG87: C nozzle | BH87: C nozzle | BI87: C nozzle | BJ87: C nozzle | BK87: C nozzle | BL87: C nozzle | BM87: C nozzle | BN87: C nozzle | BO87: C nozzle | BP87: C nozzle | BQ87: C nozzle | BR87: C nozzle | BS87: C nozzle | BT87: C nozzle | BU87: C nozzle | BV87: C nozzle | BW87: C nozzle | BX87: C nozzle | BY87: C nozzle | BZ87: C nozzle | CA87: C nozzle | CB87: C nozzle | CC87: C nozzle | CD87: C nozzle | CE87: C nozzle | CF87: C nozzle | CG87: C nozzle | CH87: C nozzle | CI87: C nozzle | CJ87: C nozzle | CK87: C nozzle | CL87: C nozzle | CM87: C nozzle | CN87: C nozzle | CO87: C nozzle | CP87: C nozzle | CQ87: C nozzle | CR87: C nozzle | CS87: C nozzle | CT87: C nozzle | CU87: C nozzle | CV87: C nozzle | CW87: C nozzle | CX87: C nozzle | CY87: C nozzle | CZ87: C nozzle | DA87: C nozzle | DB87: C nozzle | DC87: C nozzle | DD87: C nozzle | DE87: C nozzle | DF87: C nozzle | DG87: C nozzle | DH87: C nozzle | DI87: C nozzle | DJ87: C nozzle | DK87: C nozzle | DL87: C nozzle | DM87: C nozzle | DN87: C nozzle | DO87: C nozzle | DP87: C nozzle | DQ87: C nozzle | DR87: C nozzle | DS87: C nozzle | DT87: C nozzle | DU87: C nozzle | DV87: C nozzle | DW87: C nozzle | DX87: C nozzle | DY87: C nozzle | DZ87: C nozzle | EA87: C nozzle | EB87: C nozzle | EC87: C nozzle | ED87: C nozzle | EE87: C nozzle | EF87: C nozzle | EG87: C nozzle | EH87: C nozzle | EI87: C nozzle | EJ87: C nozzle | EK87: C nozzle | EL87: C nozzle | EM87: C nozzle | EN87: C nozzle | EO87: C nozzle
L89: V1 (h=2m) | AK89: v1 (h=1,8m) | BU89: v2 | CT89: V3 (h =2) | DT89: V3 (h =1,8)
M91: 0.5 | N91: 1 | O91: 1.5 | P91: 2 | Q91: 2.5 | R91: 3 | S91: 3.5 | T91: 4.18 | U91: x [m] | AL91: 0.5 | AM91: 1 | AN91: 1.5 | AO91: 2 | AP91: 2.5 | AQ91: 3 | AR91: 3.5 | AS91: 4.18 | AT91: x [m] | BV91: 0.5 | BW91: 1 | BX91: 1.5 | BY91: 2 | BZ91: 2.5 | CA91: 3 | CB91: 3.5 | CC91: 4.18 | CD91: x [m] | CU91: 0.5 | CV91: 1 | CW91: 1.5 | CX91: 2 | CY91: 2.5 | CZ91: 3 | DA91: 3.5 | DB91: 4.18 | DC91: x [m] | DU91: 0.5 | DV91: 1 | DW91: 1.5 | DX91: 2 | DY91: 2.5 | DZ91: 3 | EA91: 3.5 | EB91: 4.18 | EC91: x [m]
M93: =IF(M95-$W$26<=0,10000,(M95-$W$26)) -> 1.2 | N93: =IF(N95-$W$26<=0,10000,(N95-$W$26)) -> 1.7 | O93: 2.2 | P93: 2.7 | Q93: 3.2 | R93: 3.7 | S93: 4.2 | T93: 4.88 | U93: L3max | V93: =MIN(M93:T93) -> 1.2 | AL93: =IF(AL95-$AV$26<=0,10000,(AL95-$AV$26)) -> 10000 | AM93: =IF(AM95-$AV$26<=0,10000,(AM95-$AV$26)) -> 10000 | AN93: 10000 | AO93: 10000 | AP93: 10000 | AQ93: 10000 | AR93: 10000 | AS93: 0.18 | AT93: L3max | AU93: =MIN(AL93:AS93) -> 0.18 | BV93: =IF(BV95-$CF$26<=0,10000,(BV95-$CF$26)) -> 10000 | BW93: =IF(BW95-$CF$26<=0,10000,(BW95-$CF$26)) -> 10000 | BX93: 10000 | BY93: 10000 | BZ93: 10000 | CA93: 10000 | CB93: 10000 | CC93: 0.18 | CD93: L3max | CE93: =MIN(BV93:CC93) -> 0.18 | CU93: =IF(CU95-$DE$26<=0,10000,(CU95-$DE$26)) -> 1.2 | CV93: =IF(CV95-$DE$26<=0,10000,(CV95-$DE$26)) -> 1.7 | CW93: 2.2 | CX93: 2.7 | CY93: 3.2 | CZ93: 3.7 | DA93: 4.2 | DB93: 4.88 | DC93: L3max | DD93: =MIN(CU93:DB93) -> 1.2 | DU93: =IF(DU95-$EE$26<=0,10000,(DU95-$EE$26)) -> 10000 | DV93: =IF(DV95-$EE$26<=0,10000,(DV95-$EE$26)) -> 10000 | DW93: 10000 | DX93: 10000 | DY93: 10000 | DZ93: 10000 | EA93: 10000 | EB93: 0.18 | EC93: L3max | ED93: =MIN(DU93:EB93) -> 0.18
L94: 2 sides | M94: 1 | N94: 2 | O94: 3 | P94: 4 | Q94: 5 | R94: 6 | S94: 7 | T94: 8 | U94: index | AK94: 2 sides | AL94: 1 | AM94: 2 | AN94: 3 | AO94: 4 | AP94: 5 | AQ94: 6 | AR94: 7 | AS94: 8 | AT94: index | BV94: 1 | BW94: 2 | BX94: 3 | BY94: 4 | BZ94: 5 | CA94: 6 | CB94: 7 | CC94: 8 | CD94: index | CF94: beam | CT94: 2 sides | CU94: 1 | CV94: 2 | CW94: 3 | CX94: 4 | CY94: 5 | CZ94: 6 | DA94: 7 | DB94: 8 | DC94: index | DT94: 2 sides | DU94: 1 | DV94: 2 | DW94: 3 | DX94: 4 | DY94: 5 | DZ94: 6 | EA94: 7 | EB94: 8 | EC94: index | EE94: beam
H95: Qt [m³/h] | L95: Qt [m³/h/m] | M95: =M91+(2.7-2) -> 1.2 | N95: =N91+(2.7-2) -> 1.7 | O95: 2.2 | P95: 2.7 | Q95: 3.2 | R95: 3.7 | S95: 4.2 | T95: 4.88 | U95: L1 h 2m [m] | Y95: 600 | Z95: 900 | AA95: 1000 | AB95: 1100 | AC95: 1200 | AD95: 1500 | AE95: 1800 | AF95: 2100 | AG95: 2400 | AH95: 2700 | AI95: 3000 | AK95: Q [m³/h/m] | AL95: =AL91+(2.7-1.8) -> 1.4 | AM95: 1.9 | AN95: 2.4 | AO95: 2.9 | AP95: 3.4 | AQ95: 3.9 | AR95: 4.4 | AS95: 5.08 | AT95: L1 h=1,8m [m] | AV95: 600 | AW95: 900 | AX95: 1000 | AY95: 1100 | AZ95: 1200 | BA95: 1500 | BB95: 1800 | BC95: 2100 | BD95: 2400 | BE95: 2700 | BF95: 3000 | BI95: 600 | BJ95: 900 | BK95: 1000 | BL95: 1100 | BM95: 1200 | BN95: 1500 | BO95: 1800 | BP95: 2100 | BQ95: 2400 | BR95: 2700 | BS95: 3000 | BU95: Q [m³/h/m] | BV95: =BV91+2.6+0.5 -> 3.6 | BW95: 4.1 | BX95: 4.6 | BY95: 5.1 | BZ95: 5.6 | CA95: 6.1 | CB95: 6.6 | CC95: 7.28 | CD95: L2 [m] | CF95: 600 | CG95: 900 | CH95: 1000 | CI95: 1100 | CJ95: 1200 | CK95: 1500 | CL95: 1800 | CM95: 2100 | CN95: 2400 | CO95: 2700 | CP95: 3000 | CT95: Q [m³/h/m] | CU95: =CU91+(2.7-2) -> 1.2 | CV95: =CV91+(2.7-2) -> 1.7 | CW95: =CW91+(2.7-2) -> 2.2 | CX95: 2.7 | CY95: 3.2 | CZ95: 3.7 | DA95: 4.2 | DB95: 4.88 | DC95: L3 h 2 [m] | DH95: 600 | DI95: 900 | DJ95: 1000 | DK95: 1100 | DL95: 1200 | DM95: 1500 | DN95: 1800 | DO95: 2100 | DP95: 2400 | DQ95: 2700 | DR95: 3000 | DT95: Q [m³/h/m] | DU95: =DU91+(2.7-1.8) -> 1.4 | DV95: 1.9 | DW95: 2.4 | DX95: 2.9 | DY95: 3.4 | DZ95: 3.9 | EA95: 4.4 | EB95: 5.08 | EC95: L3 h 1,8m [m] | EE95: 600 | EF95: 900 | EG95: 1000 | EH95: 1100 | EI95: 1200 | EJ95: 1500 | EK95: 1800 | EL95: 2100 | EM95: 2400 | EN95: 2700 | EO95: 3000
H96: =H65 -> 95.22054796 | J96: =IF(L96-$W$27<=0,10000,L96-$W$27) -> 87.7608737 | K96: 1 | L96: =H96/$J$21 -> 87.7608737 | Y96: =IF($AK96-AV$97<=0,10000,$AK96-AV$97) -> 10000 | Z96: =IF($AK96-AW$97<=0,10000,$AK96-AW$97) -> 10000 | AA96: 10000 | AB96: 10000 | AC96: 10000 | AD96: 10000 | AE96: 10000 | AF96: 10000 | AG96: 10000 | AH96: 10000 | AI96: 10000 | AJ96: 1 | AK96: =L96 -> 87.7608737 | AL96: 0.05389528448 | AM96: 0.05310251238 | AN96: 0.05239036436 | AO96: 0.05175064104 | AP96: 0.05117597689 | AQ96: 0.05065975547 | AR96: 0.05019603321 | AS96: 0.04964011424 | AU96: L1 @ 1,8m | AV96: =$R$1 -> 4.9 | AW96: 4.9 | AX96: 4.9 | AY96: 4.9 | AZ96: 4.9 | BA96: 4.9 | BB96: 4.9 | BC96: 4.9 | BD96: 4.9 | BE96: 4.9 | BF96: 4.9 | BI96: =IF($BU96-CF$97<=0,10000,$BU96-CF$97) -> 10000 | BJ96: =IF($BU96-CG$97<=0,10000,$BU96-CG$97) -> 10000 | BK96: 10000 | BL96: 10000 | BM96: 10000 | BN96: 10000 | BO96: 10000 | BP96: 10000 | BQ96: 10000 | BR96: 10000 | BS96: 10000 | BT96: 1 | BU96: =AK96 -> 87.7608737 | BV96: 0.04047007784 | BW96: 0.03968877573 | BX96: 0.03891737199 | BY96: 0.03815574121 | BZ96: 0.03740375958 | CA96: 0.03666130485 | CB96: 0.03592825633 | CC96: 0.03494619147 | CE96: L2 | CF96: =$R$3 -> 7.1 | CG96: 7.1 | CH96: 7.1 | CI96: 7.1 | CJ96: 7.1 | CK96: 7.1 | CL96: 7.1 | CM96: 7.1 | CN96: 7.1 | CO96: 7.1 | CP96: 7.1 | CR96: =IF(CT96-$DE$27<=0,10000,CT96-$DE$27) -> 87.7608737 | CS96: 1 | CT96: =BU96 -> 87.7608737 | DH96: =IF($DT96-EE$97<=0,10000,$DT96-EE$97) -> 10000 | DI96: =IF($DT96-EF$97<=0,10000,$DT96-EF$97) -> 10000 | DJ96: 10000 | DK96: 10000 | DL96: 10000 | DM96: 10000 | DN96: 10000 | DO96: 10000 | DP96: 10000 | DQ96: 10000 | DR96: 10000 | DS96: 1 | DT96: =CT96 -> 87.7608737 | DU96: 0.12 | DV96: 0.05 | DW96: 1e-05 | DX96: 1e-05 | DY96: 1e-05 | DZ96: 1e-05 | EA96: 1e-05 | EB96: 1e-05 | ED96: L3 | EE96: =$R$4 -> 4.9 | EF96: 4.9 | EG96: 4.9 | EH96: 4.9 | EI96: 4.9 | EJ96: 4.9 | EK96: 4.9 | EL96: 4.9 | EM96: 4.9 | EN96: 4.9 | EO96: 4.9
H97: =H66 -> 125.6410987 | J97: =IF(L97-$W$27<=0,10000,L97-$W$27) -> 115.7982477 | K97: 2 | L97: =H97/$J$21 -> 115.7982477 | Y97: =IF($AK97-AV$97<=0,10000,$AK97-AV$97) -> 10000 | Z97: 10000 | AA97: 10000 | AB97: 10000 | AC97: 10000 | AD97: 10000 | AE97: 10000 | AF97: 10000 | AG97: 10000 | AH97: 10000 | AI97: 10000 | AJ97: 2 | AK97: =L97 -> 115.7982477 | AL97: 0.05536470474 | AM97: 0.05442249418 | AN97: 0.05357610542 | AO97: 0.0528157935 | AP97: 0.05213280448 | AQ97: 0.05151927472 | AR97: 0.05096814028 | AS97: 0.05030742992 | AU97: Q1 | AV97: =B7 -> 943.0764174 | AW97: =C7 -> 582.6650477 | AX97: 516.8271892 | AY97: 464.3574238 | AZ97: 421.5595046 | BA97: 330.2469765 | BB97: 271.4492952 | BC97: 230.4242128 | BD97: 200.1715809 | BE97: 176.9408365 | BF97: 161.3375882 | BI97: =IF($BU97-CF$97<=0,10000,$BU97-CF$97) -> 10000 | BJ97: 10000 | BK97: 10000 | BL97: 10000 | BM97: 10000 | BN97: 10000 | BO97: 10000 | BP97: 10000 | BQ97: 10000 | BR97: 10000 | BS97: 10000 | BT97: 2 | BU97: =AK97 -> 115.7982477 | BV97: 0.04492070856 | BW97: 0.04408302113 | BX97: 0.04325594642 | BY97: 0.04243934997 | BZ97: 0.04163309903 | CA97: 0.04083706253 | CB97: 0.04005111107 | CC97: 0.03899817217 | CE97: Q2 | CF97: =B7 -> 943.0764174 | CG97: =C7 -> 582.6650477 | CH97: 516.8271892 | CI97: 464.3574238 | CJ97: 421.5595046 | CK97: 330.2469765 | CL97: 271.4492952 | CM97: 230.4242128 | CN97: 200.1715809 | CO97: 176.9408365 | CP97: 161.3375882 | CR97: =IF(CT97-$DE$27<=0,10000,CT97-$DE$27) -> 115.7982477 | CS97: 2 | CT97: =BU97 -> 115.7982477 | DH97: =IF($DT97-EE$97<=0,10000,$DT97-EE$97) -> 10000 | DI97: 10000 | DJ97: 10000 | DK97: 10000 | DL97: 10000 | DM97: 10000 | DN97: 10000 | DO97: 10000 | DP97: 10000 | DQ97: 10000 | DR97: 10000 | DS97: 2 | DT97: =CT97 -> 115.7982477 | DU97: 0.23 | DV97: 0.16 | DW97: 0.07 | DX97: 0.05 | DY97: 0.04 | DZ97: 0.03 | EA97: 0.02 | EB97: 0.01 | ED97: Q3 | EE97: =B7 -> 943.0764174 | EF97: =C7 -> 582.6650477 | EG97: 516.8271892 | EH97: 464.3574238 | EI97: 421.5595046 | EJ97: 330.2469765 | EK97: 271.4492952 | EL97: 230.4242128 | EM97: 200.1715809 | EN97: 176.9408365 | EO97: 161.3375882
H98: 137.1714396 | J98: 126.4252899 | K98: 3 | L98: 126.4252899 | Y98: 10000 | Z98: 10000 | AA98: 10000 | AB98: 10000 | AC98: 10000 | AD98: 10000 | AE98: 10000 | AF98: 10000 | AG98: 10000 | AH98: 10000 | AI98: 10000 | AJ98: 3 | AK98: =L98 -> 126.4252899 | AL98: 0.05605563551 | AM98: 0.05504315803 | AN98: 0.05413364842 | AO98: 0.05331663497 | AP98: 0.05258271091 | AQ98: 0.05192342615 | AR98: 0.05133118994 | AS98: 0.05062120601 | AU98: v1 | AV98: =FORECAST(AV97,AV114:AV115,AV101:AV102) ->  | AW98: =FORECAST(AW97,AW114:AW115,AW101:AW102) ->  | AZ98: 0.07656695107 | BA98: 0.06309598424 | BB98: 0.05790956367 | BC98: 0.05514206132 | BD98: 0.0536711357 | BE98: 0.05256902338 | BF98: 0.05202543128 | BI98: 10000 | BJ98: 10000 | BK98: 10000 | BL98: 10000 | BM98: 10000 | BN98: 10000 | BO98: 10000 | BP98: 10000 | BQ98: 10000 | BR98: 10000 | BS98: 10000 | BT98: 3 | BU98: =AK98 -> 126.4252899 | BV98: 0.04686785512 | BW98: 0.04600549917 | BX98: 0.04515406846 | BY98: 0.04431342458 | BZ98: 0.04348343087 | CA98: 0.0426639524 | CB98: 0.04185485596 | CC98: 0.04077090973 | CE98: v2 | CF98: =FORECAST(CF97,CF114:CF115,CF101:CF102) ->  | CG98: =FORECAST(CG97,CG114:CG115,CG101:CG102) ->  | CJ98: 0.1109012101 | CK98: 0.08327257868 | CL98: 0.06883465118 | CM98: 0.05979422416 | CN98: 0.05396550495 | CO98: =FORECAST(CO97,CO114:CO115,CO101:CO102) -> 0.04953893471 | CP98: =FORECAST(CP97,CP114:CP115,CP101:CP102) -> 0.04691929209 | CR98: 126.4252899 | CS98: 3 | CT98: =BU98 -> 126.4252899 | DH98: 10000 | DI98: 10000 | DJ98: 10000 | DK98: 10000 | DL98: 10000 | DM98: 10000 | DN98: 10000 | DO98: 10000 | DP98: 10000 | DQ98: 10000 | DR98: 10000 | DS98: 3 | DT98: =CT98 -> 126.4252899 | DU98: 0.33 | DV98: 0.21 | DW98: 0.13 | DX98: 0.1 | DY98: 0.06 | DZ98: 0.06 | EA98: 0.06 | EB98: 0.16 | ED98: v3 | EE98: =FORECAST(EE97,EE114:EE115,EE101:EE102) ->  | EF98: =FORECAST(EF97,EF114:EF115,EF101:EF102) ->  | EI98: 0.6270775015 | EJ98: 0.4772318858 | EK98: 0.3870399361 | EL98: 0.3134755173 | EM98: 0.2350611442 | EN98: 0.1782405199 | EO98: 0.1644301472
H99: 194.1376764 | J99: 178.928734 | K99: 4 | L99: 178.928734 | Y99: 10000 | Z99: 10000 | AA99: 10000 | AB99: 10000 | AC99: 10000 | AD99: 10000 | AE99: 10000 | AF99: 10000 | AG99: 10000 | AH99: 1.987897454 | AI99: 17.59114583 | AJ99: 4 | AK99: 178.928734 | AL99: 0.05992262524 | AM99: 0.05851687904 | AN99: 0.05725409572 | AO99: 0.05611973612 | AP99: 0.05510073967 | AQ99: 0.05418537407 | AR99: 0.05336310018 | AS99: 0.05237734274 | AU99: L1min | AV99: =HLOOKUP(AV109,$AL$24:$AS$25,2,0) -> 4.4 | AW99: =HLOOKUP(AW109,$AL$24:$AS$25,2,0) -> 4.4 | AX99: 4.4 | AY99: 4.4 | AZ99: 4.4 | BA99: 4.4 | BB99: 4.4 | BC99: 4.4 | BD99: 4.4 | BE99: 4.4 | BF99: 4.4 | BI99: 10000 | BJ99: 10000 | BK99: 10000 | BL99: 10000 | BM99: 10000 | BN99: 10000 | BO99: 10000 | BP99: 10000 | BQ99: 10000 | BR99: 1.987897454 | BS99: 17.59114583 | BT99: 4 | BU99: 178.928734 | BV99: 0.05650532113 | BW99: 0.05552086752 | BX99: 0.054548886 | BY99: 0.05358921859 | BZ99: 0.05264170926 | CA99: 0.05170620399 | CB99: 0.05078255069 | CC99: 0.04954513268 | CE99: L2min | CF99: =HLOOKUP(CF109,$BV$24:$CC$25,2,0) -> 6.6 | CG99: =HLOOKUP(CG109,$BV$24:$CC$25,2,0) -> 6.6 | CH99: 6.6 | CI99: 6.6 | CJ99: 6.6 | CK99: 6.6 | CL99: 6.6 | CM99: 6.6 | CN99: 6.6 | CO99: 6.6 | CP99: 6.6 | CR99: 178.928734 | CS99: 4 | CT99: 178.928734 | DH99: 10000 | DI99: 10000 | DJ99: 10000 | DK99: 10000 | DL99: 10000 | DM99: 10000 | DN99: 10000 | DO99: 10000 | DP99: 10000 | DQ99: 1.987897454 | DR99: 17.59114583 | DS99: 4 | DT99: 178.928734 | DU99: 0.49 | DV99: 0.39 | DW99: 0.31 | DX99: 0.28 | DY99: 0.22 | DZ99: 0.19 | EA99: 0.18 | EB99: 0.18 | ED99: L3min | EE99: =HLOOKUP(EE109,$DU$24:$EB$25,2,0) -> 4.4 | EF99: =HLOOKUP(EF109,$DU$24:$EB$25,2,0) -> 4.4 | EG99: 4.4 | EH99: 4.4 | EI99: 4.4 | EJ99: 4.4 | EK99: 4.4 | EL99: 4.4 | EM99: 4.4 | EN99: 4.4 | EO99: 4.4
H100: 250.7715335 | J100: 231.1258373 | K100: 5 | L100: 231.1258373 | Y100: 10000 | Z100: 10000 | AA100: 10000 | AB100: 10000 | AC100: 10000 | AD100: 10000 | AE100: 10000 | AF100: 0.7016245 | AG100: 30.95425638 | AH100: 54.18500078 | AI100: 69.78824915 | AJ100: 5 | AK100: 231.1258373 | AL100: 0.06528801243 | AM100: 0.06333661209 | AN100: 0.06158366707 | AO100: 0.0600089947 | AP100: 0.05859446481 | AQ100: 0.05732379111 | AR100: 0.05618234356 | AS100: 0.05481395472 | AU100: L1max | AV100: =HLOOKUP(AV110,$AL$24:$AS$25,2,0) -> 5.08 | AW100: 5.08 | AX100: 5.08 | AY100: 5.08 | AZ100: 5.08 | BA100: 5.08 | BB100: 5.08 | BC100: 5.08 | BD100: 5.08 | BE100: 5.08 | BF100: 5.08 | BI100: 10000 | BJ100: 10000 | BK100: 10000 | BL100: 10000 | BM100: 10000 | BN100: 10000 | BO100: 10000 | BP100: 0.7016245 | BQ100: 30.95425638 | BR100: 54.18500078 | BS100: 69.78824915 | BT100: 5 | BU100: 231.1258373 | BV100: 0.06750055356 | BW100: 0.06637680065 | BX100: 0.06526728464 | BY100: 0.06417182515 | BZ100: 0.06309024412 | CA100: 0.06202236569 | CB100: 0.06096801629 | CC100: 0.05955550476 | CE100: L2max | CF100: =HLOOKUP(CF110,$BV$24:$CC$25,2,0) -> 7.28 | CG100: 7.28 | CH100: 7.28 | CI100: 7.28 | CJ100: 7.28 | CK100: 7.28 | CL100: 7.28 | CM100: 7.28 | CN100: 7.28 | CO100: 7.28 | CP100: 7.28 | CR100: 231.1258373 | CS100: 5 | CT100: 231.1258373 | DH100: 10000 | DI100: 10000 | DJ100: 10000 | DK100: 10000 | DL100: 10000 | DM100: 10000 | DN100: 10000 | DO100: 0.7016245 | DP100: 30.95425638 | DQ100: 54.18500078 | DR100: 69.78824915 | DS100: 5 | DT100: 231.1258373 | DU100: 0.65 | DV100: 0.53 | DW100: 0.42 | DX100: 0.42 | DY100: 0.37 | DZ100: 0.36 | EA100: 0.33 | EB100: 0.31 | ED100: L3max | EE100: =HLOOKUP(EE110,$DU$24:$EB$25,2,0) -> 5.08 | EF100: 5.08 | EG100: 5.08 | EH100: 5.08 | EI100: 5.08 | EJ100: 5.08 | EK100: 5.08 | EL100: 5.08 | EM100: 5.08 | EN100: 5.08 | EO100: 5.08
H101: 307.2681641 | J101: 283.1964646 | K101: 6 | L101: 283.1964646 | Y101: 10000 | Z101: 10000 | AA101: 10000 | AB101: 10000 | AC101: 10000 | AD101: 10000 | AE101: 11.74716943 | AF101: 52.77225183 | AG101: 83.02488371 | AH101: 106.2556281 | AI101: 121.8588765 | AJ101: 6 | AK101: 283.1964646 | AL101: 0.07275015429 | AM101: 0.0700398621 | AN101: 0.06760520373 | AO101: 0.06541814752 | AP101: 0.06345351258 | AQ101: 0.06168867891 | AR101: 0.06010332694 | AS101: 0.05820277712 | AU101: Qmin | AV101: =VLOOKUP(AV111,$AJ$96:$AK$108,2,0) ->  | AW101: =VLOOKUP(AW111,$AJ$96:$AK$108,2,0) ->  | AZ101: 400.8057638 | BA101: 327.1106081 | BB101: 231.1258373 | BC101: 178.928734 | BD101: 178.928734 | BE101: 126.4252899 | BF101: 126.4252899 | BI101: 10000 | BJ101: 10000 | BK101: 10000 | BL101: 10000 | BM101: 10000 | BN101: 10000 | BO101: 11.74716943 | BP101: 52.77225183 | BQ101: 83.02488371 | BR101: 106.2556281 | BS101: 121.8588765 | BT101: 6 | BU101: 283.1964646 | BV101: 0.08007326704 | BW101: 0.07879022963 | BX101: 0.0775234471 | BY101: 0.07627271352 | BZ101: 0.07503782556 | CA101: 0.07381858248 | CB101: 0.07261478606 | CC101: 0.07100206041 | CE101: Qmin | CF101: =VLOOKUP(CF111,$BT$96:$BU$108,2,0) ->  | CG101: =VLOOKUP(CG111,$BT$96:$BU$108,2,0) ->  | CJ101: 400.8057638 | CK101: 327.1106081 | CL101: 231.1258373 | CM101: 178.928734 | CN101: 178.928734 | CO101: 126.4252899 | CP101: 126.4252899 | CR101: 283.1964646 | CS101: 6 | CT101: 283.1964646 | DH101: 10000 | DI101: 10000 | DJ101: 10000 | DK101: 10000 | DL101: 10000 | DM101: 10000 | DN101: 11.74716943 | DO101: 52.77225183 | DP101: 83.02488371 | DQ101: 106.2556281 | DR101: 121.8588765 | DS101: 6 | DT101: 283.1964646 | DU101: 0.82 | DV101: 0.63 | DW101: 0.56 | DX101: 0.56 | DY101: 0.47 | DZ101: 0.46 | EA101: 0.43 | EB101: 0.4 | ED101: Qmin | EE101: =VLOOKUP(EE111,$DS$65:$DT$77,2,0) ->  | EF101: =VLOOKUP(EF111,$DS$65:$DT$77,2,0) ->  | EI101: 400.8057638 | EJ101: 327.1106081 | EK101: 231.1258373 | EL101: 178.928734 | EM101: 178.928734 | EN101: 126.4252899 | EO101: 126.4252899
H102: 327.1569797 | J102: 301.5271703 | K102: 7 | L102: 301.5271703 | Y102: 10000 | Z102: 10000 | AA102: 10000 | AB102: 10000 | AC102: 10000 | AD102: 10000 | AE102: 30.07787505 | AF102: 71.10295746 | AG102: 101.3555893 | AH102: 124.5863337 | AI102: 140.1895821 | AJ102: 7 | AK102: 301.5271703 | AL102: 0.07602543416 | AM102: 0.07298204952 | AN102: 0.07024817384 | AO102: 0.06779233039 | AP102: 0.06558624359 | AQ102: 0.06360451346 | AR102: 0.06182432317 | AS102: 0.05969019748 | AU102: Qmax | AV102: =VLOOKUP(AV112,$AJ$96:$AK$108,2,0) -> 87.7608737 | AW102: 87.7608737 | AX102: 87.7608737 | AY102: 87.7608737 | AZ102: 432.9931188 | BA102: 346.2244863 | BB102: 283.1964646 | BC102: 231.1258373 | BD102: 231.1258373 | BE102: 178.928734 | BF102: 178.928734 | BI102: 10000 | BJ102: 10000 | BK102: 10000 | BL102: 10000 | BM102: 10000 | BN102: 10000 | BO102: 30.07787505 | BP102: 71.10295746 | BQ102: =IF($BU102-CN$97<=0,10000,$BU102-CN$97) -> 101.3555893 | BR102: 124.5863337 | BS102: 140.1895821 | BT102: 7 | BU102: 301.5271703 | BV102: 0.08492256721 | BW102: 0.08357809371 | BX102: 0.08225065343 | BY102: 0.08094003058 | BZ102: 0.07964601208 | CA102: 0.07836838759 | CB102: 0.07710694941 | CC102: 0.0754170011 | CE102: Qmax | CF102: =VLOOKUP(CF112,$BT$96:$BU$108,2,0) -> 87.7608737 | CG102: 87.7608737 | CH102: 87.7608737 | CI102: 87.7608737 | CJ102: 432.9931188 | CK102: 346.2244863 | CL102: 283.1964646 | CM102: 231.1258373 | CN102: 231.1258373 | CO102: 178.928734 | CP102: 178.928734 | CR102: 301.5271703 | CS102: 7 | CT102: 301.5271703 | DH102: 10000 | DI102: 10000 | DJ102: 10000 | DK102: 10000 | DL102: 10000 | DM102: 10000 | DN102: 30.07787505 | DO102: 71.10295746 | DP102: =IF($DT102-EM$97<=0,10000,$DT102-EM$97) -> 101.3555893 | DQ102: 124.5863337 | DR102: 140.1895821 | DS102: 7 | DT102: 301.5271703 | DU102: 0.88 | DV102: 0.7 | DW102: 0.59 | DX102: 0.53 | DY102: 0.49 | DZ102: 0.48 | EA102: 0.47 | EB102: 0.41 | ED102: Qmax | EE102: =VLOOKUP(EE112,$DS$65:$DT$77,2,0) -> 87.7608737 | EF102: 87.7608737 | EG102: 87.7608737 | EH102: 87.7608737 | EI102: 432.9931188 | EJ102: 346.2244863 | EK102: 283.1964646 | EL102: 231.1258373 | EM102: =VLOOKUP(EM112,$DS$65:$DT$77,2,0) -> 231.1258373 | EN102: 178.928734 | EO102: 178.928734
H103: 354.9150097 | J103: 327.1106081 | K103: 8 | L103: 327.1106081 | Y103: 10000 | Z103: 10000 | AA103: 10000 | AB103: 10000 | AC103: 10000 | AD103: 10000 | AE103: 55.66131285 | AF103: 96.68639525 | AG103: 126.9390271 | AH103: 150.1697715 | AI103: 165.7730199 | AJ103: 8 | AK103: 327.1106081 | AL103: 0.08128757238 | AM103: 0.07770903391 | AN103: 0.07449442897 | AO103: 0.07160674592 | AP103: 0.06901273714 | AQ103: 0.06668253628 | AR103: 0.06458931436 | AS103: 0.06207992046 | BI103: 10000 | BJ103: 10000 | BK103: 10000 | BL103: 10000 | BM103: 10000 | BN103: 10000 | BO103: 55.66131285 | BP103: 96.68639525 | BQ103: 126.9390271 | BR103: 150.1697715 | BS103: 165.7730199 | BT103: 8 | BU103: 327.1106081 | BV103: 0.09209066441 | BW103: 0.09065537783 | BX103: 0.08923827499 | BY103: 0.08783912552 | BZ103: 0.08645770196 | CA103: 0.08509377974 | CB103: 0.08374713713 | CC103: 0.0819430405 | CR103: 327.1106081 | CS103: 8 | CT103: 327.1106081 | DH103: 10000 | DI103: 10000 | DJ103: 10000 | DK103: 10000 | DL103: 10000 | DM103: 10000 | DN103: 55.66131285 | DO103: 96.68639525 | DP103: =IF($DT103-EM$97<=0,10000,$DT103-EM$97) -> 126.9390271 | DQ103: 150.1697715 | DR103: 165.7730199 | DS103: 8 | DT103: 327.1106081 | DU103: 0.96 | DV103: 0.77 | DW103: 0.65 | DX103: 0.6 | DY103: 0.53 | DZ103: 0.51 | EA103: 0.48 | EB103: 0.47
H104: 375.6535676 | J104: 346.2244863 | K104: 9 | L104: 346.2244863 | Y104: 10000 | Z104: 10000 | AA104: 10000 | AB104: 10000 | AC104: 10000 | AD104: 15.97750976 | AE104: 74.77519104 | AF104: 115.8002734 | AG104: 146.0529053 | AH104: 169.2836497 | AI104: 184.8868981 | AJ104: 9 | AK104: 346.2244863 | AL104: 0.08582030455 | AM104: 0.08178079207 | AN104: 0.07815209368 | AO104: 0.07489243004 | AP104: 0.0719642707 | AQ104: 0.06933390203 | AR104: 0.06697103905 | AS104: 0.06413839437 | AU104: Lmin Q min | AV104: =INDEX($AL$96:$AS$108,AV111,AV109) -> 0.06697103905 | AW104: =INDEX($AL$96:$AS$108,AW111,AW109) -> 0.06697103905 | AX104: 0.06697103905 | AY104: 0.06697103905 | AZ104: 0.07561818653 | BA104: 0.06458931436 | BB104: 0.05618234356 | BC104: 0.05336310018 | BD104: 0.05336310018 | BE104: 0.05133118994 | BF104: 0.05133118994 | BI104: 10000 | BJ104: 10000 | BK104: 10000 | BL104: 10000 | BM104: 10000 | BN104: 15.97750976 | BO104: 74.77519104 | BP104: 115.8002734 | BQ104: 146.0529053 | BR104: 169.2836497 | BS104: 184.8868981 | BT104: 9 | BU104: 346.2244863 | BV104: 0.09776742799 | BW104: 0.09626022214 | BX104: 0.09477211117 | BY104: 0.09330285318 | BZ104: 0.09185220931 | CA104: 0.09041994373 | CB104: 0.08900582362 | CC104: 0.08711132739 | CE104: Lmin Q min | CF104: =INDEX($BV$96:$CC$108,CF111,CF109) -> 0.08900582362 | CG104: =INDEX($BV$96:$CC$108,CG111,CG109) -> 0.08900582362 | CH104: 0.08900582362 | CI104: 0.08900582362 | CJ104: 0.1055508895 | CK104: 0.08374713713 | CL104: 0.06096801629 | CM104: 0.05078255069 | CN104: 0.05078255069 | CO104: 0.04185485596 | CP104: 0.04185485596 | CR104: 346.2244863 | CS104: 9 | CT104: 346.2244863 | DH104: 10000 | DI104: 10000 | DJ104: 10000 | DK104: 10000 | DL104: 10000 | DM104: 15.97750976 | DN104: 74.77519104 | DO104: 115.8002734 | DP104: 146.0529053 | DQ104: 169.2836497 | DR104: 184.8868981 | DS104: 9 | DT104: 346.2244863 | DU104: 0.99 | DV104: 0.8 | DW104: 0.73 | DX104: 0.63 | DY104: 0.58 | DZ104: 0.55 | EA104: 0.53 | EB104: 0.49 | ED104: Lmin Q min | EE104: =INDEX($DU$96:$EB$108,EE111,EE109) -> 0.53 | EF104: =INDEX($DU$96:$EB$108,EF111,EF109) -> 0.53 | EG104: 0.53 | EH104: 0.53 | EI104: 0.63 | EJ104: 0.48 | EK104: 0.33 | EL104: 0.18 | EM104: 0.18 | EN104: 0.06 | EO104: 0.06
H105: 396.9044554 | J105: 365.810558 | K105: 10 | L105: 365.810558 | Y105: 10000 | Z105: 10000 | AA105: 10000 | AB105: 10000 | AC105: 10000 | AD105: 35.56358148 | AE105: 94.36126275 | AF105: 135.3863452 | AG105: 165.638977 | AH105: 188.8697214 | AI105: 204.4729698 | AJ105: 10 | AK105: 365.810558 | AL105: 0.09107688841 | AM105: 0.08650278697 | AN105: 0.08239386675 | AO105: 0.07870281932 | AP105: 0.07538714747 | AQ105: 0.0724086759 | AR105: 0.0697331117 | AS105: 0.06652559491 | AU105: Lmax Q min | AV105: =INDEX($AL$96:$AS$108,AV111,AV110) -> 0.06652559491 | AW105: =INDEX($AL$96:$AS$108,AW111,AW110) -> 0.06652559491 | AX105: 0.06652559491 | AY105: 0.06652559491 | AZ105: 0.0716119397 | BA105: 0.06207992046 | BB105: 0.05481395472 | BC105: 0.05237734274 | BD105: 0.05237734274 | BE105: 0.05062120601 | BF105: 0.05062120601 | BI105: 10000 | BJ105: 10000 | BK105: 10000 | BL105: 10000 | BM105: 10000 | BN105: 35.56358148 | BO105: 94.36126275 | BP105: 135.3863452 | BQ105: 165.638977 | BR105: 188.8697214 | BS105: 204.4729698 | BT105: 10 | BU105: 365.810558 | BV105: 0.1038858545 | BW105: 0.1023011339 | BX105: 0.1007364903 | BY105: 0.09919166917 | BZ105: 0.09766641952 | CA105: 0.09616049335 | CB105: 0.09467364585 | CC105: 0.09268171677 | CE105: Lmax Q min | CF105: =INDEX($BV$96:$CC$108,CF111,CF110) -> 0.09268171677 | CG105: =INDEX($BV$96:$CC$108,CG111,CG110) -> 0.09268171677 | CH105: 0.09268171677 | CI105: 0.09268171677 | CJ105: 0.1033719748 | CK105: 0.0819430405 | CL105: 0.05955550476 | CM105: 0.04954513268 | CN105: 0.04954513268 | CO105: 0.04077090973 | CP105: 0.04077090973 | CR105: 365.810558 | CS105: 10 | CT105: 365.810558 | DH105: 10000 | DI105: 10000 | DJ105: 10000 | DK105: 10000 | DL105: 10000 | DM105: 35.56358148 | DN105: 94.36126275 | DO105: 135.3863452 | DP105: 165.638977 | DQ105: 188.8697214 | DR105: 204.4729698 | DS105: 10 | DT105: 365.810558 | DU105: 1.04 | DV105: 0.86 | DW105: 0.79 | DX105: 0.67 | DY105: 0.62 | DZ105: 0.6 | EA105: 0.58 | EB105: 0.52 | ED105: Lmax Q min | EE105: =INDEX($DU$96:$EB$108,EE111,EE110) -> 0.52 | EF105: =INDEX($DU$96:$EB$108,EF111,EF110) -> 0.52 | EG105: 0.52 | EH105: 0.52 | EI105: 0.56 | EJ105: 0.47 | EK105: 0.31 | EL105: 0.18 | EM105: 0.18 | EN105: 0.16 | EO105: 0.16
H106: 434.8742537 | J106: 400.8057638 | K106: 11 | L106: 400.8057638 | Y106: 10000 | Z106: 10000 | AA106: 10000 | AB106: 10000 | AC106: 10000 | AD106: 70.55878728 | AE106: 129.3564686 | AF106: 170.381551 | AG106: 200.6341828 | AH106: 223.8649272 | AI106: 239.4681756 | AJ106: 11 | AK106: 400.8057638 | AL106: 0.102276952 | AM106: 0.09656381607 | AN106: 0.09143169995 | AO106: 0.08682151455 | AP106: 0.08268018008 | AQ106: 0.0789600149 | AR106: 0.07561818653 | AS106: 0.0716119397 | AU106: Lmin Q max | AV106: =INDEX($AL$96:$AS$108,AV112,AV109) -> 0.05019603321 | AW106: =INDEX($AL$96:$AS$108,AW112,AW109) -> 0.05019603321 | AX106: 0.05019603321 | AY106: 0.05019603321 | AZ106: 0.08232788571 | BA106: 0.06697103905 | BB106: 0.06010332694 | BC106: 0.05618234356 | BD106: 0.05618234356 | BE106: 0.05336310018 | BF106: 0.05336310018 | BI106: 10000 | BJ106: 10000 | BK106: 10000 | BL106: 10000 | BM106: 10000 | BN106: 70.55878728 | BO106: 129.3564686 | BP106: 170.381551 | BQ106: 200.6341828 | BR106: 223.8649272 | BS106: 239.4681756 | BT106: 11 | BU106: 400.8057638 | BV106: 0.1156278628 | BW106: 0.113894382 | BX106: 0.1121828627 | BY106: 0.1104930268 | BZ106: 0.1088245996 | CA106: 0.1071773097 | CB106: 0.1055508895 | CC106: 0.1033719748 | CE106: Lmin Q max | CF106: =INDEX($BV$96:$CC$108,CF112,CF109) -> 0.03592825633 | CG106: =INDEX($BV$96:$CC$108,CG112,CG109) -> 0.03592825633 | CH106: 0.03592825633 | CI106: 0.03592825633 | CJ106: 0.1164716315 | CK106: 0.08900582362 | CL106: 0.07261478606 | CM106: 0.06096801629 | CN106: 0.06096801629 | CO106: 0.05078255069 | CP106: 0.05078255069 | CR106: 400.8057638 | CS106: 11 | CT106: 400.8057638 | DH106: 10000 | DI106: 10000 | DJ106: 10000 | DK106: 10000 | DL106: 10000 | DM106: 70.55878728 | DN106: 129.3564686 | DO106: 170.381551 | DP106: 200.6341828 | DQ106: 223.8649272 | DR106: 239.4681756 | DS106: 11 | DT106: 400.8057638 | DU106: 1.16 | DV106: 0.94 | DW106: 0.83 | DX106: 0.75 | DY106: 0.71 | DZ106: 0.65 | EA106: 0.63 | EB106: 0.56 | ED106: Lmin Q max | EE106: =INDEX($DU$96:$EB$108,EE112,EE109) -> 1e-05 | EF106: =INDEX($DU$96:$EB$108,EF112,EF109) -> 1e-05 | EG106: 1e-05 | EH106: 1e-05 | EI106: 0.72 | EJ106: 0.53 | EK106: 0.43 | EL106: 0.33 | EM106: 0.33 | EN106: 0.18 | EO106: 0.18
H107: 469.7975339 | J107: 432.9931188 | K107: 12 | L107: 432.9931188 | Y107: 10000 | Z107: 10000 | AA107: 10000 | AB107: 10000 | AC107: 11.43361426 | AD107: 102.7461423 | AE107: 161.5438236 | AF107: 202.568906 | AG107: 232.8215379 | AH107: 256.0522823 | AI107: 271.6555307 | AJ107: 12 | AK107: 432.9931188 | AL107: 0.1150463831 | AM107: 0.1080346097 | AN107: 0.1017359261 | AO107: 0.09607781194 | AP107: 0.09099512192 | AQ107: 0.08642933604 | AR107: 0.08232788571 | AS107: 0.07741098974 | AU107: Lmax Q max | AV107: =INDEX($AL$96:$AS$108,AV112,AV110) -> 0.04964011424 | AW107: =INDEX($AL$96:$AS$108,AW112,AW110) -> 0.04964011424 | AX107: 0.04964011424 | AY107: 0.04964011424 | AZ107: 0.07741098974 | BA107: 0.06413839437 | BB107: 0.05820277712 | BC107: 0.05481395472 | BD107: 0.05481395472 | BE107: 0.05237734274 | BF107: 0.05237734274 | BI107: 10000 | BJ107: 10000 | BK107: 10000 | BL107: 10000 | BM107: 11.43361426 | BN107: 102.7461423 | BO107: 161.5438236 | BP107: 202.568906 | BQ107: 232.8215379 | BR107: 256.0522823 | BS107: 271.6555307 | BT107: 12 | BU107: 432.9931188 | BV107: 0.1274168277 | BW107: 0.1255339917 | BX107: 0.1236750095 | BY107: 0.1218395789 | BZ107: 0.1200274015 | CA107: 0.1182381826 | CB107: 0.1164716315 | CC107: 0.1141049835 | CE107: Lmax Q max | CF107: =INDEX($BV$96:$CC$108,CF112,CF110) -> 0.03494619147 | CG107: =INDEX($BV$96:$CC$108,CG112,CG110) -> 0.03494619147 | CH107: 0.03494619147 | CI107: 0.03494619147 | CJ107: 0.1141049835 | CK107: 0.08711132739 | CL107: 0.07100206041 | CM107: 0.05955550476 | CN107: 0.05955550476 | CO107: 0.04954513268 | CP107: 0.04954513268 | CR107: 432.9931188 | CS107: 12 | CT107: 432.9931188 | DH107: 10000 | DI107: 10000 | DJ107: 10000 | DK107: 10000 | DL107: 11.43361426 | DM107: 102.7461423 | DN107: 161.5438236 | DO107: 202.568906 | DP107: 232.8215379 | DQ107: 256.0522823 | DR107: 271.6555307 | DS107: 12 | DT107: 432.9931188 | DU107: 1.26 | DV107: 1.02 | DW107: 0.93 | DX107: 0.84 | DY107: 0.75 | DZ107: 0.72 | EA107: 0.72 | EB107: 0.63 | ED107: Lmax Q max | EE107: =INDEX($DU$96:$EB$108,EE112,EE110) -> 1e-05 | EF107: =INDEX($DU$96:$EB$108,EF112,EF110) -> 1e-05 | EG107: 1e-05 | EH107: 1e-05 | EI107: 0.63 | EJ107: 0.49 | EK107: 0.4 | EL107: 0.31 | EM107: 0.31 | EN107: 0.18 | EO107: 0.18
H108: 502.3084654 | J108: 462.9571109 | K108: 13 | L108: 462.9571109 | Y108: 10000 | Z108: 10000 | AA108: 10000 | AB108: 10000 | AC108: 41.39760639 | AD108: 132.7101345 | AE108: 191.5078157 | AF108: 232.5328981 | AG108: 262.78553 | AH108: 286.0162744 | AI108: =IF($AK108-BF$97<=0,10000,$AK108-BF$97) -> 301.6195228 | AJ108: 13 | AK108: 462.9571109 | AL108: 0.1295499708 | AM108: 0.121063198 | AN108: 0.113439521 | AO108: 0.1065911637 | AP108: 0.1004392771 | AQ108: 0.09491303071 | AR108: 0.0899487977 | AS108: 0.0839975816 | AU108: Index | BI108: 10000 | BJ108: 10000 | BK108: 10000 | BL108: 10000 | BM108: 41.39760639 | BN108: 132.7101345 | BO108: 191.5078157 | BP108: 232.5328981 | BQ108: 262.78553 | BR108: 286.0162744 | BS108: 301.6195228 | BT108: 13 | BU108: 462.9571109 | BV108: 0.1393183903 | BW108: 0.1372847727 | BX108: 0.1352769191 | BY108: 0.1332945032 | BZ108: 0.1313372026 | CA108: 0.1294046991 | CB108: 0.1274966787 | CC108: 0.1249405044 | CE108: Index | CR108: 462.9571109 | CS108: 13 | CT108: 462.9571109 | DH108: 10000 | DI108: 10000 | DJ108: 10000 | DK108: 10000 | DL108: 41.39760639 | DM108: 132.7101345 | DN108: 191.5078157 | DO108: 232.5328981 | DP108: 262.78553 | DQ108: 286.0162744 | DR108: 301.6195228 | DS108: 13 | DT108: 462.9571109 | DU108: 1.36 | DV108: 1.08 | DW108: 0.97 | DX108: 0.88 | DY108: 0.82 | DZ108: 0.77 | EA108: 0.76 | EB108: 0.69 | ED108: Index
J109: Qmax | K109: index | Y109: Qmax | Z109: Qmax | AA109: Qmax | AB109: Qmax | AC109: Qmax | AD109: Qmax | AE109: Qmax | AF109: Qmax | AG109: Qmax | AH109: Qmax | AI109: Qmax | AJ109: index | AU109: L1min | AV109: =AV110-1 -> 7 | AW109: =AW110-1 -> 7 | AX109: 7 | AY109: 7 | AZ109: 7 | BA109: 7 | BB109: 7 | BC109: 7 | BD109: 7 | BE109: 7 | BF109: 7 | BI109: Qmax | BJ109: Qmax | BK109: Qmax | BL109: Qmax | BM109: Qmax | BN109: Qmax | BO109: Qmax | BP109: Qmax | BQ109: Qmax | BR109: Qmax | BS109: Qmax | BT109: index | CE109: L2min | CF109: =CF110-1 -> 7 | CG109: =CG110-1 -> 7 | CH109: 7 | CI109: 7 | CJ109: 7 | CK109: 7 | CL109: 7 | CM109: 7 | CN109: 7 | CO109: 7 | CP109: 7 | CR109: Qmax | CS109: index | DH109: Qmax | DI109: Qmax | DJ109: Qmax | DK109: Qmax | DL109: Qmax | DM109: Qmax | DN109: Qmax | DO109: Qmax | DP109: Qmax | DQ109: Qmax | DR109: Qmax | DS109: index | ED109: L3min | EE109: =EE110-1 -> 7 | EF109: =EF110-1 -> 7 | EG109: 7 | EH109: 7 | EI109: 7 | EJ109: 7 | EK109: 7 | EL109: 7 | EM109: 7 | EN109: 7 | EO109: 7
J110: =MIN(J96:J108) -> 87.7608737 | Y110: =MIN(Y96:Y108) -> 10000 | Z110: =MIN(Z96:Z108) -> 10000 | AA110: 10000 | AB110: 10000 | AC110: 11.43361426 | AD110: 15.97750976 | AE110: 11.74716943 | AF110: 0.7016245 | AG110: 30.95425638 | AH110: 1.987897454 | AI110: 17.59114583 | AU110: L1max | AV110: =HLOOKUP(AU93,AL93:AS94,2,0) -> 8 | AW110: =HLOOKUP($ED$23,$DU$23:$EB$24,2,0) -> 8 | AX110: 8 | AY110: 8 | AZ110: 8 | BA110: 8 | BB110: 8 | BC110: 8 | BD110: 8 | BE110: 8 | BF110: 8 | BI110: =MIN(BI96:BI108) -> 10000 | BJ110: =MIN(BJ96:BJ108) -> 10000 | BK110: 10000 | BL110: 10000 | BM110: 11.43361426 | BN110: 15.97750976 | BO110: 11.74716943 | BP110: 0.7016245 | BQ110: 30.95425638 | BR110: 1.987897454 | BS110: 17.59114583 | CE110: L2max | CF110: =HLOOKUP(CE93,BV93:CC94,2,0) -> 8 | CG110: =HLOOKUP($ED$23,$DU$23:$EB$24,2,0) -> 8 | CH110: 8 | CI110: 8 | CJ110: 8 | CK110: 8 | CL110: 8 | CM110: 8 | CN110: 8 | CO110: 8 | CP110: 8 | CR110: =MIN(CR96:CR108) -> 87.7608737 | DH110: =MIN(DH96:DH108) -> 10000 | DI110: =MIN(DI96:DI108) -> 10000 | DJ110: 10000 | DK110: 10000 | DL110: 11.43361426 | DM110: 15.97750976 | DN110: 11.74716943 | DO110: 0.7016245 | DP110: 30.95425638 | DQ110: 1.987897454 | DR110: 17.59114583 | ED110: L3max | EE110: =HLOOKUP($ED$23,$DU$23:$EB$24,2,0) -> 8 | EF110: =HLOOKUP($ED$23,$DU$23:$EB$24,2,0) -> 8 | EG110: 8 | EH110: 8 | EI110: 8 | EJ110: 8 | EK110: 8 | EL110: 8 | EM110: 8 | EN110: 8 | EO110: 8
AU111: Qmin | AV111: =AV112-1 -> 0 | AW111: =AW112-1 -> 0 | AX111: 0 | AY111: 0 | AZ111: 11 | BA111: 8 | BB111: 5 | BC111: 4 | BD111: 4 | BE111: 3 | BF111: 3 | CE111: Qmin | CF111: =CF112-1 -> 0 | CG111: =CG112-1 -> 0 | CH111: 0 | CI111: 0 | CJ111: 11 | CK111: 8 | CL111: 5 | CM111: 4 | CN111: 4 | CO111: 3 | CP111: 3 | ED111: Qmin | EE111: =EE112-1 -> 0 | EF111: =EF112-1 -> 0 | EG111: 0 | EH111: 0 | EI111: 11 | EJ111: 8 | EK111: 5 | EL111: 4 | EM111: 4 | EN111: 3 | EO111: 3
AU112: Qmax | AV112: =VLOOKUP(Y110,Y96:$AJ$108,12,0) -> 1 | AW112: =VLOOKUP(Z110,Z96:$AJ$108,11,0) -> 1 | AX112: =VLOOKUP(AA110,AA96:$AJ$108,10,0) -> 1 | AY112: =VLOOKUP(AB110,AB96:$AJ$108,9,0) -> 1 | AZ112: =VLOOKUP(AC110,AC96:$AJ$108,8,0) -> 12 | BA112: =VLOOKUP(AD110,AD96:$AJ$108,7,0) -> 9 | BB112: =VLOOKUP(AE110,AE96:$AJ$108,6,0) -> 6 | BC112: =VLOOKUP(AF110,AF96:$AJ$108,5,0) -> 5 | BD112: =VLOOKUP(AG110,AG96:$AJ$108,4,0) -> 5 | BE112: =VLOOKUP(AH110,AH96:$AJ$108,3,0) -> 4 | BF112: =VLOOKUP(AI110,AI96:$AJ$108,2,0) -> 4 | CE112: Qmax | CF112: =VLOOKUP(BI110,BI96:$BT$108,12,0) -> 1 | CG112: =VLOOKUP(BJ110,BJ96:$BT$108,11,0) -> 1 | CH112: =VLOOKUP(BK110,BK96:$BT$108,10,0) -> 1 | CI112: =VLOOKUP(BL110,BL96:$BT$108,9,0) -> 1 | CJ112: =VLOOKUP(BM110,BM96:$BT$108,8,0) -> 12 | CK112: =VLOOKUP(BN110,BN96:$BT$108,7,0) -> 9 | CL112: =VLOOKUP(BO110,BO96:$BT$108,6,0) -> 6 | CM112: =VLOOKUP(BP110,BP96:$BT$108,5,0) -> 5 | CN112: =VLOOKUP(BQ110,BQ96:$BT$108,4,0) -> 5 | CO112: =VLOOKUP(BR110,BR96:$BT$108,3,0) -> 4 | CP112: =VLOOKUP(BS110,BS96:$BT$108,2,0) -> 4 | ED112: Qmax | EE112: =VLOOKUP(DH110,DH96:$DS$108,12,0) -> 1 | EF112: =VLOOKUP(DI110,DI96:$DS$108,11,0) -> 1 | EG112: =VLOOKUP(DJ110,DJ96:$DS$108,10,0) -> 1 | EH112: =VLOOKUP(DK110,DK96:$DS$108,9,0) -> 1 | EI112: =VLOOKUP(DL110,DL96:$DS$108,8,0) -> 12 | EJ112: =VLOOKUP(DM110,DM96:$DS$108,7,0) -> 9 | EK112: =VLOOKUP(DN110,DN96:$DS$108,6,0) -> 6 | EL112: =VLOOKUP(DO110,DO96:$DS$108,5,0) -> 5 | EM112: =VLOOKUP(DP110,DP96:$DS$108,4,0) -> 5 | EN112: =VLOOKUP(DQ110,DQ96:$DS$108,3,0) -> 4 | EO112: =VLOOKUP(DR110,DR96:$DS$108,2,0) -> 4
AU114: interp Qmin | AV114: =FORECAST(AV96,AV104:AV105,AV99:AV100) -> 0.0666435066 | AW114: =FORECAST(AW96,AW104:AW105,AW99:AW100) -> 0.0666435066 | AX114: =FORECAST(AX96,AX104:AX105,AX99:AX100) -> 0.0666435066 | AY114: 0.0666435066 | AZ114: 0.0726724168 | BA114: 0.06274417179 | BB114: 0.05517617529 | BC114: 0.05263827853 | BD114: =FORECAST(BD96,BD104:BD105,BD99:BD100) -> 0.05263827853 | BE114: =FORECAST(BE96,BE104:BE105,BE99:BE100) -> 0.05080914293 | BF114: =FORECAST(BF96,BF104:BF105,BF99:BF100) -> 0.05080914293 | CE114: interp Qmin | CF114: =FORECAST(CF96,CF104:CF105,CF99:CF100) -> 0.09170868623 | CG114: 0.09170868623 | CH114: 0.09170868623 | CI114: 0.09170868623 | CJ114: 0.1039487463 | CK114: 0.08242059549 | CL114: 0.05992940487 | CM114: 0.0498726845 | CN114: 0.0498726845 | CO114: 0.04105783667 | CP114: 0.04105783667 | ED114: interp Qmin | EE114: =FORECAST(EE96,EE104:EE105,EE99:EE100) -> 0.5226470588 | EF114: =FORECAST(EF96,EF104:EF105,EF99:EF100) -> 0.5226470588 | EG114: =FORECAST(EG96,EG104:EG105,EG99:EG100) -> 0.5226470588 | EH114: 0.5226470588 | EI114: 0.5785294118 | EJ114: 0.4726470588 | EK114: 0.3152941176 | EL114: 0.18 | EM114: =FORECAST(EM96,EM104:EM105,EM99:EM100) -> 0.18 | EN114: =FORECAST(EN96,EN104:EN105,EN99:EN100) -> 0.1335294118 | EO114: =FORECAST(EO96,EO104:EO105,EO99:EO100) -> 0.1335294118
AU115: interp Qmax | AV115: =FORECAST(AV96,AV106:AV107,AV99:AV100) -> 0.04978726926 | AW115: =FORECAST(AW96,AW106:AW107,AW99:AW100) -> 0.04978726926 | AX115: 0.04978726926 | AY115: 0.04978726926 | AZ115: 0.07871252102 | BA115: 0.06488821208 | BB115: 0.05870586383 | BC115: 0.05517617529 | BD115: 0.05517617529 | BE115: 0.05263827853 | BF115: 0.05263827853 | CE115: interp Qmax | CF115: =FORECAST(CF96,CF106:CF107,CF99:CF100) -> 0.03520614982 | CG115: =FORECAST(CG96,CG106:CG107,CG99:CG100) -> 0.03520614982 | CH115: 0.03520614982 | CI115: 0.03520614982 | CJ115: 0.1147314491 | CK115: 0.08761281169 | CL115: 0.07142895838 | CM115: 0.05992940487 | CN115: 0.05992940487 | CO115: 0.0498726845 | CP115: 0.0498726845 | ED115: interp Qmax | EE115: =FORECAST(EE96,EE106:EE107,EE99:EE100) -> 1e-05 | EF115: =FORECAST(EF96,EF106:EF107,EF99:EF100) -> 1e-05 | EG115: 1e-05 | EH115: 1e-05 | EI115: 0.6538235294 | EJ115: 0.5005882353 | EK115: 0.4079411765 | EL115: 0.3152941176 | EM115: 0.3152941176 | EN115: 0.18 | EO115: 0.18
A118: D nozzle | B118: D nozzle | C118: D nozzle | D118: D nozzle | E118: D nozzle | F118: D nozzle | G118: D nozzle | H118: D nozzle | I118: D nozzle | J118: D nozzle | K118: D nozzle | L118: D nozzle | M118: D nozzle | N118: D nozzle | O118: D nozzle | P118: D nozzle | Q118: D nozzle | R118: D nozzle | S118: D nozzle | T118: D nozzle | U118: D nozzle | V118: D nozzle | W118: D nozzle | X118: D nozzle | Y118: D nozzle | Z118: D nozzle | AA118: D nozzle | AB118: D nozzle | AC118: D nozzle | AD118: D nozzle | AE118: D nozzle | AF118: D nozzle | AG118: D nozzle | AH118: D nozzle | AI118: D nozzle | AJ118: D nozzle | AK118: D nozzle | AL118: D nozzle | AM118: D nozzle | AN118: D nozzle | AO118: D nozzle | AP118: D nozzle | AQ118: D nozzle | AR118: D nozzle | AS118: D nozzle | AT118: D nozzle | AU118: D nozzle | AV118: D nozzle | AW118: D nozzle | AX118: D nozzle | AY118: D nozzle | AZ118: D nozzle | BA118: D nozzle | BB118: D nozzle | BC118: D nozzle | BD118: D nozzle | BE118: D nozzle | BF118: D nozzle | BG118: D nozzle | BH118: D nozzle | BI118: D nozzle | BJ118: D nozzle | BK118: D nozzle | BL118: D nozzle | BM118: D nozzle | BN118: D nozzle | BO118: D nozzle | BP118: D nozzle | BQ118: D nozzle | BR118: D nozzle | BS118: D nozzle | BT118: D nozzle | BU118: D nozzle | BV118: D nozzle | BW118: D nozzle | BX118: D nozzle | BY118: D nozzle | BZ118: D nozzle | CA118: D nozzle | CB118: D nozzle | CC118: D nozzle | CD118: D nozzle | CE118: D nozzle | CF118: D nozzle | CG118: D nozzle | CH118: D nozzle | CI118: D nozzle | CJ118: D nozzle | CK118: D nozzle | CL118: D nozzle | CM118: D nozzle | CN118: D nozzle | CO118: D nozzle | CP118: D nozzle | CQ118: D nozzle | CR118: D nozzle | CS118: D nozzle | CT118: D nozzle | CU118: D nozzle | CV118: D nozzle | CW118: D nozzle | CX118: D nozzle | CY118: D nozzle | CZ118: D nozzle | DA118: D nozzle | DB118: D nozzle | DC118: D nozzle | DD118: D nozzle | DE118: D nozzle | DF118: D nozzle | DG118: D nozzle | DH118: D nozzle | DI118: D nozzle | DJ118: D nozzle | DK118: D nozzle | DL118: D nozzle | DM118: D nozzle | DN118: D nozzle | DO118: D nozzle | DP118: D nozzle | DQ118: D nozzle | DR118: D nozzle | DS118: D nozzle | DT118: D nozzle | DU118: D nozzle | DV118: D nozzle | DW118: D nozzle | DX118: D nozzle | DY118: D nozzle | DZ118: D nozzle | EA118: D nozzle | EB118: D nozzle | EC118: D nozzle | ED118: D nozzle | EE118: D nozzle | EF118: D nozzle | EG118: D nozzle | EH118: D nozzle | EI118: D nozzle | EJ118: D nozzle | EK118: D nozzle | EL118: D nozzle | EM118: D nozzle | EN118: D nozzle | EO118: D nozzle
L120: V1 (h=2m) | AK120: v1 (h=1,8m) | BU120: v2 | CT120: V3 (h =2) | DT120: V3 (h =1,8)
M122: 0.5 | N122: 1 | O122: 1.5 | P122: 2 | Q122: 2.5 | R122: 3 | S122: 3.5 | T122: 4.18 | U122: x [m] | AL122: 0.5 | AM122: 1 | AN122: 1.5 | AO122: 2 | AP122: 2.5 | AQ122: 3 | AR122: 3.5 | AS122: 4.18 | AT122: x [m] | BV122: 0.5 | BW122: 1 | BX122: 1.5 | BY122: 2 | BZ122: 2.5 | CA122: 3 | CB122: 3.5 | CC122: 4.18 | CD122: x [m] | CU122: 0.5 | CV122: 1 | CW122: 1.5 | CX122: 2 | CY122: 2.5 | CZ122: 3 | DA122: 3.5 | DB122: 4.18 | DC122: x [m] | DU122: 0.5 | DV122: 1 | DW122: 1.5 | DX122: 2 | DY122: 2.5 | DZ122: 3 | EA122: 3.5 | EB122: 4.18 | EC122: x [m]
M124: =IF(M126-$W$26<=0,10000,(M126-$W$26)) -> 1.2 | N124: =IF(N126-$W$26<=0,10000,(N126-$W$26)) -> 1.7 | O124: 2.2 | P124: 2.7 | Q124: 3.2 | R124: 3.7 | S124: 4.2 | T124: 4.88 | U124: L3max | V124: =MIN(M124:T124) -> 1.2 | AL124: =IF(AL126-$AV$26<=0,10000,(AL126-$AV$26)) -> 10000 | AM124: =IF(AM126-$AV$26<=0,10000,(AM126-$AV$26)) -> 10000 | AN124: 10000 | AO124: 10000 | AP124: 10000 | AQ124: 10000 | AR124: 10000 | AS124: 0.18 | AT124: L3max | AU124: =MIN(AL124:AS124) -> 0.18 | BV124: =IF(BV126-$CF$26<=0,10000,(BV126-$CF$26)) -> 10000 | BW124: =IF(BW126-$CF$26<=0,10000,(BW126-$CF$26)) -> 10000 | BX124: 10000 | BY124: 10000 | BZ124: 10000 | CA124: 10000 | CB124: 10000 | CC124: 0.18 | CD124: L3max | CE124: =MIN(BV124:CC124) -> 0.18 | CU124: =IF(CU126-$DE$26<=0,10000,(CU126-$DE$26)) -> 1.2 | CV124: =IF(CV126-$DE$26<=0,10000,(CV126-$DE$26)) -> 1.7 | CW124: 2.2 | CX124: 2.7 | CY124: 3.2 | CZ124: 3.7 | DA124: 4.2 | DB124: 4.88 | DC124: L3max | DD124: =MIN(CU124:DB124) -> 1.2 | DU124: =IF(DU126-$EE$26<=0,10000,(DU126-$EE$26)) -> 10000 | DV124: =IF(DV126-$EE$26<=0,10000,(DV126-$EE$26)) -> 10000 | DW124: 10000 | DX124: 10000 | DY124: 10000 | DZ124: 10000 | EA124: 10000 | EB124: 0.18 | EC124: L3max | ED124: =MIN(DU124:EB124) -> 0.18
L125: 2 sides | M125: 1 | N125: 2 | O125: 3 | P125: 4 | Q125: 5 | R125: 6 | S125: 7 | T125: 8 | U125: index | AK125: 2 sides | AL125: 1 | AM125: 2 | AN125: 3 | AO125: 4 | AP125: 5 | AQ125: 6 | AR125: 7 | AS125: 8 | AT125: index | BV125: 1 | BW125: 2 | BX125: 3 | BY125: 4 | BZ125: 5 | CA125: 6 | CB125: 7 | CC125: 8 | CD125: index | CF125: beam | CT125: 2 sides | CU125: 1 | CV125: 2 | CW125: 3 | CX125: 4 | CY125: 5 | CZ125: 6 | DA125: 7 | DB125: 8 | DC125: index | DT125: 2 sides | DU125: 1 | DV125: 2 | DW125: 3 | DX125: 4 | DY125: 5 | DZ125: 6 | EA125: 7 | EB125: 8 | EC125: index | EE125: beam
H126: Qt [m³/h] | L126: Qt [m³/h/m] | M126: =M122+(2.7-2) -> 1.2 | N126: =N122+(2.7-2) -> 1.7 | O126: 2.2 | P126: 2.7 | Q126: 3.2 | R126: 3.7 | S126: 4.2 | T126: 4.88 | U126: L1 h 2m [m] | Y126: 600 | Z126: 900 | AA126: 1000 | AB126: 1100 | AC126: 1200 | AD126: 1500 | AE126: 1800 | AF126: 2100 | AG126: 2400 | AH126: 2700 | AI126: 3000 | AK126: Q [m³/h/m] | AL126: =AL122+(2.7-1.8) -> 1.4 | AM126: 1.9 | AN126: 2.4 | AO126: 2.9 | AP126: 3.4 | AQ126: 3.9 | AR126: 4.4 | AS126: 5.08 | AT126: L1 h=1,8m [m] | AV126: 600 | AW126: 900 | AX126: 1000 | AY126: 1100 | AZ126: 1200 | BA126: 1500 | BB126: 1800 | BC126: 2100 | BD126: 2400 | BE126: 2700 | BF126: 3000 | BI126: 600 | BJ126: 900 | BK126: 1000 | BL126: 1100 | BM126: 1200 | BN126: 1500 | BO126: 1800 | BP126: 2100 | BQ126: 2400 | BR126: 2700 | BS126: 3000 | BU126: Q [m³/h/m] | BV126: =BV122+2.6+0.5 -> 3.6 | BW126: 4.1 | BX126: 4.6 | BY126: 5.1 | BZ126: 5.6 | CA126: 6.1 | CB126: 6.6 | CC126: 7.28 | CD126: L2 [m] | CF126: 600 | CG126: 900 | CH126: 1000 | CI126: 1100 | CJ126: 1200 | CK126: 1500 | CL126: 1800 | CM126: 2100 | CN126: 2400 | CO126: 2700 | CP126: 3000 | CT126: Q [m³/h/m] | CU126: =CU122+(2.7-2) -> 1.2 | CV126: =CV122+(2.7-2) -> 1.7 | CW126: =CW122+(2.7-2) -> 2.2 | CX126: 2.7 | CY126: 3.2 | CZ126: 3.7 | DA126: 4.2 | DB126: 4.88 | DC126: L3 h 2 [m] | DH126: 600 | DI126: 900 | DJ126: 1000 | DK126: 1100 | DL126: 1200 | DM126: 1500 | DN126: 1800 | DO126: 2100 | DP126: 2400 | DQ126: 2700 | DR126: 3000 | DT126: Q [m³/h/m] | DU126: =DU122+(2.7-1.8) -> 1.4 | DV126: 1.9 | DW126: 2.4 | DX126: 2.9 | DY126: 3.4 | DZ126: 3.9 | EA126: 4.4 | EB126: 5.08 | EC126: L3 h 1,8m [m] | EE126: 600 | EF126: 900 | EG126: 1000 | EH126: 1100 | EI126: 1200 | EJ126: 1500 | EK126: 1800 | EL126: 2100 | EM126: 2400 | EN126: 2700 | EO126: 3000
H127: =H96 -> 95.22054796 | J127: =IF(L127-$W$27<=0,10000,L127-$W$27) -> 87.7608737 | K127: 1 | L127: =H127/$J$21 -> 87.7608737 | Y127: =IF($AK127-AV$128<=0,10000,$AK127-AV$128) -> 10000 | Z127: =IF($AK127-AW$128<=0,10000,$AK127-AW$128) -> 10000 | AA127: 10000 | AB127: 10000 | AC127: 10000 | AD127: 10000 | AE127: 10000 | AF127: 10000 | AG127: 10000 | AH127: 10000 | AI127: 10000 | AJ127: 1 | AK127: =L127 -> 87.7608737 | AL127: 0.05389528448 | AM127: 0.05310251238 | AN127: 0.05239036436 | AO127: 0.05175064104 | AP127: 0.05117597689 | AQ127: 0.05065975547 | AR127: 0.05019603321 | AS127: 0.04964011424 | AU127: L1 @ 1,8m | AV127: =$R$1 -> 4.9 | AW127: 4.9 | AX127: 4.9 | AY127: 4.9 | AZ127: 4.9 | BA127: 4.9 | BB127: 4.9 | BC127: 4.9 | BD127: 4.9 | BE127: 4.9 | BF127: 4.9 | BI127: =IF($BU127-CF$128<=0,10000,$BU127-CF$128) -> 10000 | BJ127: =IF($BU127-CG$128<=0,10000,$BU127-CG$128) -> 10000 | BK127: 10000 | BL127: 10000 | BM127: 10000 | BN127: 10000 | BO127: 10000 | BP127: 10000 | BQ127: 10000 | BR127: 10000 | BS127: 10000 | BT127: 1 | BU127: =AK127 -> 87.7608737 | BV127: 0.04047007784 | BW127: 0.03968877573 | BX127: 0.03891737199 | BY127: 0.03815574121 | BZ127: 0.03740375958 | CA127: 0.03666130485 | CB127: 0.03592825633 | CC127: 0.03494619147 | CE127: L2 | CF127: =$R$3 -> 7.1 | CG127: 7.1 | CH127: 7.1 | CI127: 7.1 | CJ127: 7.1 | CK127: 7.1 | CL127: 7.1 | CM127: 7.1 | CN127: 7.1 | CO127: 7.1 | CP127: 7.1 | CR127: =IF(CT127-$DE$27<=0,10000,CT127-$DE$27) -> 87.7608737 | CS127: 1 | CT127: =BU127 -> 87.7608737 | DH127: =IF($DT127-EE$128<=0,10000,$DT127-EE$128) -> 10000 | DI127: =IF($DT127-EF$128<=0,10000,$DT127-EF$128) -> 10000 | DJ127: 10000 | DK127: 10000 | DL127: 10000 | DM127: 10000 | DN127: 10000 | DO127: 10000 | DP127: 10000 | DQ127: 10000 | DR127: 10000 | DS127: 1 | DT127: =CT127 -> 87.7608737 | DU127: 0.12 | DV127: 0.05 | DW127: 1e-05 | DX127: 1e-05 | DY127: 1e-05 | DZ127: 1e-05 | EA127: 1e-05 | EB127: 1e-05 | ED127: L3 | EE127: =$R$4 -> 4.9 | EF127: 4.9 | EG127: 4.9 | EH127: 4.9 | EI127: 4.9 | EJ127: 4.9 | EK127: 4.9 | EL127: 4.9 | EM127: 4.9 | EN127: 4.9 | EO127: 4.9
H128: =H97 -> 125.6410987 | J128: =IF(L128-$W$27<=0,10000,L128-$W$27) -> 115.7982477 | K128: 2 | L128: =H128/$J$21 -> 115.7982477 | Y128: =IF($AK128-AV$128<=0,10000,$AK128-AV$128) -> 10000 | Z128: 10000 | AA128: 10000 | AB128: 10000 | AC128: 10000 | AD128: 10000 | AE128: 10000 | AF128: 10000 | AG128: 10000 | AH128: 10000 | AI128: 10000 | AJ128: 2 | AK128: =L128 -> 115.7982477 | AL128: 0.05536470474 | AM128: 0.05442249418 | AN128: 0.05357610542 | AO128: 0.0528157935 | AP128: 0.05213280448 | AQ128: 0.05151927472 | AR128: 0.05096814028 | AS128: 0.05030742992 | AU128: Q1 | AV128: =B8 -> 802.380393 | AW128: =C8 -> 495.7382046 | AX128: 439.7225883 | AY128: 395.0807011 | AZ128: 358.6677333 | BA128: 280.9779716 | BB128: 230.95222 | BC128: 196.0476023 | BD128: 170.308311 | BE128: 150.5433233 | BF128: 137.2678979 | BI128: =IF($BU128-CF$128<=0,10000,$BU128-CF$128) -> 10000 | BJ128: 10000 | BK128: 10000 | BL128: 10000 | BM128: 10000 | BN128: 10000 | BO128: 10000 | BP128: 10000 | BQ128: 10000 | BR128: 10000 | BS128: 10000 | BT128: 2 | BU128: =AK128 -> 115.7982477 | BV128: 0.04492070856 | BW128: 0.04408302113 | BX128: 0.04325594642 | BY128: 0.04243934997 | BZ128: 0.04163309903 | CA128: 0.04083706253 | CB128: 0.04005111107 | CC128: 0.03899817217 | CE128: Q2 | CF128: =B8 -> 802.380393 | CG128: =C8 -> 495.7382046 | CH128: 439.7225883 | CI128: 395.0807011 | CJ128: 358.6677333 | CK128: 280.9779716 | CL128: 230.95222 | CM128: 196.0476023 | CN128: 170.308311 | CO128: 150.5433233 | CP128: 137.2678979 | CR128: =IF(CT128-$DE$27<=0,10000,CT128-$DE$27) -> 115.7982477 | CS128: 2 | CT128: =BU128 -> 115.7982477 | DH128: =IF($DT128-EE$128<=0,10000,$DT128-EE$128) -> 10000 | DI128: 10000 | DJ128: 10000 | DK128: 10000 | DL128: 10000 | DM128: 10000 | DN128: 10000 | DO128: 10000 | DP128: 10000 | DQ128: 10000 | DR128: 10000 | DS128: 2 | DT128: =CT128 -> 115.7982477 | DU128: 0.23 | DV128: 0.16 | DW128: 0.07 | DX128: 0.05 | DY128: 0.04 | DZ128: 0.03 | EA128: 0.02 | EB128: 0.01 | ED128: Q3 | EE128: =B8 -> 802.380393 | EF128: =C8 -> 495.7382046 | EG128: 439.7225883 | EH128: 395.0807011 | EI128: 358.6677333 | EJ128: 280.9779716 | EK128: 230.95222 | EL128: 196.0476023 | EM128: 170.308311 | EN128: 150.5433233 | EO128: 137.2678979
H129: 137.1714396 | J129: 126.4252899 | K129: 3 | L129: 126.4252899 | Y129: 10000 | Z129: 10000 | AA129: 10000 | AB129: 10000 | AC129: 10000 | AD129: 10000 | AE129: 10000 | AF129: 10000 | AG129: 10000 | AH129: 10000 | AI129: 10000 | AJ129: 3 | AK129: =L129 -> 126.4252899 | AL129: 0.05605563551 | AM129: 0.05504315803 | AN129: 0.05413364842 | AO129: 0.05331663497 | AP129: 0.05258271091 | AQ129: 0.05192342615 | AR129: 0.05133118994 | AS129: 0.05062120601 | AU129: v1 | AV129: =FORECAST(AV128,AV145:AV146,AV132:AV133) ->  | AW129: =FORECAST(AW128,AW145:AW146,AW132:AW133) ->  | AX129: 0.08025326146 | AY129: 0.07180572425 | AZ129: 0.06646786932 | BA129: 0.05855547983 | BB129: 0.05516773377 | BC129: 0.05347062205 | BD129: 0.05233795685 | BE129: 0.05164937644 | BF129: 0.05118688196 | BI129: 10000 | BJ129: 10000 | BK129: 10000 | BL129: 10000 | BM129: 10000 | BN129: 10000 | BO129: 10000 | BP129: 10000 | BQ129: 10000 | BR129: 10000 | BS129: 10000 | BT129: 3 | BU129: =AK129 -> 126.4252899 | BV129: 0.04686785512 | BW129: 0.04600549917 | BX129: 0.04515406846 | BY129: 0.04431342458 | BZ129: 0.04348343087 | CA129: 0.0426639524 | CB129: 0.04185485596 | CC129: 0.04077090973 | CE129: v2 | CF129: =FORECAST(CF128,CF145:CF146,CF132:CF133) ->  | CG129: =FORECAST(CG128,CG145:CG146,CG132:CG133) ->  | CH129: 0.117176214 | CI129: 0.1021917695 | CJ129: 0.09116812674 | CK129: 0.0709390146 | CL129: 0.05989595433 | CM129: 0.05317094554 | CN129: 0.04842539436 | CO129: =FORECAST(CO128,CO145:CO146,CO132:CO133) -> 0.04510703378 | CP129: =FORECAST(CP128,CP145:CP146,CP132:CP133) -> 0.04287821134 | CR129: 126.4252899 | CS129: 3 | CT129: =BU129 -> 126.4252899 | DH129: 10000 | DI129: 10000 | DJ129: 10000 | DK129: 10000 | DL129: 10000 | DM129: 10000 | DN129: 10000 | DO129: 10000 | DP129: 10000 | DQ129: 10000 | DR129: 10000 | DS129: 3 | DT129: =CT129 -> 126.4252899 | DU129: 0.33 | DV129: 0.21 | DW129: 0.13 | DX129: 0.1 | DY129: 0.06 | DZ129: 0.06 | EA129: 0.06 | EB129: 0.16 | ED129: v3 | EE129: =FORECAST(EE128,EE145:EE146,EE132:EE133) ->  | EF129: =FORECAST(EF128,EF145:EF146,EF132:EF133) ->  | EG129: 0.6661096615 | EH129: 0.5715525394 | EI129: 0.5230109769 | EJ129: 0.4039939058 | EK129: 0.314844104 | EL129: 0.2243718528 | EM129: 0.1723700981 | EN129: 0.1548761866 | EO129: 0.1431261607
H130: 194.1376764 | J130: 178.928734 | K130: 4 | L130: 178.928734 | Y130: 10000 | Z130: 10000 | AA130: 10000 | AB130: 10000 | AC130: 10000 | AD130: 10000 | AE130: 10000 | AF130: 10000 | AG130: 8.620422993 | AH130: 28.38541073 | AI130: 41.66083606 | AJ130: 4 | AK130: 178.928734 | AL130: 0.05992262524 | AM130: 0.05851687904 | AN130: 0.05725409572 | AO130: 0.05611973612 | AP130: 0.05510073967 | AQ130: 0.05418537407 | AR130: 0.05336310018 | AS130: 0.05237734274 | AU130: L1min | AV130: =HLOOKUP(AV140,$AL$24:$AS$25,2,0) -> 4.4 | AW130: =HLOOKUP(AW140,$AL$24:$AS$25,2,0) -> 4.4 | AX130: 4.4 | AY130: 4.4 | AZ130: 4.4 | BA130: 4.4 | BB130: 4.4 | BC130: 4.4 | BD130: 4.4 | BE130: 4.4 | BF130: 4.4 | BI130: 10000 | BJ130: 10000 | BK130: 10000 | BL130: 10000 | BM130: 10000 | BN130: 10000 | BO130: 10000 | BP130: 10000 | BQ130: 8.620422993 | BR130: 28.38541073 | BS130: 41.66083606 | BT130: 4 | BU130: 178.928734 | BV130: 0.05650532113 | BW130: 0.05552086752 | BX130: 0.054548886 | BY130: 0.05358921859 | BZ130: 0.05264170926 | CA130: 0.05170620399 | CB130: 0.05078255069 | CC130: 0.04954513268 | CE130: L2min | CF130: =HLOOKUP(CF140,$BV$24:$CC$25,2,0) -> 6.6 | CG130: =HLOOKUP(CG140,$BV$24:$CC$25,2,0) -> 6.6 | CH130: 6.6 | CI130: 6.6 | CJ130: 6.6 | CK130: 6.6 | CL130: 6.6 | CM130: 6.6 | CN130: 6.6 | CO130: 6.6 | CP130: 6.6 | CR130: 178.928734 | CS130: 4 | CT130: 178.928734 | DH130: 10000 | DI130: 10000 | DJ130: 10000 | DK130: 10000 | DL130: 10000 | DM130: 10000 | DN130: 10000 | DO130: 10000 | DP130: 8.620422993 | DQ130: 28.38541073 | DR130: 41.66083606 | DS130: 4 | DT130: 178.928734 | DU130: 0.49 | DV130: 0.39 | DW130: 0.31 | DX130: 0.28 | DY130: 0.22 | DZ130: 0.19 | EA130: 0.18 | EB130: 0.18 | ED130: L3min | EE130: =HLOOKUP(EE140,$DU$24:$EB$25,2,0) -> 4.4 | EF130: =HLOOKUP(EF140,$DU$24:$EB$25,2,0) -> 4.4 | EG130: 4.4 | EH130: 4.4 | EI130: 4.4 | EJ130: 4.4 | EK130: 4.4 | EL130: 4.4 | EM130: 4.4 | EN130: 4.4 | EO130: 4.4
H131: 250.7715335 | J131: 231.1258373 | K131: 5 | L131: 231.1258373 | Y131: 10000 | Z131: 10000 | AA131: 10000 | AB131: 10000 | AC131: 10000 | AD131: 10000 | AE131: 0.1736173622 | AF131: 35.07823499 | AG131: 60.81752632 | AH131: 80.58251406 | AI131: 93.85793939 | AJ131: 5 | AK131: 231.1258373 | AL131: 0.06528801243 | AM131: 0.06333661209 | AN131: 0.06158366707 | AO131: 0.0600089947 | AP131: 0.05859446481 | AQ131: 0.05732379111 | AR131: 0.05618234356 | AS131: 0.05481395472 | AU131: L1max | AV131: =HLOOKUP(AV141,$AL$24:$AS$25,2,0) -> 5.08 | AW131: 5.08 | AX131: 5.08 | AY131: 5.08 | AZ131: 5.08 | BA131: 5.08 | BB131: 5.08 | BC131: 5.08 | BD131: 5.08 | BE131: 5.08 | BF131: 5.08 | BI131: 10000 | BJ131: 10000 | BK131: 10000 | BL131: 10000 | BM131: 10000 | BN131: 10000 | BO131: 0.1736173622 | BP131: 35.07823499 | BQ131: 60.81752632 | BR131: 80.58251406 | BS131: 93.85793939 | BT131: 5 | BU131: 231.1258373 | BV131: 0.06750055356 | BW131: 0.06637680065 | BX131: 0.06526728464 | BY131: 0.06417182515 | BZ131: 0.06309024412 | CA131: 0.06202236569 | CB131: 0.06096801629 | CC131: 0.05955550476 | CE131: L2max | CF131: =HLOOKUP(CF141,$BV$24:$CC$25,2,0) -> 7.28 | CG131: 7.28 | CH131: 7.28 | CI131: 7.28 | CJ131: 7.28 | CK131: 7.28 | CL131: 7.28 | CM131: 7.28 | CN131: 7.28 | CO131: 7.28 | CP131: 7.28 | CR131: 231.1258373 | CS131: 5 | CT131: 231.1258373 | DH131: 10000 | DI131: 10000 | DJ131: 10000 | DK131: 10000 | DL131: 10000 | DM131: 10000 | DN131: 0.1736173622 | DO131: 35.07823499 | DP131: 60.81752632 | DQ131: 80.58251406 | DR131: 93.85793939 | DS131: 5 | DT131: 231.1258373 | DU131: 0.65 | DV131: 0.53 | DW131: 0.42 | DX131: 0.42 | DY131: 0.37 | DZ131: 0.36 | EA131: 0.33 | EB131: 0.31 | ED131: L3max | EE131: =HLOOKUP(EE141,$DU$24:$EB$25,2,0) -> 5.08 | EF131: 5.08 | EG131: 5.08 | EH131: 5.08 | EI131: 5.08 | EJ131: 5.08 | EK131: 5.08 | EL131: 5.08 | EM131: 5.08 | EN131: 5.08 | EO131: 5.08
H132: 307.2681641 | J132: 283.1964646 | K132: 6 | L132: 283.1964646 | Y132: 10000 | Z132: 10000 | AA132: 10000 | AB132: 10000 | AC132: 10000 | AD132: 2.218493081 | AE132: 52.2442447 | AF132: 87.14886232 | AG132: 112.8881537 | AH132: 132.6531414 | AI132: 145.9285667 | AJ132: 6 | AK132: 283.1964646 | AL132: 0.07275015429 | AM132: 0.0700398621 | AN132: 0.06760520373 | AO132: 0.06541814752 | AP132: 0.06345351258 | AQ132: 0.06168867891 | AR132: 0.06010332694 | AS132: 0.05820277712 | AU132: Qmin | AV132: =VLOOKUP(AV142,$AJ$96:$AK$108,2,0) ->  | AW132: =VLOOKUP(AW142,$AJ$96:$AK$108,2,0) ->  | AX132: 432.9931188 | AY132: 365.810558 | AZ132: 346.2244863 | BA132: 231.1258373 | BB132: 178.928734 | BC132: 178.928734 | BD132: 126.4252899 | BE132: 126.4252899 | BF132: 126.4252899 | BI132: 10000 | BJ132: 10000 | BK132: 10000 | BL132: 10000 | BM132: 10000 | BN132: 2.218493081 | BO132: 52.2442447 | BP132: 87.14886232 | BQ132: 112.8881537 | BR132: 132.6531414 | BS132: 145.9285667 | BT132: 6 | BU132: 283.1964646 | BV132: 0.08007326704 | BW132: 0.07879022963 | BX132: 0.0775234471 | BY132: 0.07627271352 | BZ132: 0.07503782556 | CA132: 0.07381858248 | CB132: 0.07261478606 | CC132: 0.07100206041 | CE132: Qmin | CF132: =VLOOKUP(CF142,$BT$127:$BU$139,2,0) ->  | CG132: =VLOOKUP(CG142,$BT$127:$BU$139,2,0) ->  | CH132: 432.9931188 | CI132: 365.810558 | CJ132: 346.2244863 | CK132: 231.1258373 | CL132: 178.928734 | CM132: 178.928734 | CN132: 126.4252899 | CO132: 126.4252899 | CP132: 126.4252899 | CR132: 283.1964646 | CS132: 6 | CT132: 283.1964646 | DH132: 10000 | DI132: 10000 | DJ132: 10000 | DK132: 10000 | DL132: 10000 | DM132: 2.218493081 | DN132: 52.2442447 | DO132: 87.14886232 | DP132: 112.8881537 | DQ132: 132.6531414 | DR132: 145.9285667 | DS132: 6 | DT132: 283.1964646 | DU132: 0.82 | DV132: 0.63 | DW132: 0.56 | DX132: 0.56 | DY132: 0.47 | DZ132: 0.46 | EA132: 0.43 | EB132: 0.4 | ED132: Qmin | EE132: =VLOOKUP(EE142,$DS$127:$DT$139,2,0) ->  | EF132: =VLOOKUP(EF142,$DS$127:$DT$139,2,0) ->  | EG132: 432.9931188 | EH132: 365.810558 | EI132: 346.2244863 | EJ132: 231.1258373 | EK132: 178.928734 | EL132: 178.928734 | EM132: 126.4252899 | EN132: 126.4252899 | EO132: 126.4252899
H133: 327.1569797 | J133: 301.5271703 | K133: 7 | L133: 301.5271703 | Y133: 10000 | Z133: 10000 | AA133: 10000 | AB133: 10000 | AC133: 10000 | AD133: 20.5491987 | AE133: 70.57495032 | AF133: 105.4795679 | AG133: 131.2188593 | AH133: 150.983847 | AI133: 164.2592723 | AJ133: 7 | AK133: 301.5271703 | AL133: 0.07602543416 | AM133: 0.07298204952 | AN133: 0.07024817384 | AO133: 0.06779233039 | AP133: 0.06558624359 | AQ133: 0.06360451346 | AR133: 0.06182432317 | AS133: 0.05969019748 | AU133: Qmax | AV133: =VLOOKUP(AV143,$AJ$96:$AK$108,2,0) -> 87.7608737 | AW133: 87.7608737 | AX133: 462.9571109 | AY133: 400.8057638 | AZ133: 365.810558 | BA133: 283.1964646 | BB133: 231.1258373 | BC133: 231.1258373 | BD133: 178.928734 | BE133: 178.928734 | BF133: 178.928734 | BI133: 10000 | BJ133: 10000 | BK133: 10000 | BL133: 10000 | BM133: 10000 | BN133: 20.5491987 | BO133: 70.57495032 | BP133: 105.4795679 | BQ133: 131.2188593 | BR133: 150.983847 | BS133: 164.2592723 | BT133: 7 | BU133: 301.5271703 | BV133: 0.08492256721 | BW133: 0.08357809371 | BX133: 0.08225065343 | BY133: 0.08094003058 | BZ133: 0.07964601208 | CA133: 0.07836838759 | CB133: 0.07710694941 | CC133: 0.0754170011 | CE133: Qmax | CF133: =VLOOKUP(CF143,$BT$127:$BU$139,2,0) -> 87.7608737 | CG133: 87.7608737 | CH133: 462.9571109 | CI133: 400.8057638 | CJ133: 365.810558 | CK133: 283.1964646 | CL133: 231.1258373 | CM133: 231.1258373 | CN133: 178.928734 | CO133: 178.928734 | CP133: 178.928734 | CR133: 301.5271703 | CS133: 7 | CT133: 301.5271703 | DH133: 10000 | DI133: 10000 | DJ133: 10000 | DK133: 10000 | DL133: 10000 | DM133: 20.5491987 | DN133: 70.57495032 | DO133: 105.4795679 | DP133: 131.2188593 | DQ133: 150.983847 | DR133: 164.2592723 | DS133: 7 | DT133: 301.5271703 | DU133: 0.88 | DV133: 0.7 | DW133: 0.59 | DX133: 0.53 | DY133: 0.49 | DZ133: 0.48 | EA133: 0.47 | EB133: 0.41 | ED133: Qmax | EE133: =VLOOKUP(EE143,$DS$127:$DT$139,2,0) -> 87.7608737 | EF133: 87.7608737 | EG133: 462.9571109 | EH133: 400.8057638 | EI133: 365.810558 | EJ133: 283.1964646 | EK133: 231.1258373 | EL133: 231.1258373 | EM133: 178.928734 | EN133: 178.928734 | EO133: 178.928734
H134: 354.9150097 | J134: 327.1106081 | K134: 8 | L134: 327.1106081 | Y134: 10000 | Z134: 10000 | AA134: 10000 | AB134: 10000 | AC134: 10000 | AD134: 46.1326365 | AE134: 96.15838811 | AF134: 131.0630057 | AG134: 156.8022971 | AH134: 176.5672848 | AI134: 189.8427101 | AJ134: 8 | AK134: 327.1106081 | AL134: 0.08128757238 | AM134: 0.07770903391 | AN134: 0.07449442897 | AO134: 0.07160674592 | AP134: 0.06901273714 | AQ134: 0.06668253628 | AR134: 0.06458931436 | AS134: 0.06207992046 | BI134: 10000 | BJ134: 10000 | BK134: 10000 | BL134: 10000 | BM134: 10000 | BN134: 46.1326365 | BO134: 96.15838811 | BP134: 131.0630057 | BQ134: 156.8022971 | BR134: 176.5672848 | BS134: 189.8427101 | BT134: 8 | BU134: 327.1106081 | BV134: 0.09209066441 | BW134: 0.09065537783 | BX134: 0.08923827499 | BY134: 0.08783912552 | BZ134: 0.08645770196 | CA134: 0.08509377974 | CB134: 0.08374713713 | CC134: 0.0819430405 | CR134: 327.1106081 | CS134: 8 | CT134: 327.1106081 | DH134: 10000 | DI134: 10000 | DJ134: 10000 | DK134: 10000 | DL134: 10000 | DM134: 46.1326365 | DN134: 96.15838811 | DO134: 131.0630057 | DP134: 156.8022971 | DQ134: 176.5672848 | DR134: 189.8427101 | DS134: 8 | DT134: 327.1106081 | DU134: 0.96 | DV134: 0.77 | DW134: 0.65 | DX134: 0.6 | DY134: 0.53 | DZ134: 0.51 | EA134: 0.48 | EB134: 0.47
H135: 375.6535676 | J135: 346.2244863 | K135: 9 | L135: 346.2244863 | Y135: 10000 | Z135: 10000 | AA135: 10000 | AB135: 10000 | AC135: 10000 | AD135: 65.24651468 | AE135: 115.2722663 | AF135: 150.1768839 | AG135: 175.9161753 | AH135: 195.681163 | AI135: 208.9565883 | AJ135: 9 | AK135: 346.2244863 | AL135: 0.08582030455 | AM135: 0.08178079207 | AN135: 0.07815209368 | AO135: 0.07489243004 | AP135: 0.0719642707 | AQ135: 0.06933390203 | AR135: 0.06697103905 | AS135: 0.06413839437 | AU135: Lmin Q min | AV135: =INDEX($AL$127:$AS$139,AV142,AV140) -> 0.06697103905 | AW135: =INDEX($AL$127:$AS$139,AW142,AW140) -> 0.06697103905 | AX135: 0.08232788571 | AY135: 0.0697331117 | AZ135: 0.06697103905 | BA135: 0.05618234356 | BB135: 0.05336310018 | BC135: 0.05336310018 | BD135: 0.05133118994 | BE135: 0.05133118994 | BF135: 0.05133118994 | BI135: 10000 | BJ135: 10000 | BK135: 10000 | BL135: 10000 | BM135: 10000 | BN135: 65.24651468 | BO135: 115.2722663 | BP135: 150.1768839 | BQ135: 175.9161753 | BR135: 195.681163 | BS135: 208.9565883 | BT135: 9 | BU135: 346.2244863 | BV135: 0.09776742799 | BW135: 0.09626022214 | BX135: 0.09477211117 | BY135: 0.09330285318 | BZ135: 0.09185220931 | CA135: 0.09041994373 | CB135: 0.08900582362 | CC135: 0.08711132739 | CE135: Lmin Q min | CF135: =INDEX($BV$127:$CC$139,CF142,CF140) -> 0.08900582362 | CG135: =INDEX($BV$127:$CC$139,CG142,CG140) -> 0.08900582362 | CH135: 0.1164716315 | CI135: 0.09467364585 | CJ135: 0.08900582362 | CK135: 0.06096801629 | CL135: 0.05078255069 | CM135: 0.05078255069 | CN135: 0.04185485596 | CO135: 0.04185485596 | CP135: 0.04185485596 | CR135: 346.2244863 | CS135: 9 | CT135: 346.2244863 | DH135: 10000 | DI135: 10000 | DJ135: 10000 | DK135: 10000 | DL135: 10000 | DM135: 65.24651468 | DN135: 115.2722663 | DO135: 150.1768839 | DP135: 175.9161753 | DQ135: 195.681163 | DR135: 208.9565883 | DS135: 9 | DT135: 346.2244863 | DU135: 0.99 | DV135: 0.8 | DW135: 0.73 | DX135: 0.63 | DY135: 0.58 | DZ135: 0.55 | EA135: 0.53 | EB135: 0.49 | ED135: Lmin Q min | EE135: =INDEX($DU$127:$EB$139,EE142,EE140) -> 0.53 | EF135: =INDEX($DU$127:$EB$139,EF142,EF140) -> 0.53 | EG135: 0.72 | EH135: 0.58 | EI135: 0.53 | EJ135: 0.33 | EK135: 0.18 | EL135: 0.18 | EM135: 0.06 | EN135: 0.06 | EO135: 0.06
H136: 396.9044554 | J136: 365.810558 | K136: 10 | L136: 365.810558 | Y136: 10000 | Z136: 10000 | AA136: 10000 | AB136: 10000 | AC136: 7.142824679 | AD136: 84.8325864 | AE136: 134.858338 | AF136: 169.7629556 | AG136: 195.502247 | AH136: 215.2672347 | AI136: 228.54266 | AJ136: 10 | AK136: 365.810558 | AL136: 0.09107688841 | AM136: 0.08650278697 | AN136: 0.08239386675 | AO136: 0.07870281932 | AP136: 0.07538714747 | AQ136: 0.0724086759 | AR136: 0.0697331117 | AS136: 0.06652559491 | AU136: Lmax Q min | AV136: =INDEX($AL$127:$AS$139,AV142,AV141) -> 0.06652559491 | AW136: =INDEX($AL$127:$AS$139,AW142,AW141) -> 0.06652559491 | AX136: 0.07741098974 | AY136: 0.06652559491 | AZ136: 0.06413839437 | BA136: 0.05481395472 | BB136: 0.05237734274 | BC136: 0.05237734274 | BD136: 0.05062120601 | BE136: 0.05062120601 | BF136: 0.05062120601 | BI136: 10000 | BJ136: 10000 | BK136: 10000 | BL136: 10000 | BM136: 7.142824679 | BN136: 84.8325864 | BO136: 134.858338 | BP136: 169.7629556 | BQ136: 195.502247 | BR136: 215.2672347 | BS136: 228.54266 | BT136: 10 | BU136: 365.810558 | BV136: 0.1038858545 | BW136: 0.1023011339 | BX136: 0.1007364903 | BY136: 0.09919166917 | BZ136: 0.09766641952 | CA136: 0.09616049335 | CB136: 0.09467364585 | CC136: 0.09268171677 | CE136: Lmax Q min | CF136: =INDEX($BV$127:$CC$139,CF142,CF141) -> 0.09268171677 | CG136: =INDEX($BV$127:$CC$139,CG142,CG141) -> 0.09268171677 | CH136: 0.1141049835 | CI136: 0.09268171677 | CJ136: 0.08711132739 | CK136: 0.05955550476 | CL136: 0.04954513268 | CM136: 0.04954513268 | CN136: 0.04077090973 | CO136: 0.04077090973 | CP136: 0.04077090973 | CR136: 365.810558 | CS136: 10 | CT136: 365.810558 | DH136: 10000 | DI136: 10000 | DJ136: 10000 | DK136: 10000 | DL136: 7.142824679 | DM136: 84.8325864 | DN136: 134.858338 | DO136: 169.7629556 | DP136: 195.502247 | DQ136: 215.2672347 | DR136: 228.54266 | DS136: 10 | DT136: 365.810558 | DU136: 1.04 | DV136: 0.86 | DW136: 0.79 | DX136: 0.67 | DY136: 0.62 | DZ136: 0.6 | EA136: 0.58 | EB136: 0.52 | ED136: Lmax Q min | EE136: =INDEX($DU$127:$EB$139,EE142,EE141) -> 0.52 | EF136: =INDEX($DU$127:$EB$139,EF142,EF141) -> 0.52 | EG136: 0.63 | EH136: 0.52 | EI136: 0.49 | EJ136: 0.31 | EK136: 0.18 | EL136: 0.18 | EM136: 0.16 | EN136: 0.16 | EO136: 0.16
H137: 434.8742537 | J137: 400.8057638 | K137: 11 | L137: 400.8057638 | Y137: 10000 | Z137: 10000 | AA137: 10000 | AB137: 5.725062633 | AC137: 42.13803048 | AD137: 119.8277922 | AE137: 169.8535438 | AF137: 204.7581614 | AG137: 230.4974528 | AH137: 250.2624405 | AI137: 263.5378658 | AJ137: 11 | AK137: 400.8057638 | AL137: 0.102276952 | AM137: 0.09656381607 | AN137: 0.09143169995 | AO137: 0.08682151455 | AP137: 0.08268018008 | AQ137: 0.0789600149 | AR137: 0.07561818653 | AS137: 0.0716119397 | AU137: Lmin Q max | AV137: =INDEX($AL$127:$AS$139,AV143,AV140) -> 0.05019603321 | AW137: =INDEX($AL$127:$AS$139,AW143,AW140) -> 0.05019603321 | AX137: 0.0899487977 | AY137: 0.07561818653 | AZ137: 0.0697331117 | BA137: 0.06010332694 | BB137: 0.05618234356 | BC137: 0.05618234356 | BD137: 0.05336310018 | BE137: 0.05336310018 | BF137: 0.05336310018 | BI137: 10000 | BJ137: 10000 | BK137: 10000 | BL137: 5.725062633 | BM137: 42.13803048 | BN137: 119.8277922 | BO137: 169.8535438 | BP137: 204.7581614 | BQ137: 230.4974528 | BR137: 250.2624405 | BS137: 263.5378658 | BT137: 11 | BU137: 400.8057638 | BV137: 0.1156278628 | BW137: 0.113894382 | BX137: 0.1121828627 | BY137: 0.1104930268 | BZ137: 0.1088245996 | CA137: 0.1071773097 | CB137: 0.1055508895 | CC137: 0.1033719748 | CE137: Lmin Q max | CF137: =INDEX($BV$127:$CC$139,CF143,CF140) -> 0.03592825633 | CG137: =INDEX($BV$127:$CC$139,CG143,CG140) -> 0.03592825633 | CH137: 0.1274966787 | CI137: 0.1055508895 | CJ137: 0.09467364585 | CK137: 0.07261478606 | CL137: 0.06096801629 | CM137: 0.06096801629 | CN137: 0.05078255069 | CO137: 0.05078255069 | CP137: 0.05078255069 | CR137: 400.8057638 | CS137: 11 | CT137: 400.8057638 | DH137: 10000 | DI137: 10000 | DJ137: 10000 | DK137: 5.725062633 | DL137: 42.13803048 | DM137: 119.8277922 | DN137: 169.8535438 | DO137: 204.7581614 | DP137: 230.4974528 | DQ137: 250.2624405 | DR137: 263.5378658 | DS137: 11 | DT137: 400.8057638 | DU137: 1.16 | DV137: 0.94 | DW137: 0.83 | DX137: 0.75 | DY137: 0.71 | DZ137: 0.65 | EA137: 0.63 | EB137: 0.56 | ED137: Lmin Q max | EE137: =INDEX($DU$127:$EB$139,EE143,EE140) -> 1e-05 | EF137: =INDEX($DU$127:$EB$139,EF143,EF140) -> 1e-05 | EG137: 0.76 | EH137: 0.63 | EI137: 0.58 | EJ137: 0.43 | EK137: 0.33 | EL137: 0.33 | EM137: 0.18 | EN137: 0.18 | EO137: 0.18
